Workbook

Sheet TitlePage
A1: Title page
C6: Picloram (Potassium Salt): Foliar Applications
E17: WorksheetMaker Version | F17: 6.00.07
A51: 2011-07-30

Sheet Disclaimer
A1: DISCLAIMER

Sheet General Notes
A1: General Notes
B2: Prepared by: | C2: Patrick R Durkin
B3: Program Version: | C3: 6.00.07
B4: Database Used: | C4: FS WsMkr V06-00-01.mdb
B5: Template Workbook: | C5: FS WsMkr V06-00-01.mdb
B6: Base Workbook: | C6: FS WSMkr Blank V06-00-01.xlsm
A8: Color Codes in WorksheetMaker
A13: Color Codes used in Workbook for Front Matter, Data and Calculation Worksheets
B14: Green shading | C14: This is a default value or a user specified a value. You can change these values as you see fit but you should have a reason for doing so.
B15: Yellow shading | C15: This is a source for a link in other parts of the workbook. If you have good reason to change the value, you should note the change (with your reason) in the “Revisions” page.
B16: Blue shading | C16: This cell is linked to another cell in the workbook. Do not change this value. If you change any of these values, the workbook may not update correctly.
B17: Blue shading blue border | C17: This cell is linked to a Program parameter in Worksheet A01. Do not change this value. If you want the value to change, go to Worksheet A01 and change the value in that worksheet.
B18: Purple Shading | C18: Indicates (for information only) that the typical of order of Lower and Upper values is intentionally reversed. This is only used in the second (label) column.
B19: Italics, no shading | C19: The value in this cell is generated by a formula (the number that you see is the result of an equation). This cell is linked only to other cells in the worksheet. Do not change this value.
A25: Color Codes used in Workbook for Risk Characterization Worksheets
B26: HQ ≥ 2 | C26: For hazard quotient greater than 2, the number is in bold font with a red background and rounded to the nearest integer.
B27: HQ > 1 but < 2 | C27: For hazard quotient greater than 1 but less than two, the number is in bold font with a white background and rounded to one significant place after the decimal.
B28: HQ ≥ 0.1 but <1 | C28: For hazard quotient greater than 0.1 but less than one, the number is in regular font with a white background and rounded to one significant place after the decimal.
B29: HQ < 0.1 | C29: For hazard quotient less than 0.1, the number is in regular font with a white background. The number is expressed in scientific notation and rounded to one significant place -- e.g., 2E-02 rather than 0.02.
B55: Prepared by: | C55: Patrick R Durkin
B56: Program Version: | C56: 6.00.07
B57: Database Used: | C57: FS WsMkr V06-00-01.mdb
B58: Template Workbook: | C58: FS WsMkr V06-00-01.mdb
B59: Base Workbook: | C59: FS WSMkr Blank V06-00-01.xlsm

Sheet Chemical Notes
A1: Chemical specific notes
A2: Risk Assessment: | D2: SERA TR-052-27-03a
A3: Report Date: | D3: 2011-09-29
A6: The area below is an embedded MS Word Document. Add chemical-specific notes as appropriate.

Sheet Revisions
A1: Revision Histroy
A8: The area below is an embedded MS Word Document. Add revision notes as appropriate.

Sheet Contents
B1: Table of Contents | C1: Toc
A2: Work-sheet No. | B2: Worksheet Title
A3: TitlePage | B3: Title page
A4: Disclaimer | B4: DISCLAIMER
A5: General Notes | B5: General Notes
A6: Chemical Notes | B6: Chemical specific notes
A7: Revisions | B7: Revision Histroy
A8: Contents
A9: A01 | B9: Program Data: Application rates, application volumns, and concentrations in field solutions
A10: A02a | B10: General reference values and exposure factors used in worksheets.
A11: A02b | B11: General reference values and exposure factors used in worksheets.
A12: A02c | B12: General reference values and exposure factors used in worksheets.
A13: A02d | B13: General reference values and exposure factors used in worksheets.
A14: A03 | B14: Consumption values used in worksheets
A15: B01 | B15: Chemical and Physical Properties for Picloram
A16: B02 | B16: Toxicity values for Picloram
A17: B03a | B17: Calculation of Zero-Order Dermal Permeability Rate (Kp) in cm/hour
A18: B03b | B18: Calculation of First-Order Dermal Absorption Rate
A19: B04Rt | B19: Estimates of Water Contamination Rates -- i.e., the concentration in ambient water per pound applied per acre
A20: B04a | B20: Expected Concentrations in Surface Water
A21: B04b | B21: Pond: Concentration of pesticide (liquid formulation) in pond water after an accidental spill
A22: B04c | B22: Concentration in pond water after direct spray or after drift at distances downwind in feet from the application site
A23: B04d | B23: Concentration in stream water after direct spray or after drift at distances downwind in feet from the application site
A24: B05a | B24: Concentration of Pesticide in Contaminated Fruit
A25: B05b | B25: Concentration of Pesticide in Contaminated Broadleaf Vegetation
A26: B05c | B26: Concentration of Pesticide in Contaminated Short Grass
A27: B05d | B27: Concentration of Pesticide in Contaminated Tall Grass
A28: C01a | B28: Exposure estimates for Backpack Worker based on the amount of material handled per day
A29: C01b | B29: Exposure estimates for Ground Boom Worker based on the amount of material handled per day
A30: C01c | B30: Exposure estimates for Aerial Spray Worker based on the amount of material handled per day
A31: C02a | B31: Accidental Dermal Exposure Assessment Using Zero-Order Absorption, Worker, Surface Area, Hands, for 1 minute(s)
A32: C02b | B32: Accidental Dermal Exposure Assessment Using Zero-Order Absorption, Worker, Surface Area, Hands, for 60 minute(s)
A33: C03a | B33: Accidental Dermal Exposure Assessment Using First-Order Absorption, Worker, Surface Area, Hands, for 60 minute(s)
A34: C03b | B34: Accidental Dermal Exposure Assessment Using First-Order Absorption, Worker, Surface Area, Lower legs, for 60 minute(s)
A35: D01a | B35: Accidental Dermal Exposure Assessment Using First-Order Absorption, Child, Surface Area, Whole body, for 60 minute(s)
A36: D01b | B36: Accidental Dermal Exposure Assessment Using First-Order Absorption, Adult Female, Surface Area, Feet and lower Legs, for 60 minute(s)
A37: D02 | B37: Dermal Contact with Contaminated Vegetation, Adult Female, Surface Area, Wearing shorts and T-shirt, for 1 hour(s)
A38: D03a | B38: Consumption of Fruit by a Adult Female, Acute exposure.
A39: D03b | B39: Consumption of Vegetation by a Adult Female, Acute exposure.
A40: D04a | B40: Consumption of Fruit by a Adult Female, Chronic exposure.
A41: D04b | B41: Consumption of Vegetation by a Adult Female, Chronic exposure.
A42: D05 | B42: Consumption of contaminated water by Child, Accidental Spill
A43: D06 | B43: Consumption of contaminated water by Child, Peak Conentrations
A44: D07 | B44: Consumption of contaminated water by Adult Male, Longer-term Conentrations
A45: D08a | B45: Consumption of Contaminated Fish (Accidental Spill), Adult Male, acute exposure
A46: D08b | B46: Consumption of Contaminated Fish (Accidental Spill), Subsistence Populations, acute exposure
A47: D09a | B47: Consumption of Contaminated Fish (Longer-term), Adult Male, chronic exposure
A48: D09b | B48: Consumption of Contaminated Fish (Longer-term), Subsistence Populations, chronic exposure
A49: D09c | B49: Consumption of Contaminated Fish (Peak Exposure), Adult Male, acute exposure
A50: D09d | B50: Consumption of Contaminated Fish (Peak Exposure), Subsistence Populations, acute exposure
A51: D11 | B51: Swimming Exposure Assessment Using Zero-Order Absorption, Adult Female, Surface Area, Whole body, for 60 minute(s)
A52: E01 | B52: Worksheet E01: Summary of Worker Exposure Assessments
A53: E02 | B53: Worksheet E01: Summary of Worker Hazard Quotients (Toxicity)
A54: E03 | B54: Worksheet E03: Summary of Exposure Assessments for the General Public
A55: E04 | B55: Worksheet E03: Summary of Hazard Quotients (Toxicity) for the General Public
A56: F01a | B56: Direct spray of Mammal, small assuming first-order absorption kinetics with spray of 0.5 of the body surface
A57: F01b | B57: Direct spray of Mammal, small assuming 100% absorption with spray of 0.5 of the body surface
A58: F02a | B58: Consumption of contaminated water by Mammal, small, Accidental Spill
A59: F02b | B59: Consumption of contaminated water by Mammal, 400 g, Accidental Spill
A60: F02c | B60: Consumption of contaminated water by Mammal, carnivorous, Accidental Spill
A61: F02d | B61: Consumption of contaminated water by Mammal, large, Accidental Spill
A62: F02e | B62: Consumption of contaminated water by Bird, small, Accidental Spill
A63: F02f | B63: Consumption of contaminated water by Bird, large, Accidental Spill
A64: F03a | B64: Acute scenario for the consumption of Contaminated Fish ( Accidental Spill) by Mammal, large carnivorous
A65: F03b | B65: Acute scenario for the consumption of Contaminated Fish ( Accidental Spill) by Mammal, carnivorous
A66: F03c | B66: Acute scenario for the consumption of Contaminated Fish ( Accidental Spill) by Bird, piscivorous
A67: F04a | B67: Consumption of Fruit by a Mammal, small after Acute exposure.
A68: F04b | B68: Consumption of Fruit by a Mammal, 400 g after Acute exposure.
A69: F04c | B69: Consumption of Fruit by a Mammal, large after Acute exposure.
A70: F04d | B70: Consumption of Fruit by a Bird, small after Acute exposure.
A71: F04e | B71: Consumption of Fruit by a Bird, large after Acute exposure.
A72: F05a | B72: Consumption of Short grass by a Mammal, small after Acute exposure.
A73: F05b | B73: Consumption of Short grass by a Mammal, 400 g after Acute exposure.
A74: F05c | B74: Consumption of Short grass by a Mammal, large after Acute exposure.
A75: F05d | B75: Consumption of Short grass by a Bird, small after Acute exposure.
A76: F05e | B76: Consumption of Short grass by a Bird, large after Acute exposure.
A77: F06a | B77: Consumption of contaminated water by Mammal, small, Peak Concentrations
A78: F06b | B78: Consumption of contaminated water by Mammal, 400 g, Peak Concentrations
A79: F06c | B79: Consumption of contaminated water by Mammal, carnivorous, Peak Concentrations
A80: F06d | B80: Consumption of contaminated water by Mammal, large, Peak Concentrations
A81: F06e | B81: Consumption of contaminated water by Bird, small, Peak Concentrations
A82: F06f | B82: Consumption of contaminated water by Bird, large, Peak Concentrations
A83: F07a | B83: Consumption of Small Insects by a Mammal, small after Acute exposure.
A84: F07b | B84: Consumption of Small Insects by a Mammal, 400 g after Acute exposure.
A85: F07c | B85: Consumption of Small Insects by a Bird, small after Acute exposure.
A86: F08a | B86: Consumption of Small Mammal by Mammal, carnivorous, acute exposure scenario
A87: F08b | B87: Consumption of Small Mammal by Bird, carnivorous, acute exposure scenario
A88: F09a | B88: Acute scenario for the consumption of Contaminated Fish (Peak) by Mammal, large carnivorous
A89: F09b | B89: Acute scenario for the consumption of Contaminated Fish (Peak) by Mammal, carnivorous
A90: F09c | B90: Acute scenario for the consumption of Contaminated Fish (Peak) by Bird, piscivorous
A91: F10a | B91: Consumption of Fruit by a Mammal, small after Chronic exposure.
A92: F10b | B92: Consumption of Fruit by a Mammal, 400 g after Chronic exposure.
A93: F10c | B93: Consumption of Fruit by a Mammal, large after Chronic exposure.
A94: F10d | B94: Consumption of Fruit by a Bird, small after Chronic exposure.
A95: F10e | B95: Consumption of Fruit by a Bird, large after Chronic exposure.
A96: F11a | B96: Consumption of Short grass by a Mammal, small after Chronic exposure.
A97: F11b | B97: Consumption of Short grass by a Mammal, 400 g after Chronic exposure.
A98: F11c | B98: Consumption of Short grass by a Mammal, large after Chronic exposure.
A99: F11d | B99: Consumption of Short grass by a Bird, small after Chronic exposure.
A100: F11e | B100: Consumption of Short grass by a Bird, large after Chronic exposure.
A101: F12a | B101: Consumption of contaminated water by Mammal, small, Longer-term Concentrations
A102: F12b | B102: Consumption of contaminated water by Mammal, 400 g, Longer-term Concentrations
A103: F12c | B103: Consumption of contaminated water by Mammal, carnivorous, Longer-term Concentrations
A104: F12d | B104: Consumption of contaminated water by Mammal, large, Longer-term Concentrations
A105: F12e | B105: Consumption of contaminated water by Bird, small, Longer-term Concentrations
A106: F12f | B106: Consumption of contaminated water by Bird, large, Longer-term Concentrations
A107: F13a | B107: Chronic scenario for the consumption of Contaminated Fish (Longer-term) by Mammal, large carnivorous
A108: F13b | B108: Chronic scenario for the consumption of Contaminated Fish (Longer-term) by Mammal, carnivorous
A109: F13c | B109: Chronic scenario for the consumption of Contaminated Fish (Longer-term) by Bird, piscivorous
A110: G01 | B110: Summary of Exposure Assessments for the Terrestrial Animals
A111: G02 | B111: Summary of Hazard Quotients (Toxicity) for the Terrestrial Animals
A112: G03 | B112: Worksheet G03: Summary of Hazard Quotients for Aquatic Species
A113: G04 | B113: Summary of Exposure Assessment and Risk Characterization for Terrestrial Plants from Runoff
A114: G05 | B114: Summary of Exposure Assessment and Risk Characterization for Sensitive and Tolerant Terrestrial Plants from Drift After Aerial Broadcast Foliar Application.
A115: G06a | B115: Potential exposure of non-target plants through the use of contaminated irrigation water based on estimates concentrations in ambient water.
A116: G06b | B116: Summary of Exposure Assessment and Risk Characterization for Sensitive and Tolerant Terrestrial Plants from Wind Erosion at the Specified Application Rate.
A117: G07a | B117: Consumption of Fruit by a Herbivorous Insect, Acute exposure.
A118: G07b | B118: Consumption of Broadleaf/Small Insects by a Herbivorous Insect, Acute exposure.
A119: G07c | B119: Consumption of Short grass by a Herbivorous Insect, Acute exposure.
A120: G07d | B120: Consumption of Tall Grass by a Herbivorous Insect, Acute exposure.
A121: G08a | B121: Summary of Exposure Assessments for the Herbivorous or Predatory Insects
A122: G08b | B122: Summary of Hazard Quotients (Toxicity) for the Herbivorous or Predatory Insects
A123: G09 | B123: Exposures and HQs for a Terrestrial Insect (Honeybee) Associated with Direct Spray or Drift Following Terrestrial Applications
A124: References | B124: References cited in workbook

Sheet A01
A1: Program Data: Application rates, application volumns, and concentrations in field solutions
A2: Parameter/Assumption | B2: Code / Range | C2: Equation/ Value | D2: Units | E2: Reference/ Equation
A3: Application Rate | B3: ApRt | C3: 1 | D3: lb/acre | E3: Program Input
A4: Application Volume | B4: ApVol
B5: Central | C5: 30 | D5: gal/acre | E5: Program Input
B6: Upper | C6: 100 | E6: Program Input
B7: Lower | C7: 5 | E7: Program Input
A8: Concentration in field solution (lb/gal) | B8: Concppg | C8: ApRt (lb/acre) / ApVol (gal/acre) | E8: Note 1
B9: Central | C9: =IF(C5>0, C$3/C5, "N/A") -> 0.03333333333 | D9: lb/gal | E9: Eq
B10: Lower | C10: =IF(C6>0, C$3/C6, "N/A") -> 0.01 | E10: Eq
B11: Upper | C11: =IF(C7>0, C$3/C7, "N/A") -> 0.2 | E11: Eq
A12: Conversion Factor for lbs/gal to mg/mL | B12: CnvF | C12: 119.8 | D12: mg/mL per lb/gal
A13: Concentration in field solution (mg/mL) | B13: FldConc | C13: Concppg * CnvF | E13: Note 2
B14: Central | C14: =IF(C5>0, DigitRound( C9*C$12, C$17), "NA") -> 4 | D14: mg/mL | E14: Eq
B15: Lower | C15: =IF(C6>0, DigitRound( C10*C$12, C$17), "NA") -> 1.2 | E15: Eq
B16: Upper | C16: =IF(C7>0, DigitRound( C11*C$12, C$17), "NA") -> 24 | E16: Eq
A17: Number of significant figures used for FldConc. | B17: NSig | C17: 2
A20: Number of Applications | B20: nApps | C20: 1 | D20: Unitless | E20: Program Input
A21: Application Interval | B21: ApIntv | C21: 1 | D21: Days | E21: Program Input
A22: Standard Values/Options for Scenarios
A23: Surface area of pond for spill | B23: PondSA_M | C23: 1000 | D23: Sq. Meters | E23: Risk assessment.
A24: Pond depth | B24: PondDepthM | C24: 1 | D24: Meters | E24: Risk assessment.
A25: Stream flow rate for drift scenario | B25: StreamFlowLD | C25: 710000 | D25: Liters/day | E25: Risk assessment.
A26: Stream length for drift scenario | B26: StreamLengthFt | C26: 1038 | D26: Feet | E26: Risk assessment.
A27: Stream width for drift scenario | B27: StreamWidthFt | C27: 6 | D27: Feet | E27: Risk assessment.
A28: Duration for longer-term exposures | B28: SubChDays | C28: 90 | D28: Days | E28: Risk assessment.
A29: Duration for swimming scenarios | B29: SwimMin | C29: 60 | D29: Minutes | E29: Risk assessment.
A30: Protection factor for workers based on PPE. | B30: WrkProtectFact
B31: Central | C31: 0 | E31: Risk assessment.
B32: Lower | C32: 0
B33: Upper | C33: 0
A34: Toxic Equivalency Factor for formulation | B34: TEF
B35: Central | C35: 1 | E35: Risk assessment.
B36: Lower | C36: 1
B37: Upper | C37: 1
A38: Used in food commody worksheets | B38: DriftToFood
B39: Central | C39: 1 | E39: Risk assessment.
B40: Lower | C40: 1
B41: Upper | C41: 1
A42: Amount spilled into ponds | B42: PondSpillVolGal
B43: Central | C43: 100 | D43: Gal | E43: Risk assessment.
B44: Lower | C44: 20
B45: Upper | C45: 200
A46: Dislodgeable residue, as a proportion of the application rate. | B46: DislogRes
B47: Central | C47: 0.1 | E47: Risk assessment.
B48: Lower | C48: 0.1
B49: Upper | C49: 0.1
A50: Residue rates for short grass | B50: VegRRSGT
B51: Central | C51: 85 | D51: ppm per lb/ac | E51: Risk assessment.
B52: Lower | C52: 30
B53: Upper | C53: 240
A54: Residue rates for long grass | B54: VegRRTGT
B55: Central | C55: 36 | D55: ppm per lb/ac | E55: Risk assessment.
B56: Lower | C56: 12
B57: Upper | C57: 110
A58: Residue rates for broadleaf/forage plants and small insects | B58: VegRRBLT
B59: Central | C59: 45 | D59: ppm per lb/ac | E59: Risk assessment.
B60: Lower | C60: 15
B61: Upper | C61: 135
A62: Residue rates for fruit | B62: VegRRFRT
B63: Central | C63: 7 | D63: ppm per lb/ac | E63: Risk assessment.
B64: Lower | C64: 3.2
B65: Upper | C65: 15
A66: Worker Exposure Rate | B66: WrkExpRate
B67: Central | C67: 0.003 | D67: Mg/kg bw per lb | E67: Risk assessment.
B68: Lower | C68: 0.0003
B69: Upper | C69: 0.01
A70: Number of acres that the worker will treat per hour. | B70: WrkAcPerHr
B71: Central | C71: 0.625 | D71: Acres/hr | E71: Risk assessment.
B72: Lower | C72: 0.25
B73: Upper | C73: 1
A74: Number of hours of worker exposure per day. | B74: WrkHsPerDy
B75: Central | C75: 7 | D75: Hrs/day | E75: Risk assessment.
B76: Lower | C76: 6
B77: Upper | C77: 8

Sheet A02a
A1: General reference values and exposure factors used in worksheets.
A3: Receptor | B3: Factor | C3: Value | D3: Units | E3: Reference | F3: Reference Note
A4: Adult Female | B4: Body weight | C4: 64 | D4: kg | E4: U.S. EPA/ORD 1985 | F4: page 5, Table 2-2
A5: Adult Female | B5: Surface Area, Feet and lower Legs | C5: 2915 | D5: cm2 | E5: U.S. EPA/ORD 1992 | F5: p. 8-11, Table 8-3, total for feet and lower legs
A6: Adult Female | B6: Surface Area, Wearing shorts and T-shirt | C6: 5300 | D6: cm2 | E6: U.S. EPA/ORD 1992 | F6: p. 8-11, Table 8-3, total for arms, hands, lower legs, and feet.
A7: Adult Female | B7: Surface Area, Whole body | C7: 16900 | D7: cm2 | E7: U.S. EPA/ORD 1997 | F7: p. 6-13, Table 6-3, whole body, 50th percentile
A8: Adult Male | B8: Body weight | C8: 70 | D8: kg | E8: ICRP 1975 | F8: p. 13.
A9: Subsistence Populations | B9: Body weight | C9: 70 | D9: kg | E9: ICRP 1975 | F9: p. 13
A10: Worker, Aerial Spray | B10: Absorbed dose rate, central estimate | C10: 3e-05 | D10: (mg/kg bw)/(lbs handled per day) | E10: SERA 2007 | F10: Acres treated per hour
A11: Worker, Aerial Spray | B11: Absorbed dose rate, lower range | C11: 1e-06 | D11: (mg/kg bw)/(lbs handled per day) | E11: SERA 2007 | F11: Acres treated per hour
A12: Worker, Aerial Spray | B12: Absorbed dose rate, upper range | C12: 0.0001 | D12: (mg/kg bw)/(lbs handled per day) | E12: SERA 2007 | F12: Acres treated per hour
A13: Worker, Aerial Spray | B13: Hours of application per day, central estimate | C13: 7 | D13: Hours per day | E13: USDA 1989a | F13: N/A
A14: Worker, Aerial Spray | B14: Hours of application per day, lower range | C14: 6 | D14: Hours per day | E14: USDA 1989a | F14: N/A
A15: Worker, Aerial Spray | B15: Hours of application per day, upper range | C15: 8 | D15: Hours per day | E15: USDA 1989a | F15: N/A
A16: Worker, Aerial Spray | B16: Acres treated per hour, central estimate | C16: 70 | D16: acres/hour | E16: USDA 1989a | F16: Acres treated per hour
A17: Worker, Aerial Spray | B17: Acres treated per hour, lower range | C17: 40 | D17: acres/hour | E17: USDA 1989a | F17: Acres treated per hour
A18: Worker, Aerial Spray | B18: Acres treated per hour, upper range | C18: 100 | D18: acres/hour | E18: USDA 1989a | F18: Acres treated per hour
A19: Worker, Backpack | B19: Absorbed dose rate, central estimate | C19: 0.003 | D19: (mg/kg bw)/(lbs handled per day) | E19: SERA 2007 | F19: Acres treated per hour
A20: Worker, Backpack | B20: Absorbed dose rate, lower range | C20: 0.0003 | D20: (mg/kg bw)/(lbs handled per day) | E20: SERA 2007 | F20: Acres treated per hour
A21: Worker, Backpack | B21: Absorbed dose rate, upper range | C21: 0.01 | D21: (mg/kg bw)/(lbs handled per day) | E21: SERA 2007 | F21: Acres treated per hour
A22: Worker, Backpack | B22: Hours of application per day, central estimate | C22: 7 | D22: Hours per day | E22: USDA 1989a | F22: N/A
A23: Worker, Backpack | B23: Hours of application per day, lower range | C23: 6 | D23: Hours per day | E23: USDA 1989a | F23: N/A
A24: Worker, Backpack | B24: Hours of application per day, upper range | C24: 8 | D24: Hours per day | E24: USDA 1989a | F24: N/A
A25: Worker, Backpack | B25: Acres treated per hour, central estimate | C25: 0.625 | D25: acres/hour | E25: USDA 1989a | F25: Acres treated per hour
A26: Worker, Backpack | B26: Acres treated per hour, lower range | C26: 0.25 | D26: acres/hour | E26: USDA 1989a | F26: Acres treated per hour
A27: Worker, Backpack | B27: Acres treated per hour, upper range | C27: 1 | D27: acres/hour | E27: USDA 1989a | F27: Acres treated per hour
A28: Child | B28: Body weight | C28: 13.3 | D28: kg | E28: U.S. EPA/ORD 1996 | F28: p. 7-1, Table 7-2
A29: Child | B29: Surface Area, Whole body | C29: 6030 | D29: cm2 | E29: U.S. EPA/ORD 1996 | F29: p. 6-15, Table 6-6, 50th percentile.
A30: Worker, Ground Spray | B30: Absorbed dose rate, central estimate | C30: 0.0002 | D30: (mg/kg bw)/(lbs handled per day) | E30: SERA 2007 | F30: Acres treated per hour
A31: Worker, Ground Spray | B31: Absorbed dose rate, lower range | C31: 1e-05 | D31: (mg/kg bw)/(lbs handled per day) | E31: SERA 2007 | F31: Acres treated per hour
A32: Worker, Ground Spray | B32: Absorbed dose rate, upper range | C32: 0.0009 | D32: (mg/kg bw)/(lbs handled per day) | E32: SERA 2007 | F32: Acres treated per hour
A33: Worker, Ground Spray | B33: Hours of application per day, central estimate | C33: 7 | D33: Hours per day | E33: USDA 1989a | F33: N/A
A34: Worker, Ground Spray | B34: Hours of application per day, lower range | C34: 6 | D34: Hours per day | E34: USDA 1989a | F34: N/A
A35: Worker, Ground Spray | B35: Hours of application per day, upper range | C35: 8 | D35: Hours per day | E35: USDA 1989a | F35: N/A
A36: Worker, Ground Spray | B36: Acres treated per hour, central estimate | C36: 16 | D36: acres/hour | E36: USDA 1989a | F36: Acres treated per hour
A37: Worker, Ground Spray | B37: Acres treated per hour, lower range | C37: 11 | D37: acres/hour | E37: USDA 1989a | F37: Acres treated per hour
A38: Worker, Ground Spray | B38: Acres treated per hour, upper range | C38: 21 | D38: acres/hour | E38: USDA 1989a | F38: Acres treated per hour
A39: Worker | B39: Body weight | C39: 70 | D39: kg | E39: ICRP 1975 | F39: p. 13
A40: Worker | B40: Surface Area, Hands | C40: 840 | D40: cm2 | E40: U.S. EPA/ORD 1992 | F40: p. 8-11
A41: Worker | B41: Surface Area, Lower legs | C41: 2070 | D41: cm2 | E41: U.S. EPA/ORD 1992 | F41: p. 8-11

Sheet A02b
A1: General reference values and exposure factors used in worksheets.
A3: Receptor | B3: Factor | C3: Value | D3: Units | E3: Reference | F3: Reference Note
A4: Amphibian | B4: Kilocalories, alpha parameter for allometric equation | C4: 0.054 | D4: BW(g),Kcal (kcal/day) | E4: U.S. EPA/ORD 1993 | F4: p. 3-7, equation 3-14
A5: Amphibian | B5: Kilocalories, beta parameter for allometric equation | C5: 0.799 | D5: BW(g),Kcal (kcal/day) | E5: U.S. EPA/ORD 1993 | F5: p. 3-7, equation 3-14
A6: Amphibian, bull frog | B6: Food consumption, alpha parameter for allometric equation | C6: 1.09 | D6: BW(g),FC(g) | E6: SERA 2010 | F6: Figure 15
A7: Amphibian, bull frog | B7: Food consumption, beta parameter for allometric equation | C7: 0.1723 | D7: BW(g),FC(g) | E7: SERA 2010 | F7: Figure 15
A8: Bird, NOS | B8: Food consumption, alpha parameter for allometric equation | C8: 0.648 | D8: BW(g),FC(g) | E8: U.S. EPA/ORD 1993 | F8: Eq. 3-3, p. 3-4, all birds
A9: Bird, NOS | B9: Food consumption, beta parameter for allometric equation | C9: 0.651 | D9: BW(g),FC(g) | E9: U.S. EPA/ORD 1993 | F9: Eq. 3-3, p. 3-4, all birds
A10: Bird, carnivorous | B10: Body weight | C10: 0.64 | D10: kg | E10: Dunning 1993 | F10: p. 97. Female Spotted Owl (Strix occidentalis). Range of 548 to 760 g.
A11: Bird, carnivorous | B11: Kilocalories, alpha parameter for allometric equation | C11: 1.146 | D11: BW(g),KCal(kcal/day) | E11: U.S. EPA/ORD 1993 | F11: Eq. 3-37, nonpasserines
A12: Bird, carnivorous | B12: Kilocalories, beta parameter for allometric equation | C12: 0.749 | D12: BW(g),KCal(kcal/day) | E12: U.S. EPA/ORD 1993 | F12: Eq. 3-37, nonpasserines
A13: Bird, carnivorous | B13: Water consumption, alpha parameter for allometric equation | C13: 0.059 | D13: BW(kg), WC(L) | E13: U.S. EPA/ORD 1993 | F13: Eq. 3-15, p. 3-8
A14: Bird, carnivorous | B14: Water consumption, beta parameter for allometric equation | C14: 0.67 | D14: BW(kg), WC(L) | E14: U.S. EPA/ORD 1993 | F14: Eq. 3-15, p. 3-8
A15: Bird, large | B15: Body weight | C15: 4 | D15: kg | E15: Default | F15: Canada goose
A16: Bird, large | B16: Kilocalories, alpha parameter for allometric equation | C16: 1.146 | D16: BW(g),KCal(kcal/day) | E16: U.S. EPA/ORD 1993 | F16: Eq. 3-37, non-passerines
A17: Bird, large | B17: Kilocalories, beta parameter for allometric equation | C17: 0.749 | D17: BW(g),KCal(kcal/day) | E17: U.S. EPA/ORD 1993 | F17: Eq. 3-37, non-passerines
A18: Bird, large | B18: Water consumption, alpha parameter for allometric equation | C18: 0.059 | D18: BW(kg), WC(L) | E18: U.S. EPA/ORD 1993 | F18: Eq. 3-15, p. 3-8
A19: Bird, large | B19: Water consumption, beta parameter for allometric equation | C19: 0.67 | D19: BW(kg), WC(L) | E19: U.S. EPA/ORD 1993 | F19: Eq. 3-15, p. 3-8
A20: Bird, non-Passerine | B20: Food consumption, alpha parameter for allometric equation | C20: 0.301 | D20: BW(g),FC(g) | E20: U.S. EPA/ORD 1993 | F20: Eq. 3-5, p. 3-5, non-passerines
A21: Bird, non-Passerine | B21: Food consumption, beta parameter for allometric equation | C21: 0.751 | D21: BW(g),FC(g) | E21: U.S. EPA/ORD 1993 | F21: Eq. 3-5, p. 3-5, non-passerines
A22: Bird, Passerine | B22: Food consumption, alpha parameter for allometric equation | C22: 0.398 | D22: BW(g),FC(g) | E22: U.S. EPA/ORD 1993 | F22: Eq. 3-4, p. 3-4, passerines
A23: Bird, Passerine | B23: Food consumption, beta parameter for allometric equation | C23: 0.85 | D23: BW(g),FC(g) | E23: U.S. EPA/ORD 1993 | F23: Eq. 3-4, p. 3-4, passerines
A24: Bird, piscivorous | B24: Body weight | C24: 2.4 | D24: kg | E24: Sibley 2000 | F24: p. 60. Great Blue Heron
A25: Bird, piscivorous | B25: Food consumption, alpha parameter for allometric equation | C25: 0.495 | D25: BW(g), FC(g) | E25: U.S. EPA/ORD 1993 | F25: Eq. 3-6, p. 3-5, seabird
A26: Bird, piscivorous | B26: Food consumption, beta parameter for allometric equation | C26: 0.704 | D26: BW(g), FC(g) | E26: U.S. EPA/ORD 1993 | F26: Eq. 3-6, p. 3-5, seabird
A27: Bird, piscivorous | B27: Kilocalories, alpha parameter for allometric equation | C27: 1.916 | D27: BW(g),KCal(kcal/day) | E27: U.S. EPA/ORD 1993 | F27: Eq. 3-38, p. 3-23, seabird
A28: Bird, piscivorous | B28: Kilocalories, beta parameter for allometric equation | C28: 0.704 | D28: BW(g),KCal(kcal/day) | E28: U.S. EPA/ORD 1993 | F28: Eq. 3-38, p. 3-23, seabird
A29: Bird, piscivorous | B29: Water consumption, alpha parameter for allometric equation | C29: 0.059 | D29: BW(kg), WC(L) | E29: U.S. EPA/ORD 1993 | F29: Eq. 3-15, p. 3-8
A30: Bird, piscivorous | B30: Water consumption, beta parameter for allometric equation | C30: 0.67 | D30: BW(kg), WC(L) | E30: U.S. EPA/ORD 1993 | F30: Eq. 3-15, p. 3-8
A31: Bird, small | B31: Body weight | C31: 0.01 | D31: kg | E31: Default | F31: N/A
A32: Bird, small | B32: Kilocalories, alpha parameter for allometric equation | C32: 3.12 | D32: BW(g),KCal(kcal/day) | E32: U.S. EPA/ORD 1993 | F32: Equation 3-36, passerines
A33: Bird, small | B33: Kilocalories, beta parameter for allometric equation | C33: 0.605 | D33: BW(g),KCal(kcal/day) | E33: U.S. EPA/ORD 1993 | F33: Equation 3-36, passerines
A34: Bird, small | B34: Water consumption, alpha parameter for allometric equation | C34: 0.059 | D34: BW(kg), WC(L) | E34: U.S. EPA/ORD 1993 | F34: Eq. 3-15, p. 3-8
A35: Bird, small | B35: Water consumption, beta parameter for allometric equation | C35: 0.67 | D35: BW(kg), WC(L) | E35: U.S. EPA/ORD 1993 | F35: Eq. 3-15, p. 3-8
A36: Honeybee | B36: Body weight | C36: 0.000116 | D36: kg | E36: Winston 1987 | F36: p. 54. Arithmetic average of range: 81 to 151 mg/bee.
A37: Honeybee | B37: Surface Area, Whole body | C37: 1.42 | D37: cm2 | E37: Humphery and Dykes 2008 | F37: Based on a bee with a body length of 1.44 cm.
A38: Mammal, Nos | B38: Food consumption, alpha parameter for allometric equation | C38: 0.235 | D38: BW(g),FC(g) | E38: U.S. EPA/ORD 1993 | F38: Eq. 3-7 ,p. 3-6, all mammals
A39: Mammal, Nos | B39: Food consumption, beta parameter for allometric equation | C39: 0.822 | D39: BW(g),FC(g) | E39: U.S. EPA/ORD 1993 | F39: Eq. 3-7 ,p. 3-6, all mammals
A40: Mammal, 400 g | B40: Body weight | C40: 0.4 | D40: kg | E40: Default | F40: N/A
A41: Mammal, 400 g | B41: Food consumption, alpha parameter for allometric equation | C41: 0.621 | D41: BW(g),FC(g) | E41: U.S. EPA/ORD 1993 | F41: Eq. 3-8, p. 3-6, equation for rodents
A42: Mammal, 400 g | B42: Food consumption, beta parameter for allometric equation | C42: 0.564 | D42: BW(g),FC(g) | E42: U.S. EPA/ORD 1993 | F42: Eq. 3-8, p. 3-6, equation for rodents
A43: Mammal, 400 g | B43: Kilocalories, alpha parameter for allometric equation | C43: 2.514 | D43: BW(g),KCal(kcal/day) | E43: U.S. EPA/ORD 1993 | F43: Equation 3-48, rodent
A44: Mammal, 400 g | B44: Kilocalories, beta parameter for allometric equation | C44: 0.507 | D44: BW(g),KCal(kcal/day) | E44: U.S. EPA/ORD 1993 | F44: Equation 3-48, rodent
A45: Mammal, 400 g | B45: Water consumption, alpha parameter for allometric equation | C45: 0.099 | D45: BW(kg),WC(L) | E45: U.S. EPA/ORD 1993 | F45: Eq. 3-17, p. 3-10, all mammals
A46: Mammal, 400 g | B46: Water consumption, beta parameter for allometric equation | C46: 0.9 | D46: BW(kg),WC(L) | E46: U.S. EPA/ORD 1993 | F46: Eq. 3-17, p. 3-10, all mammals
A47: Mammal, carnivorous | B47: Body weight | C47: 5 | D47: kg | E47: U.S. EPA/ORD 1993 | F47: p. 2-221. Central value for red fox with a range of 3 to 7 kg.
A48: Mammal, carnivorous | B48: Kilocalories, alpha parameter for allometric equation | C48: 0.6167 | D48: BW(g),KCal(kcal/day) | E48: U.S. EPA/ORD 1993 | F48: Equation 3-47, non-herbivore
A49: Mammal, carnivorous | B49: Kilocalories, beta parameter for allometric equation | C49: 0.862 | D49: BW(g),KCal(kcal/day) | E49: U.S. EPA/ORD 1993 | F49: Equation 3-47, non-herbivore
A50: Mammal, carnivorous | B50: Water consumption, alpha parameter for allometric equation | C50: 0.099 | D50: BW(kg),WC(L) | E50: U.S. EPA/ORD 1993 | F50: Eq. 3-17, p. 3-10, all mammals
A51: Mammal, carnivorous | B51: Water consumption, beta parameter for allometric equation | C51: 0.9 | D51: BW(kg), WC(L) | E51: U.S. EPA/ORD 1993 | F51: Eq. 3-17, p. 3-10, all mammals
A52: Mammal, large carnivorous | B52: Body weight | C52: 70 | D52: kg | E52: Reid 2006 | F52: pp. 451-453. Black bear or small grizzly.
A53: Mammal, large carnivorous | B53: Kilocalories, alpha parameter for allometric equation | C53: 0.6167 | D53: BW(g),KCal(kcal/day) | E53: U.S. EPA/ORD 1993 | F53: Equation 3-47, non-herbivore
A54: Mammal, large carnivorous | B54: Kilocalories, beta parameter for allometric equation | C54: 0.862 | D54: BW(g),KCal(kcal/day) | E54: U.S. EPA/ORD 1993 | F54: Equation 3-47, non-herbivore
A55: Mammal, large carnivorous | B55: Water consumption, alpha parameter for allometric equation | C55: 0.099 | D55: BW(kg),WC(L) | E55: U.S. EPA/ORD 1993 | F55: Eq. 3-17, p. 3-10, all mammals
A56: Mammal, large carnivorous | B56: Water consumption, beta parameter for allometric equation | C56: 0.9 | D56: BW(kg), WC(L) | E56: U.S. EPA/ORD 1993 | F56: Eq. 3-17, p. 3-10, all mammals
A57: Mammal, herbivorous | B57: Food consumption, alpha parameter for allometric equation | C57: 0.577 | D57: BW(g),FC(g) | E57: U.S. EPA/ORD 1993 | F57: Eq. 3-9, p. 3-6, equation for herbivores
A58: Mammal, herbivorous | B58: Food consumption, beta parameter for allometric equation | C58: 0.727 | D58: BW(g),FC(g) | E58: U.S. EPA/ORD 1993 | F58: Eq. 3-9, p. 3-6, equation for herbivores
A59: Mammal, herbivorous | B59: Kilocalories, alpha parameter for allometric equation | C59: 1.518 | D59: BW(g),KCal(kcal/day) | E59: U.S. EPA/ORD 1993 | F59: Equation 3-46, herbivores
A60: Mammal, herbivorous | B60: Kilocalories, beta parameter for allometric equation | C60: 0.73 | D60: BW(g),KCal(kcal/day) | E60: U.S. EPA/ORD 1993 | F60: Equation 3-46, herbivores
A61: Mammal, large | B61: Body weight | C61: 70 | D61: kg | E61: Default | F61: N/A
A62: Mammal, large | B62: Kilocalories, alpha parameter for allometric equation | C62: 1.518 | D62: BW(g),KCal(kcal/day) | E62: U.S. EPA/ORD 1993 | F62: p. 3-6, Eq. 3-10, herbivores
A63: Mammal, large | B63: Kilocalories, beta parameter for allometric equation | C63: 0.73 | D63: BW(g),KCal(kcal/day) | E63: U.S. EPA/ORD 1993 | F63: p. 3-6, Eq. 3-10, herbivores
A64: Mammal, large | B64: Water consumption, alpha parameter for allometric equation | C64: 0.099 | D64: BW(kg),WC(L) | E64: U.S. EPA/ORD 1993 | F64: Eq. 3-17, p. 3-10, all mammals
A65: Mammal, large | B65: Water consumption, beta parameter for allometric equation | C65: 0.9 | D65: BW(kg), WC(L) | E65: U.S. EPA/ORD 1993 | F65: Eq. 3-17, p. 3-10, all mammals
A66: Mammal, rabbit | B66: Body weight | C66: 1.3 | D66: kg | E66: Default | F66: N/A
A67: Mammal, rabbit | B67: Surface Area, alpha parameter for allometric equation | C67: 0.11 | D67: BW(kg),SA(m2) | E67: U.S. EPA/ORD 1993 | F67: p. 3-14, Eq. 3-22, for all mammals
A68: Mammal, rabbit | B68: Surface Area, beta parameter for allometric equation | C68: 0.65 | D68: BW(kg),SA(m2) | E68: U.S. EPA/ORD 1993 | F68: p. 3-14, Eq. 3-22, for all mammals
A69: Mammal, rodent | B69: Food consumption, alpha parameter for allometric equation | C69: 0.621 | D69: BW(g),FC(g) | E69: U.S. EPA/ORD 1993 | F69: Eq. 3-8, p. 3-6, equation for rodents
A70: Mammal, rodent | B70: Food consumption, beta parameter for allometric equation | C70: 0.584 | D70: BW(g),FC(g) | E70: U.S. EPA/ORD 1993 | F70: Eq. 3-8,p. 3-6, equation for rodents
A71: Mammal, small | B71: Body weight | C71: 0.02 | D71: kg | E71: Default | F71: N/A
A72: Mammal, small | B72: Caloric content (wet weight) | C72: 1.7 | D72: kcal/g (wet weight) | E72: U.S. EPA/ORD 1993 | F72: Table 4-1, p. 4-13. Value for small mammals. Wet weight.
A73: Mammal, small | B73: Food consumption, alpha parameter for allometric equation | C73: 0.621 | D73: BW(g),FC(g) | E73: U.S. EPA/ORD 1993 | F73: Eq. 3-8, p. 3-6, equation for rodents
A74: Mammal, small | B74: Food consumption, beta parameter for allometric equation | C74: 0.564 | D74: BW(g),FC(g) | E74: U.S. EPA/ORD 1993 | F74: Eq. 3-8, p. 3-6, equation for rodents
A75: Mammal, small | B75: Kilocalories, alpha parameter for allometric equation | C75: 2.514 | D75: BW(g),KCal(kcal/day) | E75: U.S. EPA/ORD 1993 | F75: Equation 3-48, rodent
A76: Mammal, small | B76: Kilocalories, beta parameter for allometric equation | C76: 0.507 | D76: BW(g),KCal(kcal/day) | E76: U.S. EPA/ORD 1993 | F76: Equation 3-48, rodent
A77: Mammal, small | B77: Surface Area, alpha parameter for allometric equation | C77: 0.11 | D77: BW(kg),SA(m2) | E77: U.S. EPA/ORD 1993 | F77: p. 3-14, Eq. 3-22, for all mammals
A78: Mammal, small | B78: Surface Area, beta parameter for allometric equation | C78: 0.65 | D78: BW(kg),SA(m2) | E78: U.S. EPA/ORD 1993 | F78: p. 3-14, Eq. 3-22, for all mammals
A79: Mammal, small | B79: Water consumption, alpha parameter for allometric equation | C79: 0.099 | D79: BW(kg),WC(L) | E79: U.S. EPA/ORD 1993 | F79: Eq. 3-17, p. 3-10, all mammals
A80: Mammal, small | B80: Water consumption, beta parameter for allometric equation | C80: 0.9 | D80: BW(kg),WC(L) | E80: U.S. EPA/ORD 1993 | F80: Eq. 3-17, p. 3-10, all mammals

Sheet A02c
A1: General reference values and exposure factors used in worksheets.
A3: Receptor | B3: Factor | C3: Value | D3: Units | E3: Reference | F3: Reference Note
A4: Small Insects | B4: Caloric content (wet weight) | C4: 1.5 | D4: kcal/g (wet weight) | E4: U.S. EPA/ORD 1993 | F4: Table 4-1, p. 4-13. Value for beetles. Wet weight
A5: Fish | B5: Caloric content (wet weight) | C5: 1.2 | D5: kcal/g (wet weight) | E5: U.S. EPA/ORD 1993 | F5: Table 4-1, p. 4-13. Value for bony fish. Wet weight
A6: Vegetation | B6: Caloric content (dry weight) | C6: 2.26 | D6: kcal/g | E6: U.S. EPA/ORD 1993 | F6: p. 3-5, Table 3-1
A7: Vegetation | B7: Water content (proportion) | C7: 0.85 | D7: unitless | E7: U.S. EPA/ORD 1993 | F7: p. 4-14
A8: VegRR | B8: Broadleaf/forage plants and small insects, central estimate | C8: 45 | D8: mg chem/kg veg | E8: Fletcher et al. 1994 | F8: Broadleaf/forage plants and small insects
A9: VegRR | B9: Broadleaf/forage plants and small insects, upper range | C9: 135 | D9: mg chem/kg veg | E9: Fletcher et al. 1994 | F9: Broadleaf/forage plants and small insects
A10: VegRR | B10: Fruits, pods, seeds, and large insects, central estimate | C10: 7 | D10: mg chem/kg veg | E10: Fletcher et al. 1994 | F10: Fruits, pods, seeds, and large insects
A11: VegRR | B11: Fruits, pods, seeds, and large insects, upper range | C11: 15 | D11: mg chem/kg veg | E11: Fletcher et al. 1994 | F11: Fruits, pods, seeds, and large insects
A12: VegRR | B12: Broadleaf plants and small insects, granular applications, central estimate | C12: 1.8 | D12: mg chem/kg veg | E12: SERA 2005 | F12: Broadleaf forage plants and contaminated insects after granular application
A13: VegRR | B13: Broadleaf plants and small insects, granular applications, upper range | C13: 5.4 | D13: mg chem/kg veg | E13: SERA 2005 | F13: Broadleaf forage plants and contaminated insects after granular application
A14: VegRR | B14: Fruits, granular applications, central estimate | C14: 0.28 | D14: mg chem/kg veg | E14: SERA 2005 | F14: Fruit after granular application
A15: VegRR | B15: Fruits, granular applications, upper range | C15: 0.6 | D15: mg chem/kg veg | E15: SERA 2005 | F15: Fruit after granular application
A16: VegRR | B16: Short grass, granular applications, lower range | C16: 1.2 | D16: mg chem/kg veg | E16: SERA 2005 | F16: Short grass after granular application
A17: VegRR | B17: Short grass, granular applications, upper range | C17: 9.6 | D17: mg chem/kg veg | E17: SERA 2005 | F17: Short grass after granular application
A18: VegRR | B18: Tall grass, granular applications, central estimate | C18: 1.44 | D18: mg chem/kg veg | E18: SERA 2005 | F18: Tall grass after granular application
A19: VegRR | B19: Tall grass, granular applications, upper range | C19: 4.4 | D19: mg chem/kg veg | E19: SERA 2005 | F19: Tall grass after granular application
A20: VegRR | B20: Short grass, central estimate | C20: 85 | D20: mg chem/kg veg | E20: Fletcher et al. 1994 | F20: Short grass
A21: VegRR | B21: Short grass, lower range | C21: 30 | D21: mg chem/kg veg | E21: SERA 2007 | F21: Short grass
A22: VegRR | B22: Short grass, upper range | C22: 240 | D22: mg chem/kg veg | E22: Fletcher et al. 1994 | F22: Short grass
A23: VegRR | B23: Tall grass, central estimate | C23: 36 | D23: mg chem/kg veg | E23: Fletcher et al. 1994 | F23: Tall grass
A24: VegRR | B24: Tall grass, upper range | C24: 110 | D24: mg chem/kg veg | E24: Fletcher et al. 1994 | F24: Tall grass

Sheet A02d
A1: General reference values and exposure factors used in worksheets.
A3: Receptor | B3: Factor | C3: Value | D3: Units | E3: Reference | F3: Reference Note
A4: Conversion Factors | B4: acrefoot2gal | C4: 325900 | D4: gal/acre-foot | E4: Budavari 1989 | F4: N/A
A5: Conversion Factors | B5: liters per gal | C5: 3.785 | D5: L/gal | E5: Budavari 1989 | F5: N/A
A6: Conversion Factors | B6: pound per milligram | C6: 453600 | D6: mg/lb | E6: Budavari 1989 | F6: N/A
A7: Conversion Factors | B7: lbac2mgcm2 | C7: 0.01121 | D7: mg/cm2 per lb/acre | E7: Budavari 1989 | F7: N/A
A8: Conversion Factors | B8: lbac2ugcm2 | C8: 11.21 | D8: ug/cm2 per lb/acre | E8: Budavari 1989 | F8: N/A
A9: Conversion Factors | B9: conversion for milligrams to pounds | C9: 2.204e-06 | D9: lb/mg | E9: Budavari 1989 | F9: N/A
A10: Conversion Factors | B10: conversion for milliliters to gallons | C10: 3785 | D10: ml/gal | E10: Budavari 1989 | F10: N/A
A11: Misc | B11: Liquid adhering to skin | C11: 0.008 | D11: mL/cm2 | E11: Mason and Johnson 1987 | F11: Weight of liquid adhering to surface of skin after a spill
A12: Misc | B12: Dislodgeable residue as proportion | C12: 0.1 | D12: none | E12: Harris and Solomon 1992 | F12: Estimate of dislodgeable residue as a proportion of application rate shortly after application based on 2,4-D.
A13: Standard Pond | B13: Depth | C13: 1 | D13: m | E13: Default | F13: Depth of pond
A14: Standard Pond | B14: Surface Area | C14: 1000 | D14: m^2 | E14: Default | F14: Surface Area
A15: Standard Pond | B15: Volume of Spill | C15: 200 | D15: gallons | E15: Default | F15: Volume of spill
A16: VegRR | B16: Broadleaf/forage plants and small insects, lower range | C16: 15 | D16: mg chem/kg veg | E16: SERA 2007 | F16: Broadleaf/forage plants and small insects
A17: VegRR | B17: Fruits, pods, seeds, and large insects, lower range | C17: 3.2 | D17: mg chem/kg veg | E17: SERA 2007 | F17: Fruits, pods, seeds, and large insects
A18: VegRR | B18: Broadleaf plants and small insects, granular applications, lower range | C18: 0.6 | D18: mg chem/kg veg | E18: SERA 2007 | F18: Broadleaf/forage plants after granular application
A19: VegRR | B19: Fruits, granular applications, lower range | C19: 0.13 | D19: mg chem/kg veg | E19: SERA 2007 | F19: Fruit after granular application
A20: VegRR | B20: Short grass, granular applications, central estimate | C20: 3.4 | D20: mg chem/kg veg | E20: SERA 2005 | F20: Short grass after granular application
A21: VegRR | B21: Short grass, granular applications, lower range | C21: 1.2 | D21: mg chem/kg veg | E21: SERA 2007 | F21: Short grass after granular application
A22: VegRR | B22: Tall grass, granular applications, lower range | C22: 0.48 | D22: mg chem/kg veg | E22: SERA 2007 | F22: Tall grass after granular application
A23: VegRR | B23: Short grass, lower range | C23: 30 | D23: mg chem/kg veg | E23: Fletcher et al. 1994 | F23: Short grass
A24: VegRR | B24: Tall grass, lower range | C24: 12 | D24: mg chem/kg veg | E24: SERA 2007 | F24: Tall grass

Sheet A03
A1: Consumption values used in worksheets
A3: Receptor | B3: Item | C3: Qualifier | D3: Modifier | E3: Value | F3: Units | G3: Reference | H3: Reference Note
A4: Adult Female | B4: Fish | C4: Amount | D4: central estimate | E4: 0.01 | F4: kg/day | G4: U.S. EPA/ORD 1996 | H4: p. 10-51, average of means from four studies rounded to one significant place.
A5: Adult Female | B5: Fish | C5: Amount | D5: upper range | E5: 0.158 | F5: kg/day | G5: Ruffle et al. 1994 | H5: N/A
A6: Adult Female | B6: Fruit | C6: Proportion of body weight | D6: central estimate | E6: 0.00168 | F6: kg fruit/kg bw/day | G6: U.S. EPA/ORD 1996 | H6: Table 9-3, p. 9-11, mean value.
A7: Adult Female | B7: Fruit | C7: Proportion of body weight | D7: lower range | E7: 0.00168 | F7: kg fruit/kg bw/day | G7: U.S. EPA/ORD 1996 | H7: Table 9-3, p. 9-11. The 5th percentile is given as zero. For these worksheets, the central estimate is used for the lower bound.
A8: Adult Female | B8: Fruit | C8: Proportion of body weight | D8: upper range | E8: 0.01244 | F8: kg fruit/kg bw/day | G8: U.S. EPA/ORD 1996 | H8: Table 9-3, p. 9-11, 95th percentile value.
A9: Adult Female | B9: Vegetation, home grown | C9: Proportion of body weight | D9: central estimate | E9: 0.00076 | F9: kg veg/kg bw/day | G9: U.S. EPA/ORD 1996 | H9: Table 12-15, p. 9-14, mean for individuals between 20 and 39 years old.
A10: Adult Female | B10: Vegetation, home grown | C10: Proportion of body weight | D10: lower range | E10: 8e-05 | F10: kg veg/kg bw/day | G10: U.S. EPA/ORD 1996 | H10: Table 12-15, p. 9-14, 5th percentile for individuals between 20 and 39 years old.
A11: Adult Female | B11: Vegetation, home grown | C11: Proportion of body weight | D11: upper range | E11: 0.00492 | F11: kg veg/kg bw/day | G11: U.S. EPA/ORD 1996 | H11: Table 12-15, p. 9-14, 95th percentile for individuals between 20 and 39 years old.
A12: Adult Female | B12: Vegetation | C12: Amount | D12: Extreme | E12: 0.454 | F12: kg food | G12: U.S. EPA/ORD 1996 | H12: 1 lb. The approximate mid range of the above typical and upper limits based on the 64 kg body weight.
A13: Adult Female | B13: Vegetation | C13: Proportion of body weight | D13: central estimate | E13: 0.0036 | F13: kg veg/kg bw/day | G13: U.S. EPA/ORD 1996 | H13: Table 9-12, p. 9-12, mean.
A14: Adult Female | B14: Vegetation | C14: Proportion of body weight | D14: lower range | E14: 0.00075 | F14: kg veg/kg bw/day | G14: U.S. EPA/ORD 1996 | H14: Table 9-12, p. 9-12, 5th percentile.
A15: Adult Female | B15: Vegetation | C15: Proportion of body weight | D15: upper range | E15: 0.01 | F15: kg veg/kg bw/day | G15: U.S. EPA/ORD 1996 | H15: Table 9-12, p. 9-12, 95th percentile.
A16: Adult Female | B16: Water | C16: Amount | D16: central estimate | E16: 2 | F16: L/day | G16: U.S. EPA/ORD 1996 | H16: p. 3-28, Table 3-30, midpoint of mean (1.4 L/day) and 90th percentile (2.4 L/day) rounded to one significant place.
A17: Adult Female | B17: Water | C17: Amount | D17: lower range | E17: 1.4 | F17: L/day | G17: U.S. EPA/ORD 1996 | H17: p. 3-28, Table 3-30, mean
A18: Adult Female | B18: Water | C18: Amount | D18: upper range | E18: 2.4 | F18: L/day | G18: U.S. EPA/ORD 1996 | H18: p. 3-28, Table 3-30, 90th percentile
A19: Adult Male | B19: Fish | C19: Amount | D19: central estimate | E19: 0.01 | F19: kg/day | G19: U.S. EPA/ORD 1996 | H19: p. 10-51, average of means from four studies rounded to one significant place.
A20: Adult Male | B20: Fish | C20: Amount | D20: upper range | E20: 0.158 | F20: kg/day | G20: Ruffle et al. 1994 | H20: N/A
A21: Adult Male | B21: Fruit | C21: Proportion of body weight | D21: central estimate | E21: 0.00168 | F21: unitless | G21: U.S. EPA/ORD 1996 | H21: Table 9-3, p. 9-11, mean value.
A22: Adult Male | B22: Fruit | C22: Proportion of body weight | D22: lower range | E22: 0.00168 | F22: unitless | G22: U.S. EPA/ORD 1996 | H22: Table 9-3, p. 9-11. The 5th percentile is given as zero. For these worksheets, the central estimate is used for the lower bound.
A23: Adult Male | B23: Fruit | C23: Proportion of body weight | D23: upper range | E23: 0.01244 | F23: unitless | G23: U.S. EPA/ORD 1996 | H23: Table 9-3, p. 9-11, 95th percentile value.
A24: Adult Male | B24: Vegetation, home grown | C24: Proportion of body weight | D24: central estimate | E24: 0.00076 | F24: unitless | G24: U.S. EPA/ORD 1996 | H24: Table 12-15, p. 9-14, mean for individuals between 20 and 39 years old.
A25: Adult Male | B25: Vegetation, home grown | C25: Proportion of body weight | D25: lower range | E25: 8e-05 | F25: unitless | G25: U.S. EPA/ORD 1996 | H25: Table 12-15, p. 9-14, 5th percentile for individuals between 20 and 39 years old.
A26: Adult Male | B26: Vegetation, home grown | C26: Proportion of body weight | D26: upper range | E26: 0.00492 | F26: unitless | G26: U.S. EPA/ORD 1996 | H26: Table 12-15, p. 9-14, 95th percentile for individuals between 20 and 39 years old.
A27: Adult Male | B27: Vegetation | C27: Amount | D27: Extreme | E27: 0.454 | F27: kg/day | G27: U.S. EPA/ORD 1996 | H27: 1 lb. The approximate mid range of the above typical and upper limits based on the 64 kg body weight.
A28: Adult Male | B28: Vegetation | C28: Proportion of body weight | D28: central estimate | E28: 0.0036 | F28: unitless | G28: U.S. EPA/ORD 1996 | H28: Table 9-12, p. 9-12, mean.
A29: Adult Male | B29: Vegetation | C29: Proportion of body weight | D29: lower range | E29: 0.00075 | F29: unitless | G29: U.S. EPA/ORD 1996 | H29: Table 9-12, p. 9-12, 5th percentile.
A30: Adult Male | B30: Vegetation | C30: Proportion of body weight | D30: upper range | E30: 0.01 | F30: unitless | G30: U.S. EPA/ORD 1996 | H30: Table 9-12, p. 9-12, 95th percentile.
A31: Adult Male | B31: Water | C31: Amount | D31: central estimate | E31: 2 | F31: L/day | G31: U.S. EPA/ORD 1996 | H31: p. 3-28, Table 3-30, midpoint of mean (1.4 L/day) and 90th percentile (2.4 L/day) rounded to one significant place.
A32: Adult Male | B32: Water | C32: Amount | D32: lower range | E32: 1.4 | F32: L/day | G32: U.S. EPA/ORD 1996 | H32: p. 3-28, Table 3-30, mean
A33: Adult Male | B33: Water | C33: Amount | D33: upper range | E33: 2.4 | F33: L/day | G33: U.S. EPA/ORD 1996 | H33: p. 3-28, Table 3-30, 90th percentile
A34: Subsistence Populations | B34: Fish | C34: Amount | D34: central estimate | E34: 0.081 | F34: kg/day | G34: U.S. EPA/ORD 1996 | H34: p. 10-51, median value of 94 individuals
A35: Subsistence Populations | B35: Fish | C35: Amount | D35: upper range | E35: 0.77 | F35: kg/day | G35: U.S. EPA/ORD 1996 | H35: p. 10-51, highest value of 94 individuals
A36: Child | B36: Water | C36: Amount | D36: central estimate | E36: 1 | F36: L/day | G36: U.S. EPA/ORD 1996 | H36: p. 3-28, Table 3-30, midpoint of mean (0.61L/day) and 90th percentile (1.5 L/day) rounded to one significant place.
A37: Child | B37: Water | C37: Amount | D37: lower range | E37: 0.61 | F37: L/day | G37: U.S. EPA/ORD 1996 | H37: p. 3-28, Table 3-30, mean
A38: Child | B38: Water | C38: Amount | D38: upper range | E38: 1.5 | F38: L/day | G38: U.S. EPA/ORD 1996 | H38: p. 3-28, Table 3-30, 90th percentile
A39: Herbivorous Insect | B39: Broadleaf/Small Insects | C39: Proportion of body weight | D39: central estimate | E39: 1.3 | F39: kg food/kg bw/day | G39: Waldbauer 1968 | H39: N/A
A40: Herbivorous Insect | B40: Broadleaf/Small Insects | C40: Proportion of body weight | D40: lower range | E40: 0.6 | F40: kg food/kg bw/day | G40: Reichle et al. 1973 | H40: N/A
A41: Herbivorous Insect | B41: Broadleaf/Small Insects | C41: Proportion of body weight | D41: upper range | E41: 2.2 | F41: kg food/kg bw/day | G41: Waldbauer 1968 | H41: N/A
A42: Herbivorous Insect | B42: Fruit | C42: Proportion of body weight | D42: central estimate | E42: 1.3 | F42: kg food/kg bw/day | G42: Waldbauer 1968 | H42: N/A
A43: Herbivorous Insect | B43: Fruit | C43: Proportion of body weight | D43: lower range | E43: 0.6 | F43: kg food/kg bw/day | G43: Reichle et al. 1973 | H43: N/A
A44: Herbivorous Insect | B44: Fruit | C44: Proportion of body weight | D44: upper range | E44: 2.2 | F44: kg food/kg bw/day | G44: Waldbauer 1968 | H44: N/A
A45: Herbivorous Insect | B45: Short grass | C45: Proportion of body weight | D45: central estimate | E45: 1.3 | F45: kg food/kg bw/day | G45: Waldbauer 1968 | H45: N/A
A46: Herbivorous Insect | B46: Short grass | C46: Proportion of body weight | D46: lower range | E46: 0.6 | F46: kg food/kg bw/day | G46: Reichle et al. 1973 | H46: N/A
A47: Herbivorous Insect | B47: Short grass | C47: Proportion of body weight | D47: upper range | E47: 2.2 | F47: kg food/kg bw/day | G47: Waldbauer 1968 | H47: N/A
A48: Herbivorous Insect | B48: Tall Grass | C48: Proportion of body weight | D48: central estimate | E48: 1.3 | F48: kg food/kg bw/day | G48: Waldbauer 1968 | H48: N/A
A49: Herbivorous Insect | B49: Tall Grass | C49: Proportion of body weight | D49: lower range | E49: 0.6 | F49: kg food/kg bw/day | G49: Reichle et al. 1973 | H49: N/A
A50: Herbivorous Insect | B50: Tall Grass | C50: Proportion of body weight | D50: upper range | E50: 2.2 | F50: kg food/kg bw/day | G50: Waldbauer 1968 | H50: N/A

Sheet B01
A1: Chemical and Physical Properties for Picloram
A3: Property | B3: Receptor | C3: Value | D3: Units | E3: Document Reference
A4: Bioconcentration Factor (BCF), edible, acute | B4: N/A | C4: 1 | D4: L/kg fish | E4: Section 3.2.3.5.
A5: Bioconcentration Factor (BCF), edible, chronic | B5: N/A | C5: 1 | D5: L/kg fish | E5: Section 3.2.3.5.
A6: Bioconcentration Factor (BCF), whole fish, acute | B6: N/A | C6: 1 | D6: L/kg fish | E6: Section 3.2.3.5.
A7: Bioconcentration Factor (BCF), whole fish, chronic | B7: N/A | C7: 1 | D7: L/kg fish | E7: Section 3.2.3.5.
A8: Kow (Octanol-water partition coefficient) | B8: N/A | C8: 0.89 | D8: unitless | E8: Table 2-1
A9: Molecular weight | B9: N/A | C9: 241.48 | D9: grams/mole | E9: Table 2-1
A10: Water Solubility | B10: N/A | C10: 200000 | D10: mg/L | E10: Table 2-1
A11: First order dermal absorption rate (ka), central estimate | B11: N/A | C11: 5e-05 | D11: per hour | E11: Section 3.2.2.2
A12: First order dermal absorption rate (ka), lower range | B12: N/A | C12: 3e-05 | D12: per hour | E12: Section 3.2.2.2
A13: First order dermal absorption rate (ka), upper range | B13: N/A | C13: 7.1e-05 | D13: per hour | E13: Section 3.2.2.2
A14: Dermal permeability (Kp), central estimate | B14: N/A | C14: 5.7e-05 | D14: cm/hour | E14: Section 3.2.2.2
A15: Dermal permeability (Kp), lower range | B15: N/A | C15: 2.8e-05 | D15: cm/hour | E15: Section 3.2.2.2
A16: Dermal permeability (Kp), upper range | B16: N/A | C16: 0.00011 | D16: cm/hour | E16: Section 3.2.2.2
A17: Halftime, central estimate | B17: Fruit | C17: 8 | D17: days | E17: Section 3.2.3.6
A18: Halftime, lower range | B18: Fruit | C18: 6 | D18: days | E18: Section 3.2.3.6
A19: Halftime, upper range | B19: Fruit | C19: 23 | D19: days | E19: Section 3.2.3.6
A20: Halftime, central estimate | B20: Vegetation | C20: 8 | D20: days | E20: Section 3.2.3.6
A21: Halftime, lower range | B21: Vegetation | C21: 6 | D21: days | E21: Section 3.2.3.6
A22: Halftime, upper range | B22: Vegetation | C22: 23 | D22: days | E22: Section 3.2.3.6

Sheet B02
A1: Toxicity values for Picloram
A3: Receptor | B3: Receptor | C3: Qualifier | D3: Endpoint | E3: Value | F3: Units | G3: Document Reference
A4: Human | B4: acute | C4: N/A | D4: Reference Dose (RfD) | E4: 2 | F4: mg/kg bw | G4: Table 16
A5: Human | B5: chronic | C5: N/A | D5: Reference Dose (RfD) | E5: 0.2 | F5: mg/kg bw/day | G5: Table 16
A6: Fish | B6: acute | C6: sensitive species | D6: NOEAC* | E6: 0.19 | F6: mg/L | G6: Table 28
A7: Fish | B7: acute | C7: tolerant species | D7: NOAEC | E7: 7.2 | F7: mg/L | G7: Table 28
A8: Fish | B8: chronic | C8: sensitive species | D8: NOAEC* | E8: 0.0035 | F8: mg/L | G8: Table 28
A9: Fish | B9: chronic | C9: tolerant species | D9: NOAEC | E9: 7.2 | F9: mg/L | G9: Table 28
A10: Aquatic invertebrate | B10: acute | C10: sensitive species | D10: NOAEC | E10: 2.15 | F10: mg/L | G10: Table 28
A11: Aquatic invertebrate | B11: acute | C11: tolerant species | D11: NOAEC | E11: 214 | F11: mg/L | G11: Table 28
A12: Aquatic invertebrate | B12: chronic | C12: tolerant species | D12: NOAEC | E12: 6.8 | F12: mg/L | G12: Table 28
A13: Algae | B13: N/A | C13: sensitive species | D13: NOAEC* | E13: 0.023 | F13: mg/L | G13: Table 28
A14: Algae | B14: N/A | C14: tolerant species | D14: NOAEC | E14: 94 | F14: mg/L | G14: Table 28
A15: Macrophyte, aquatic | B15: N/A | C15: tolerant species | D15: NOAEC | E15: 12.2 | F15: mg/L | G15: Table 28
A16: Terrestrial plant | B16: Seedling Emergence | C16: sensitive species | D16: NOAEL | E16: 0.00021 | F16: lb/acre | G16: Table 28
A17: Terrestrial plant | B17: Seedling Emergence | C17: tolerant species | D17: NOAEL | E17: 0.43 | F17: lb/acre | G17: Table 28
A18: Terrestrial plant | B18: Vegetative vigor | C18: sensitive species | D18: NOAEL | E18: 2.6e-05 | F18: lb/acre | G18: Table 28
A19: Terrestrial plant | B19: Vegetative vigor | C19: tolerant species | D19: NOAEL | E19: 0.05 | F19: lb/acre | G19: Table 28
A20: Mammal, Nos | B20: acute | C20: N/A | D20: NOAEL | E20: 200 | F20: mg/kg bw | G20: Table 28
A21: Mammal, Nos | B21: chronic | C21: N/A | D21: NOAEL | E21: 20 | F21: mg/kg bw/day | G21: Table 28
A22: Bird, NOS | B22: acute | C22: N/A | D22: NOAEL | E22: 1600 | F22: mg/kg bw | G22: Table 28
A23: Bird, NOS | B23: chronic | C23: N/A | D23: NOAEL | E23: 65 | F23: mg/kg bw/day | G23: Table 28
A24: Honeybee | B24: acute | C24: N/A | D24: NOAEL | E24: 270 | F24: mg/kg bw | G24: Table 28
A25: Herbivorous Insect | B25: acute | C25: N/A | D25: NOAEL | E25: 860 | F25: mg/kg bw | G25: Table 28

Sheet B03a
A1: Calculation of Zero-Order Dermal Permeability Rate (Kp) in cm/hour
A2: Short Title | B2: Calculation of Kp | E2: ChemDrmKp
A3: Parameter/Assumption | B3: Code / Range | C3: Equation/ Value | D3: Units | E3: Reference/Designation
A4: Molecular weight | B4: MW | C4: ='B01'!$C$9 -> 241.48 | D4: g/mole | E4: Table 2-1
A5: Ko/w | B5: Kow | C5: ='B01'!$C$8 -> 0.89 | D5: unitless | E5: Table 2-1
A6: Vector a[] | B6: a[1] | C6: 1
B7: a[2] | C7: =C4 -> 241.48
B8: a[3] | C8: =LOG10(C5) -> -0.05060999336
A9: Transpose of a[] (a') | B9: =$C$6 -> 1 | C9: =$C$7 -> 241.48 | D9: =$C$8 -> -0.05060999336
A10: X'X Cross Product Matrix | B10: X'X
B11: 0.055931 | C11: -9.41546e-05 | D11: -0.0103443
B12: -9.41546e-05 | C12: 5.978e-07 | D12: -2.22508e-05
B13: -0.0103443 | C13: -2.22508e-05 | D13: 0.00740677
A14: a'X'X a | B14: a'X'X a | C14: =MMULT(B9:D9,MMULT(B11:D13, C6:C8)) -> 0.04692724978
A15: Coefficients for model
A16: Intercept | B16: K0 | C16: -2.72576
A17: Coeff for MW | B17: K1 | C17: -0.006151
A18: Coeff for Log10(Kow) | B18: K2 | C18: 0.706648
A19: Standard deviation of model | B19: s | C19: 0.727129
A20: Critical value at 0.025 with 87 d.f. | B20: t0.025 | C20: 1.96
A21: Log10 of Estimated dermal permeability rate (Kp) | B21: Log(Kp) = | C21: K0 + K1 MW + K2 Log10(Kow)
B22: Central | C22: =$C$16 + ($C$17*$C$4) + ($C$18*LOG10($C$5)) -> -4.246866931 | E22: Eq
B23: Lower 95% CI | C23: =$C$22 - ($C$20 * $C$19 * ($C$14^0.5)) -> -4.555597823 | E23: Eq
B24: Upper 95% CI | C24: =$C$22 + ($C$20 * $C$19 * ($C$14^0.5)) -> -3.938136038 | E24: Eq
A25: Estimated dermal permeability rate (Kp) | B25: Kp = | C25: 10Log(Kp)
B26: Central | C26: =10^C22 -> 5.664128134e-05 | D26: cm/hour | E26: Eq
B27: Lower 95% CI | C27: =10^C23 -> 2.782288603e-05 | E27: Eq
B28: Upper 95% CI | C28: =10^C24 -> 0.0001153092008 | E28: Eq

Sheet B03b
A1: Calculation of First-Order Dermal Absorption Rate
A2: Short Title | B2: Calculation of ka | E2: ChemDrmKa
A3: Parameter/Assumption | B3: Code / Range | C3: Equation/ Value | D3: Units | E3: Reference/Designation
A4: Molecular weight | B4: MW | C4: ='B01'!$C$9 -> 241.48 | D4: g/mole | E4: Table 2-1
A5: Ko/w | B5: Kow | C5: ='B01'!$C$8 -> 0.89 | D5: unitless | E5: Table 2-1
A6: Vector a[] | B6: a[1] | C6: 1
B7: a[2] | C7: =C4 -> 241.48
B8: a[3] | C8: =LOG10(C5) -> -0.05060999336
A9: Transpose of a[] (a') | B9: =$C$6 -> 1 | C9: =$C$7 -> 241.48 | D9: =$C$8 -> -0.05060999336
A10: X'X Cross Product Matrix | B10: X'X
B11: 0.307537 | C11: -0.00103089 | D11: 0.00822769
B12: -0.00103089 | C12: 4.377e-06 | D12: -9.44359e-05
B13: 0.00822769 | C13: -9.44359e-05 | D13: 0.0085286
A14: a'X'X a | B14: a'X'X a | C14: =MMULT(B9:D9,MMULT(B11:D13, C6:C8)) -> 0.06638987118
A15: Coefficients for model
A16: Intercept | B16: K0 | C16: -1.49615
A17: Coeff for MW | B17: K1 | C17: -0.005657
A18: Coeff for Log10(Kow) | B18: K2 | C18: 0.233255
A19: Standard deviation of model | B19: s | C19: 0.787218
A20: Critical value at 0.025 with 26 d.f. | B20: t0.025 | C20: 2.056
A21: Log10 of Estimated first-order absorption rate | B21: Log(ka) = | C21: K0 + K1 MW + K2 Log10(Kow)
B22: Central | C22: =$C$16 + ($C$17*$C$4) + ($C$18*LOG10($C$5)) -> -2.874007394 | E22: Eq
B23: Lower 95% CI | C23: =$C$22 - ($C$20 * $C$19 * ($C$14^0.5)) -> -3.291039066 | E23: Eq
B24: Upper 95% CI | C24: =$C$22 + ($C$20 * $C$19 * ($C$14^0.5)) -> -2.456975722 | E24: Eq
A25: Estimated first-order absorption rate | B25: ka = | C25: 10Log(ka)
B26: Central | C26: =10^C22 -> 0.001336572761 | D26: hour-1 | E26: Eq
B27: Lower 95% CI | C27: =10^C23 -> 0.0005116358106 | E27: Eq
B28: Upper 95% CI | C28: =10^C24 -> 0.003491598336 | E28: Eq

Sheet B04Rt
A1: Estimates of Water Contamination Rates -- i.e., the concentration in ambient water per pound applied per acre
A2: Parameter/Assumption | B2: Code / Range | C2: Equation/ Value | D2: Units | E2: WCRV6
A3: Short-term peak concentrations | B3: Peak | E3: WCRV6
B4: Central | C4: 0.011 | D4: mg/L | E4: Table 14
B5: Lower | C5: 0.001 | E5: Table 14
B6: Upper | C6: 0.18 | E6: Table 14
A7: Longer-term average concentrations | B7: Average
B8: Central | C8: 0.00085 | D8: mg/L | E8: Table 14
B9: Lower | C9: 9e-05 | E9: Table 14
B10: Upper | C10: 0.01 | E10: Table 14
A11: User Specified Gleams-Driver File: | B11: None

Sheet B04a
A1: Expected Concentrations in Surface Water | E1: EECRtV6
A2: Parameter/Assumption | B2: Code / Range | C2: Equation/ Value | D2: Units | E2: EECRtV6
A3: Application Rate | B3: ApRt | C3: ='A01'!ApRt_C -> 1 | D3: lb/acre | E3: Worksheet A01
A4: Water Contamination Rates
A5: Short-term peak water contamination rates (WCR) | B5: Peak
B6: Central | C6: =B04Rt!$C$4 -> 0.011 | D6: mg/L | E6: Table 14
B7: Lower | C7: =B04Rt!$C$5 -> 0.001 | E7: Table 14
B8: Upper | C8: =B04Rt!$C$6 -> 0.18 | E8: Table 14
A9: Longer-term average water contamination rates (WCR) | B9: Average
B10: Central | C10: =B04Rt!$C$8 -> 0.00085 | D10: mg/L | E10: Table 14
B11: Lower | C11: =B04Rt!$C$9 -> 9e-05 | E11: Table 14
B12: Upper | C12: =B04Rt!$C$10 -> 0.01 | E12: Table 14
A13: EECs in Surface Water
A14: Short-term peak concentrations | B14: Peak
B15: Central | C15: =$C$3*C6 -> 0.011 | D15: mg/L | E15: Eq
B16: Lower | C16: =$C$3*C7 -> 0.001 | E16: Eq
B17: Upper | C17: 0.18 | E17: Eq
A18: Longer-term average concentrations | B18: Average
B19: Central | C19: =$C$3*C10 -> 0.00085 | D19: mg/L | E19: Eq
B20: Lower | C20: =$C$3*C11 -> 9e-05 | E20: Eq
B21: Upper | C21: 0.01 | E21: Eq

Sheet B04b
A1: Pond: Concentration of pesticide (liquid formulation) in pond water after an accidental spill
A2: Short Title | B2: Pond Spill | E2: PondSpillLiqV6
A3: Receptor | B3: Pond
A4: Duration | B4: Acute
A5: Parameter/Assumption | B5: Code / Range | C5: Equation/ Value | D5: Units | E5: Reference/Designation
A6: Surface Area of Pond | B6: SA | C6: ='A01'!C$23 -> 1000 | D6: m2 | E6: Worksheet A01
A7: Depth of Pond | B7: Depth | C7: ='A01'!C$24 -> 1 | D7: meter | E7: Worksheet A01
A8: Volume of Pond | B8: VPM | C8: =C6*C7 -> 1000 | D8: m3 | E8: Eq
B9: VPL | C9: =1000*C8 -> 1000000 | D9: liters | E9: Eq
A10: Concentration in solution | B10: Conc
B11: Central | C11: ='A01'!FldConc_C -> 4 | D11: mg/mL | E11: Worksheet A01
B12: Lower | C12: ='A01'!FldConc_L -> 1.2 | E12: Worksheet A01
B13: Upper | C13: ='A01'!FldConc_U -> 24 | E13: Worksheet A01
A14: Volume of Spill (gallons) | B14: VSGal
B15: Central | C15: ='A01'!C$43 -> 100 | D15: gallons | E15: Worksheet A01
B16: Lower | C16: ='A01'!C$44 -> 20 | E16: Worksheet A01
B17: Upper | C17: ='A01'!C$45 -> 200 | E17: Worksheet A01
A18: Conversion factor for gallons to liters | B18: Conv | C18: 3.785 | D18: liters/gal
A19: Volume of Spill (liters) | B19: VSLit | C19: VSGal x Conv
B20: Central | C20: =C15*C$18 -> 378.5 | D20: liters | E20: Eq
B21: Lower | C21: =C16*C$18 -> 75.7 | D21: liters | E21: Eq
B22: Upper | C22: =C17*C$18 -> 757 | D22: liters | E22: Eq
A23: Concentration in pond water at various times after as spill | B23: ConcWat | C23: Conc × 1000 mL/L × VSL ÷ VPL
A24: Time | B24: Central | C24: Lower | D24: Upper
A25: 0 | B25: =C11*1000*C20/C$9 -> 1.514 | C25: =C12*1000*C21/C$9 -> 0.09084 | D25: =C13*1000*C22/C$9 -> 18.168 | E25: mg/L

Sheet B04c
A1: Concentration in pond water after direct spray or after drift at distances downwind in feet from the application site
A2: Short Title | B2: Pond, Drift | E2: PondDrift3Apps
A3: Receptor | B3: Pond
A4: Duration | B4: Acute
A5: Parameter/Assumption | B5: Code / Range | C5: Equation/ Value | D5: Units | E5: Reference/Designation
A6: Application rate | B6: ApRt | C6: ='A01'!ApRt_C -> 1 | D6: lb/acre | E6: Worksheet A01
A7: Surface Area of Water Column | B7: SA | C7: 1 | D7: m2
A8: Depth of Pond | B8: Depth | C8: ='A01'!C$24 -> 1 | D8: meter | E8: Worksheet A01
A9: Volume of Water Column | B9: V | C9: = SA × Depth
B10: VPM | C10: =C7*C8 -> 1 | D10: m3 | E10: Eq
B11: VPL | C11: =1000*C10 -> 1000 | D11: liters | E11: Eq
A12: Proportion of Drift at distances downwind in feet [0 feet = direct spray] | B12: Prop | C12: Aerial | D12: High Boom Ground Broadcast | E12: Low Boom Ground Broadcast | F12: Backpack
A13: 0 | C13: 1 | D13: 1 | E13: 1 | F13: 1
A14: 25 | C14: 0.223 | D14: 0.104 | E14: 0.035 | F14: 0.00832
A15: 50 | C15: 0.171 | D15: 0.05 | E15: 0.0177 | F15: 0.00433
A16: 100 | C16: 0.0979 | D16: 0.0248 | E16: 0.00948 | F16: 0.00241
A17: 300 | C17: 0.0312 | D17: 0.00753 | E17: 0.0035 | F17: 0.000941
A18: 500 | C18: 0.0192 | D18: 0.00391 | E18: 0.00209 | F18: 0.000579
A19: 900 | C19: 0.0124 | D19: 0.00166 | E19: 0.00109 | F19: 0.000312
A20: Converstion Factor | B20: Conv | C20: 112.1 | D20: mg/m2 per lb/acre
A21: Concentration in water at distances downwind in feet | B21: Conc = | C21: SA × Prop × ApR × Conv / VPL
A22: Concentration in water at distances downwind in feet | C22: Aerial | D22: High Boom Ground Broadcast | E22: Low Boom Ground Broadcast | F22: Backpack
A23: =A13 -> 0 | C23: =$C$7*C13*$C$6*$C$20/$C$11 -> 0.1121 | D23: =$C$7*D13*$C$6*$C$20/$C$11 -> 0.1121 | E23: =$C$7*E13*$C$6*$C$20/$C$11 -> 0.1121 | F23: =$C$7*F13*$C$6*$C$20/$C$11 -> 0.1121 | G23: mg/L
A24: 25 | C24: =$C$7*C14*$C$6*$C$20/$C$11 -> 0.0249983 | D24: 0.0116584 | E24: 0.0039235 | F24: 0.000932672 | G24: mg/L
A25: 50 | C25: 0.0191691 | D25: 0.005605 | E25: 0.00198417 | F25: 0.000485393 | G25: mg/L
A26: 100 | C26: 0.01097459 | D26: 0.00278008 | E26: 0.001062708 | F26: 0.000270161 | G26: mg/L
A27: 300 | C27: 0.00349752 | D27: 0.000844113 | E27: 0.00039235 | F27: 0.0001054861 | G27: mg/L
A28: 500 | C28: 0.00215232 | D28: 0.000438311 | E28: 0.000234289 | F28: 6.49059e-05 | G28: mg/L
A29: 900 | C29: 0.00139004 | D29: 0.000186086 | E29: 0.000122189 | F29: 3.49752e-05 | G29: mg/L

Sheet B04d
A1: Concentration in stream water after direct spray or after drift at distances downwind in feet from the application site
A2: Short Title | B2: Stream, Drift | E2: StreamDrift3Apps
A3: Receptor | B3: Stream
A4: Duration | B4: Acute
A5: Parameter/Assumption | B5: Code / Range | C5: Equation/ Value | D5: Units | E5: Reference/Designation
A6: Application rate, lbs/acre | B6: ApRt | C6: ='A01'!ApRt_C -> 1 | D6: lb/acre | E6: Worksheet A01
A7: Flow rate of stream | B7: Flow | C7: ='A01'!C$25 -> 710000 | D7: L/day | E7: Worksheet A01
A8: Converstion Factor, lb/acre to mg/m2 | B8: Conv1 | C8: 112.1 | D8: mg/m2 per lb/acre
A9: Deposition rate, nominal | C9: Dep = ApR × Conv1
B10: Dep | C10: =C6*C8 -> 112.1 | D10: mg/m2 | E10: Eq
A11: Length of steam segment | B11: L | C11: ='A01'!C$26 -> 1038 | D11: feet | E11: Worksheet A01
A12: Width of steam segment | B12: W | C12: ='A01'!C$27 -> 6 | D12: feet | E12: Worksheet A01
A13: Surface Area of Stream Sprayed, square feet | B13: SA_ft | C13: =C11*C12 -> 6228 | D13: ft2 | E13: Eq
A14: Converstion Factor, square feet to square meters | B14: Conv2 | C14: 0.0929 | D14: m2/ft2
A15: Surface Area of Stream Sprayed, square meters | B15: SA_msq | C15: =C13*C14 -> 578.5812 | E15: Eq
A16: Amount deposited on stream surface on spray day | B16: Amnt | C16: =C10*C15 -> 64858.95252 | D16: mg/day | E16: Eq
A17: Proportion of Drift at distances downwind in feet [0 feet = direct spray] | B17: Prop | C17: Aerial | D17: High Boom Ground Broadcast | E17: Low Boom Ground Broadcast | F17: Backpack
A18: 0 | C18: 1 | D18: 1 | E18: 1 | F18: 1
A19: 25 | C19: 0.223 | D19: 0.104 | E19: 0.035 | F19: 0.00832
A20: 50 | C20: 0.171 | D20: 0.05 | E20: 0.0177 | F20: 0.00433
A21: 100 | C21: 0.0979 | D21: 0.0248 | E21: 0.00948 | F21: 0.00241
A22: 300 | C22: 0.0312 | D22: 0.00753 | E22: 0.0035 | F22: 0.000941
A23: 500 | C23: 0.0192 | D23: 0.00391 | E23: 0.00209 | F23: 0.000579
A24: 900 | C24: 0.0124 | D24: 0.00166 | E24: 0.00109 | F24: 0.000312
B25: Conc = | C25: Amnt × Prop / Flow
A26: Concentration in water at distances downwind in feet | C26: Aerial | D26: High Boom Ground Broadcast | E26: Low Boom Ground Broadcast | F26: Backpack
A27: =A18 -> 0 | C27: =$C$16 * C18 /$C$7 -> 0.09135063735 | D27: =$C$16 * D18 /$C$7 -> 0.09135063735 | E27: =$C$16 * E18 /$C$7 -> 0.09135063735 | F27: =$C$16 * F18 /$C$7 -> 0.09135063735 | G27: mg/L
A28: 25 | C28: =$C$16 * C19 /$C$7 -> 0.02037119213 | D28: 0.009500466285 | E28: 0.003197272307 | F28: 0.0007600373028 | G28: mg/L
A29: 50 | C29: 0.01562095899 | D29: 0.004567531868 | E29: 0.001616906281 | F29: 0.0003955482597 | G29: mg/L
A30: 100 | C30: 0.008943227397 | D30: 0.002265495806 | E30: 0.0008660040421 | F30: 0.000220155036 | G30: mg/L
A31: 300 | C31: 0.002850139885 | D31: 0.0006878702993 | E31: 0.0003197272307 | F31: 8.596094975e-05 | G31: mg/L
A32: 500 | C32: 0.001753932237 | D32: 0.000357180992 | E32: 0.0001909228321 | F32: 5.289201903e-05 | G32: mg/L
A33: 900 | C33: 0.001132747903 | D33: 0.000151642058 | E33: 9.957219471e-05 | F33: 2.850139885e-05 | G33: mg/L

Sheet B05a
A1: Concentration of Pesticide in Contaminated Fruit
A2: Short Title | B2: Concentration in food item | E2: FoodConcV6
A3: Material consumed | C3: Fruit | E3: Scenario parameter
A4: Parameter/Assumption | B4: Code / Range | C4: Equation/ Value | D4: Units | E4: Reference/Designation
A5: Application Information
A6: Application Rate (lbs/acre) | B6: ApRt | C6: ='A01'!ApRt_C -> 1 | D6: lb/acre | E6: Worksheet A01
A7: Number of applications | B7: n | C7: ='A01'!C$20 -> 1 | D7: unitless | E7: Worksheet A01
A8: Interval between applications | B8: intv | C8: ='A01'!C$21 -> 1 | D8: days | E8: Worksheet A01
A9: Special Adjustments (See Note 1)
A10: Metabolite Adjustment Factor : (See risk assessment if this has a value other than 1.) | B10: MetFact
B11: Central | C11: 1 | D11: unitless | E11: Default
B12: Lower | C12: 1 | E12: Default
B13: Upper | C13: 1 | E13: Default
A14: Toxic Equivalency Factor for formulation: (See risk assessment if this has a value other than 1.) | B14: TEF
B15: Central | C15: ='A01'!C$35 -> 1 | D15: Unitless | E15: Worksheet A01
B16: Lower | C16: ='A01'!C$36 -> 1 | E16: Worksheet A01
B17: Upper | C17: ='A01'!C$37 -> 1 | E17: Worksheet A01
A18: Acute Concentrations
A19: Residue Rates | B19: rr
B20: Central | C20: ='A01'!C$63 -> 7 | D20: mg/kg food per lb/acre | E20: Worksheet A01
B21: Lower | C21: ='A01'!C$64 -> 3.2 | E21: Worksheet A01
B22: Upper | C22: ='A01'!C$65 -> 15 | E22: Worksheet A01
A23: Drift | B23: Drift
B24: Central | C24: ='A01'!C$39 -> 1 | D24: proportion | E24: Worksheet A01
B25: Lower | C25: ='A01'!C$40 -> 1 | E25: Worksheet A01
B26: Upper | C26: ='A01'!C$41 -> 1 | E26: Worksheet A01
A27: Concentration on commodity immediately after first application. | B27: C0 | C27: ApR × rr × Drift × MetFact × TEF
B28: Central | C28: =C$6*C20*$C$24*C11*C15 -> 7 | E28: Eq
B29: Lower | C29: =C$6*C21*$C$24*C12*C16 -> 3.2 | E29: Eq
B30: Upper | C30: =C$6*C22*$C$24*C13*C17 -> 15 | E30: Eq
A31: Half-life on commodity | B31: Halflife
B32: Central | C32: ='B01'!$C$17 -> 8 | D32: Days | E32: Section 3.2.3.6
B33: Lower | C33: ='B01'!$C$18 -> 6 | E33: Section 3.2.3.6
B34: Upper | C34: ='B01'!$C$19 -> 23 | E34: Section 3.2.3.6
A35: Decay Coefficient | B35: k | C35: Ln(2)/Halflife
B36: Central | C36: =LN(2)/C32 -> 0.08664339757 | D36: Days-1 | E36: Eq
B37: Upper | C37: =LN(2)/C33 -> 0.1155245301 | D37: Note 2 | E37: Eq
B38: Lower | C38: =LN(2)/C34 -> 0.03013683394 | D38: Note 2 | E38: Eq
A39: Proportion remaining at end of each application interval | B39: p | C39: exp( -k × intv)
B40: Central | C40: =EXP(-C36*C$8) -> 0.9170040432 | D40: proportion | E40: Eq
B41: Lower | C41: =EXP(-C37*C$8) -> 0.8908987181 | E41: Eq
B42: Upper | C42: =EXP(-C38*C$8) -> 0.9703127527 | E42: Eq
A43: Concentration on commodity immediately after last application. | B43: Cn | C43: Cn = C0 × (1- pn) ÷ (1- p)
B44: Central | C44: =C28 * (1-C40^C$7)/(1-C40) -> 7 | D44: mg/kg food item | E44: Eq
B45: Lower | C45: =C29 * (1-C41^C$7)/(1-C41) -> 3.2 | E45: Eq
B46: Upper | C46: =C30 * (1-C42^C$7)/(1-C42) -> 15 | E46: Eq
A47: Longer-term Concentrations
A48: Duration for time-weighted average exposure | B48: T | C48: ='A01'!C$28 -> 90 | D48: Days | E48: Worksheet A01
A49: Time-weighted average concentration on commodity over time, T, after the last application. | B49: ConcTWA | C49: Cn × (1-e-kT) ÷ (k T)
B50: Central | C50: =C44*(1-EXP(-C36*$C$48))/(C36*$C$48) -> 0.8973083336 | D50: mg/kg food item | E50: Eq
B51: Lower | C51: =C45*(1-EXP(-C37*$C$48))/(C37*$C$48) -> 0.3077655495 | E51: Eq
B52: Upper | C52: 5.163211312 | E52: Eq
A53: Maximum Time-weighted average concentration on commodity over time, T. | B53: ConcTWA | C53: See Documentation
B54: Central | C54: =IF($C$7=1, C50, MaxTWAWsFn(C28, $C$7, $C$8, $C$48, C36)) -> 0.8973083336 | D54: mg/kg food item | E54: Eq
B55: Lower | C55: =IF($C$7=1, C51, MaxTWAWsFn(C29, $C$7, $C$8, $C$48, C37)) -> 0.3077655495 | E55: Eq
B56: Upper | C56: =IF($C$7=1, C52, MaxTWAWsFn(C30, $C$7, $C$8, $C$48, C38)) -> 5.163211312 | E56: Eq

Sheet B05b
A1: Concentration of Pesticide in Contaminated Broadleaf Vegetation
A2: Short Title | B2: Concentration in food item | E2: FoodConcV6
A3: Material consumed | C3: Broadleaf Vegetation | E3: Scenario parameter
A4: Parameter/Assumption | B4: Code / Range | C4: Equation/ Value | D4: Units | E4: Reference/Designation
A5: Application Information
A6: Application Rate (lbs/acre) | B6: ApRt | C6: ='A01'!ApRt_C -> 1 | D6: lb/acre | E6: Worksheet A01
A7: Number of applications | B7: n | C7: ='A01'!C$20 -> 1 | D7: unitless | E7: Worksheet A01
A8: Interval between applications | B8: intv | C8: ='A01'!C$21 -> 1 | D8: days | E8: Worksheet A01
A9: Special Adjustments (See Note 1)
A10: Metabolite Adjustment Factor : (See risk assessment if this has a value other than 1.) | B10: MetFact
B11: Central | C11: 1 | D11: unitless | E11: Default
B12: Lower | C12: 1 | E12: Default
B13: Upper | C13: 1 | E13: Default
A14: Toxic Equivalency Factor for formulation: (See risk assessment if this has a value other than 1.) | B14: TEF
B15: Central | C15: ='A01'!C$35 -> 1 | D15: Unitless | E15: Worksheet A01
B16: Lower | C16: ='A01'!C$36 -> 1 | E16: Worksheet A01
B17: Upper | C17: ='A01'!C$37 -> 1 | E17: Worksheet A01
A18: Acute Concentrations
A19: Residue Rates | B19: rr
B20: Central | C20: ='A01'!C$59 -> 45 | D20: mg/kg food per lb/acre | E20: Worksheet A01
B21: Lower | C21: ='A01'!C$60 -> 15 | E21: Worksheet A01
B22: Upper | C22: ='A01'!C$61 -> 135 | E22: Worksheet A01
A23: Drift | B23: Drift
B24: Central | C24: ='A01'!C$39 -> 1 | D24: proportion | E24: Worksheet A01
B25: Lower | C25: ='A01'!C$40 -> 1 | E25: Worksheet A01
B26: Upper | C26: ='A01'!C$41 -> 1 | E26: Worksheet A01
A27: Concentration on commodity immediately after first application. | B27: C0 | C27: ApR × rr × Drift × MetFact × TEF
B28: Central | C28: =C$6*C20*$C$24*C11*C15 -> 45 | E28: Eq
B29: Lower | C29: =C$6*C21*$C$24*C12*C16 -> 15 | E29: Eq
B30: Upper | C30: =C$6*C22*$C$24*C13*C17 -> 135 | E30: Eq
A31: Half-life on commodity | B31: Halflife
B32: Central | C32: ='B01'!$C$20 -> 8 | D32: Days | E32: Section 3.2.3.6
B33: Lower | C33: ='B01'!$C$21 -> 6 | E33: Section 3.2.3.6
B34: Upper | C34: ='B01'!$C$22 -> 23 | E34: Section 3.2.3.6
A35: Decay Coefficient | B35: k | C35: Ln(2)/Halflife
B36: Central | C36: =LN(2)/C32 -> 0.08664339757 | D36: Days-1 | E36: Eq
B37: Upper | C37: =LN(2)/C33 -> 0.1155245301 | D37: Note 2 | E37: Eq
B38: Lower | C38: =LN(2)/C34 -> 0.03013683394 | D38: Note 2 | E38: Eq
A39: Proportion remaining at end of each application interval | B39: p | C39: exp( -k × intv)
B40: Central | C40: =EXP(-C36*C$8) -> 0.9170040432 | D40: proportion | E40: Eq
B41: Lower | C41: =EXP(-C37*C$8) -> 0.8908987181 | E41: Eq
B42: Upper | C42: =EXP(-C38*C$8) -> 0.9703127527 | E42: Eq
A43: Concentration on commodity immediately after last application. | B43: Cn | C43: Cn = C0 × (1- pn) ÷ (1- p)
B44: Central | C44: =C28 * (1-C40^C$7)/(1-C40) -> 45 | D44: mg/kg food item | E44: Eq
B45: Lower | C45: =C29 * (1-C41^C$7)/(1-C41) -> 15 | E45: Eq
B46: Upper | C46: =C30 * (1-C42^C$7)/(1-C42) -> 135 | E46: Eq
A47: Longer-term Concentrations
A48: Duration for time-weighted average exposure | B48: T | C48: ='A01'!C$28 -> 90 | D48: Days | E48: Worksheet A01
A49: Time-weighted average concentration on commodity over time, T, after the last application. | B49: ConcTWA | C49: Cn × (1-e-kT) ÷ (k T)
B50: Central | C50: =C44*(1-EXP(-C36*$C$48))/(C36*$C$48) -> 5.768410716 | D50: mg/kg food item | E50: Eq
B51: Lower | C51: =C45*(1-EXP(-C37*$C$48))/(C37*$C$48) -> 1.442651013 | E51: Eq
B52: Upper | C52: 46.46890181 | E52: Eq
A53: Maximum Time-weighted average concentration on commodity over time, T. | B53: ConcTWA | C53: See Documentation
B54: Central | C54: =IF($C$7=1, C50, MaxTWAWsFn(C28, $C$7, $C$8, $C$48, C36)) -> 5.768410716 | D54: mg/kg food item | E54: Eq
B55: Lower | C55: =IF($C$7=1, C51, MaxTWAWsFn(C29, $C$7, $C$8, $C$48, C37)) -> 1.442651013 | E55: Eq
B56: Upper | C56: =IF($C$7=1, C52, MaxTWAWsFn(C30, $C$7, $C$8, $C$48, C38)) -> 46.46890181 | E56: Eq

Sheet B05c
A1: Concentration of Pesticide in Contaminated Short Grass
A2: Short Title | B2: Concentration in food item | E2: FoodConcV6
A3: Material consumed | C3: Short Grass | E3: Scenario parameter
A4: Parameter/Assumption | B4: Code / Range | C4: Equation/ Value | D4: Units | E4: Reference/Designation
A5: Application Information
A6: Application Rate (lbs/acre) | B6: ApRt | C6: ='A01'!ApRt_C -> 1 | D6: lb/acre | E6: Worksheet A01
A7: Number of applications | B7: n | C7: ='A01'!C$20 -> 1 | D7: unitless | E7: Worksheet A01
A8: Interval between applications | B8: intv | C8: ='A01'!C$21 -> 1 | D8: days | E8: Worksheet A01
A9: Special Adjustments (See Note 1)
A10: Metabolite Adjustment Factor : (See risk assessment if this has a value other than 1.) | B10: MetFact
B11: Central | C11: 1 | D11: unitless | E11: Default
B12: Lower | C12: 1 | E12: Default
B13: Upper | C13: 1 | E13: Default
A14: Toxic Equivalency Factor for formulation: (See risk assessment if this has a value other than 1.) | B14: TEF
B15: Central | C15: ='A01'!C$35 -> 1 | D15: Unitless | E15: Worksheet A01
B16: Lower | C16: ='A01'!C$36 -> 1 | E16: Worksheet A01
B17: Upper | C17: ='A01'!C$37 -> 1 | E17: Worksheet A01
A18: Acute Concentrations
A19: Residue Rates | B19: rr
B20: Central | C20: ='A01'!C$51 -> 85 | D20: mg/kg food per lb/acre | E20: Worksheet A01
B21: Lower | C21: ='A01'!C$52 -> 30 | E21: Worksheet A01
B22: Upper | C22: ='A01'!C$53 -> 240 | E22: Worksheet A01
A23: Drift | B23: Drift
B24: Central | C24: ='A01'!C$39 -> 1 | D24: proportion | E24: Worksheet A01
B25: Lower | C25: ='A01'!C$40 -> 1 | E25: Worksheet A01
B26: Upper | C26: ='A01'!C$41 -> 1 | E26: Worksheet A01
A27: Concentration on commodity immediately after first application. | B27: C0 | C27: ApR × rr × Drift × MetFact × TEF
B28: Central | C28: =C$6*C20*$C$24*C11*C15 -> 85 | E28: Eq
B29: Lower | C29: =C$6*C21*$C$24*C12*C16 -> 30 | E29: Eq
B30: Upper | C30: =C$6*C22*$C$24*C13*C17 -> 240 | E30: Eq
A31: Half-life on commodity | B31: Halflife
B32: Central | C32: ='B01'!$C$20 -> 8 | D32: Days | E32: Section 3.2.3.6
B33: Lower | C33: ='B01'!$C$21 -> 6 | E33: Section 3.2.3.6
B34: Upper | C34: ='B01'!$C$22 -> 23 | E34: Section 3.2.3.6
A35: Decay Coefficient | B35: k | C35: Ln(2)/Halflife
B36: Central | C36: =LN(2)/C32 -> 0.08664339757 | D36: Days-1 | E36: Eq
B37: Upper | C37: =LN(2)/C33 -> 0.1155245301 | D37: Note 2 | E37: Eq
B38: Lower | C38: =LN(2)/C34 -> 0.03013683394 | D38: Note 2 | E38: Eq
A39: Proportion remaining at end of each application interval | B39: p | C39: exp( -k × intv)
B40: Central | C40: =EXP(-C36*C$8) -> 0.9170040432 | D40: proportion | E40: Eq
B41: Lower | C41: =EXP(-C37*C$8) -> 0.8908987181 | E41: Eq
B42: Upper | C42: =EXP(-C38*C$8) -> 0.9703127527 | E42: Eq
A43: Concentration on commodity immediately after last application. | B43: Cn | C43: Cn = C0 × (1- pn) ÷ (1- p)
B44: Central | C44: =C28 * (1-C40^C$7)/(1-C40) -> 85 | D44: mg/kg food item | E44: Eq
B45: Lower | C45: =C29 * (1-C41^C$7)/(1-C41) -> 30 | E45: Eq
B46: Upper | C46: =C30 * (1-C42^C$7)/(1-C42) -> 240 | E46: Eq
A47: Longer-term Concentrations
A48: Duration for time-weighted average exposure | B48: T | C48: ='A01'!C$28 -> 90 | D48: Days | E48: Worksheet A01
A49: Time-weighted average concentration on commodity over time, T, after the last application. | B49: ConcTWA | C49: Cn × (1-e-kT) ÷ (k T)
B50: Central | C50: =C44*(1-EXP(-C36*$C$48))/(C36*$C$48) -> 10.89588691 | D50: mg/kg food item | E50: Eq
B51: Lower | C51: =C45*(1-EXP(-C37*$C$48))/(C37*$C$48) -> 2.885302027 | E51: Eq
B52: Upper | C52: 82.611381 | E52: Eq
A53: Maximum Time-weighted average concentration on commodity over time, T. | B53: ConcTWA | C53: See Documentation
B54: Central | C54: =IF($C$7=1, C50, MaxTWAWsFn(C28, $C$7, $C$8, $C$48, C36)) -> 10.89588691 | D54: mg/kg food item | E54: Eq
B55: Lower | C55: =IF($C$7=1, C51, MaxTWAWsFn(C29, $C$7, $C$8, $C$48, C37)) -> 2.885302027 | E55: Eq
B56: Upper | C56: =IF($C$7=1, C52, MaxTWAWsFn(C30, $C$7, $C$8, $C$48, C38)) -> 82.611381 | E56: Eq

Sheet B05d
A1: Concentration of Pesticide in Contaminated Tall Grass
A2: Short Title | B2: Concentration in food item | E2: FoodConcV6
A3: Material consumed | C3: Tall Grass | E3: Scenario parameter
A4: Parameter/Assumption | B4: Code / Range | C4: Equation/ Value | D4: Units | E4: Reference/Designation
A5: Application Information
A6: Application Rate (lbs/acre) | B6: ApRt | C6: ='A01'!ApRt_C -> 1 | D6: lb/acre | E6: Worksheet A01
A7: Number of applications | B7: n | C7: ='A01'!C$20 -> 1 | D7: unitless | E7: Worksheet A01
A8: Interval between applications | B8: intv | C8: ='A01'!C$21 -> 1 | D8: days | E8: Worksheet A01
A9: Special Adjustments (See Note 1)
A10: Metabolite Adjustment Factor : (See risk assessment if this has a value other than 1.) | B10: MetFact
B11: Central | C11: 1 | D11: unitless | E11: Default
B12: Lower | C12: 1 | E12: Default
B13: Upper | C13: 1 | E13: Default
A14: Toxic Equivalency Factor for formulation: (See risk assessment if this has a value other than 1.) | B14: TEF
B15: Central | C15: ='A01'!C$35 -> 1 | D15: Unitless | E15: Worksheet A01
B16: Lower | C16: ='A01'!C$36 -> 1 | E16: Worksheet A01
B17: Upper | C17: ='A01'!C$37 -> 1 | E17: Worksheet A01
A18: Acute Concentrations
A19: Residue Rates | B19: rr
B20: Central | C20: ='A01'!C$55 -> 36 | D20: mg/kg food per lb/acre | E20: Worksheet A01
B21: Lower | C21: ='A01'!C$56 -> 12 | E21: Worksheet A01
B22: Upper | C22: ='A01'!C$57 -> 110 | E22: Worksheet A01
A23: Drift | B23: Drift
B24: Central | C24: ='A01'!C$39 -> 1 | D24: proportion | E24: Worksheet A01
B25: Lower | C25: ='A01'!C$40 -> 1 | E25: Worksheet A01
B26: Upper | C26: ='A01'!C$41 -> 1 | E26: Worksheet A01
A27: Concentration on commodity immediately after first application. | B27: C0 | C27: ApR × rr × Drift × MetFact × TEF
B28: Central | C28: =C$6*C20*$C$24*C11*C15 -> 36 | E28: Eq
B29: Lower | C29: =C$6*C21*$C$24*C12*C16 -> 12 | E29: Eq
B30: Upper | C30: =C$6*C22*$C$24*C13*C17 -> 110 | E30: Eq
A31: Half-life on commodity | B31: Halflife
B32: Central | C32: ='B01'!$C$20 -> 8 | D32: Days | E32: Section 3.2.3.6
B33: Lower | C33: ='B01'!$C$21 -> 6 | E33: Section 3.2.3.6
B34: Upper | C34: ='B01'!$C$22 -> 23 | E34: Section 3.2.3.6
A35: Decay Coefficient | B35: k | C35: Ln(2)/Halflife
B36: Central | C36: =LN(2)/C32 -> 0.08664339757 | D36: Days-1 | E36: Eq
B37: Upper | C37: =LN(2)/C33 -> 0.1155245301 | D37: Note 2 | E37: Eq
B38: Lower | C38: =LN(2)/C34 -> 0.03013683394 | D38: Note 2 | E38: Eq
A39: Proportion remaining at end of each application interval | B39: p | C39: exp( -k × intv)
B40: Central | C40: =EXP(-C36*C$8) -> 0.9170040432 | D40: proportion | E40: Eq
B41: Lower | C41: =EXP(-C37*C$8) -> 0.8908987181 | E41: Eq
B42: Upper | C42: =EXP(-C38*C$8) -> 0.9703127527 | E42: Eq
A43: Concentration on commodity immediately after last application. | B43: Cn | C43: Cn = C0 × (1- pn) ÷ (1- p)
B44: Central | C44: =C28 * (1-C40^C$7)/(1-C40) -> 36 | D44: mg/kg food item | E44: Eq
B45: Lower | C45: =C29 * (1-C41^C$7)/(1-C41) -> 12 | E45: Eq
B46: Upper | C46: =C30 * (1-C42^C$7)/(1-C42) -> 110 | E46: Eq
A47: Longer-term Concentrations
A48: Duration for time-weighted average exposure | B48: T | C48: ='A01'!C$28 -> 90 | D48: Days | E48: Worksheet A01
A49: Time-weighted average concentration on commodity over time, T, after the last application. | B49: ConcTWA | C49: Cn × (1-e-kT) ÷ (k T)
B50: Central | C50: =C44*(1-EXP(-C36*$C$48))/(C36*$C$48) -> 4.614728573 | D50: mg/kg food item | E50: Eq
B51: Lower | C51: =C45*(1-EXP(-C37*$C$48))/(C37*$C$48) -> 1.154120811 | E51: Eq
B52: Upper | C52: 37.86354962 | E52: Eq
A53: Maximum Time-weighted average concentration on commodity over time, T. | B53: ConcTWA | C53: See Documentation
B54: Central | C54: =IF($C$7=1, C50, MaxTWAWsFn(C28, $C$7, $C$8, $C$48, C36)) -> 4.614728573 | D54: mg/kg food item | E54: Eq
B55: Lower | C55: =IF($C$7=1, C51, MaxTWAWsFn(C29, $C$7, $C$8, $C$48, C37)) -> 1.154120811 | E55: Eq
B56: Upper | C56: =IF($C$7=1, C52, MaxTWAWsFn(C30, $C$7, $C$8, $C$48, C38)) -> 37.86354962 | E56: Eq

Sheet C01a
A1: Exposure estimates for Backpack Worker based on the amount of material handled per day
A2: Short Title | B2: General exposure | E2: WkGenExp
A3: Receptor | B3: Backpack Worker | E3: Worksheet A01
A4: Duration | B4: Chronic
A5: Parameter/Assumption | B5: Code / Range | C5: Equation/ Value | D5: Units | E5: Reference/Equation
A6: Application rates | B6: ApRt | C6: ='A01'!ApRt_C -> 1 | D6: lb/acre | E6: Worksheet A01
A7: Hours of application per day | B7: Hrs
B8: Central | C8: ='A01'!C$75 -> 7 | D8: hours | E8: Worksheet A01
B9: Lower | C9: ='A01'!C$76 -> 6 | E9: Worksheet A01
B10: Upper | C10: ='A01'!C$77 -> 8 | E10: Worksheet A01
A11: Acres treated per hour | B11: APH
B12: Central | C12: ='A01'!C$71 -> 0.625 | D12: acres/hour | E12: Worksheet A01
B13: Lower | C13: ='A01'!C$72 -> 0.25 | E13: Worksheet A01
B14: Upper | C14: ='A01'!C$73 -> 1 | E14: Worksheet A01
A15: Acres treated per day: | B15: ATD | C15: Hrs × APH
B16: Central | C16: =C8*C12 -> 4.375 | D16: acres/day | E16: Eq
B17: Lower | C17: =C9*C13 -> 1.5 | E17: Eq
B18: Upper | C18: =C10*C14 -> 8 | E18: Eq
A19: Toxic Equivalency Factor for formulation: (See risk assessment if this has a value other than 1.) | B19: TEF
B20: Central | C20: ='A01'!C$35 -> 1 | D20: unitless | E20: Worksheet A01
B21: Lower | C21: ='A01'!C$36 -> 1 | E21: Worksheet A01
B22: Upper | C22: ='A01'!C$37 -> 1 | E22: Worksheet A01
A23: Amount handled per day: | B23: Amnt | C23: ApRt × ATD × TEF
B24: Central | C24: =C$6*C16 *C20 -> 4.375 | D24: lb/day | E24: Eq
B25: Lower | C25: =C$6*C17 *C21 -> 1.5 | E25: Eq
B26: Upper | C26: =C$6*C18 *C22 -> 8 | E26: Eq
A27: Absorbed dose rate: | B27: ADR
B28: Central | C28: ='A01'!C$67 -> 0.003 | D28: (mg agent/kg bw) ÷ (lbs agent handled per day) | E28: Worksheet A01
B29: Lower | C29: ='A01'!C$68 -> 0.0003 | E29: Worksheet A01
B30: Upper | C30: ='A01'!C$69 -> 0.01 | E30: Worksheet A01
A31: Clothing Protection Factor | B31: Prot
B32: Central | C32: ='A01'!C$31 -> 0 | D32: Unitless (value between 0 [no protection] and 1 [complete protection]) | E32: Worksheet A01
B33: Upper | C33: ='A01'!C$33 -> 0 | E33: Worksheet A01
B34: Lower | C34: ='A01'!C$32 -> 0 | E34: Worksheet A01
A35: Absorbed dose | B35: Dose | C35: Amnt × ADR × (1-Prot)
B36: Central | C36: =C24*C28*(1-C32) -> 0.013125 | D36: mg/kg bw/day | E36: Eq
B37: Lower | C37: =C25*C29*(1-C33) -> 0.00045 | E37: Eq
B38: Upper | C38: =C26*C30*(1-C34) -> 0.08 | E38: Eq

Sheet C01b
A1: Exposure estimates for Ground Boom Worker based on the amount of material handled per day
A2: Short Title | B2: General exposure | E2: WkGenExp
A3: Receptor | B3: Ground Boom Worker | E3: Worksheet A01
A4: Duration | B4: Chronic
A5: Parameter/Assumption | B5: Code / Range | C5: Equation/ Value | D5: Units | E5: Reference/Equation
A6: Application rates | B6: ApRt | C6: ='A01'!ApRt_C -> 1 | D6: lb/acre | E6: Worksheet A01
A7: Hours of application per day | B7: Hrs
B8: Central | C8: 7 | D8: hours | E8: Worksheet A01
B9: Lower | C9: 6 | E9: Worksheet A01
B10: Upper | C10: 8 | E10: Worksheet A01
A11: Acres treated per hour | B11: APH
B12: Central | C12: 16 | D12: acres/hour | E12: Worksheet A01
B13: Lower | C13: 11 | E13: Worksheet A01
B14: Upper | C14: 21 | E14: Worksheet A01
A15: Acres treated per day: | B15: ATD | C15: Hrs × APH
B16: Central | C16: =C8*C12 -> 112 | D16: acres/day | E16: Eq
B17: Lower | C17: =C9*C13 -> 66 | E17: Eq
B18: Upper | C18: =C10*C14 -> 168 | E18: Eq
A19: Toxic Equivalency Factor for formulation: (See risk assessment if this has a value other than 1.) | B19: TEF
B20: Central | C20: ='A01'!C$35 -> 1 | D20: unitless | E20: Worksheet A01
B21: Lower | C21: ='A01'!C$36 -> 1 | E21: Worksheet A01
B22: Upper | C22: ='A01'!C$37 -> 1 | E22: Worksheet A01
A23: Amount handled per day: | B23: Amnt | C23: ApRt × ATD × TEF
B24: Central | C24: =C$6*C16 *C20 -> 112 | D24: lb/day | E24: Eq
B25: Lower | C25: =C$6*C17 *C21 -> 66 | E25: Eq
B26: Upper | C26: =C$6*C18 *C22 -> 168 | E26: Eq
A27: Absorbed dose rate: | B27: ADR
B28: Central | C28: 0.0002 | D28: (mg agent/kg bw) ÷ (lbs agent handled per day) | E28: Worksheet A01
B29: Lower | C29: 1e-05 | E29: Worksheet A01
B30: Upper | C30: 0.0009 | E30: Worksheet A01
A31: Clothing Protection Factor | B31: Prot
B32: Central | C32: ='A01'!C$31 -> 0 | D32: Unitless (value between 0 [no protection] and 1 [complete protection]) | E32: Worksheet A01
B33: Upper | C33: ='A01'!C$33 -> 0 | E33: Worksheet A01
B34: Lower | C34: ='A01'!C$32 -> 0 | E34: Worksheet A01
A35: Absorbed dose | B35: Dose | C35: Amnt × ADR × (1-Prot)
B36: Central | C36: =C24*C28*(1-C32) -> 0.0224 | D36: mg/kg bw/day | E36: Eq
B37: Lower | C37: =C25*C29*(1-C33) -> 0.00066 | E37: Eq
B38: Upper | C38: =C26*C30*(1-C34) -> 0.1512 | E38: Eq

Sheet C01c
A1: Exposure estimates for Aerial Spray Worker based on the amount of material handled per day
A2: Short Title | B2: General exposure | E2: WkGenExp
A3: Receptor | B3: Aerial Spray Worker | E3: Worksheet A01
A4: Duration | B4: Chronic
A5: Parameter/Assumption | B5: Code / Range | C5: Equation/ Value | D5: Units | E5: Reference/Equation
A6: Application rates | B6: ApRt | C6: ='A01'!ApRt_C -> 1 | D6: lb/acre | E6: Worksheet A01
A7: Hours of application per day | B7: Hrs
B8: Central | C8: 7 | D8: hours | E8: Worksheet A01
B9: Lower | C9: 6 | E9: Worksheet A01
B10: Upper | C10: 8 | E10: Worksheet A01
A11: Acres treated per hour | B11: APH
B12: Central | C12: 70 | D12: acres/hour | E12: Worksheet A01
B13: Lower | C13: 40 | E13: Worksheet A01
B14: Upper | C14: 100 | E14: Worksheet A01
A15: Acres treated per day: | B15: ATD | C15: Hrs × APH
B16: Central | C16: =C8*C12 -> 490 | D16: acres/day | E16: Eq
B17: Lower | C17: =C9*C13 -> 240 | E17: Eq
B18: Upper | C18: =C10*C14 -> 800 | E18: Eq
A19: Toxic Equivalency Factor for formulation: (See risk assessment if this has a value other than 1.) | B19: TEF
B20: Central | C20: ='A01'!C$35 -> 1 | D20: unitless | E20: Worksheet A01
B21: Lower | C21: ='A01'!C$36 -> 1 | E21: Worksheet A01
B22: Upper | C22: ='A01'!C$37 -> 1 | E22: Worksheet A01
A23: Amount handled per day: | B23: Amnt | C23: ApRt × ATD × TEF
B24: Central | C24: =C$6*C16 *C20 -> 490 | D24: lb/day | E24: Eq
B25: Lower | C25: =C$6*C17 *C21 -> 240 | E25: Eq
B26: Upper | C26: =C$6*C18 *C22 -> 800 | E26: Eq
A27: Absorbed dose rate: | B27: ADR
B28: Central | C28: 3e-05 | D28: (mg agent/kg bw) ÷ (lbs agent handled per day) | E28: Worksheet A01
B29: Lower | C29: 1e-06 | E29: Worksheet A01
B30: Upper | C30: 0.0001 | E30: Worksheet A01
A31: Clothing Protection Factor | B31: Prot
B32: Central | C32: ='A01'!C$31 -> 0 | D32: Unitless (value between 0 [no protection] and 1 [complete protection]) | E32: Worksheet A01
B33: Upper | C33: ='A01'!C$33 -> 0 | E33: Worksheet A01
B34: Lower | C34: ='A01'!C$32 -> 0 | E34: Worksheet A01
A35: Absorbed dose | B35: Dose | C35: Amnt × ADR × (1-Prot)
B36: Central | C36: =C24*C28*(1-C32) -> 0.0147 | D36: mg/kg bw/day | E36: Eq
B37: Lower | C37: =C25*C29*(1-C33) -> 0.00024 | E37: Eq
B38: Upper | C38: =C26*C30*(1-C34) -> 0.08 | E38: Eq

Sheet C02a
A1: Accidental Dermal Exposure Assessment Using Zero-Order Absorption, Worker, Surface Area, Hands, for 1 minute(s)
A2: Short Title | B2: Contaminated Gloves, 1 minute | E2: DrmZr
A3: Receptor | B3: Worker
A4: Duration | B4: Acute
A5: Surface Contaminated | B5: Surface Area, Hands
A6: Parameter/Assumption | B6: Code / Range | C6: Equation/ Value | D6: Units | E6: Reference/Designation
A7: Surface Area | B7: SA | C7: =A02a!$C$40 -> 840 | D7: cm2 | E7: U.S. EPA/ORD 1992
A8: Duration of Exposure | B8: T_min | C8: 1 | D8: minutes | E8: Scenario parameter
B9: T_hr | C9: =C8/60 -> 0.01666666667 | D9: hours | E9: Eq
A10: Body weight | B10: BW | C10: =A02a!$C$39 -> 70 | D10: kg | E10: ICRP 1975
A11: Concentration in solution (mg/mL) | B11: Conc
B12: Central | C12: ='A01'!FldConc_C -> 4 | D12: mg/mL | E12: Worksheet A01
B13: Lower | C13: ='A01'!FldConc_L -> 1.2 | E13: Worksheet A01
B14: Upper | C14: ='A01'!FldConc_U -> 24 | E14: Worksheet A01
A15: Toxic Equivalency Factor for formulation: (See risk assessment if this has a value other than 1.) | B15: TEF
B16: Central | C16: ='A01'!C$35 -> 1 | D16: Unitless | E16: Worksheet A01
B17: Lower | C17: ='A01'!C$36 -> 1 | E17: Worksheet A01
B18: Upper | C18: ='A01'!C$37 -> 1 | E18: Worksheet A01
A19: Dermal permeability | B19: Kp
B20: Central | C20: ='B01'!$C$14 -> 5.7e-05 | D20: cm/hour | E20: Section 3.2.2.2
B21: Lower | C21: ='B01'!$C$15 -> 2.8e-05 | E21: Section 3.2.2.2
B22: Upper | C22: ='B01'!$C$16 -> 0.00011 | E22: Section 3.2.2.2
A23: Absorbed Dose | B23: Dose | C23: Kp × Conc × T_hr × SA x TEF ÷ BW
B24: Central | C24: =C20*C12*C$9*C$7*C16/C$10 -> 4.56e-05 | D24: mg/kg | E24: Eq
B25: Lower | C25: =C21*C13*C$9*C$7*C17/C$10 -> 6.72e-06 | D25: mg/kg | E25: Eq
B26: Upper | C26: =C22*C14*C$9*C$7*C18/C$10 -> 0.000528 | D26: mg/kg | E26: Eq

Sheet C02b
A1: Accidental Dermal Exposure Assessment Using Zero-Order Absorption, Worker, Surface Area, Hands, for 60 minute(s)
A2: Short Title | B2: Contaminated Gloves, 1 Hour | E2: DrmZr
A3: Receptor | B3: Worker
A4: Duration | B4: Acute
A5: Surface Contaminated | B5: Surface Area, Hands
A6: Parameter/Assumption | B6: Code / Range | C6: Equation/ Value | D6: Units | E6: Reference/Designation
A7: Surface Area | B7: SA | C7: =A02a!$C$40 -> 840 | D7: cm2 | E7: U.S. EPA/ORD 1992
A8: Duration of Exposure | B8: T_min | C8: 60 | D8: minutes | E8: Scenario parameter
B9: T_hr | C9: =C8/60 -> 1 | D9: hours | E9: Eq
A10: Body weight | B10: BW | C10: =A02a!$C$39 -> 70 | D10: kg | E10: ICRP 1975
A11: Concentration in solution (mg/mL) | B11: Conc
B12: Central | C12: ='A01'!FldConc_C -> 4 | D12: mg/mL | E12: Worksheet A01
B13: Lower | C13: ='A01'!FldConc_L -> 1.2 | E13: Worksheet A01
B14: Upper | C14: ='A01'!FldConc_U -> 24 | E14: Worksheet A01
A15: Toxic Equivalency Factor for formulation: (See risk assessment if this has a value other than 1.) | B15: TEF
B16: Central | C16: ='A01'!C$35 -> 1 | D16: Unitless | E16: Worksheet A01
B17: Lower | C17: ='A01'!C$36 -> 1 | E17: Worksheet A01
B18: Upper | C18: ='A01'!C$37 -> 1 | E18: Worksheet A01
A19: Dermal permeability | B19: Kp
B20: Central | C20: ='B01'!$C$14 -> 5.7e-05 | D20: cm/hour | E20: Section 3.2.2.2
B21: Lower | C21: ='B01'!$C$15 -> 2.8e-05 | E21: Section 3.2.2.2
B22: Upper | C22: ='B01'!$C$16 -> 0.00011 | E22: Section 3.2.2.2
A23: Absorbed Dose | B23: Dose | C23: Kp × Conc × T_hr × SA x TEF ÷ BW
B24: Central | C24: =C20*C12*C$9*C$7*C16/C$10 -> 0.002736 | D24: mg/kg | E24: Eq
B25: Lower | C25: =C21*C13*C$9*C$7*C17/C$10 -> 0.0004032 | D25: mg/kg | E25: Eq
B26: Upper | C26: =C22*C14*C$9*C$7*C18/C$10 -> 0.03168 | D26: mg/kg | E26: Eq

Sheet C03a
A1: Accidental Dermal Exposure Assessment Using First-Order Absorption, Worker, Surface Area, Hands, for 60 minute(s)
A2: Short Title | B2: Spill on hands, 1 hour | E2: DrmFOA
A3: Receptor | B3: Worker
A4: Duration | B4: Acute
A5: Surface Contaminated | B5: Surface Area, Hands
A6: Parameter/Assumption | B6: Code / Range | C6: Equation/ Value | D6: Units | E6: Reference/Designation
A7: Surface Area | B7: SA | C7: =A02a!$C$40 -> 840 | D7: cm2 | E7: U.S. EPA/ORD 1992
A8: Duration of Exposure | C8: 60 | D8: minutes | E8: Scenario parameter
B9: T | C9: =C8/60 -> 1 | D9: hours | E9: Eq
A10: Body weight | B10: BW | C10: =A02a!$C$39 -> 70 | D10: kg | E10: ICRP 1975
A11: Liquid adhering to skin | B11: L | C11: =A02d!$C$11 -> 0.008 | D11: mL/cm2 | E11: Mason and Johnson 1987
A12: Concentration in solution | B12: Conc
B13: Central | C13: ='A01'!FldConc_C -> 4 | D13: mg/mL | E13: Worksheet A01
B14: Lower | C14: ='A01'!FldConc_L -> 1.2 | E14: Worksheet A01
B15: Upper | C15: ='A01'!FldConc_U -> 24 | E15: Worksheet A01
A16: First-order dermal absorption rates | B16: ka
B17: Central | C17: ='B01'!$C$11 -> 5e-05 | D17: hour-1 | E17: Section 3.2.2.2
B18: Lower | C18: ='B01'!$C$12 -> 3e-05 | E18: Section 3.2.2.2
B19: Upper | C19: ='B01'!$C$13 -> 7.1e-05 | E19: Section 3.2.2.2
A20: Toxic Equivalency Factor for formulation: (See risk assessment if this has a value other than 1.) | B20: TEF
B21: Central | C21: ='A01'!C$35 -> 1 | D21: Unitless | E21: Worksheet A01
B22: Lower | C22: ='A01'!C$36 -> 1 | E22: Worksheet A01
B23: Upper | C23: ='A01'!C$37 -> 1 | E23: Worksheet A01
A24: Amount Deposited on Skin | B24: Amnt | C24: L × SA × Conc x TEF
B25: Central | C25: =$C$11*$C$7*C13*C21 -> 26.88 | D25: mg | E25: Eq
B26: Lower | C26: =$C$11*$C$7*C14*C22 -> 8.064 | E26: Eq
B27: Upper | C27: =$C$11*$C$7*C15*C23 -> 161.28 | E27: Eq
A28: Skin Loading | B28: Loading
B29: Central | C29: =C25/C$7 -> 0.032 | D29: mg/cm2 | E29: Eq
B30: Lower | C30: =C26/C$7 -> 0.0096 | E30: Eq
B31: Upper | C31: =C27/C$7 -> 0.192 | E31: Eq
A32: Proportion absorbed over period T | B32: Prop | C32: 1-exp(-ka T)
B33: Central | C33: =1-EXP(-C17 *$C$9) -> 4.999875002e-05 | D33: hour-1 | E33: Eq
B34: Lower | C34: =1-EXP(-C18 *$C$9) -> 2.999955e-05 | E34: Eq
B35: Upper | C35: =1-EXP(-C19 *$C$9) -> 7.099747956e-05 | E35: Eq
A36: Absorbed Dose | B36: Dose | C36: Amnt × Prop ÷ BW
B37: Central | C37: =C25*C33/$C$10 -> 1.919952001e-05 | D37: mg/kg bw | E37: Eq
B38: Lower | C38: =C26*C34/$C$10 -> 3.455948161e-06 | E38: Eq
B39: Upper | C39: =C27*C35/$C$10 -> 0.0001635781929 | E39: Eq

Sheet C03b
A1: Accidental Dermal Exposure Assessment Using First-Order Absorption, Worker, Surface Area, Lower legs, for 60 minute(s)
A2: Short Title | B2: Spill on lower legs, 1 hour | E2: DrmFOA
A3: Receptor | B3: Worker
A4: Duration | B4: Acute
A5: Surface Contaminated | B5: Surface Area, Lower legs
A6: Parameter/Assumption | B6: Code / Range | C6: Equation/ Value | D6: Units | E6: Reference/Designation
A7: Surface Area | B7: SA | C7: =A02a!$C$41 -> 2070 | D7: cm2 | E7: U.S. EPA/ORD 1992
A8: Duration of Exposure | C8: 60 | D8: minutes | E8: Scenario parameter
B9: T | C9: =C8/60 -> 1 | D9: hours | E9: Eq
A10: Body weight | B10: BW | C10: =A02a!$C$39 -> 70 | D10: kg | E10: ICRP 1975
A11: Liquid adhering to skin | B11: L | C11: =A02d!$C$11 -> 0.008 | D11: mL/cm2 | E11: Mason and Johnson 1987
A12: Concentration in solution | B12: Conc
B13: Central | C13: ='A01'!FldConc_C -> 4 | D13: mg/mL | E13: Worksheet A01
B14: Lower | C14: ='A01'!FldConc_L -> 1.2 | E14: Worksheet A01
B15: Upper | C15: ='A01'!FldConc_U -> 24 | E15: Worksheet A01
A16: First-order dermal absorption rates | B16: ka
B17: Central | C17: ='B01'!$C$11 -> 5e-05 | D17: hour-1 | E17: Section 3.2.2.2
B18: Lower | C18: ='B01'!$C$12 -> 3e-05 | E18: Section 3.2.2.2
B19: Upper | C19: ='B01'!$C$13 -> 7.1e-05 | E19: Section 3.2.2.2
A20: Toxic Equivalency Factor for formulation: (See risk assessment if this has a value other than 1.) | B20: TEF
B21: Central | C21: ='A01'!C$35 -> 1 | D21: Unitless | E21: Worksheet A01
B22: Lower | C22: ='A01'!C$36 -> 1 | E22: Worksheet A01
B23: Upper | C23: ='A01'!C$37 -> 1 | E23: Worksheet A01
A24: Amount Deposited on Skin | B24: Amnt | C24: L × SA × Conc x TEF
B25: Central | C25: =$C$11*$C$7*C13*C21 -> 66.24 | D25: mg | E25: Eq
B26: Lower | C26: =$C$11*$C$7*C14*C22 -> 19.872 | E26: Eq
B27: Upper | C27: =$C$11*$C$7*C15*C23 -> 397.44 | E27: Eq
A28: Skin Loading | B28: Loading
B29: Central | C29: =C25/C$7 -> 0.032 | D29: mg/cm2 | E29: Eq
B30: Lower | C30: =C26/C$7 -> 0.0096 | E30: Eq
B31: Upper | C31: =C27/C$7 -> 0.192 | E31: Eq
A32: Proportion absorbed over period T | B32: Prop | C32: 1-exp(-ka T)
B33: Central | C33: =1-EXP(-C17 *$C$9) -> 4.999875002e-05 | D33: hour-1 | E33: Eq
B34: Lower | C34: =1-EXP(-C18 *$C$9) -> 2.999955e-05 | E34: Eq
B35: Upper | C35: =1-EXP(-C19 *$C$9) -> 7.099747956e-05 | E35: Eq
A36: Absorbed Dose | B36: Dose | C36: Amnt × Prop ÷ BW
B37: Central | C37: =C25*C33/$C$10 -> 4.731310288e-05 | D37: mg/kg bw | E37: Eq
B38: Lower | C38: =C26*C34/$C$10 -> 8.516443681e-06 | E38: Eq
B39: Upper | C39: =C27*C35/$C$10 -> 0.0004031034039 | E39: Eq

Sheet D01a
A1: Accidental Dermal Exposure Assessment Using First-Order Absorption, Child, Surface Area, Whole body, for 60 minute(s)
A2: Short Title | B2: Child direct spray, 1 hour | E2: DrmFOA
A3: Receptor | B3: Child
A4: Duration | B4: Acute
A5: Surface Contaminated | B5: Surface Area, Whole body
A6: Parameter/Assumption | B6: Code / Range | C6: Equation/ Value | D6: Units | E6: Reference/Designation
A7: Surface Area | B7: SA | C7: =A02a!$C$29 -> 6030 | D7: cm2 | E7: U.S. EPA/ORD 1996
A8: Duration of Exposure | C8: 60 | D8: minutes | E8: Scenario parameter
B9: T | C9: =C8/60 -> 1 | D9: hours | E9: Eq
A10: Body weight | B10: BW | C10: =A02a!$C$28 -> 13.3 | D10: kg | E10: U.S. EPA/ORD 1996
A11: Liquid adhering to skin | B11: L | C11: =A02d!$C$11 -> 0.008 | D11: mL/cm2 | E11: Mason and Johnson 1987
A12: Concentration in solution | B12: Conc
B13: Central | C13: ='A01'!FldConc_C -> 4 | D13: mg/mL | E13: Worksheet A01
B14: Lower | C14: ='A01'!FldConc_L -> 1.2 | E14: Worksheet A01
B15: Upper | C15: ='A01'!FldConc_U -> 24 | E15: Worksheet A01
A16: First-order dermal absorption rates | B16: ka
B17: Central | C17: ='B01'!$C$11 -> 5e-05 | D17: hour-1 | E17: Section 3.2.2.2
B18: Lower | C18: ='B01'!$C$12 -> 3e-05 | E18: Section 3.2.2.2
B19: Upper | C19: ='B01'!$C$13 -> 7.1e-05 | E19: Section 3.2.2.2
A20: Toxic Equivalency Factor for formulation: (See risk assessment if this has a value other than 1.) | B20: TEF
B21: Central | C21: ='A01'!C$35 -> 1 | D21: Unitless | E21: Worksheet A01
B22: Lower | C22: ='A01'!C$36 -> 1 | E22: Worksheet A01
B23: Upper | C23: ='A01'!C$37 -> 1 | E23: Worksheet A01
A24: Amount Deposited on Skin | B24: Amnt | C24: L × SA × Conc x TEF
B25: Central | C25: =$C$11*$C$7*C13*C21 -> 192.96 | D25: mg | E25: Eq
B26: Lower | C26: =$C$11*$C$7*C14*C22 -> 57.888 | E26: Eq
B27: Upper | C27: =$C$11*$C$7*C15*C23 -> 1157.76 | E27: Eq
A28: Skin Loading | B28: Loading
B29: Central | C29: =C25/C$7 -> 0.032 | D29: mg/cm2 | E29: Eq
B30: Lower | C30: =C26/C$7 -> 0.0096 | E30: Eq
B31: Upper | C31: =C27/C$7 -> 0.192 | E31: Eq
A32: Proportion absorbed over period T | B32: Prop | C32: 1-exp(-ka T)
B33: Central | C33: =1-EXP(-C17 *$C$9) -> 4.999875002e-05 | D33: hour-1 | E33: Eq
B34: Lower | C34: =1-EXP(-C18 *$C$9) -> 2.999955e-05 | E34: Eq
B35: Upper | C35: =1-EXP(-C19 *$C$9) -> 7.099747956e-05 | E35: Eq
A36: Absorbed Dose | B36: Dose | C36: Amnt × Prop ÷ BW
B37: Central | C37: =C25*C33/$C$10 -> 0.0007253953988 | D37: mg/kg bw | E37: Eq
B38: Lower | C38: =C26*C34/$C$10 -> 0.0001305724775 | E38: Eq
B39: Upper | C39: =C27*C35/$C$10 -> 0.006180303905 | E39: Eq

Sheet D01b
A1: Accidental Dermal Exposure Assessment Using First-Order Absorption, Adult Female, Surface Area, Feet and lower Legs, for 60 minute(s)
A2: Short Title | B2: Adult female, lower legs, 1 hour | E2: DrmFOA
A3: Receptor | B3: Adult Female
A4: Duration | B4: Acute
A5: Surface Contaminated | B5: Surface Area, Feet and lower Legs
A6: Parameter/Assumption | B6: Code / Range | C6: Equation/ Value | D6: Units | E6: Reference/Designation
A7: Surface Area | B7: SA | C7: =A02a!$C$5 -> 2915 | D7: cm2 | E7: U.S. EPA/ORD 1992
A8: Duration of Exposure | C8: 60 | D8: minutes | E8: Scenario parameter
B9: T | C9: =C8/60 -> 1 | D9: hours | E9: Eq
A10: Body weight | B10: BW | C10: =A02a!$C$4 -> 64 | D10: kg | E10: U.S. EPA/ORD 1985
A11: Liquid adhering to skin | B11: L | C11: =A02d!$C$11 -> 0.008 | D11: mL/cm2 | E11: Mason and Johnson 1987
A12: Concentration in solution | B12: Conc
B13: Central | C13: ='A01'!FldConc_C -> 4 | D13: mg/mL | E13: Worksheet A01
B14: Lower | C14: ='A01'!FldConc_L -> 1.2 | E14: Worksheet A01
B15: Upper | C15: ='A01'!FldConc_U -> 24 | E15: Worksheet A01
A16: First-order dermal absorption rates | B16: ka
B17: Central | C17: ='B01'!$C$11 -> 5e-05 | D17: hour-1 | E17: Section 3.2.2.2
B18: Lower | C18: ='B01'!$C$12 -> 3e-05 | E18: Section 3.2.2.2
B19: Upper | C19: ='B01'!$C$13 -> 7.1e-05 | E19: Section 3.2.2.2
A20: Toxic Equivalency Factor for formulation: (See risk assessment if this has a value other than 1.) | B20: TEF
B21: Central | C21: ='A01'!C$35 -> 1 | D21: Unitless | E21: Worksheet A01
B22: Lower | C22: ='A01'!C$36 -> 1 | E22: Worksheet A01
B23: Upper | C23: ='A01'!C$37 -> 1 | E23: Worksheet A01
A24: Amount Deposited on Skin | B24: Amnt | C24: L × SA × Conc x TEF
B25: Central | C25: =$C$11*$C$7*C13*C21 -> 93.28 | D25: mg | E25: Eq
B26: Lower | C26: =$C$11*$C$7*C14*C22 -> 27.984 | E26: Eq
B27: Upper | C27: =$C$11*$C$7*C15*C23 -> 559.68 | E27: Eq
A28: Skin Loading | B28: Loading
B29: Central | C29: =C25/C$7 -> 0.032 | D29: mg/cm2 | E29: Eq
B30: Lower | C30: =C26/C$7 -> 0.0096 | E30: Eq
B31: Upper | C31: =C27/C$7 -> 0.192 | E31: Eq
A32: Proportion absorbed over period T | B32: Prop | C32: 1-exp(-ka T)
B33: Central | C33: =1-EXP(-C17 *$C$9) -> 4.999875002e-05 | D33: hour-1 | E33: Eq
B34: Lower | C34: =1-EXP(-C18 *$C$9) -> 2.999955e-05 | E34: Eq
B35: Upper | C35: =1-EXP(-C19 *$C$9) -> 7.099747956e-05 | E35: Eq
A36: Absorbed Dose | B36: Dose | C36: Amnt × Prop ÷ BW
B37: Central | C37: =C25*C33/$C$10 -> 7.287317816e-05 | D37: mg/kg bw | E37: Eq
B38: Lower | C38: =C26*C34/$C$10 -> 1.311730324e-05 | E38: Eq
B39: Upper | C39: =C27*C35/$C$10 -> 0.0006208729587 | E39: Eq

Sheet D02
A1: Dermal Contact with Contaminated Vegetation, Adult Female, Surface Area, Wearing shorts and T-shirt, for 1 hour(s)
A2: Short Title | B2: Vegetation Contact, shorts and T-shirt | E2: DrmVegC
A3: Receptor | B3: Adult Female
A4: Surface Contaminated | B4: Surface Area, Wearing shorts and T-shirt
A5: Duration | B5: Acute
A6: Parameter/Assumption | B6: Code / Range | C6: Equation/ Value | D6: Units | E6: Reference/Designation
A7: Application Rate (lbs/acre) | B7: ApRt | C7: ='A01'!ApRt_C -> 1 | D7: lb/acre | E7: Worksheet A01
A8: Conversion Factor | B8: CnvF | C8: 11.21 | D8: ug/cm2/lb/acre
A9: Metric Application Rate (ug/cm2) | B9: ApR_m | C9: ApR × CnvF
C10: =C7*C$8 -> 11.21 | D10: ug/cm2 | E10: Eq
A11: Surface Area | B11: SA | C11: =A02a!$C$6 -> 5300 | D11: cm2 | E11: U.S. EPA/ORD 1992
A12: Contact Time | B12: Tc | C12: 1 | D12: hours | E12: Scenario parameter
A13: Exposure Time | B13: Te | C13: 24 | D13: hours | E13: Scenario parameter
A14: Body weight (W) | B14: BW | C14: =A02a!$C$4 -> 64 | D14: kg | E14: U.S. EPA/ORD 1985
A15: Proportion Dislodgeable | B15: PropDr
B16: Central | C16: ='A01'!C$47 -> 0.1 | D16: proportion | E16: Worksheet A01
B17: Lower | C17: ='A01'!C$48 -> 0.1 | E17: Worksheet A01
B18: Upper | C18: ='A01'!C$49 -> 0.1 | E18: Worksheet A01
A19: Dislodgeable Residue | B19: Dr | C19: ApR_m × PropDr
B20: Central | C20: =C$10*C16 -> 1.121 | D20: ug/cm2 | E20: Eq
B21: Lower | C21: =C$10*C17 -> 1.121 | E21: Eq
B22: Upper | C22: =C$10*C18 -> 1.121 | E22: Eq
A23: Transfer Rate | B23: Tr | C23: 10 (1.09×Log10(Dr)+0.05) / 1000 µg/mg)
B24: Central | C24: =(10^( (1.09 * LOG(C20)) + 0.05)) / 1000 -> 0.001270779259 | D24: mg/(cm2 hr) | E24: Eq
B25: Lower | C25: =(10^( (1.09 * LOG(C21)) + 0.05)) / 1000 -> 0.001270779259 | E25: Eq
B26: Upper | C26: =(10^( (1.09 * LOG(C22)) + 0.05)) / 1000 -> 0.001270779259 | E26: Eq
A27: Toxic Equivalency Factor for formulation: (See risk assessment if this has a value other than 1.) | B27: TEF
B28: Central | C28: ='A01'!C$35 -> 1 | D28: Unitless | E28: Worksheet A01
B29: Lower | C29: ='A01'!C$36 -> 1 | E29: Worksheet A01
B30: Upper | C30: ='A01'!C$37 -> 1 | E30: Worksheet A01
A31: Amount Transferred to Skin Surface | B31: Amnt | C31: SA × Tr × Tc x TEF
B32: Central | C32: =C$11 * C$12 * C24 * C28 -> 6.73513007 | D32: mg | E32: Eq
B33: Lower | C33: =C$11 * C$12 * C25 * C29 -> 6.73513007 | E33: Eq
B34: Upper | C34: =C$11 * C$12 * C26 * C30 -> 6.73513007 | E34: Eq
A35: First-order dermal absorption rates | B35: ka
B36: Central | C36: ='B01'!$C$11 -> 5e-05 | D36: hour-1 | E36: Section 3.2.2.2
B37: Lower | C37: ='B01'!$C$12 -> 3e-05 | E37: Section 3.2.2.2
B38: Upper | C38: ='B01'!$C$13 -> 7.1e-05 | E38: Section 3.2.2.2
A39: Skin Loading | B39: Loading
B40: Central | C40: =C36/C$11 -> 9.433962264e-09 | D40: mg/cm2 | E40: Eq
B41: Lower | C41: =C37/C$11 -> 5.660377358e-09 | E41: Eq
B42: Upper | C42: =C38/C$11 -> 1.339622642e-08 | E42: Eq
A43: Proportion absorbed over exposure period, Te | B43: Prop | C43: 1-exp(-ka Te)
B44: Central | C44: =1-EXP(-C36 *$C$13) -> 0.001199280288 | D44: hour-1 | E44: Eq
B45: Lower | C45: =1-EXP(-C37 *$C$13) -> 0.0007197408622 | E45: Eq
B46: Upper | C46: =1-EXP(-C38 *$C$13) -> 0.001702549016 | E46: Eq
A47: Absorbed Dose | B47: Dose | C47: Amnt × Prop ÷ BW
B48: Central | C48: =C32*C44/$C$14 -> 0.0001262079489 | D48: mg/kg bw | E48: Eq
B49: Lower | C49: =C33*C45/$C$14 -> 7.574294256e-05 | E49: Eq
B50: Upper | C50: =C34*C46/$C$14 -> 0.0001791701418 | E50: Eq
A52: Note 1: The method of Durkin et al. (1995, p. 68, equation 4) is used to calculate the transfer rate (Tr) in units of µg/(cm2 hr) based on the dislodgeable residue (Dr) in units of μg/cm2. This is converted to units of mg/(cm2 hr)) by dividing by 1000 µg/mg.

Sheet D03a
A1: Consumption of Fruit by a Adult Female, Acute exposure.
A2: Short Title | B2: Contaminated Fruit | E2: FdPropBwV6
A3: Receptor | B3: Adult Female
A4: Duration | B4: Acute | E4: Scenario parameter
A5: Material consumed | B5: Fruit
A6: Parameter/Assumption | B6: Code / Range | C6: Equation/ Value | D6: Units | E6: Reference/Designation
A7: Commodity
A8: Concentration on vegetation | B8: Conc
B9: Central | C9: =B05a!Acute_C -> 7 | D9: mg/kg food | E9: ='B05a'!Acute_C
B10: Lower | C10: =B05a!Acute_L -> 3.2 | E10: ='B05a'!Acute_L
B11: Upper | C11: =B05a!Acute_U -> 15 | E11: ='B05a'!Acute_U
A12: Receptor
A13: Amount consumed per day per unit body weight | B13: Amnt
B14: Central | C14: ='A03'!$E$6 -> 0.00168 | D14: kg food/kg BW per day | E14: U.S. EPA/ORD 1996
B15: Lower | C15: ='A03'!$E$7 -> 0.00168 | E15: U.S. EPA/ORD 1996
B16: Upper | C16: ='A03'!$E$8 -> 0.01244 | E16: U.S. EPA/ORD 1996
A17: Estimate
A18: Dose | B18: Dose | C18: Conc × Amnt
B19: Central | C19: =C14*C9 -> 0.01176 | D19: mg/kg bw | E19: Eq
B20: Lower | C20: =C15*C10 -> 0.005376 | E20: Eq
B21: Upper | C21: =C16*C11 -> 0.1866 | E21: Eq

Sheet D03b
A1: Consumption of Vegetation by a Adult Female, Acute exposure.
A2: Short Title | B2: Contaminated Vegetation | E2: FdPropBwV6
A3: Receptor | B3: Adult Female
A4: Duration | B4: Acute | E4: Scenario parameter
A5: Material consumed | B5: Vegetation
A6: Parameter/Assumption | B6: Code / Range | C6: Equation/ Value | D6: Units | E6: Reference/Designation
A7: Commodity
A8: Concentration on vegetation | B8: Conc
B9: Central | C9: =B05b!Acute_C -> 45 | D9: mg/kg food | E9: ='B05b'!Acute_C
B10: Lower | C10: =B05b!Acute_L -> 15 | E10: ='B05b'!Acute_L
B11: Upper | C11: =B05b!Acute_U -> 135 | E11: ='B05b'!Acute_U
A12: Receptor
A13: Amount consumed per day per unit body weight | B13: Amnt
B14: Central | C14: ='A03'!$E$13 -> 0.0036 | D14: kg food/kg BW per day | E14: U.S. EPA/ORD 1996
B15: Lower | C15: ='A03'!$E$14 -> 0.00075 | E15: U.S. EPA/ORD 1996
B16: Upper | C16: ='A03'!$E$15 -> 0.01 | E16: U.S. EPA/ORD 1996
A17: Estimate
A18: Dose | B18: Dose | C18: Conc × Amnt
B19: Central | C19: =C14*C9 -> 0.162 | D19: mg/kg bw | E19: Eq
B20: Lower | C20: =C15*C10 -> 0.01125 | E20: Eq
B21: Upper | C21: =C16*C11 -> 1.35 | E21: Eq

Sheet D04a
A1: Consumption of Fruit by a Adult Female, Chronic exposure.
A2: Short Title | B2: Contaminated Fruit | E2: FdPropBwV6
A3: Receptor | B3: Adult Female
A4: Duration | B4: Chronic | E4: Scenario parameter
A5: Material consumed | B5: Fruit
A6: Parameter/Assumption | B6: Code / Range | C6: Equation/ Value | D6: Units | E6: Reference/Designation
A7: Commodity
A8: Concentration on vegetation | B8: Conc
B9: Central | C9: =B05a!Chronic_C -> 0.8973083336 | D9: mg/kg food | E9: ='B05a'!Chronic_C
B10: Lower | C10: =B05a!Chronic_L -> 0.3077655495 | E10: ='B05a'!Chronic_L
B11: Upper | C11: =B05a!Chronic_U -> 5.163211312 | E11: ='B05a'!Chronic_U
A12: Receptor
A13: Amount consumed per day per unit body weight | B13: Amnt
B14: Central | C14: ='A03'!$E$6 -> 0.00168 | D14: kg food/kg BW per day | E14: U.S. EPA/ORD 1996
B15: Lower | C15: ='A03'!$E$7 -> 0.00168 | E15: U.S. EPA/ORD 1996
B16: Upper | C16: ='A03'!$E$8 -> 0.01244 | E16: U.S. EPA/ORD 1996
A17: Estimate
A18: Dose | B18: Dose | C18: Conc × Amnt
B19: Central | C19: =C14*C9 -> 0.001507478 | D19: mg/kg bw | E19: Eq
B20: Lower | C20: =C15*C10 -> 0.0005170461232 | E20: Eq
B21: Upper | C21: =C16*C11 -> 0.06423034873 | E21: Eq

Sheet D04b
A1: Consumption of Vegetation by a Adult Female, Chronic exposure.
A2: Short Title | B2: Contaminated Vegetation | E2: FdPropBwV6
A3: Receptor | B3: Adult Female
A4: Duration | B4: Chronic | E4: Scenario parameter
A5: Material consumed | B5: Vegetation
A6: Parameter/Assumption | B6: Code / Range | C6: Equation/ Value | D6: Units | E6: Reference/Designation
A7: Commodity
A8: Concentration on vegetation | B8: Conc
B9: Central | C9: =B05b!Chronic_C -> 5.768410716 | D9: mg/kg food | E9: ='B05b'!Chronic_C
B10: Lower | C10: =B05b!Chronic_L -> 1.442651013 | E10: ='B05b'!Chronic_L
B11: Upper | C11: =B05b!Chronic_U -> 46.46890181 | E11: ='B05b'!Chronic_U
A12: Receptor
A13: Amount consumed per day per unit body weight | B13: Amnt
B14: Central | C14: ='A03'!$E$13 -> 0.0036 | D14: kg food/kg BW per day | E14: U.S. EPA/ORD 1996
B15: Lower | C15: ='A03'!$E$14 -> 0.00075 | E15: U.S. EPA/ORD 1996
B16: Upper | C16: ='A03'!$E$15 -> 0.01 | E16: U.S. EPA/ORD 1996
A17: Estimate
A18: Dose | B18: Dose | C18: Conc × Amnt
B19: Central | C19: =C14*C9 -> 0.02076627858 | D19: mg/kg bw | E19: Eq
B20: Lower | C20: =C15*C10 -> 0.00108198826 | E20: Eq
B21: Upper | C21: =C16*C11 -> 0.4646890181 | E21: Eq

Sheet D05
A1: Consumption of contaminated water by Child, Accidental Spill
A2: Short Title | B2: Accidental Spill | E2: WatAmntV6
A3: Receptor | B3: Child
A4: Duration | B4: Acute | E4: Scenario parameter
A5: Parameter/Assumption | B5: Code / Range | C5: Equation/ Value | D5: Units | E5: Reference/Designation
A6: Concentration in water | B6: ConcWat
B7: Central | C7: =B04b!Acute_C -> 1.514 | D7: mg/L | E7: ='B04b'!Acute_C
B8: Lower | C8: =B04b!Acute_L -> 0.09084 | E8: ='B04b'!Acute_L
B9: Upper | C9: =B04b!Acute_U -> 18.168 | E9: ='B04b'!Acute_U
A10: Receptor
A11: Amount of water consumed in one day | B11: Amnt
B12: Central | C12: ='A03'!$E$36 -> 1 | D12: liters/day | E12: U.S. EPA/ORD 1996
B13: Lower | C13: ='A03'!$E$37 -> 0.61 | E13: U.S. EPA/ORD 1996
B14: Upper | C14: ='A03'!$E$38 -> 1.5 | E14: U.S. EPA/ORD 1996
A15: Body weight | B15: BW | C15: =A02a!$C$28 -> 13.3 | D15: kg | E15: U.S. EPA/ORD 1996
A16: Dose | B16: Dose | C16: ConcWat × Amnt ÷ BW
B17: Central | C17: =C7*C12/C$15 -> 0.1138345865 | D17: mg/kg | E17: Eq
B18: Lower | C18: =C8*C13/C$15 -> 0.004166345865 | D18: mg/kg | E18: Eq
B19: Upper | C19: =C9*C14/C$15 -> 2.049022556 | D19: mg/kg | E19: Eq

Sheet D06
A1: Consumption of contaminated water by Child, Peak Conentrations
A2: Short Title | B2: Peak Conentrations | E2: WatAmntV6
A3: Receptor | B3: Child
A4: Duration | B4: Acute | E4: Scenario parameter
A5: Parameter/Assumption | B5: Code / Range | C5: Equation/ Value | D5: Units | E5: Reference/Designation
A6: Concentration in water | B6: ConcWat
B7: Central | C7: =B04a!Acute_C -> 0.011 | D7: mg/L | E7: ='B04a'!Acute_C
B8: Lower | C8: =B04a!Acute_L -> 0.001 | E8: ='B04a'!Acute_L
B9: Upper | C9: =B04a!Acute_U -> 0.18 | E9: ='B04a'!Acute_U
A10: Receptor
A11: Amount of water consumed in one day | B11: Amnt
B12: Central | C12: ='A03'!$E$36 -> 1 | D12: liters/day | E12: U.S. EPA/ORD 1996
B13: Lower | C13: ='A03'!$E$37 -> 0.61 | E13: U.S. EPA/ORD 1996
B14: Upper | C14: ='A03'!$E$38 -> 1.5 | E14: U.S. EPA/ORD 1996
A15: Body weight | B15: BW | C15: =A02a!$C$28 -> 13.3 | D15: kg | E15: U.S. EPA/ORD 1996
A16: Dose | B16: Dose | C16: ConcWat × Amnt ÷ BW
B17: Central | C17: =C7*C12/C$15 -> 0.0008270676692 | D17: mg/kg | E17: Eq
B18: Lower | C18: =C8*C13/C$15 -> 4.586466165e-05 | D18: mg/kg | E18: Eq
B19: Upper | C19: =C9*C14/C$15 -> 0.02030075188 | D19: mg/kg | E19: Eq

Sheet D07
A1: Consumption of contaminated water by Adult Male, Longer-term Conentrations
A2: Short Title | B2: Longer-term Conentrations | E2: WatAmntV6
A3: Receptor | B3: Adult Male
A4: Duration | B4: Chronic | E4: Scenario parameter
A5: Parameter/Assumption | B5: Code / Range | C5: Equation/ Value | D5: Units | E5: Reference/Designation
A6: Concentration in water | B6: ConcWat
B7: Central | C7: =B04a!Chronic_C -> 0.00085 | D7: mg/L | E7: ='B04a'!Chronic_C
B8: Lower | C8: =B04a!Chronic_L -> 9e-05 | E8: ='B04a'!Chronic_L
B9: Upper | C9: =B04a!Chronic_U -> 0.01 | E9: ='B04a'!Chronic_U
A10: Receptor
A11: Amount of water consumed in one day | B11: Amnt
B12: Central | C12: ='A03'!$E$31 -> 2 | D12: liters/day | E12: U.S. EPA/ORD 1996
B13: Lower | C13: ='A03'!$E$32 -> 1.4 | E13: U.S. EPA/ORD 1996
B14: Upper | C14: ='A03'!$E$33 -> 2.4 | E14: U.S. EPA/ORD 1996
A15: Body weight | B15: BW | C15: =A02a!$C$8 -> 70 | D15: kg | E15: ICRP 1975
A16: Dose | B16: Dose | C16: ConcWat × Amnt ÷ BW
B17: Central | C17: =C7*C12/C$15 -> 2.428571429e-05 | D17: mg/kg | E17: Eq
B18: Lower | C18: =C8*C13/C$15 -> 1.8e-06 | D18: mg/kg | E18: Eq
B19: Upper | C19: =C9*C14/C$15 -> 0.0003428571429 | D19: mg/kg | E19: Eq

Sheet D08a
A1: Consumption of Contaminated Fish (Accidental Spill), Adult Male, acute exposure
A2: Short Title | B2: Fish consumption | E2: FishAmntV6
A3: Receptor | B3: Adult Male
A4: Duration | B4: acute
A5: Parameter/Assumption | B5: Code / Range | C5: Equation/ Value | D5: Units | E5: Reference/Designation
A6: Water
A7: Concentration in water | B7: ConcWat | C7: ApR × WCR
B8: Central | C8: =B04b!Acute_C -> 1.514 | D8: mg/L | E8: ='B04b'!Acute_C
B9: Lower | C9: =B04b!Acute_L -> 0.09084 | E9: ='B04b'!Acute_L
B10: Upper | C10: =B04b!Acute_U -> 18.168 | E10: ='B04b'!Acute_U
A11: Fish
A12: Bioconcentration factor | B12: BCF
B13: Central | C13: ='B01'!$C$4 -> 1 | D13: L/kg | E13: Section 3.2.3.5.
B14: Lower | C14: ='B01'!$C$4 -> 1 | E14: Section 3.2.3.5.
B15: Upper | C15: ='B01'!$C$4 -> 1 | E15: Section 3.2.3.5.
A16: Concentration in fish | B16: ConcFish | C16: ConcWat × BCF
B17: Central | C17: =C8*C13 -> 1.514 | D17: mg/kg | E17: Eq
B18: Lower | C18: =C9*C14 -> 0.09084 | E18: Eq
B19: Upper | C19: =C10*C15 -> 18.168 | E19: Eq
A20: Receptor
A21: Amount of fish consumed | B21: Amnt
B22: Central | C22: ='A03'!$E$20 -> 0.158 | D22: kg/day | E22: Ruffle et al. 1994
B23: Lower | C23: ='A03'!$E$20 -> 0.158 | E23: Ruffle et al. 1994
B24: Upper | C24: ='A03'!$E$20 -> 0.158 | E24: Ruffle et al. 1994
A25: Toxic Equivalency Factor for formulation: (See risk assessment if this has a value other than 1.) | B25: TEF
B26: Central | C26: ='A01'!C$35 -> 1 | D26: Unitless | E26: Worksheet A01
B27: Lower | C27: ='A01'!C$36 -> 1 | E27: Worksheet A01
B28: Upper | C28: ='A01'!C$37 -> 1 | E28: Worksheet A01
A29: Body weight | B29: BW | C29: =A02a!$C$8 -> 70 | D29: kg | E29: ICRP 1975
A30: Dose | B30: Dose | C30: ConcFish× Amnt x TEF ÷ BW
B31: Central | C31: =C17*C22*C26/C$29 -> 0.003417314286 | D31: mg/kg | E31: Eq
B32: Lower | C32: =C18*C23*C27/C$29 -> 0.0002050388571 | D32: mg/kg | E32: Eq
B33: Upper | C33: =C19*C24*C28/C$29 -> 0.04100777143 | D33: mg/kg | E33: Eq
E34: FishAmntV6

Sheet D08b
A1: Consumption of Contaminated Fish (Accidental Spill), Subsistence Populations, acute exposure
A2: Short Title | B2: Fish consumption | E2: FishAmntV6
A3: Receptor | B3: Subsistence Populations
A4: Duration | B4: acute
A5: Parameter/Assumption | B5: Code / Range | C5: Equation/ Value | D5: Units | E5: Reference/Designation
A6: Water
A7: Concentration in water | B7: ConcWat | C7: ApR × WCR
B8: Central | C8: =B04b!Acute_C -> 1.514 | D8: mg/L | E8: ='B04b'!Acute_C
B9: Lower | C9: =B04b!Acute_L -> 0.09084 | E9: ='B04b'!Acute_L
B10: Upper | C10: =B04b!Acute_U -> 18.168 | E10: ='B04b'!Acute_U
A11: Fish
A12: Bioconcentration factor | B12: BCF
B13: Central | C13: ='B01'!$C$4 -> 1 | D13: L/kg | E13: Section 3.2.3.5.
B14: Lower | C14: ='B01'!$C$4 -> 1 | E14: Section 3.2.3.5.
B15: Upper | C15: ='B01'!$C$4 -> 1 | E15: Section 3.2.3.5.
A16: Concentration in fish | B16: ConcFish | C16: ConcWat × BCF
B17: Central | C17: =C8*C13 -> 1.514 | D17: mg/kg | E17: Eq
B18: Lower | C18: =C9*C14 -> 0.09084 | E18: Eq
B19: Upper | C19: =C10*C15 -> 18.168 | E19: Eq
A20: Receptor
A21: Amount of fish consumed | B21: Amnt
B22: Central | C22: ='A03'!$E$35 -> 0.77 | D22: kg/day | E22: U.S. EPA/ORD 1996
B23: Lower | C23: ='A03'!$E$35 -> 0.77 | E23: U.S. EPA/ORD 1996
B24: Upper | C24: ='A03'!$E$35 -> 0.77 | E24: U.S. EPA/ORD 1996
A25: Toxic Equivalency Factor for formulation: (See risk assessment if this has a value other than 1.) | B25: TEF
B26: Central | C26: ='A01'!C$35 -> 1 | D26: Unitless | E26: Worksheet A01
B27: Lower | C27: ='A01'!C$36 -> 1 | E27: Worksheet A01
B28: Upper | C28: ='A01'!C$37 -> 1 | E28: Worksheet A01
A29: Body weight | B29: BW | C29: =A02a!$C$9 -> 70 | D29: kg | E29: ICRP 1975
A30: Dose | B30: Dose | C30: ConcFish× Amnt x TEF ÷ BW
B31: Central | C31: =C17*C22*C26/C$29 -> 0.016654 | D31: mg/kg | E31: Eq
B32: Lower | C32: =C18*C23*C27/C$29 -> 0.00099924 | D32: mg/kg | E32: Eq
B33: Upper | C33: =C19*C24*C28/C$29 -> 0.199848 | D33: mg/kg | E33: Eq
E34: FishAmntV6

Sheet D09a
A1: Consumption of Contaminated Fish (Longer-term), Adult Male, chronic exposure
A2: Short Title | B2: Fish consumption | E2: FishAmntV6
A3: Receptor | B3: Adult Male
A4: Duration | B4: chronic
A5: Parameter/Assumption | B5: Code / Range | C5: Equation/ Value | D5: Units | E5: Reference/Designation
A6: Water
A7: Concentration in water | B7: ConcWat | C7: ApR × WCR
B8: Central | C8: =B04a!Chronic_C -> 0.00085 | D8: mg/L | E8: ='B04a'!Chronic_C
B9: Lower | C9: =B04a!Chronic_L -> 9e-05 | E9: ='B04a'!Chronic_L
B10: Upper | C10: =B04a!Chronic_U -> 0.01 | E10: ='B04a'!Chronic_U
A11: Fish
A12: Bioconcentration factor | B12: BCF
B13: Central | C13: ='B01'!$C$5 -> 1 | D13: L/kg | E13: Section 3.2.3.5.
B14: Lower | C14: ='B01'!$C$5 -> 1 | E14: Section 3.2.3.5.
B15: Upper | C15: ='B01'!$C$5 -> 1 | E15: Section 3.2.3.5.
A16: Concentration in fish | B16: ConcFish | C16: ConcWat × BCF
B17: Central | C17: =C8*C13 -> 0.00085 | D17: mg/kg | E17: Eq
B18: Lower | C18: =C9*C14 -> 9e-05 | E18: Eq
B19: Upper | C19: =C10*C15 -> 0.01 | E19: Eq
A20: Receptor
A21: Amount of fish consumed | B21: Amnt
B22: Central | C22: ='A03'!$E$19 -> 0.01 | D22: kg/day | E22: U.S. EPA/ORD 1996
B23: Lower | C23: ='A03'!$E$19 -> 0.01 | E23: U.S. EPA/ORD 1996
B24: Upper | C24: ='A03'!$E$19 -> 0.01 | E24: U.S. EPA/ORD 1996
A25: Toxic Equivalency Factor for formulation: (See risk assessment if this has a value other than 1.) | B25: TEF
B26: Central | C26: ='A01'!C$35 -> 1 | D26: Unitless | E26: Worksheet A01
B27: Lower | C27: ='A01'!C$36 -> 1 | E27: Worksheet A01
B28: Upper | C28: ='A01'!C$37 -> 1 | E28: Worksheet A01
A29: Body weight | B29: BW | C29: =A02a!$C$8 -> 70 | D29: kg | E29: ICRP 1975
A30: Dose | B30: Dose | C30: ConcFish× Amnt x TEF ÷ BW
B31: Central | C31: =C17*C22*C26/C$29 -> 1.214285714e-07 | D31: mg/kg | E31: Eq
B32: Lower | C32: =C18*C23*C27/C$29 -> 1.285714286e-08 | D32: mg/kg | E32: Eq
B33: Upper | C33: =C19*C24*C28/C$29 -> 1.428571429e-06 | D33: mg/kg | E33: Eq
E34: FishAmntV6

Sheet D09b
A1: Consumption of Contaminated Fish (Longer-term), Subsistence Populations, chronic exposure
A2: Short Title | B2: Fish consumption | E2: FishAmntV6
A3: Receptor | B3: Subsistence Populations
A4: Duration | B4: chronic
A5: Parameter/Assumption | B5: Code / Range | C5: Equation/ Value | D5: Units | E5: Reference/Designation
A6: Water
A7: Concentration in water | B7: ConcWat | C7: ApR × WCR
B8: Central | C8: =B04a!Chronic_C -> 0.00085 | D8: mg/L | E8: ='B04a'!Chronic_C
B9: Lower | C9: =B04a!Chronic_L -> 9e-05 | E9: ='B04a'!Chronic_L
B10: Upper | C10: =B04a!Chronic_U -> 0.01 | E10: ='B04a'!Chronic_U
A11: Fish
A12: Bioconcentration factor | B12: BCF
B13: Central | C13: ='B01'!$C$5 -> 1 | D13: L/kg | E13: Section 3.2.3.5.
B14: Lower | C14: ='B01'!$C$5 -> 1 | E14: Section 3.2.3.5.
B15: Upper | C15: ='B01'!$C$5 -> 1 | E15: Section 3.2.3.5.
A16: Concentration in fish | B16: ConcFish | C16: ConcWat × BCF
B17: Central | C17: =C8*C13 -> 0.00085 | D17: mg/kg | E17: Eq
B18: Lower | C18: =C9*C14 -> 9e-05 | E18: Eq
B19: Upper | C19: =C10*C15 -> 0.01 | E19: Eq
A20: Receptor
A21: Amount of fish consumed | B21: Amnt
B22: Central | C22: ='A03'!$E$34 -> 0.081 | D22: kg/day | E22: U.S. EPA/ORD 1996
B23: Lower | C23: ='A03'!$E$34 -> 0.081 | E23: U.S. EPA/ORD 1996
B24: Upper | C24: ='A03'!$E$34 -> 0.081 | E24: U.S. EPA/ORD 1996
A25: Toxic Equivalency Factor for formulation: (See risk assessment if this has a value other than 1.) | B25: TEF
B26: Central | C26: ='A01'!C$35 -> 1 | D26: Unitless | E26: Worksheet A01
B27: Lower | C27: ='A01'!C$36 -> 1 | E27: Worksheet A01
B28: Upper | C28: ='A01'!C$37 -> 1 | E28: Worksheet A01
A29: Body weight | B29: BW | C29: =A02a!$C$9 -> 70 | D29: kg | E29: ICRP 1975
A30: Dose | B30: Dose | C30: ConcFish× Amnt x TEF ÷ BW
B31: Central | C31: =C17*C22*C26/C$29 -> 9.835714286e-07 | D31: mg/kg | E31: Eq
B32: Lower | C32: =C18*C23*C27/C$29 -> 1.041428571e-07 | D32: mg/kg | E32: Eq
B33: Upper | C33: =C19*C24*C28/C$29 -> 1.157142857e-05 | D33: mg/kg | E33: Eq
E34: FishAmntV6

Sheet D09c
A1: Consumption of Contaminated Fish (Peak Exposure), Adult Male, acute exposure
A2: Short Title | B2: Fish consumption | E2: FishAmntV6
A3: Receptor | B3: Adult Male
A4: Duration | B4: acute
A5: Parameter/Assumption | B5: Code / Range | C5: Equation/ Value | D5: Units | E5: Reference/Designation
A6: Water
A7: Concentration in water | B7: ConcWat | C7: ApR × WCR
B8: Central | C8: =B04a!Acute_C -> 0.011 | D8: mg/L | E8: ='B04a'!Acute_C
B9: Lower | C9: =B04a!Acute_L -> 0.001 | E9: ='B04a'!Acute_L
B10: Upper | C10: =B04a!Acute_U -> 0.18 | E10: ='B04a'!Acute_U
A11: Fish
A12: Bioconcentration factor | B12: BCF
B13: Central | C13: ='B01'!$C$4 -> 1 | D13: L/kg | E13: Section 3.2.3.5.
B14: Lower | C14: ='B01'!$C$4 -> 1 | E14: Section 3.2.3.5.
B15: Upper | C15: ='B01'!$C$4 -> 1 | E15: Section 3.2.3.5.
A16: Concentration in fish | B16: ConcFish | C16: ConcWat × BCF
B17: Central | C17: =C8*C13 -> 0.011 | D17: mg/kg | E17: Eq
B18: Lower | C18: =C9*C14 -> 0.001 | E18: Eq
B19: Upper | C19: =C10*C15 -> 0.18 | E19: Eq
A20: Receptor
A21: Amount of fish consumed | B21: Amnt
B22: Central | C22: ='A03'!$E$20 -> 0.158 | D22: kg/day | E22: Ruffle et al. 1994
B23: Lower | C23: ='A03'!$E$20 -> 0.158 | E23: Ruffle et al. 1994
B24: Upper | C24: ='A03'!$E$20 -> 0.158 | E24: Ruffle et al. 1994
A25: Toxic Equivalency Factor for formulation: (See risk assessment if this has a value other than 1.) | B25: TEF
B26: Central | C26: ='A01'!C$35 -> 1 | D26: Unitless | E26: Worksheet A01
B27: Lower | C27: ='A01'!C$36 -> 1 | E27: Worksheet A01
B28: Upper | C28: ='A01'!C$37 -> 1 | E28: Worksheet A01
A29: Body weight | B29: BW | C29: =A02a!$C$8 -> 70 | D29: kg | E29: ICRP 1975
A30: Dose | B30: Dose | C30: ConcFish× Amnt x TEF ÷ BW
B31: Central | C31: =C17*C22*C26/C$29 -> 2.482857143e-05 | D31: mg/kg | E31: Eq
B32: Lower | C32: =C18*C23*C27/C$29 -> 2.257142857e-06 | D32: mg/kg | E32: Eq
B33: Upper | C33: =C19*C24*C28/C$29 -> 0.0004062857143 | D33: mg/kg | E33: Eq
E34: FishAmntV6

Sheet D09d
A1: Consumption of Contaminated Fish (Peak Exposure), Subsistence Populations, acute exposure
A2: Short Title | B2: Fish consumption | E2: FishAmntV6
A3: Receptor | B3: Subsistence Populations
A4: Duration | B4: acute
A5: Parameter/Assumption | B5: Code / Range | C5: Equation/ Value | D5: Units | E5: Reference/Designation
A6: Water
A7: Concentration in water | B7: ConcWat | C7: ApR × WCR
B8: Central | C8: =B04a!Acute_C -> 0.011 | D8: mg/L | E8: ='B04a'!Acute_C
B9: Lower | C9: =B04a!Acute_L -> 0.001 | E9: ='B04a'!Acute_L
B10: Upper | C10: =B04a!Acute_U -> 0.18 | E10: ='B04a'!Acute_U
A11: Fish
A12: Bioconcentration factor | B12: BCF
B13: Central | C13: ='B01'!$C$4 -> 1 | D13: L/kg | E13: Section 3.2.3.5.
B14: Lower | C14: ='B01'!$C$4 -> 1 | E14: Section 3.2.3.5.
B15: Upper | C15: ='B01'!$C$4 -> 1 | E15: Section 3.2.3.5.
A16: Concentration in fish | B16: ConcFish | C16: ConcWat × BCF
B17: Central | C17: =C8*C13 -> 0.011 | D17: mg/kg | E17: Eq
B18: Lower | C18: =C9*C14 -> 0.001 | E18: Eq
B19: Upper | C19: =C10*C15 -> 0.18 | E19: Eq
A20: Receptor
A21: Amount of fish consumed | B21: Amnt
B22: Central | C22: ='A03'!$E$35 -> 0.77 | D22: kg/day | E22: U.S. EPA/ORD 1996
B23: Lower | C23: ='A03'!$E$35 -> 0.77 | E23: U.S. EPA/ORD 1996
B24: Upper | C24: ='A03'!$E$35 -> 0.77 | E24: U.S. EPA/ORD 1996
A25: Toxic Equivalency Factor for formulation: (See risk assessment if this has a value other than 1.) | B25: TEF
B26: Central | C26: ='A01'!C$35 -> 1 | D26: Unitless | E26: Worksheet A01
B27: Lower | C27: ='A01'!C$36 -> 1 | E27: Worksheet A01
B28: Upper | C28: ='A01'!C$37 -> 1 | E28: Worksheet A01
A29: Body weight | B29: BW | C29: =A02a!$C$9 -> 70 | D29: kg | E29: ICRP 1975
A30: Dose | B30: Dose | C30: ConcFish× Amnt x TEF ÷ BW
B31: Central | C31: =C17*C22*C26/C$29 -> 0.000121 | D31: mg/kg | E31: Eq
B32: Lower | C32: =C18*C23*C27/C$29 -> 1.1e-05 | D32: mg/kg | E32: Eq
B33: Upper | C33: =C19*C24*C28/C$29 -> 0.00198 | D33: mg/kg | E33: Eq
E34: FishAmntV6

Sheet D11
A1: Swimming Exposure Assessment Using Zero-Order Absorption, Adult Female, Surface Area, Whole body, for 60 minute(s)
A2: Short Title | B2: Swimming | E2: DrmZrSwm
A3: Receptor | B3: Adult Female
A4: Duration | B4: Acute
A5: Surface Contaminated | B5: Surface Area, Whole body
A6: Parameter/Assumption | B6: Code / Range | C6: Equation/ Value | D6: Units | E6: Reference/Designation
A7: Application Rate | B7: ApRt | C7: ='A01'!ApRt_C -> 1 | D7: lb/acre | E7: Worksheet A01
A8: Surface Area | B8: SA | C8: =A02a!$C$7 -> 16900 | D8: cm2 | E8: U.S. EPA/ORD 1997
A9: Duration of Exposure | B9: T_min | C9: ='A01'!C$29 -> 60 | D9: minutes | E9: Worksheet A01
B10: T_hr | C10: =C9/60 -> 1 | D10: hours | E10: Eq
A11: Body weight | B11: BW | C11: =A02a!$C$4 -> 64 | D11: kg | E11: U.S. EPA/ORD 1985
A12: Water contamination rate | B12: WCR
B13: Central | C13: =B04Rt!$C$4 -> 0.011 | D13: mg/L per lb/acre | E13: Table 14
B14: Lower | C14: =B04Rt!$C$5 -> 0.001 | E14: Table 14
B15: Upper | C15: =B04Rt!$C$6 -> 0.18 | E15: Table 14
A16: Concentration in water in mg/mL | B16: ConcWat | C16: ApR × WCR / 1000
B17: Central | C17: =C$7*C13/1000 -> 1.1e-05 | D17: mg/mL | E17: Eq
B18: Lower | C18: =C$7*C14/1000 -> 1e-06 | E18: Eq
B19: Upper | C19: =C$7*C15/1000 -> 0.00018 | E19: Eq
A20: Toxic Equivalency Factor for formulation: (See risk assessment if this has a value other than 1.) | B20: TEF
B21: Central | C21: ='A01'!C$35 -> 1 | D21: Unitless | E21: Worksheet A01
B22: Lower | C22: ='A01'!C$36 -> 1 | E22: Worksheet A01
B23: Upper | C23: ='A01'!C$37 -> 1 | E23: Worksheet A01
A24: Dermal permeability | B24: Kp
B25: Central | C25: ='B01'!$C$14 -> 5.7e-05 | D25: cm/hour | E25: Section 3.2.2.2
B26: Lower | C26: ='B01'!$C$15 -> 2.8e-05 | E26: Section 3.2.2.2
B27: Upper | C27: ='B01'!$C$16 -> 0.00011 | E27: Section 3.2.2.2
A28: Absorbed Dose | B28: Dose | C28: Kp × Conc × T_hr × SA × TEF ÷ BW
B29: Central | C29: =C25*C17*C$10*C$8*C21/C$11 -> 1.655671875e-07 | D29: mg/kg
B30: Lower | C30: =C26*C18*C$10*C$8*C22/C$11 -> 7.39375e-09 | D30: mg/kg
B31: Upper | C31: =C27*C19*C$10*C$8*C23/C$11 -> 5.2284375e-06 | D31: mg/kg

Sheet E01
A1: Worksheet E01: Summary of Worker Exposure Assessments
A2: Application Rate: | B2: ='A01'!ApRt_C -> 1 | C2: lb a.e./acre | F2: E01aV5-3Wrkr
A3: Scenario | B3: Receptor | C3: mg/kg/day or mg/kg/event | F3: Detail Worksheet
C4: Central | D4: Lower | E4: Upper
A5: Accidental/Incidental Exposures
A6: Contaminated Gloves, 1 min. | B6: Worker | C6: ='C02a'!Dose_C -> 4.56e-05 | D6: ='C02a'!Dose_L -> 6.72e-06 | E6: ='C02a'!Dose_U -> 0.000528 | F6: C02a
A7: Contaminated Gloves, 1 hour | B7: Worker | C7: ='C02b'!Dose_C -> 0.002736 | D7: ='C02b'!Dose_L -> 0.0004032 | E7: ='C02b'!Dose_U -> 0.03168 | F7: C02b
A8: Spill on Hands, 1 hour | B8: Worker | C8: ='C03a'!Dose_C -> 1.919952001e-05 | D8: ='C03a'!Dose_L -> 3.455948161e-06 | E8: ='C03a'!Dose_U -> 0.0001635781929 | F8: C03a
A9: Spill on lower legs, 1 hour | B9: Worker | C9: ='C03b'!Dose_C -> 4.731310288e-05 | D9: ='C03b'!Dose_L -> 8.516443681e-06 | E9: ='C03b'!Dose_U -> 0.0004031034039 | F9: C03b
A10: General Exposures
B11: Backpack Applications: | C11: ='C01a'!Dose_C -> 0.013125 | D11: ='C01a'!Dose_L -> 0.00045 | E11: ='C01a'!Dose_U -> 0.08 | F11: C01a
B12: Ground Broadcast Applications: | C12: ='C01b'!Dose_C -> 0.0224 | D12: ='C01b'!Dose_L -> 0.00066 | E12: ='C01b'!Dose_U -> 0.1512 | F12: C01b
B13: Aerial Applications: | C13: ='C01c'!Dose_C -> 0.0147 | D13: ='C01c'!Dose_L -> 0.00024 | E13: ='C01c'!Dose_U -> 0.08 | F13: C01c

Sheet E02
A1: Worksheet E01: Summary of Worker Hazard Quotients (Toxicity)
A2: Application Rate: | B2: ='A01'!ApRt_C -> 1 | C2: lb a.e./acre | F2: E01aV5-3Wrkr
A3: Scenario | B3: Receptor | C3: Hazard Quotients | F3: Toxicity Value
C4: Central | D4: Lower | E4: Upper
A5: Accidental/Incidental Exposures
A6: Contaminated Gloves, 1 min. | B6: Worker | C6: ='C02a'!$C$24/$F$6 -> 2.28e-05 | D6: ='C02a'!$C$25/$F$6 -> 3.36e-06 | E6: ='C02a'!$C$26/$F$6 -> 0.000264 | F6: ='B02'!$E$4 -> 2
A7: Contaminated Gloves, 1 hour | B7: Worker | C7: ='C02b'!$C$24/$F$7 -> 0.001368 | D7: ='C02b'!$C$25/$F$7 -> 0.0002016 | E7: ='C02b'!$C$26/$F$7 -> 0.01584 | F7: ='B02'!$E$4 -> 2
A8: Spill on Hands, 1 hour | B8: Worker | C8: ='C03a'!$C$37/$F$8 -> 9.599760004e-06 | D8: ='C03a'!$C$38/$F$8 -> 1.72797408e-06 | E8: ='C03a'!$C$39/$F$8 -> 8.178909645e-05 | F8: ='B02'!$E$4 -> 2
A9: Spill on lower legs, 1 hour | B9: Worker | C9: ='C03b'!$C$37/$F$9 -> 2.365655144e-05 | D9: ='C03b'!$C$38/$F$9 -> 4.258221841e-06 | E9: ='C03b'!$C$39/$F$9 -> 0.000201551702 | F9: ='B02'!$E$4 -> 2
A10: General Exposures
B11: Backpack Applications: | C11: ='C01a'!$C$36/$F$11 -> 0.065625 | D11: ='C01a'!$C$37/$F$11 -> 0.00225 | E11: ='C01a'!$C$38/$F$11 -> 0.4 | F11: ='B02'!$E$5 -> 0.2
B12: Ground Broadcast Applications: | C12: ='C01b'!$C$36/$F$12 -> 0.112 | D12: ='C01b'!$C$37/$F$12 -> 0.0033 | E12: ='C01b'!$C$38/$F$12 -> 0.756 | F12: ='B02'!$E$5 -> 0.2
B13: Aerial Applications: | C13: ='C01c'!$C$36/$F$13 -> 0.0735 | D13: ='C01c'!$C$37/$F$13 -> 0.0012 | E13: ='C01c'!$C$38/$F$13 -> 0.4 | F13: ='B02'!$E$5 -> 0.2

Sheet E03
A1: Worksheet E03: Summary of Exposure Assessments for the General Public
A2: Application Rate: | B2: ='A01'!ApRt_C -> 1 | C2: lb a.e./acre | F2: E03aV6
A3: Scenario | B3: Receptor | C3: mg/kg/day or mg/kg/event | F3: Detail Worksheet
C4: Central | D4: Lower | E4: Upper
A5: Accidental Acute Exposures (dose in mg/kg/event)
A6: Direct Spray of Child, whole body | B6: Child | C6: =D01a!Dose_C -> 0.0007253953988 | D6: =D01a!Dose_L -> 0.0001305724775 | E6: =D01a!Dose_U -> 0.006180303905 | F6: D01a | I6: Spray: Child
A7: Direct Spray of Woman, feet and lower legs | B7: Adult Female | C7: =D01b!Dose_C -> 7.287317816e-05 | D7: =D01b!Dose_L -> 1.311730324e-05 | E7: =D01b!Dose_U -> 0.0006208729587 | F7: D01b | I7: Spray: Woman
A8: Water consumption (spill) | B8: Child | C8: ='D05'!Dose_C -> 0.1138345865 | D8: ='D05'!Dose_L -> 0.004166345865 | E8: ='D05'!Dose_U -> 2.049022556 | F8: D05 | I8: Water: Child
A9: Fish consumption (spill) | B9: Adult Male | C9: =D08a!Dose_C -> 0.003417314286 | D9: =D08a!Dose_L -> 0.0002050388571 | E9: =D08a!Dose_U -> 0.04100777143 | F9: D08a | I9: Fish: Man
A10: Fish consumption (spill) | B10: Subsistence Populations | C10: =D08b!Dose_C -> 0.016654 | D10: =D08b!Dose_L -> 0.00099924 | E10: =D08b!Dose_U -> 0.199848 | F10: D08b | I10: Fish: Subsist
A11: Non-Accidental Acute Exposures (dose in mg/kg/event)
A12: Vegetation Contact, shorts and T-shirt | B12: Adult Female | C12: ='D02'!Dose_C -> 0.0001262079489 | D12: ='D02'!Dose_L -> 7.574294256e-05 | E12: ='D02'!Dose_U -> 0.0001791701418 | F12: D02 | I12: Contact: Female
A13: Contaminated Fruit | B13: Adult Female | C13: =D03a!Dose_C -> 0.01176 | D13: =D03a!Dose_L -> 0.005376 | E13: =D03a!Dose_U -> 0.1866 | F13: D03a | I13: Fruit: Female
A14: Contaminated Vegetation | B14: Adult Female | C14: =D03b!Dose_C -> 0.162 | D14: =D03b!Dose_L -> 0.01125 | E14: =D03b!Dose_U -> 1.35 | F14: D03b | I14: Veg: Female
A15: Swimming, one hour | B15: Adult Female | C15: ='D11'!Dose_C -> 1.655671875e-07 | D15: ='D11'!Dose_L -> 7.39375e-09 | E15: ='D11'!Dose_U -> 5.2284375e-06 | F15: D11 | I15: Swim: Female
A16: Water consumption | B16: Child | C16: ='D06'!Dose_C -> 0.0008270676692 | D16: ='D06'!Dose_L -> 4.586466165e-05 | E16: ='D06'!Dose_U -> 0.02030075188 | F16: D06 | I16: Water: Child
A17: Fish consumption | B17: Adult Male | C17: =D09c!Dose_C -> 2.482857143e-05 | D17: =D09c!Dose_L -> 2.257142857e-06 | E17: =D09c!Dose_U -> 0.0004062857143 | F17: D09c | I17: Fish: Male
A18: Fish consumption | B18: Subsistence Populations | C18: =D09d!Dose_C -> 0.000121 | D18: =D09d!Dose_L -> 1.1e-05 | E18: =D09d!Dose_U -> 0.00198 | F18: D09d | I18: Fish: Subsist
A19: Chronic/Longer Term Exposures (dose in mg/kg/day)
A20: Contaminated Fruit | B20: Adult Female | C20: =D04a!Dose_C -> 0.001507478 | D20: =D04a!Dose_L -> 0.0005170461232 | E20: =D04a!Dose_U -> 0.06423034873 | F20: D04a | I20: Fruit: Female
A21: Contaminated Vegetation | B21: Adult Female | C21: =D04b!Dose_C -> 0.02076627858 | D21: =D04b!Dose_L -> 0.00108198826 | E21: =D04b!Dose_U -> 0.4646890181 | F21: D04b | I21: Veg: Female
A22: Water consumption | B22: Adult Male | C22: ='D07'!Dose_C -> 2.428571429e-05 | D22: ='D07'!Dose_L -> 1.8e-06 | E22: ='D07'!Dose_U -> 0.0003428571429 | F22: D07 | I22: Water: Male
A23: Fish consumption | B23: Adult Male | C23: =D09a!Dose_C -> 1.214285714e-07 | D23: =D09a!Dose_L -> 1.285714286e-08 | E23: =D09a!Dose_U -> 1.428571429e-06 | F23: D09a | I23: Fish: Male
A24: Fish consumption | B24: Subsistence Populations | C24: =D09b!Dose_C -> 9.835714286e-07 | D24: =D09b!Dose_L -> 1.041428571e-07 | E24: =D09b!Dose_U -> 1.157142857e-05 | F24: D09b | I24: Fish: Subsist

Sheet E04
A1: Worksheet E03: Summary of Hazard Quotients (Toxicity) for the General Public
A2: Application Rate: | B2: ='A01'!ApRt_C -> 1 | C2: lb a.e./acre | F2: E03aV6
A3: Scenario | B3: Receptor | C3: Hazard Quotients | F3: Toxicity Value
C4: Central | D4: Lower | E4: Upper
A5: Accidental Acute Exposures (dose in mg/kg/event)
A6: Direct Spray of Child, whole body | B6: Child | C6: =D01a!$C$37/$F$6 -> 0.0003626976994 | D6: =D01a!$C$38/$F$6 -> 6.528623875e-05 | E6: =D01a!$C$39/$F$6 -> 0.003090151952 | F6: ='B02'!$E$4 -> 2 | I6: Spray: Child
A7: Direct Spray of Woman, feet and lower legs | B7: Adult Female | C7: =D01b!$C$37/$F$7 -> 3.643658908e-05 | D7: =D01b!$C$38/$F$7 -> 6.55865162e-06 | E7: =D01b!$C$39/$F$7 -> 0.0003104364794 | F7: ='B02'!$E$4 -> 2 | I7: Spray: Woman
A8: Water consumption (spill) | B8: Child | C8: ='D05'!$C$17/$F$8 -> 0.05691729323 | D8: ='D05'!$C$18/$F$8 -> 0.002083172932 | E8: ='D05'!$C$19/$F$8 -> 1.024511278 | F8: ='B02'!$E$4 -> 2 | I8: Water: Child
A9: Fish consumption (spill) | B9: Adult Male | C9: =D08a!$C$31/$F$9 -> 0.001708657143 | D9: =D08a!$C$32/$F$9 -> 0.0001025194286 | E9: =D08a!$C$33/$F$9 -> 0.02050388571 | F9: ='B02'!$E$4 -> 2 | I9: Fish: Man
A10: Fish consumption (spill) | B10: Subsistence Populations | C10: =D08b!$C$31/$F$10 -> 0.008327 | D10: =D08b!$C$32/$F$10 -> 0.00049962 | E10: =D08b!$C$33/$F$10 -> 0.099924 | F10: ='B02'!$E$4 -> 2 | I10: Fish: Subsist
A11: Non-Accidental Acute Exposures (dose in mg/kg/event)
A12: Vegetation Contact, shorts and T-shirt | B12: Adult Female | C12: ='D02'!$C$48/$F$12 -> 6.310397445e-05 | D12: ='D02'!$C$49/$F$12 -> 3.787147128e-05 | E12: ='D02'!$C$50/$F$12 -> 8.95850709e-05 | F12: ='B02'!$E$4 -> 2 | I12: Contact: Female
A13: Contaminated Fruit | B13: Adult Female | C13: =D03a!$C$19/$F$13 -> 0.00588 | D13: =D03a!$C$20/$F$13 -> 0.002688 | E13: =D03a!$C$21/$F$13 -> 0.0933 | F13: ='B02'!$E$4 -> 2 | I13: Fruit: Female
A14: Contaminated Vegetation | B14: Adult Female | C14: =D03b!$C$19/$F$14 -> 0.081 | D14: =D03b!$C$20/$F$14 -> 0.005625 | E14: =D03b!$C$21/$F$14 -> 0.675 | F14: ='B02'!$E$4 -> 2 | I14: Veg: Female
A15: Swimming, one hour | B15: Adult Female | C15: ='D11'!$C$29/$F$15 -> 8.278359375e-08 | D15: ='D11'!$C$30/$F$15 -> 3.696875e-09 | E15: ='D11'!$C$31/$F$15 -> 2.61421875e-06 | F15: ='B02'!$E$4 -> 2 | I15: Swim: Female
A16: Water consumption | B16: Child | C16: ='D06'!$C$17/$F$16 -> 0.0004135338346 | D16: ='D06'!$C$18/$F$16 -> 2.293233083e-05 | E16: ='D06'!$C$19/$F$16 -> 0.01015037594 | F16: ='B02'!$E$4 -> 2 | I16: Water: Child
A17: Fish consumption | B17: Adult Male | C17: =D09c!$C$31/$F$17 -> 1.241428571e-05 | D17: =D09c!$C$32/$F$17 -> 1.128571429e-06 | E17: =D09c!$C$33/$F$17 -> 0.0002031428571 | F17: ='B02'!$E$4 -> 2 | I17: Fish: Male
A18: Fish consumption | B18: Subsistence Populations | C18: =D09d!$C$31/$F$18 -> 6.05e-05 | D18: =D09d!$C$32/$F$18 -> 5.5e-06 | E18: =D09d!$C$33/$F$18 -> 0.00099 | F18: ='B02'!$E$4 -> 2 | I18: Fish: Subsist
A19: Chronic/Longer Term Exposures (dose in mg/kg/day)
A20: Contaminated Fruit | B20: Adult Female | C20: =D04a!$C$19/$F$20 -> 0.007537390002 | D20: =D04a!$C$20/$F$20 -> 0.002585230616 | E20: =D04a!$C$21/$F$20 -> 0.3211517436 | F20: ='B02'!$E$5 -> 0.2 | I20: Fruit: Female
A21: Contaminated Vegetation | B21: Adult Female | C21: =D04b!$C$19/$F$21 -> 0.1038313929 | D21: =D04b!$C$20/$F$21 -> 0.0054099413 | E21: =D04b!$C$21/$F$21 -> 2.323445091 | F21: ='B02'!$E$5 -> 0.2 | I21: Veg: Female
A22: Water consumption | B22: Adult Male | C22: ='D07'!$C$17/$F$22 -> 0.0001214285714 | D22: ='D07'!$C$18/$F$22 -> 9e-06 | E22: ='D07'!$C$19/$F$22 -> 0.001714285714 | F22: ='B02'!$E$5 -> 0.2 | I22: Water: Male
A23: Fish consumption | B23: Adult Male | C23: =D09a!$C$31/$F$23 -> 6.071428571e-07 | D23: =D09a!$C$32/$F$23 -> 6.428571429e-08 | E23: =D09a!$C$33/$F$23 -> 7.142857143e-06 | F23: ='B02'!$E$5 -> 0.2 | I23: Fish: Male
A24: Fish consumption | B24: Subsistence Populations | C24: =D09b!$C$31/$F$24 -> 4.917857143e-06 | D24: =D09b!$C$32/$F$24 -> 5.207142857e-07 | E24: =D09b!$C$33/$F$24 -> 5.785714286e-05 | F24: ='B02'!$E$5 -> 0.2 | I24: Fish: Subsist

Sheet F01a
A1: Direct spray of Mammal, small assuming first-order absorption kinetics with spray of 0.5 of the body surface
A2: Short Title | B2: Direct spray, first-order absorption | E2: DrmFOA_Allo
A3: Receptor | B3: Mammal, small
A4: Duration | B4: Acute
A5: Parameter/Assumption | B5: Code / Range | C5: Equation/ Value | D5: Units | E5: Reference/Designation
A6: Application rate, lb/acre | B6: ApRt | C6: ='A01'!ApRt_C -> 1 | D6: lb/acre | E6: Worksheet A01
A7: Duration of Exposure | B7: T | C7: 24 | D7: hours | E7: Scenario parameter
A8: Body weight | B8: BW | C8: =A02b!$C$71 -> 0.02 | D8: kg | E8: Default
A9: Allometric coefficients for surface area
B10: alpha | C10: =A02b!$C$77 -> 0.11 | E10: U.S. EPA/ORD 1993
B11: beta | C11: =A02b!$C$78 -> 0.65 | E11: U.S. EPA/ORD 1993
A12: Surface Area | C12: =C10 * C8^C11 -> 0.008650917739 | D12: meters
B13: SA | C13: =C12*10000 -> 86.50917739 | D13: cm2 | E13: 10,000 cm2/m2
A14: Conversion Factor for lbs/acre to mg/cm2 | B14: CnvF | C14: 0.01121 | D14: mg/cm2/lb/acre
A15: Application rate, mg/cm2 | B15: ApRmgcm | C15: ApRlb/a × CnvF
C16: =C6*C$14 -> 0.01121 | D16: lb/acre | E16: Eq
A17: First-order dermal absorption rates | B17: ka
B18: Central | C18: ='B01'!$C$11 -> 5e-05 | D18: hour-1 | E18: Section 3.2.2.2
B19: Lower | C19: ='B01'!$C$12 -> 3e-05 | E19: Section 3.2.2.2
B20: Upper | C20: ='B01'!$C$13 -> 7.1e-05 | E20: Section 3.2.2.2
A21: Proportion of body surface sprayed | B21: PrpSA | C21: 0.5 | D21: unitless | E21: Scenario parameter
A22: Toxic Equivalency Factor for formulation: (See risk assessment if this has a value other than 1.) | B22: TEF
B23: Central | C23: ='A01'!C$35 -> 1 | D23: Unitless | E23: Worksheet A01
B24: Lower | C24: ='A01'!C$36 -> 1 | E24: Worksheet A01
B25: Upper | C25: ='A01'!C$37 -> 1 | E25: Worksheet A01
A26: Amount Deposited on Skin | B26: Amnt | C26: ApRmgcm × SA × PrpSAx TEF
B27: Central | C27: =C$13*C$16*C$21*C23 -> 0.4848839392 | D27: mg | E27: Eq
B28: Lower | C28: =C$13*C$16*C$21*C24 -> 0.4848839392 | E28: Eq
B29: Upper | C29: =C$13*C$16*C$21*C25 -> 0.4848839392 | E29: Eq
A30: Skin Loading | B30: Loading
B31: Central | C31: =C27/C$13 -> 0.005605 | D31: mg/cm2 | E31: Eq
B32: Lower | C32: =C28/C$13 -> 0.005605 | E32: Eq
B33: Upper | C33: =C29/C$13 -> 0.005605 | E33: Eq
A35: Proportion absorbed over period T | B35: Prop | C35: 1-exp(-ka T)
B36: Central | C36: =1-EXP(-C18 *C$7) -> 0.001199280288 | D36: hour-1 | E36: Eq
B37: Lower | C37: =1-EXP(-C19 *C$7) -> 0.0007197408622 | E37: Eq
B38: Upper | C38: =1-EXP(-C20 *C$7) -> 0.001702549016 | E38: Eq
A39: Absorbed Dose | B39: Dose | C39: Amnt × Prop ÷ BW
B40: Central | C40: =C27*C36/C$8 -> 0.02907558751 | D40: mg/kg bw | E40: Eq
B41: Lower | C41: =C28*C37/C$8 -> 0.01744953923 | E41: Eq
B42: Upper | C42: =C29*C38/C$8 -> 0.04127693369 | E42: Eq

Sheet F01b
A1: Direct spray of Mammal, small assuming 100% absorption with spray of 0.5 of the body surface
A2: Short Title | B2: Direct spray, 100% absorption | E2: Drm100_Allo
A3: Receptor | B3: Mammal, small
A4: Duration | B4: Acute
A5: Parameter/Assumption | B5: Code / Range | C5: Equation/ Value | D5: Units | E5: Reference/Designation
A6: Application rate, lb/acre | B6: ApRlb/ac | C6: ='A01'!ApRt_C -> 1 | D6: lb/acre | E6: Worksheet A01
A7: Conversion Factor for lbs/acre to mg/cm2 | B7: CnvF | C7: 0.01121 | D7: mg/cm2/lb/acre
A8: Application rate, mg/cm2 | B8: ApRmgcm | C8: ApRlb/a × CnvF
C9: =C6*C7 -> 0.01121 | D9: lb/acre | E9: Eq
A10: Body weight | B10: BW | C10: =A02b!$C$71 -> 0.02 | D10: kg | E10: Default
A11: Allometric coefficients for surface area
B12: alpha | C12: =A02b!$C$77 -> 0.11 | E12: U.S. EPA/ORD 1993
B13: beta | C13: =A02b!$C$78 -> 0.65 | E13: U.S. EPA/ORD 1993
A14: Surface Area | C14: =C12 * C10^C13 -> 0.008650917739 | D14: meters
B15: SA | C15: =C14*10000 -> 86.50917739 | D15: cm2[10000 cm2/m2] | E15: Eq
A16: Proportion of body surface sprayed | B16: PrpSA | C16: 0.5 | D16: unitless | E16: Scenario parameter
A17: Toxic Equivalency Factor for formulation: (See risk assessment if this has a value other than 1.) | B17: TEF
B18: Central | C18: ='A01'!C$35 -> 1 | D18: Unitless | E18: Worksheet A01
B19: Lower | C19: ='A01'!C$36 -> 1 | E19: Worksheet A01
B20: Upper | C20: ='A01'!C$37 -> 1 | E20: Worksheet A01
A21: Amount Deposited on Skin | B21: Amnt | C21: ApRmgcm× SA × PrpSA× TEF
B22: Central | C22: =C$9*C$15*C$16*C18 -> 0.4848839392 | D22: mg | E22: Eq
B23: Lower | C23: =C$9*C$15*C$16*C19 -> 0.4848839392 | E23: Eq
B24: Upper | C24: =C$9*C$15*C$16*C20 -> 0.4848839392 | E24: Eq
A25: Absorbed Dose | B25: Dose | C25: Amnt ÷ BW
B26: Central | C26: =C22/C$10 -> 24.24419696 | D26: mg/kg bw | E26: Eq
B27: Lower | C27: =C23/C$10 -> 24.24419696 | E27: Eq
B28: Upper | C28: =C24/C$10 -> 24.24419696 | E28: Eq

Sheet F02a
A1: Consumption of contaminated water by Mammal, small, Accidental Spill
A2: Short Title | B2: Accidental Spill | E2: WatAlloV6
A3: Receptor | B3: Mammal, small
A4: Duration | B4: Acute | E4: Scenario parameter
A5: Parameter/Assumption | B5: Code / Range | C5: Equation/ Value | D5: Units | E5: Reference/Designation
A6: Concentration in water | B6: ConcWat
B7: Central | C7: =B04b!Acute_C -> 1.514 | D7: mg/L | E7: ='B04b'!Acute_C
B8: Lower | C8: =B04b!Acute_L -> 0.09084 | E8: ='B04b'!Acute_L
B9: Upper | C9: =B04b!Acute_U -> 18.168 | E9: ='B04b'!Acute_U
A10: Receptor
A11: Body weight | B11: BW | C11: =A02b!$C$71 -> 0.02 | D11: kg | E11: Default
A12: Allometric coefficients forwater consumption per day in liters and BW in kilograms
B13: alpha | C13: =A02b!$C$79 -> 0.099 | E13: U.S. EPA/ORD 1993
B14: beta | C14: =A02b!$C$80 -> 0.9 | E14: U.S. EPA/ORD 1993
A15: Amount of water consumed per day | C15: Amnt = alpha BW beta
B16: Amnt | C16: =C13*(C11^C14) -> 0.002927940121 | D16: liters | E16: Eq
A17: Absorbed Dose | B17: Dose | C17: ConcWat × Amnt ÷ BW
B18: Central | C18: =C7*C$16/C$11 -> 0.2216450671 | D18: mg/kg | E18: Eq
B19: Lower | C19: =C8*C$16/C$11 -> 0.01329870403 | D19: mg/kg | E19: Eq
B20: Upper | C20: =C9*C$16/C$11 -> 2.659740805 | D20: mg/kg | E20: Eq

Sheet F02b
A1: Consumption of contaminated water by Mammal, 400 g, Accidental Spill
A2: Short Title | B2: Accidental Spill | E2: WatAlloV6
A3: Receptor | B3: Mammal, 400 g
A4: Duration | B4: Acute | E4: Scenario parameter
A5: Parameter/Assumption | B5: Code / Range | C5: Equation/ Value | D5: Units | E5: Reference/Designation
A6: Concentration in water | B6: ConcWat
B7: Central | C7: =B04b!Acute_C -> 1.514 | D7: mg/L | E7: ='B04b'!Acute_C
B8: Lower | C8: =B04b!Acute_L -> 0.09084 | E8: ='B04b'!Acute_L
B9: Upper | C9: =B04b!Acute_U -> 18.168 | E9: ='B04b'!Acute_U
A10: Receptor
A11: Body weight | B11: BW | C11: =A02b!$C$40 -> 0.4 | D11: kg | E11: Default
A12: Allometric coefficients forwater consumption per day in liters and BW in kilograms
B13: alpha | C13: =A02b!$C$45 -> 0.099 | E13: U.S. EPA/ORD 1993
B14: beta | C14: =A02b!$C$46 -> 0.9 | E14: U.S. EPA/ORD 1993
A15: Amount of water consumed per day | C15: Amnt = alpha BW beta
B16: Amnt | C16: =C13*(C11^C14) -> 0.04339994576 | D16: liters | E16: Eq
A17: Absorbed Dose | B17: Dose | C17: ConcWat × Amnt ÷ BW
B18: Central | C18: =C7*C$16/C$11 -> 0.1642687947 | D18: mg/kg | E18: Eq
B19: Lower | C19: =C8*C$16/C$11 -> 0.009856127683 | D19: mg/kg | E19: Eq
B20: Upper | C20: =C9*C$16/C$11 -> 1.971225537 | D20: mg/kg | E20: Eq

Sheet F02c
A1: Consumption of contaminated water by Mammal, carnivorous, Accidental Spill
A2: Short Title | B2: Accidental Spill | E2: WatAlloV6
A3: Receptor | B3: Mammal, carnivorous
A4: Duration | B4: Acute | E4: Scenario parameter
A5: Parameter/Assumption | B5: Code / Range | C5: Equation/ Value | D5: Units | E5: Reference/Designation
A6: Concentration in water | B6: ConcWat
B7: Central | C7: =B04b!Acute_C -> 1.514 | D7: mg/L | E7: ='B04b'!Acute_C
B8: Lower | C8: =B04b!Acute_L -> 0.09084 | E8: ='B04b'!Acute_L
B9: Upper | C9: =B04b!Acute_U -> 18.168 | E9: ='B04b'!Acute_U
A10: Receptor
A11: Body weight | B11: BW | C11: =A02b!$C$47 -> 5 | D11: kg | E11: U.S. EPA/ORD 1993
A12: Allometric coefficients forwater consumption per day in liters and BW in kilograms
B13: alpha | C13: =A02b!$C$50 -> 0.099 | E13: U.S. EPA/ORD 1993
B14: beta | C14: =A02b!$C$51 -> 0.9 | E14: U.S. EPA/ORD 1993
A15: Amount of water consumed per day | C15: Amnt = alpha BW beta
B16: Amnt | C16: =C13*(C11^C14) -> 0.4214132616 | D16: liters | E16: Eq
A17: Absorbed Dose | B17: Dose | C17: ConcWat × Amnt ÷ BW
B18: Central | C18: =C7*C$16/C$11 -> 0.1276039356 | D18: mg/kg | E18: Eq
B19: Lower | C19: =C8*C$16/C$11 -> 0.007656236138 | D19: mg/kg | E19: Eq
B20: Upper | C20: =C9*C$16/C$11 -> 1.531247228 | D20: mg/kg | E20: Eq

Sheet F02d
A1: Consumption of contaminated water by Mammal, large, Accidental Spill
A2: Short Title | B2: Accidental Spill | E2: WatAlloV6
A3: Receptor | B3: Mammal, large
A4: Duration | B4: Acute | E4: Scenario parameter
A5: Parameter/Assumption | B5: Code / Range | C5: Equation/ Value | D5: Units | E5: Reference/Designation
A6: Concentration in water | B6: ConcWat
B7: Central | C7: =B04b!Acute_C -> 1.514 | D7: mg/L | E7: ='B04b'!Acute_C
B8: Lower | C8: =B04b!Acute_L -> 0.09084 | E8: ='B04b'!Acute_L
B9: Upper | C9: =B04b!Acute_U -> 18.168 | E9: ='B04b'!Acute_U
A10: Receptor
A11: Body weight | B11: BW | C11: =A02b!$C$61 -> 70 | D11: kg | E11: Default
A12: Allometric coefficients forwater consumption per day in liters and BW in kilograms
B13: alpha | C13: =A02b!$C$64 -> 0.099 | E13: U.S. EPA/ORD 1993
B14: beta | C14: =A02b!$C$65 -> 0.9 | E14: U.S. EPA/ORD 1993
A15: Amount of water consumed per day | C15: Amnt = alpha BW beta
B16: Amnt | C16: =C13*(C11^C14) -> 4.531306412 | D16: liters | E16: Eq
A17: Absorbed Dose | B17: Dose | C17: ConcWat × Amnt ÷ BW
B18: Central | C18: =C7*C$16/C$11 -> 0.09800568439 | D18: mg/kg | E18: Eq
B19: Lower | C19: =C8*C$16/C$11 -> 0.005880341063 | D19: mg/kg | E19: Eq
B20: Upper | C20: =C9*C$16/C$11 -> 1.176068213 | D20: mg/kg | E20: Eq

Sheet F02e
A1: Consumption of contaminated water by Bird, small, Accidental Spill
A2: Short Title | B2: Accidental Spill | E2: WatAlloV6
A3: Receptor | B3: Bird, small
A4: Duration | B4: Acute | E4: Scenario parameter
A5: Parameter/Assumption | B5: Code / Range | C5: Equation/ Value | D5: Units | E5: Reference/Designation
A6: Concentration in water | B6: ConcWat
B7: Central | C7: =B04b!Acute_C -> 1.514 | D7: mg/L | E7: ='B04b'!Acute_C
B8: Lower | C8: =B04b!Acute_L -> 0.09084 | E8: ='B04b'!Acute_L
B9: Upper | C9: =B04b!Acute_U -> 18.168 | E9: ='B04b'!Acute_U
A10: Receptor
A11: Body weight | B11: BW | C11: =A02b!$C$31 -> 0.01 | D11: kg | E11: Default
A12: Allometric coefficients forwater consumption per day in liters and BW in kilograms
B13: alpha | C13: =A02b!$C$34 -> 0.059 | E13: U.S. EPA/ORD 1993
B14: beta | C14: =A02b!$C$35 -> 0.67 | E14: U.S. EPA/ORD 1993
A15: Amount of water consumed per day | C15: Amnt = alpha BW beta
B16: Amnt | C16: =C13*(C11^C14) -> 0.002696820319 | D16: liters | E16: Eq
A17: Absorbed Dose | B17: Dose | C17: ConcWat × Amnt ÷ BW
B18: Central | C18: =C7*C$16/C$11 -> 0.4082985963 | D18: mg/kg | E18: Eq
B19: Lower | C19: =C8*C$16/C$11 -> 0.02449791578 | D19: mg/kg | E19: Eq
B20: Upper | C20: =C9*C$16/C$11 -> 4.899583155 | D20: mg/kg | E20: Eq

Sheet F02f
A1: Consumption of contaminated water by Bird, large, Accidental Spill
A2: Short Title | B2: Accidental Spill | E2: WatAlloV6
A3: Receptor | B3: Bird, large
A4: Duration | B4: Acute | E4: Scenario parameter
A5: Parameter/Assumption | B5: Code / Range | C5: Equation/ Value | D5: Units | E5: Reference/Designation
A6: Concentration in water | B6: ConcWat
B7: Central | C7: =B04b!Acute_C -> 1.514 | D7: mg/L | E7: ='B04b'!Acute_C
B8: Lower | C8: =B04b!Acute_L -> 0.09084 | E8: ='B04b'!Acute_L
B9: Upper | C9: =B04b!Acute_U -> 18.168 | E9: ='B04b'!Acute_U
A10: Receptor
A11: Body weight | B11: BW | C11: =A02b!$C$15 -> 4 | D11: kg | E11: Default
A12: Allometric coefficients forwater consumption per day in liters and BW in kilograms
B13: alpha | C13: =A02b!$C$18 -> 0.059 | E13: U.S. EPA/ORD 1993
B14: beta | C14: =A02b!$C$19 -> 0.67 | E14: U.S. EPA/ORD 1993
A15: Amount of water consumed per day | C15: Amnt = alpha BW beta
B16: Amnt | C16: =C13*(C11^C14) -> 0.1493592781 | D16: liters | E16: Eq
A17: Absorbed Dose | B17: Dose | C17: ConcWat × Amnt ÷ BW
B18: Central | C18: =C7*C$16/C$11 -> 0.05653248676 | D18: mg/kg | E18: Eq
B19: Lower | C19: =C8*C$16/C$11 -> 0.003391949205 | D19: mg/kg | E19: Eq
B20: Upper | C20: =C9*C$16/C$11 -> 0.6783898411 | D20: mg/kg | E20: Eq

Sheet F03a
A1: Acute scenario for the consumption of Contaminated Fish ( Accidental Spill) by Mammal, large carnivorous
A2: Short Title | B2: Fish consumption, accidental spill | E2: FishKcalV6
A3: Predator | B3: Mammal, large carnivorous
A4: Food Item (Prey) | B4: Fish
A5: Duration | B5: Acute | E5: Scenario parameter
A6: Parameter/Assumption | B6: Code / Range | C6: Equation/ Value | D6: Units | E6: Reference/Designation
A7: Water
A8: Concentration in water | B8: ConcWat
B9: Central | C9: =B04b!Acute_C -> 1.514 | D9: mg/L | E9: ='B04b'!Acute_C
B10: Lower | C10: =B04b!Acute_L -> 0.09084 | E10: ='B04b'!Acute_L
B11: Upper | C11: =B04b!Acute_U -> 18.168 | E11: ='B04b'!Acute_U
A12: Fish
A13: Bioconcentration factor | B13: BCF
B14: Central | C14: ='B01'!$C$6 -> 1 | D14: L/kg | E14: Section 3.2.3.5.
B15: Lower | C15: ='B01'!$C$6 -> 1 | E15: Section 3.2.3.5.
B16: Upper | C16: ='B01'!$C$6 -> 1 | E16: Section 3.2.3.5.
A17: Concentration in fish | B17: ConcFish | C17: ConcWat × BCF
B18: Central | C18: =C9*C14 -> 1.514 | D18: mg/kg | E18: Eq
B19: Lower | C19: =C10*C15 -> 0.09084 | E19: Eq
B20: Upper | C20: =C11*C16 -> 18.168 | E20: Eq
A21: Receptor
A22: Body weight | B22: BW | C22: =A02b!$C$52 -> 70 | D22: kg | E22: Reid 2006
A23: Allometric coefficients for caloric requirement per day in kilocalories and BW in grams
B24: alpha | C24: =A02b!$C$53 -> 0.6167 | E24: U.S. EPA/ORD 1993
B25: beta | C25: =A02b!$C$54 -> 0.862 | E25: U.S. EPA/ORD 1993
A26: Caloric requirement per day | B26: KR | C26: =C24*(C22*1000)^C25 -> 9258.666883 | D26: kcal/day | E26: Eq
A27: Caloric content of commodity (dry weight) | B27: KCD | C27: 4.47 | D27: kcal/gdw [Note 1] | E27: WkMk Documentation
A28: Food consumed per day (dry weight) | B28: AmntDry | C28: = KR ÷ KCD
C29: =C26/C27 -> 2071.29013 | D29: gdry/day | E29: Eq
A30: Water content of vegetation as a proportion | B30: PropWater | C30: 0.7 | D30: gwater/gfood | E30: WkMk Documentation
A31: Dry weight content of vegetation as a proportion | B31: PropDry | C31: = 1-PropWater
C32: =1-C30 -> 0.3 | D32: gdry/gfood | E32: Eq
A33: Amount of fish consumed per day, wet weight | B33: AmntFish | C33: = (AmntDry ÷ PropDry) ÷ (1000g/kg)
B34: Central | C34: =(C29/C32)/1000 -> 6.904300435 | D34: kgfood/day | E34: Eq
B35: Lower | C35: =C34*0.3 -> 2.07129013 | D35: Note 1 | E35: Eq
B36: Upper | C36: =C34*1.7 -> 11.73731074 | D36: Note 1 | E36: Eq
A37: Proportion of diet that is contaminated | B37: Prop
B38: Central | C38: 0.3 | D38: Unitless | E38: Scenario parameter
B39: Lower | C39: 0.1 | E39: Scenario parameter
B40: Upper | C40: 1 | E40: Scenario parameter
A41: Dose
A42: Toxic Equivalency Factor for formulation: (See risk assessment if this has a value other than 1.) | B42: TEF
B43: Central | C43: ='A01'!C$35 -> 1 | D43: Unitless | E43: Worksheet A01
B44: Lower | C44: ='A01'!C$36 -> 1 | D44: Note 2 | E44: Worksheet A01
B45: Upper | C45: ='A01'!C$37 -> 1 | D45: Note 2 | E45: Worksheet A01
A46: Dose | B46: Dose | C46: = ConcFish × AmntFish × Prop ÷ BW
B47: Central | C47: =C18*C34*C38/C$22 -> 0.04479904653 | D47: mg/kg | E47: Eq
B48: Lower | C48: =C19*C35*C39/C$22 -> 0.0002687942792 | D48: mg/kg | E48: Eq
B49: Upper | C49: 3.046335164 | D49: mg/kg | E49: Eq
E50: FishKcalV6

Sheet F03b
A1: Acute scenario for the consumption of Contaminated Fish ( Accidental Spill) by Mammal, carnivorous
A2: Short Title | B2: Fish consumption, accidental spill | E2: FishKcalV6
A3: Predator | B3: Mammal, carnivorous
A4: Food Item (Prey) | B4: Fish
A5: Duration | B5: Acute | E5: Scenario parameter
A6: Parameter/Assumption | B6: Code / Range | C6: Equation/ Value | D6: Units | E6: Reference/Designation
A7: Water
A8: Concentration in water | B8: ConcWat
B9: Central | C9: =B04b!Acute_C -> 1.514 | D9: mg/L | E9: ='B04b'!Acute_C
B10: Lower | C10: =B04b!Acute_L -> 0.09084 | E10: ='B04b'!Acute_L
B11: Upper | C11: =B04b!Acute_U -> 18.168 | E11: ='B04b'!Acute_U
A12: Fish
A13: Bioconcentration factor | B13: BCF
B14: Central | C14: ='B01'!$C$6 -> 1 | D14: L/kg | E14: Section 3.2.3.5.
B15: Lower | C15: ='B01'!$C$6 -> 1 | E15: Section 3.2.3.5.
B16: Upper | C16: ='B01'!$C$6 -> 1 | E16: Section 3.2.3.5.
A17: Concentration in fish | B17: ConcFish | C17: ConcWat × BCF
B18: Central | C18: =C9*C14 -> 1.514 | D18: mg/kg | E18: Eq
B19: Lower | C19: =C10*C15 -> 0.09084 | E19: Eq
B20: Upper | C20: =C11*C16 -> 18.168 | E20: Eq
A21: Receptor
A22: Body weight | B22: BW | C22: =A02b!$C$47 -> 5 | D22: kg | E22: U.S. EPA/ORD 1993
A23: Allometric coefficients for caloric requirement per day in kilocalories and BW in grams
B24: alpha | C24: =A02b!$C$48 -> 0.6167 | E24: U.S. EPA/ORD 1993
B25: beta | C25: =A02b!$C$49 -> 0.862 | E25: U.S. EPA/ORD 1993
A26: Caloric requirement per day | B26: KR | C26: =C24*(C22*1000)^C25 -> 951.8885266 | D26: kcal/day | E26: Eq
A27: Caloric content of commodity (dry weight) | B27: KCD | C27: 4.47 | D27: kcal/gdw [Note 1] | E27: WkMk Documentation
A28: Food consumed per day (dry weight) | B28: AmntDry | C28: = KR ÷ KCD
C29: =C26/C27 -> 212.9504534 | D29: gdry/day | E29: Eq
A30: Water content of vegetation as a proportion | B30: PropWater | C30: 0.7 | D30: gwater/gfood | E30: WkMk Documentation
A31: Dry weight content of vegetation as a proportion | B31: PropDry | C31: = 1-PropWater
C32: =1-C30 -> 0.3 | D32: gdry/gfood | E32: Eq
A33: Amount of fish consumed per day, wet weight | B33: AmntFish | C33: = (AmntDry ÷ PropDry) ÷ (1000g/kg)
B34: Central | C34: =(C29/C32)/1000 -> 0.7098348446 | D34: kgfood/day | E34: Eq
B35: Lower | C35: =C34*0.3 -> 0.2129504534 | D35: Note 1 | E35: Eq
B36: Upper | C36: =C34*1.7 -> 1.206719236 | D36: Note 1 | E36: Eq
A37: Proportion of diet that is contaminated | B37: Prop
B38: Central | C38: 0.3 | D38: Unitless | E38: Scenario parameter
B39: Lower | C39: 0.1 | E39: Scenario parameter
B40: Upper | C40: 1 | E40: Scenario parameter
A41: Dose
A42: Toxic Equivalency Factor for formulation: (See risk assessment if this has a value other than 1.) | B42: TEF
B43: Central | C43: ='A01'!C$35 -> 1 | D43: Unitless | E43: Worksheet A01
B44: Lower | C44: ='A01'!C$36 -> 1 | D44: Note 2 | E44: Worksheet A01
B45: Upper | C45: ='A01'!C$37 -> 1 | D45: Note 2 | E45: Worksheet A01
A46: Dose | B46: Dose | C46: = ConcFish × AmntFish × Prop ÷ BW
B47: Central | C47: =C18*C34*C38/C$22 -> 0.06448139728 | D47: mg/kg | E47: Eq
B48: Lower | C48: =C19*C35*C39/C$22 -> 0.0003868883837 | D48: mg/kg | E48: Eq
B49: Upper | C49: 4.384735015 | D49: mg/kg | E49: Eq
E50: FishKcalV6

Sheet F03c
A1: Acute scenario for the consumption of Contaminated Fish ( Accidental Spill) by Bird, piscivorous
A2: Short Title | B2: Fish consumption, accidental spill | E2: FishKcalV6
A3: Predator | B3: Bird, piscivorous
A4: Food Item (Prey) | B4: Fish
A5: Duration | B5: Acute | E5: Scenario parameter
A6: Parameter/Assumption | B6: Code / Range | C6: Equation/ Value | D6: Units | E6: Reference/Designation
A7: Water
A8: Concentration in water | B8: ConcWat
B9: Central | C9: =B04b!Acute_C -> 1.514 | D9: mg/L | E9: ='B04b'!Acute_C
B10: Lower | C10: =B04b!Acute_L -> 0.09084 | E10: ='B04b'!Acute_L
B11: Upper | C11: =B04b!Acute_U -> 18.168 | E11: ='B04b'!Acute_U
A12: Fish
A13: Bioconcentration factor | B13: BCF
B14: Central | C14: ='B01'!$C$6 -> 1 | D14: L/kg | E14: Section 3.2.3.5.
B15: Lower | C15: ='B01'!$C$6 -> 1 | E15: Section 3.2.3.5.
B16: Upper | C16: ='B01'!$C$6 -> 1 | E16: Section 3.2.3.5.
A17: Concentration in fish | B17: ConcFish | C17: ConcWat × BCF
B18: Central | C18: =C9*C14 -> 1.514 | D18: mg/kg | E18: Eq
B19: Lower | C19: =C10*C15 -> 0.09084 | E19: Eq
B20: Upper | C20: =C11*C16 -> 18.168 | E20: Eq
A21: Receptor
A22: Body weight | B22: BW | C22: =A02b!$C$24 -> 2.4 | D22: kg | E22: Sibley 2000
A23: Allometric coefficients for caloric requirement per day in kilocalories and BW in grams
B24: alpha | C24: =A02b!$C$27 -> 1.916 | E24: U.S. EPA/ORD 1993
B25: beta | C25: =A02b!$C$28 -> 0.704 | E25: U.S. EPA/ORD 1993
A26: Caloric requirement per day | B26: KR | C26: =C24*(C22*1000)^C25 -> 459.2659192 | D26: kcal/day | E26: Eq
A27: Caloric content of commodity (dry weight) | B27: KCD | C27: 3.87 | D27: kcal/gdw [Note 1] | E27: WkMk Documentation
A28: Food consumed per day (dry weight) | B28: AmntDry | C28: = KR ÷ KCD
C29: =C26/C27 -> 118.6733641 | D29: gdry/day | E29: Eq
A30: Water content of vegetation as a proportion | B30: PropWater | C30: 0.7 | D30: gwater/gfood | E30: WkMk Documentation
A31: Dry weight content of vegetation as a proportion | B31: PropDry | C31: = 1-PropWater
C32: =1-C30 -> 0.3 | D32: gdry/gfood | E32: Eq
A33: Amount of fish consumed per day, wet weight | B33: AmntFish | C33: = (AmntDry ÷ PropDry) ÷ (1000g/kg)
B34: Central | C34: =(C29/C32)/1000 -> 0.3955778805 | D34: kgfood/day | E34: Eq
B35: Lower | C35: =C34*0.3 -> 0.1186733641 | D35: Note 1 | E35: Eq
B36: Upper | C36: =C34*1.7 -> 0.6724823968 | D36: Note 1 | E36: Eq
A37: Proportion of diet that is contaminated | B37: Prop
B38: Central | C38: 0.3 | D38: Unitless | E38: Scenario parameter
B39: Lower | C39: 0.1 | E39: Scenario parameter
B40: Upper | C40: 1 | E40: Scenario parameter
A41: Dose
A42: Toxic Equivalency Factor for formulation: (See risk assessment if this has a value other than 1.) | B42: TEF
B43: Central | C43: ='A01'!C$35 -> 1 | D43: Unitless | E43: Worksheet A01
B44: Lower | C44: ='A01'!C$36 -> 1 | D44: Note 2 | E44: Worksheet A01
B45: Upper | C45: ='A01'!C$37 -> 1 | D45: Note 2 | E45: Worksheet A01
A46: Dose | B46: Dose | C46: = ConcFish × AmntFish × Prop ÷ BW
B47: Central | C47: =C18*C34*C38/C$22 -> 0.07486311388 | D47: mg/kg | E47: Eq
B48: Lower | C48: =C19*C35*C39/C$22 -> 0.0004491786833 | D48: mg/kg | E48: Eq
B49: Upper | C49: 5.090691744 | D49: mg/kg | E49: Eq
E50: FishKcalV6

Sheet F04a
A1: Consumption of Fruit by a Mammal, small after Acute exposure.
A2: Short Title | B2: Fruit | E2: FdKcalV6
A3: Receptor | B3: Mammal, small
A4: Duration | B4: Acute | E4: Scenario parameter
A5: Material consumed | B5: Fruit
A6: Parameter/Assumption | B6: Code / Range | C6: Equation/ Value | D6: Units | E6: Reference/Designation
A7: Commodity
A8: Concentration on consumed commodity | B8: Conc
B9: Central | C9: =B05a!Acute_C -> 7 | D9: mg/kg food wet weight | E9: ='B05a'!Acute_C
B10: Lower | C10: =B05a!Acute_L -> 3.2 | E10: ='B05a'!Acute_L
B11: Upper | C11: =B05a!Acute_U -> 15 | E11: ='B05a'!Acute_U
A12: Receptor
A13: Body weight | B13: BW | C13: =A02b!$C$71 -> 0.02 | D13: kg | E13: Default
A14: Allometric coefficients for caloric requirement per day in kilocalories and BW in grams
B15: alpha | C15: =A02b!$C$75 -> 2.514 | E15: U.S. EPA/ORD 1993
B16: beta | C16: =A02b!$C$76 -> 0.507 | E16: U.S. EPA/ORD 1993
A17: Caloric requirement per day | B17: KR | C17: = alpha x (BW x 1kg/1000g)beta
C18: =C15*((C13*1000)^C16) -> 11.48120526 | D18: kcal/day | E18: Eq
A19: Caloric content of commodity (dry weight) | B19: KCD | C19: 1.1 | D19: kcal/gdw [Note 1] | E19: WkMk Documentation
A20: Food consumed per day (dry weight) | B20: AmntDry | C20: = KR ÷ KCD
C21: =C18/C19 -> 10.43745932 | D21: gdry/day | E21: Eq
A22: Water content of vegetation as a proportion | B22: PropWater | C22: 0.77 | D22: gwater/gfood | E22: WkMk Documentation
A23: Dry weight content of vegetation as a proportion | B23: PropDry | C23: = 1-PropWater
C24: =1-C22 -> 0.23 | D24: gdry/gfood | E24: Eq
A25: Variability in caloric requirements not accounted for by allometric equation | B25: Error
B26: Central | C26: 1 | D26: Note 2
B27: Lower | C27: 0.3
B28: Upper | C28: 1.7
A29: Amount of food consumed per day, wet weight | B29: AmntFood | C29: = (AmntDry ÷ PropDry) ÷ (1000g/kg)
B30: Central | C30: =C26*(C$21/C$24)/1000 -> 0.04538025793 | D30: kgfood/day | E30: Eq
B31: Lower | C31: =C27*(C$21/C$24)/1000 -> 0.01361407738 | E31: Eq
B32: Upper | C32: 0.07714643848 | E32: Eq
A33: Estimate
A34: Dose | B34: Dose | C34: = AmntFood × Conc / BW
B35: Central | C35: =$C30 * C9/C$13 -> 15.88309028 | D35: mg/kg bw/day | E35: Eq
B36: Lower | C36: =$C31 * C10/C$13 -> 2.178252381 | E36: Eq
B37: Upper | C37: =$C32 * C11/C$13 -> 57.85982886 | E37: Eq

Sheet F04b
A1: Consumption of Fruit by a Mammal, 400 g after Acute exposure.
A2: Short Title | B2: Fruit | E2: FdKcalV6
A3: Receptor | B3: Mammal, 400 g
A4: Duration | B4: Acute | E4: Scenario parameter
A5: Material consumed | B5: Fruit
A6: Parameter/Assumption | B6: Code / Range | C6: Equation/ Value | D6: Units | E6: Reference/Designation
A7: Commodity
A8: Concentration on consumed commodity | B8: Conc
B9: Central | C9: =B05a!Acute_C -> 7 | D9: mg/kg food wet weight | E9: ='B05a'!Acute_C
B10: Lower | C10: =B05a!Acute_L -> 3.2 | E10: ='B05a'!Acute_L
B11: Upper | C11: =B05a!Acute_U -> 15 | E11: ='B05a'!Acute_U
A12: Receptor
A13: Body weight | B13: BW | C13: =A02b!$C$40 -> 0.4 | D13: kg | E13: Default
A14: Allometric coefficients for caloric requirement per day in kilocalories and BW in grams
B15: alpha | C15: =A02b!$C$43 -> 2.514 | E15: U.S. EPA/ORD 1993
B16: beta | C16: =A02b!$C$44 -> 0.507 | E16: U.S. EPA/ORD 1993
A17: Caloric requirement per day | B17: KR | C17: = alpha x (BW x 1kg/1000g)beta
C18: =C15*((C13*1000)^C16) -> 52.43360149 | D18: kcal/day | E18: Eq
A19: Caloric content of commodity (dry weight) | B19: KCD | C19: 1.1 | D19: kcal/gdw [Note 1] | E19: WkMk Documentation
A20: Food consumed per day (dry weight) | B20: AmntDry | C20: = KR ÷ KCD
C21: =C18/C19 -> 47.66691044 | D21: gdry/day | E21: Eq
A22: Water content of vegetation as a proportion | B22: PropWater | C22: 0.77 | D22: gwater/gfood | E22: WkMk Documentation
A23: Dry weight content of vegetation as a proportion | B23: PropDry | C23: = 1-PropWater
C24: =1-C22 -> 0.23 | D24: gdry/gfood | E24: Eq
A25: Variability in caloric requirements not accounted for by allometric equation | B25: Error
B26: Central | C26: 1 | D26: Note 2
B27: Lower | C27: 0.3
B28: Upper | C28: 1.7
A29: Amount of food consumed per day, wet weight | B29: AmntFood | C29: = (AmntDry ÷ PropDry) ÷ (1000g/kg)
B30: Central | C30: =C26*(C$21/C$24)/1000 -> 0.2072474367 | D30: kgfood/day | E30: Eq
B31: Lower | C31: =C27*(C$21/C$24)/1000 -> 0.06217423101 | E31: Eq
B32: Upper | C32: 0.3523206424 | E32: Eq
A33: Estimate
A34: Dose | B34: Dose | C34: = AmntFood × Conc / BW
B35: Central | C35: =$C30 * C9/C$13 -> 3.626830142 | D35: mg/kg bw/day | E35: Eq
B36: Lower | C36: =$C31 * C10/C$13 -> 0.4973938481 | E36: Eq
B37: Upper | C37: =$C32 * C11/C$13 -> 13.21202409 | E37: Eq

Sheet F04c
A1: Consumption of Fruit by a Mammal, large after Acute exposure.
A2: Short Title | B2: Fruit | E2: FdKcalV6
A3: Receptor | B3: Mammal, large
A4: Duration | B4: Acute | E4: Scenario parameter
A5: Material consumed | B5: Fruit
A6: Parameter/Assumption | B6: Code / Range | C6: Equation/ Value | D6: Units | E6: Reference/Designation
A7: Commodity
A8: Concentration on consumed commodity | B8: Conc
B9: Central | C9: =B05a!Acute_C -> 7 | D9: mg/kg food wet weight | E9: ='B05a'!Acute_C
B10: Lower | C10: =B05a!Acute_L -> 3.2 | E10: ='B05a'!Acute_L
B11: Upper | C11: =B05a!Acute_U -> 15 | E11: ='B05a'!Acute_U
A12: Receptor
A13: Body weight | B13: BW | C13: =A02b!$C$61 -> 70 | D13: kg | E13: Default
A14: Allometric coefficients for caloric requirement per day in kilocalories and BW in grams
B15: alpha | C15: =A02b!$C$62 -> 1.518 | E15: U.S. EPA/ORD 1993
B16: beta | C16: =A02b!$C$63 -> 0.73 | E16: U.S. EPA/ORD 1993
A17: Caloric requirement per day | B17: KR | C17: = alpha x (BW x 1kg/1000g)beta
C18: =C15*((C13*1000)^C16) -> 5226.28803 | D18: kcal/day | E18: Eq
A19: Caloric content of commodity (dry weight) | B19: KCD | C19: 1.1 | D19: kcal/gdw [Note 1] | E19: WkMk Documentation
A20: Food consumed per day (dry weight) | B20: AmntDry | C20: = KR ÷ KCD
C21: =C18/C19 -> 4751.170936 | D21: gdry/day | E21: Eq
A22: Water content of vegetation as a proportion | B22: PropWater | C22: 0.77 | D22: gwater/gfood | E22: WkMk Documentation
A23: Dry weight content of vegetation as a proportion | B23: PropDry | C23: = 1-PropWater
C24: =1-C22 -> 0.23 | D24: gdry/gfood | E24: Eq
A25: Variability in caloric requirements not accounted for by allometric equation | B25: Error
B26: Central | C26: 1 | D26: Note 2
B27: Lower | C27: 0.3
B28: Upper | C28: 1.7
A29: Amount of food consumed per day, wet weight | B29: AmntFood | C29: = (AmntDry ÷ PropDry) ÷ (1000g/kg)
B30: Central | C30: =C26*(C$21/C$24)/1000 -> 20.65726494 | D30: kgfood/day | E30: Eq
B31: Lower | C31: =C27*(C$21/C$24)/1000 -> 6.197179482 | E31: Eq
B32: Upper | C32: 35.1173504 | E32: Eq
A33: Estimate
A34: Dose | B34: Dose | C34: = AmntFood × Conc / BW
B35: Central | C35: =$C30 * C9/C$13 -> 2.065726494 | D35: mg/kg bw/day | E35: Eq
B36: Lower | C36: =$C31 * C10/C$13 -> 0.2832996335 | E36: Eq
B37: Upper | C37: =$C32 * C11/C$13 -> 7.525146514 | E37: Eq

Sheet F04d
A1: Consumption of Fruit by a Bird, small after Acute exposure.
A2: Short Title | B2: Fruit | E2: FdKcalV6
A3: Receptor | B3: Bird, small
A4: Duration | B4: Acute | E4: Scenario parameter
A5: Material consumed | B5: Fruit
A6: Parameter/Assumption | B6: Code / Range | C6: Equation/ Value | D6: Units | E6: Reference/Designation
A7: Commodity
A8: Concentration on consumed commodity | B8: Conc
B9: Central | C9: =B05a!Acute_C -> 7 | D9: mg/kg food wet weight | E9: ='B05a'!Acute_C
B10: Lower | C10: =B05a!Acute_L -> 3.2 | E10: ='B05a'!Acute_L
B11: Upper | C11: =B05a!Acute_U -> 15 | E11: ='B05a'!Acute_U
A12: Receptor
A13: Body weight | B13: BW | C13: =A02b!$C$31 -> 0.01 | D13: kg | E13: Default
A14: Allometric coefficients for caloric requirement per day in kilocalories and BW in grams
B15: alpha | C15: =A02b!$C$32 -> 3.12 | E15: U.S. EPA/ORD 1993
B16: beta | C16: =A02b!$C$33 -> 0.605 | E16: U.S. EPA/ORD 1993
A17: Caloric requirement per day | B17: KR | C17: = alpha x (BW x 1kg/1000g)beta
C18: =C15*((C13*1000)^C16) -> 12.56477147 | D18: kcal/day | E18: Eq
A19: Caloric content of commodity (dry weight) | B19: KCD | C19: 1.1 | D19: kcal/gdw [Note 1] | E19: WkMk Documentation
A20: Food consumed per day (dry weight) | B20: AmntDry | C20: = KR ÷ KCD
C21: =C18/C19 -> 11.42251952 | D21: gdry/day | E21: Eq
A22: Water content of vegetation as a proportion | B22: PropWater | C22: 0.77 | D22: gwater/gfood | E22: WkMk Documentation
A23: Dry weight content of vegetation as a proportion | B23: PropDry | C23: = 1-PropWater
C24: =1-C22 -> 0.23 | D24: gdry/gfood | E24: Eq
A25: Variability in caloric requirements not accounted for by allometric equation | B25: Error
B26: Central | C26: 1 | D26: Note 2
B27: Lower | C27: 0.3
B28: Upper | C28: 1.7
A29: Amount of food consumed per day, wet weight | B29: AmntFood | C29: = (AmntDry ÷ PropDry) ÷ (1000g/kg)
B30: Central | C30: =C26*(C$21/C$24)/1000 -> 0.04966312834 | D30: kgfood/day | E30: Eq
B31: Lower | C31: =C27*(C$21/C$24)/1000 -> 0.0148989385 | E31: Eq
B32: Upper | C32: 0.08442731818 | E32: Eq
A33: Estimate
A34: Dose | B34: Dose | C34: = AmntFood × Conc / BW
B35: Central | C35: =$C30 * C9/C$13 -> 34.76418984 | D35: mg/kg bw/day | E35: Eq
B36: Lower | C36: =$C31 * C10/C$13 -> 4.767660321 | E36: Eq
B37: Upper | C37: =$C32 * C11/C$13 -> 126.6409773 | E37: Eq

Sheet F04e
A1: Consumption of Fruit by a Bird, large after Acute exposure.
A2: Short Title | B2: Fruit | E2: FdKcalV6
A3: Receptor | B3: Bird, large
A4: Duration | B4: Acute | E4: Scenario parameter
A5: Material consumed | B5: Fruit
A6: Parameter/Assumption | B6: Code / Range | C6: Equation/ Value | D6: Units | E6: Reference/Designation
A7: Commodity
A8: Concentration on consumed commodity | B8: Conc
B9: Central | C9: =B05a!Acute_C -> 7 | D9: mg/kg food wet weight | E9: ='B05a'!Acute_C
B10: Lower | C10: =B05a!Acute_L -> 3.2 | E10: ='B05a'!Acute_L
B11: Upper | C11: =B05a!Acute_U -> 15 | E11: ='B05a'!Acute_U
A12: Receptor
A13: Body weight | B13: BW | C13: =A02b!$C$15 -> 4 | D13: kg | E13: Default
A14: Allometric coefficients for caloric requirement per day in kilocalories and BW in grams
B15: alpha | C15: =A02b!$C$16 -> 1.146 | E15: U.S. EPA/ORD 1993
B16: beta | C16: =A02b!$C$17 -> 0.749 | E16: U.S. EPA/ORD 1993
A17: Caloric requirement per day | B17: KR | C17: = alpha x (BW x 1kg/1000g)beta
C18: =C15*((C13*1000)^C16) -> 571.6465031 | D18: kcal/day | E18: Eq
A19: Caloric content of commodity (dry weight) | B19: KCD | C19: 1.1 | D19: kcal/gdw [Note 1] | E19: WkMk Documentation
A20: Food consumed per day (dry weight) | B20: AmntDry | C20: = KR ÷ KCD
C21: =C18/C19 -> 519.6786392 | D21: gdry/day | E21: Eq
A22: Water content of vegetation as a proportion | B22: PropWater | C22: 0.77 | D22: gwater/gfood | E22: WkMk Documentation
A23: Dry weight content of vegetation as a proportion | B23: PropDry | C23: = 1-PropWater
C24: =1-C22 -> 0.23 | D24: gdry/gfood | E24: Eq
A25: Variability in caloric requirements not accounted for by allometric equation | B25: Error
B26: Central | C26: 1 | D26: Note 2
B27: Lower | C27: 0.3
B28: Upper | C28: 1.7
A29: Amount of food consumed per day, wet weight | B29: AmntFood | C29: = (AmntDry ÷ PropDry) ÷ (1000g/kg)
B30: Central | C30: =C26*(C$21/C$24)/1000 -> 2.259472344 | D30: kgfood/day | E30: Eq
B31: Lower | C31: =C27*(C$21/C$24)/1000 -> 0.6778417033 | E31: Eq
B32: Upper | C32: 3.841102985 | E32: Eq
A33: Estimate
A34: Dose | B34: Dose | C34: = AmntFood × Conc / BW
B35: Central | C35: =$C30 * C9/C$13 -> 3.954076602 | D35: mg/kg bw/day | E35: Eq
B36: Lower | C36: =$C31 * C10/C$13 -> 0.5422733626 | E36: Eq
B37: Upper | C37: =$C32 * C11/C$13 -> 14.40413619 | E37: Eq

Sheet F05a
A1: Consumption of Short grass by a Mammal, small after Acute exposure.
A2: Short Title | B2: Short grass | E2: FdKcalV6
A3: Receptor | B3: Mammal, small
A4: Duration | B4: Acute | E4: Scenario parameter
A5: Material consumed | B5: Short grass
A6: Parameter/Assumption | B6: Code / Range | C6: Equation/ Value | D6: Units | E6: Reference/Designation
A7: Commodity
A8: Concentration on consumed commodity | B8: Conc
B9: Central | C9: =B05c!Acute_C -> 85 | D9: mg/kg food wet weight | E9: ='B05c'!Acute_C
B10: Lower | C10: =B05c!Acute_L -> 30 | E10: ='B05c'!Acute_L
B11: Upper | C11: =B05c!Acute_U -> 240 | E11: ='B05c'!Acute_U
A12: Receptor
A13: Body weight | B13: BW | C13: =A02b!$C$71 -> 0.02 | D13: kg | E13: Default
A14: Allometric coefficients for caloric requirement per day in kilocalories and BW in grams
B15: alpha | C15: =A02b!$C$75 -> 2.514 | E15: U.S. EPA/ORD 1993
B16: beta | C16: =A02b!$C$76 -> 0.507 | E16: U.S. EPA/ORD 1993
A17: Caloric requirement per day | B17: KR | C17: = alpha x (BW x 1kg/1000g)beta
C18: =C15*((C13*1000)^C16) -> 11.48120526 | D18: kcal/day | E18: Eq
A19: Caloric content of commodity (dry weight) | B19: KCD | C19: 2.26 | D19: kcal/gdw [Note 1] | E19: WkMk Documentation
A20: Food consumed per day (dry weight) | B20: AmntDry | C20: = KR ÷ KCD
C21: =C18/C19 -> 5.080179317 | D21: gdry/day | E21: Eq
A22: Water content of vegetation as a proportion | B22: PropWater | C22: 0.85 | D22: gwater/gfood | E22: WkMk Documentation
A23: Dry weight content of vegetation as a proportion | B23: PropDry | C23: = 1-PropWater
C24: =1-C22 -> 0.15 | D24: gdry/gfood | E24: Eq
A25: Variability in caloric requirements not accounted for by allometric equation | B25: Error
B26: Central | C26: 1 | D26: Note 2
B27: Lower | C27: 0.3
B28: Upper | C28: 1.7
A29: Amount of food consumed per day, wet weight | B29: AmntFood | C29: = (AmntDry ÷ PropDry) ÷ (1000g/kg)
B30: Central | C30: =C26*(C$21/C$24)/1000 -> 0.03386786211 | D30: kgfood/day | E30: Eq
B31: Lower | C31: =C27*(C$21/C$24)/1000 -> 0.01016035863 | E31: Eq
B32: Upper | C32: 0.05757536559 | E32: Eq
A33: Estimate
A34: Dose | B34: Dose | C34: = AmntFood × Conc / BW
B35: Central | C35: =$C30 * C9/C$13 -> 143.938414 | D35: mg/kg bw/day | E35: Eq
B36: Lower | C36: =$C31 * C10/C$13 -> 15.24053795 | E36: Eq
B37: Upper | C37: =$C32 * C11/C$13 -> 690.9043871 | E37: Eq

Sheet F05b
A1: Consumption of Short grass by a Mammal, 400 g after Acute exposure.
A2: Short Title | B2: Short grass | E2: FdKcalV6
A3: Receptor | B3: Mammal, 400 g
A4: Duration | B4: Acute | E4: Scenario parameter
A5: Material consumed | B5: Short grass
A6: Parameter/Assumption | B6: Code / Range | C6: Equation/ Value | D6: Units | E6: Reference/Designation
A7: Commodity
A8: Concentration on consumed commodity | B8: Conc
B9: Central | C9: =B05c!Acute_C -> 85 | D9: mg/kg food wet weight | E9: ='B05c'!Acute_C
B10: Lower | C10: =B05c!Acute_L -> 30 | E10: ='B05c'!Acute_L
B11: Upper | C11: =B05c!Acute_U -> 240 | E11: ='B05c'!Acute_U
A12: Receptor
A13: Body weight | B13: BW | C13: =A02b!$C$40 -> 0.4 | D13: kg | E13: Default
A14: Allometric coefficients for caloric requirement per day in kilocalories and BW in grams
B15: alpha | C15: =A02b!$C$43 -> 2.514 | E15: U.S. EPA/ORD 1993
B16: beta | C16: =A02b!$C$44 -> 0.507 | E16: U.S. EPA/ORD 1993
A17: Caloric requirement per day | B17: KR | C17: = alpha x (BW x 1kg/1000g)beta
C18: =C15*((C13*1000)^C16) -> 52.43360149 | D18: kcal/day | E18: Eq
A19: Caloric content of commodity (dry weight) | B19: KCD | C19: 2.26 | D19: kcal/gdw [Note 1] | E19: WkMk Documentation
A20: Food consumed per day (dry weight) | B20: AmntDry | C20: = KR ÷ KCD
C21: =C18/C19 -> 23.20070862 | D21: gdry/day | E21: Eq
A22: Water content of vegetation as a proportion | B22: PropWater | C22: 0.85 | D22: gwater/gfood | E22: WkMk Documentation
A23: Dry weight content of vegetation as a proportion | B23: PropDry | C23: = 1-PropWater
C24: =1-C22 -> 0.15 | D24: gdry/gfood | E24: Eq
A25: Variability in caloric requirements not accounted for by allometric equation | B25: Error
B26: Central | C26: 1 | D26: Note 2
B27: Lower | C27: 0.3
B28: Upper | C28: 1.7
A29: Amount of food consumed per day, wet weight | B29: AmntFood | C29: = (AmntDry ÷ PropDry) ÷ (1000g/kg)
B30: Central | C30: =C26*(C$21/C$24)/1000 -> 0.1546713908 | D30: kgfood/day | E30: Eq
B31: Lower | C31: =C27*(C$21/C$24)/1000 -> 0.04640141724 | E31: Eq
B32: Upper | C32: 0.2629413644 | E32: Eq
A33: Estimate
A34: Dose | B34: Dose | C34: = AmntFood × Conc / BW
B35: Central | C35: =$C30 * C9/C$13 -> 32.86767055 | D35: mg/kg bw/day | E35: Eq
B36: Lower | C36: =$C31 * C10/C$13 -> 3.480106293 | E36: Eq
B37: Upper | C37: =$C32 * C11/C$13 -> 157.7648186 | E37: Eq

Sheet F05c
A1: Consumption of Short grass by a Mammal, large after Acute exposure.
A2: Short Title | B2: Short grass | E2: FdKcalV6
A3: Receptor | B3: Mammal, large
A4: Duration | B4: Acute | E4: Scenario parameter
A5: Material consumed | B5: Short grass
A6: Parameter/Assumption | B6: Code / Range | C6: Equation/ Value | D6: Units | E6: Reference/Designation
A7: Commodity
A8: Concentration on consumed commodity | B8: Conc
B9: Central | C9: =B05c!Acute_C -> 85 | D9: mg/kg food wet weight | E9: ='B05c'!Acute_C
B10: Lower | C10: =B05c!Acute_L -> 30 | E10: ='B05c'!Acute_L
B11: Upper | C11: =B05c!Acute_U -> 240 | E11: ='B05c'!Acute_U
A12: Receptor
A13: Body weight | B13: BW | C13: =A02b!$C$61 -> 70 | D13: kg | E13: Default
A14: Allometric coefficients for caloric requirement per day in kilocalories and BW in grams
B15: alpha | C15: =A02b!$C$62 -> 1.518 | E15: U.S. EPA/ORD 1993
B16: beta | C16: =A02b!$C$63 -> 0.73 | E16: U.S. EPA/ORD 1993
A17: Caloric requirement per day | B17: KR | C17: = alpha x (BW x 1kg/1000g)beta
C18: =C15*((C13*1000)^C16) -> 5226.28803 | D18: kcal/day | E18: Eq
A19: Caloric content of commodity (dry weight) | B19: KCD | C19: 2.26 | D19: kcal/gdw [Note 1] | E19: WkMk Documentation
A20: Food consumed per day (dry weight) | B20: AmntDry | C20: = KR ÷ KCD
C21: =C18/C19 -> 2312.516827 | D21: gdry/day | E21: Eq
A22: Water content of vegetation as a proportion | B22: PropWater | C22: 0.85 | D22: gwater/gfood | E22: WkMk Documentation
A23: Dry weight content of vegetation as a proportion | B23: PropDry | C23: = 1-PropWater
C24: =1-C22 -> 0.15 | D24: gdry/gfood | E24: Eq
A25: Variability in caloric requirements not accounted for by allometric equation | B25: Error
B26: Central | C26: 1 | D26: Note 2
B27: Lower | C27: 0.3
B28: Upper | C28: 1.7
A29: Amount of food consumed per day, wet weight | B29: AmntFood | C29: = (AmntDry ÷ PropDry) ÷ (1000g/kg)
B30: Central | C30: =C26*(C$21/C$24)/1000 -> 15.41677885 | D30: kgfood/day | E30: Eq
B31: Lower | C31: =C27*(C$21/C$24)/1000 -> 4.625033655 | E31: Eq
B32: Upper | C32: 26.20852404 | E32: Eq
A33: Estimate
A34: Dose | B34: Dose | C34: = AmntFood × Conc / BW
B35: Central | C35: =$C30 * C9/C$13 -> 18.72037432 | D35: mg/kg bw/day | E35: Eq
B36: Lower | C36: =$C31 * C10/C$13 -> 1.982157281 | E36: Eq
B37: Upper | C37: =$C32 * C11/C$13 -> 89.85779672 | E37: Eq

Sheet F05d
A1: Consumption of Short grass by a Bird, small after Acute exposure.
A2: Short Title | B2: Short grass | E2: FdKcalV6
A3: Receptor | B3: Bird, small
A4: Duration | B4: Acute | E4: Scenario parameter
A5: Material consumed | B5: Short grass
A6: Parameter/Assumption | B6: Code / Range | C6: Equation/ Value | D6: Units | E6: Reference/Designation
A7: Commodity
A8: Concentration on consumed commodity | B8: Conc
B9: Central | C9: =B05c!Acute_C -> 85 | D9: mg/kg food wet weight | E9: ='B05c'!Acute_C
B10: Lower | C10: =B05c!Acute_L -> 30 | E10: ='B05c'!Acute_L
B11: Upper | C11: =B05c!Acute_U -> 240 | E11: ='B05c'!Acute_U
A12: Receptor
A13: Body weight | B13: BW | C13: =A02b!$C$31 -> 0.01 | D13: kg | E13: Default
A14: Allometric coefficients for caloric requirement per day in kilocalories and BW in grams
B15: alpha | C15: =A02b!$C$32 -> 3.12 | E15: U.S. EPA/ORD 1993
B16: beta | C16: =A02b!$C$33 -> 0.605 | E16: U.S. EPA/ORD 1993
A17: Caloric requirement per day | B17: KR | C17: = alpha x (BW x 1kg/1000g)beta
C18: =C15*((C13*1000)^C16) -> 12.56477147 | D18: kcal/day | E18: Eq
A19: Caloric content of commodity (dry weight) | B19: KCD | C19: 2 | D19: kcal/gdw [Note 1] | E19: WkMk Documentation
A20: Food consumed per day (dry weight) | B20: AmntDry | C20: = KR ÷ KCD
C21: =C18/C19 -> 6.282385735 | D21: gdry/day | E21: Eq
A22: Water content of vegetation as a proportion | B22: PropWater | C22: 0.85 | D22: gwater/gfood | E22: WkMk Documentation
A23: Dry weight content of vegetation as a proportion | B23: PropDry | C23: = 1-PropWater
C24: =1-C22 -> 0.15 | D24: gdry/gfood | E24: Eq
A25: Variability in caloric requirements not accounted for by allometric equation | B25: Error
B26: Central | C26: 1 | D26: Note 2
B27: Lower | C27: 0.3
B28: Upper | C28: 1.7
A29: Amount of food consumed per day, wet weight | B29: AmntFood | C29: = (AmntDry ÷ PropDry) ÷ (1000g/kg)
B30: Central | C30: =C26*(C$21/C$24)/1000 -> 0.04188257157 | D30: kgfood/day | E30: Eq
B31: Lower | C31: =C27*(C$21/C$24)/1000 -> 0.01256477147 | E31: Eq
B32: Upper | C32: 0.07120037167 | E32: Eq
A33: Estimate
A34: Dose | B34: Dose | C34: = AmntFood × Conc / BW
B35: Central | C35: =$C30 * C9/C$13 -> 356.0018583 | D35: mg/kg bw/day | E35: Eq
B36: Lower | C36: =$C31 * C10/C$13 -> 37.69431441 | E36: Eq
B37: Upper | C37: =$C32 * C11/C$13 -> 1708.80892 | E37: Eq

Sheet F05e
A1: Consumption of Short grass by a Bird, large after Acute exposure.
A2: Short Title | B2: Short grass | E2: FdKcalV6
A3: Receptor | B3: Bird, large
A4: Duration | B4: Acute | E4: Scenario parameter
A5: Material consumed | B5: Short grass
A6: Parameter/Assumption | B6: Code / Range | C6: Equation/ Value | D6: Units | E6: Reference/Designation
A7: Commodity
A8: Concentration on consumed commodity | B8: Conc
B9: Central | C9: =B05c!Acute_C -> 85 | D9: mg/kg food wet weight | E9: ='B05c'!Acute_C
B10: Lower | C10: =B05c!Acute_L -> 30 | E10: ='B05c'!Acute_L
B11: Upper | C11: =B05c!Acute_U -> 240 | E11: ='B05c'!Acute_U
A12: Receptor
A13: Body weight | B13: BW | C13: =A02b!$C$15 -> 4 | D13: kg | E13: Default
A14: Allometric coefficients for caloric requirement per day in kilocalories and BW in grams
B15: alpha | C15: =A02b!$C$16 -> 1.146 | E15: U.S. EPA/ORD 1993
B16: beta | C16: =A02b!$C$17 -> 0.749 | E16: U.S. EPA/ORD 1993
A17: Caloric requirement per day | B17: KR | C17: = alpha x (BW x 1kg/1000g)beta
C18: =C15*((C13*1000)^C16) -> 571.6465031 | D18: kcal/day | E18: Eq
A19: Caloric content of commodity (dry weight) | B19: KCD | C19: 2 | D19: kcal/gdw [Note 1] | E19: WkMk Documentation
A20: Food consumed per day (dry weight) | B20: AmntDry | C20: = KR ÷ KCD
C21: =C18/C19 -> 285.8232515 | D21: gdry/day | E21: Eq
A22: Water content of vegetation as a proportion | B22: PropWater | C22: 0.85 | D22: gwater/gfood | E22: WkMk Documentation
A23: Dry weight content of vegetation as a proportion | B23: PropDry | C23: = 1-PropWater
C24: =1-C22 -> 0.15 | D24: gdry/gfood | E24: Eq
A25: Variability in caloric requirements not accounted for by allometric equation | B25: Error
B26: Central | C26: 1 | D26: Note 2
B27: Lower | C27: 0.3
B28: Upper | C28: 1.7
A29: Amount of food consumed per day, wet weight | B29: AmntFood | C29: = (AmntDry ÷ PropDry) ÷ (1000g/kg)
B30: Central | C30: =C26*(C$21/C$24)/1000 -> 1.905488344 | D30: kgfood/day | E30: Eq
B31: Lower | C31: =C27*(C$21/C$24)/1000 -> 0.5716465031 | E31: Eq
B32: Upper | C32: 3.239330184 | E32: Eq
A33: Estimate
A34: Dose | B34: Dose | C34: = AmntFood × Conc / BW
B35: Central | C35: =$C30 * C9/C$13 -> 40.4916273 | D35: mg/kg bw/day | E35: Eq
B36: Lower | C36: =$C31 * C10/C$13 -> 4.287348773 | E36: Eq
B37: Upper | C37: =$C32 * C11/C$13 -> 194.359811 | E37: Eq

Sheet F06a
A1: Consumption of contaminated water by Mammal, small, Peak Concentrations
A2: Short Title | B2: Peak Concentrations | E2: WatAlloV6
A3: Receptor | B3: Mammal, small
A4: Duration | B4: Acute | E4: Scenario parameter
A5: Parameter/Assumption | B5: Code / Range | C5: Equation/ Value | D5: Units | E5: Reference/Designation
A6: Concentration in water | B6: ConcWat
B7: Central | C7: =B04a!Acute_C -> 0.011 | D7: mg/L | E7: ='B04a'!Acute_C
B8: Lower | C8: =B04a!Acute_L -> 0.001 | E8: ='B04a'!Acute_L
B9: Upper | C9: =B04a!Acute_U -> 0.18 | E9: ='B04a'!Acute_U
A10: Receptor
A11: Body weight | B11: BW | C11: =A02b!$C$71 -> 0.02 | D11: kg | E11: Default
A12: Allometric coefficients forwater consumption per day in liters and BW in kilograms
B13: alpha | C13: =A02b!$C$79 -> 0.099 | E13: U.S. EPA/ORD 1993
B14: beta | C14: =A02b!$C$80 -> 0.9 | E14: U.S. EPA/ORD 1993
A15: Amount of water consumed per day | C15: Amnt = alpha BW beta
B16: Amnt | C16: =C13*(C11^C14) -> 0.002927940121 | D16: liters | E16: Eq
A17: Absorbed Dose | B17: Dose | C17: ConcWat × Amnt ÷ BW
B18: Central | C18: =C7*C$16/C$11 -> 0.001610367066 | D18: mg/kg | E18: Eq
B19: Lower | C19: =C8*C$16/C$11 -> 0.000146397006 | D19: mg/kg | E19: Eq
B20: Upper | C20: =C9*C$16/C$11 -> 0.02635146108 | D20: mg/kg | E20: Eq

Sheet F06b
A1: Consumption of contaminated water by Mammal, 400 g, Peak Concentrations
A2: Short Title | B2: Peak Concentrations | E2: WatAlloV6
A3: Receptor | B3: Mammal, 400 g
A4: Duration | B4: Acute | E4: Scenario parameter
A5: Parameter/Assumption | B5: Code / Range | C5: Equation/ Value | D5: Units | E5: Reference/Designation
A6: Concentration in water | B6: ConcWat
B7: Central | C7: =B04a!Acute_C -> 0.011 | D7: mg/L | E7: ='B04a'!Acute_C
B8: Lower | C8: =B04a!Acute_L -> 0.001 | E8: ='B04a'!Acute_L
B9: Upper | C9: =B04a!Acute_U -> 0.18 | E9: ='B04a'!Acute_U
A10: Receptor
A11: Body weight | B11: BW | C11: =A02b!$C$40 -> 0.4 | D11: kg | E11: Default
A12: Allometric coefficients forwater consumption per day in liters and BW in kilograms
B13: alpha | C13: =A02b!$C$45 -> 0.099 | E13: U.S. EPA/ORD 1993
B14: beta | C14: =A02b!$C$46 -> 0.9 | E14: U.S. EPA/ORD 1993
A15: Amount of water consumed per day | C15: Amnt = alpha BW beta
B16: Amnt | C16: =C13*(C11^C14) -> 0.04339994576 | D16: liters | E16: Eq
A17: Absorbed Dose | B17: Dose | C17: ConcWat × Amnt ÷ BW
B18: Central | C18: =C7*C$16/C$11 -> 0.001193498509 | D18: mg/kg | E18: Eq
B19: Lower | C19: =C8*C$16/C$11 -> 0.0001084998644 | D19: mg/kg | E19: Eq
B20: Upper | C20: =C9*C$16/C$11 -> 0.01952997559 | D20: mg/kg | E20: Eq

Sheet F06c
A1: Consumption of contaminated water by Mammal, carnivorous, Peak Concentrations
A2: Short Title | B2: Peak Concentrations | E2: WatAlloV6
A3: Receptor | B3: Mammal, carnivorous
A4: Duration | B4: Acute | E4: Scenario parameter
A5: Parameter/Assumption | B5: Code / Range | C5: Equation/ Value | D5: Units | E5: Reference/Designation
A6: Concentration in water | B6: ConcWat
B7: Central | C7: =B04a!Acute_C -> 0.011 | D7: mg/L | E7: ='B04a'!Acute_C
B8: Lower | C8: =B04a!Acute_L -> 0.001 | E8: ='B04a'!Acute_L
B9: Upper | C9: =B04a!Acute_U -> 0.18 | E9: ='B04a'!Acute_U
A10: Receptor
A11: Body weight | B11: BW | C11: =A02b!$C$47 -> 5 | D11: kg | E11: U.S. EPA/ORD 1993
A12: Allometric coefficients forwater consumption per day in liters and BW in kilograms
B13: alpha | C13: =A02b!$C$50 -> 0.099 | E13: U.S. EPA/ORD 1993
B14: beta | C14: =A02b!$C$51 -> 0.9 | E14: U.S. EPA/ORD 1993
A15: Amount of water consumed per day | C15: Amnt = alpha BW beta
B16: Amnt | C16: =C13*(C11^C14) -> 0.4214132616 | D16: liters | E16: Eq
A17: Absorbed Dose | B17: Dose | C17: ConcWat × Amnt ÷ BW
B18: Central | C18: =C7*C$16/C$11 -> 0.0009271091756 | D18: mg/kg | E18: Eq
B19: Lower | C19: =C8*C$16/C$11 -> 8.428265233e-05 | D19: mg/kg | E19: Eq
B20: Upper | C20: =C9*C$16/C$11 -> 0.01517087742 | D20: mg/kg | E20: Eq

Sheet F06d
A1: Consumption of contaminated water by Mammal, large, Peak Concentrations
A2: Short Title | B2: Peak Concentrations | E2: WatAlloV6
A3: Receptor | B3: Mammal, large
A4: Duration | B4: Acute | E4: Scenario parameter
A5: Parameter/Assumption | B5: Code / Range | C5: Equation/ Value | D5: Units | E5: Reference/Designation
A6: Concentration in water | B6: ConcWat
B7: Central | C7: =B04a!Acute_C -> 0.011 | D7: mg/L | E7: ='B04a'!Acute_C
B8: Lower | C8: =B04a!Acute_L -> 0.001 | E8: ='B04a'!Acute_L
B9: Upper | C9: =B04a!Acute_U -> 0.18 | E9: ='B04a'!Acute_U
A10: Receptor
A11: Body weight | B11: BW | C11: =A02b!$C$61 -> 70 | D11: kg | E11: Default
A12: Allometric coefficients forwater consumption per day in liters and BW in kilograms
B13: alpha | C13: =A02b!$C$64 -> 0.099 | E13: U.S. EPA/ORD 1993
B14: beta | C14: =A02b!$C$65 -> 0.9 | E14: U.S. EPA/ORD 1993
A15: Amount of water consumed per day | C15: Amnt = alpha BW beta
B16: Amnt | C16: =C13*(C11^C14) -> 4.531306412 | D16: liters | E16: Eq
A17: Absorbed Dose | B17: Dose | C17: ConcWat × Amnt ÷ BW
B18: Central | C18: =C7*C$16/C$11 -> 0.0007120624361 | D18: mg/kg | E18: Eq
B19: Lower | C19: =C8*C$16/C$11 -> 6.473294874e-05 | D19: mg/kg | E19: Eq
B20: Upper | C20: =C9*C$16/C$11 -> 0.01165193077 | D20: mg/kg | E20: Eq

Sheet F06e
A1: Consumption of contaminated water by Bird, small, Peak Concentrations
A2: Short Title | B2: Peak Concentrations | E2: WatAlloV6
A3: Receptor | B3: Bird, small
A4: Duration | B4: Acute | E4: Scenario parameter
A5: Parameter/Assumption | B5: Code / Range | C5: Equation/ Value | D5: Units | E5: Reference/Designation
A6: Concentration in water | B6: ConcWat
B7: Central | C7: =B04a!Acute_C -> 0.011 | D7: mg/L | E7: ='B04a'!Acute_C
B8: Lower | C8: =B04a!Acute_L -> 0.001 | E8: ='B04a'!Acute_L
B9: Upper | C9: =B04a!Acute_U -> 0.18 | E9: ='B04a'!Acute_U
A10: Receptor
A11: Body weight | B11: BW | C11: =A02b!$C$31 -> 0.01 | D11: kg | E11: Default
A12: Allometric coefficients forwater consumption per day in liters and BW in kilograms
B13: alpha | C13: =A02b!$C$34 -> 0.059 | E13: U.S. EPA/ORD 1993
B14: beta | C14: =A02b!$C$35 -> 0.67 | E14: U.S. EPA/ORD 1993
A15: Amount of water consumed per day | C15: Amnt = alpha BW beta
B16: Amnt | C16: =C13*(C11^C14) -> 0.002696820319 | D16: liters | E16: Eq
A17: Absorbed Dose | B17: Dose | C17: ConcWat × Amnt ÷ BW
B18: Central | C18: =C7*C$16/C$11 -> 0.002966502351 | D18: mg/kg | E18: Eq
B19: Lower | C19: =C8*C$16/C$11 -> 0.0002696820319 | D19: mg/kg | E19: Eq
B20: Upper | C20: =C9*C$16/C$11 -> 0.04854276574 | D20: mg/kg | E20: Eq

Sheet F06f
A1: Consumption of contaminated water by Bird, large, Peak Concentrations
A2: Short Title | B2: Peak Concentrations | E2: WatAlloV6
A3: Receptor | B3: Bird, large
A4: Duration | B4: Acute | E4: Scenario parameter
A5: Parameter/Assumption | B5: Code / Range | C5: Equation/ Value | D5: Units | E5: Reference/Designation
A6: Concentration in water | B6: ConcWat
B7: Central | C7: =B04a!Acute_C -> 0.011 | D7: mg/L | E7: ='B04a'!Acute_C
B8: Lower | C8: =B04a!Acute_L -> 0.001 | E8: ='B04a'!Acute_L
B9: Upper | C9: =B04a!Acute_U -> 0.18 | E9: ='B04a'!Acute_U
A10: Receptor
A11: Body weight | B11: BW | C11: =A02b!$C$15 -> 4 | D11: kg | E11: Default
A12: Allometric coefficients forwater consumption per day in liters and BW in kilograms
B13: alpha | C13: =A02b!$C$18 -> 0.059 | E13: U.S. EPA/ORD 1993
B14: beta | C14: =A02b!$C$19 -> 0.67 | E14: U.S. EPA/ORD 1993
A15: Amount of water consumed per day | C15: Amnt = alpha BW beta
B16: Amnt | C16: =C13*(C11^C14) -> 0.1493592781 | D16: liters | E16: Eq
A17: Absorbed Dose | B17: Dose | C17: ConcWat × Amnt ÷ BW
B18: Central | C18: =C7*C$16/C$11 -> 0.0004107380147 | D18: mg/kg | E18: Eq
B19: Lower | C19: =C8*C$16/C$11 -> 3.733981952e-05 | D19: mg/kg | E19: Eq
B20: Upper | C20: =C9*C$16/C$11 -> 0.006721167514 | D20: mg/kg | E20: Eq

Sheet F07a
A1: Consumption of Small Insects by a Mammal, small after Acute exposure.
A2: Short Title | B2: Small Insects | E2: FdKcalV6
A3: Receptor | B3: Mammal, small
A4: Duration | B4: Acute | E4: Scenario parameter
A5: Material consumed | B5: Small Insects
A6: Parameter/Assumption | B6: Code / Range | C6: Equation/ Value | D6: Units | E6: Reference/Designation
A7: Commodity
A8: Concentration on consumed commodity | B8: Conc
B9: Central | C9: =B05b!Acute_C -> 45 | D9: mg/kg food wet weight | E9: ='B05b'!Acute_C
B10: Lower | C10: =B05b!Acute_L -> 15 | E10: ='B05b'!Acute_L
B11: Upper | C11: =B05b!Acute_U -> 135 | E11: ='B05b'!Acute_U
A12: Receptor
A13: Body weight | B13: BW | C13: =A02b!$C$71 -> 0.02 | D13: kg | E13: Default
A14: Allometric coefficients for caloric requirement per day in kilocalories and BW in grams
B15: alpha | C15: =A02b!$C$75 -> 2.514 | E15: U.S. EPA/ORD 1993
B16: beta | C16: =A02b!$C$76 -> 0.507 | E16: U.S. EPA/ORD 1993
A17: Caloric requirement per day | B17: KR | C17: = alpha x (BW x 1kg/1000g)beta
C18: =C15*((C13*1000)^C16) -> 11.48120526 | D18: kcal/day | E18: Eq
A19: Caloric content of commodity (dry weight) | B19: KCD | C19: 4.47 | D19: kcal/gdw [Note 1] | E19: WkMk Documentation
A20: Food consumed per day (dry weight) | B20: AmntDry | C20: = KR ÷ KCD
C21: =C18/C19 -> 2.568502294 | D21: gdry/day | E21: Eq
A22: Water content of vegetation as a proportion | B22: PropWater | C22: 0.7 | D22: gwater/gfood | E22: WkMk Documentation
A23: Dry weight content of vegetation as a proportion | B23: PropDry | C23: = 1-PropWater
C24: =1-C22 -> 0.3 | D24: gdry/gfood | E24: Eq
A25: Variability in caloric requirements not accounted for by allometric equation | B25: Error
B26: Central | C26: 1 | D26: Note 2
B27: Lower | C27: 0.3
B28: Upper | C28: 1.7
A29: Amount of food consumed per day, wet weight | B29: AmntFood | C29: = (AmntDry ÷ PropDry) ÷ (1000g/kg)
B30: Central | C30: =C26*(C$21/C$24)/1000 -> 0.008561674315 | D30: kgfood/day | E30: Eq
B31: Lower | C31: =C27*(C$21/C$24)/1000 -> 0.002568502294 | E31: Eq
B32: Upper | C32: 0.01455484634 | E32: Eq
A33: Estimate
A34: Dose | B34: Dose | C34: = AmntFood × Conc / BW
B35: Central | C35: =$C30 * C9/C$13 -> 19.26376721 | D35: mg/kg bw/day | E35: Eq
B36: Lower | C36: =$C31 * C10/C$13 -> 1.926376721 | E36: Eq
B37: Upper | C37: =$C32 * C11/C$13 -> 98.24521276 | E37: Eq

Sheet F07b
A1: Consumption of Small Insects by a Mammal, 400 g after Acute exposure.
A2: Short Title | B2: Small Insects | E2: FdKcalV6
A3: Receptor | B3: Mammal, 400 g
A4: Duration | B4: Acute | E4: Scenario parameter
A5: Material consumed | B5: Small Insects
A6: Parameter/Assumption | B6: Code / Range | C6: Equation/ Value | D6: Units | E6: Reference/Designation
A7: Commodity
A8: Concentration on consumed commodity | B8: Conc
B9: Central | C9: =B05b!Acute_C -> 45 | D9: mg/kg food wet weight | E9: ='B05b'!Acute_C
B10: Lower | C10: =B05b!Acute_L -> 15 | E10: ='B05b'!Acute_L
B11: Upper | C11: =B05b!Acute_U -> 135 | E11: ='B05b'!Acute_U
A12: Receptor
A13: Body weight | B13: BW | C13: =A02b!$C$40 -> 0.4 | D13: kg | E13: Default
A14: Allometric coefficients for caloric requirement per day in kilocalories and BW in grams
B15: alpha | C15: =A02b!$C$43 -> 2.514 | E15: U.S. EPA/ORD 1993
B16: beta | C16: =A02b!$C$44 -> 0.507 | E16: U.S. EPA/ORD 1993
A17: Caloric requirement per day | B17: KR | C17: = alpha x (BW x 1kg/1000g)beta
C18: =C15*((C13*1000)^C16) -> 52.43360149 | D18: kcal/day | E18: Eq
A19: Caloric content of commodity (dry weight) | B19: KCD | C19: 4.47 | D19: kcal/gdw [Note 1] | E19: WkMk Documentation
A20: Food consumed per day (dry weight) | B20: AmntDry | C20: = KR ÷ KCD
C21: =C18/C19 -> 11.73011219 | D21: gdry/day | E21: Eq
A22: Water content of vegetation as a proportion | B22: PropWater | C22: 0.7 | D22: gwater/gfood | E22: WkMk Documentation
A23: Dry weight content of vegetation as a proportion | B23: PropDry | C23: = 1-PropWater
C24: =1-C22 -> 0.3 | D24: gdry/gfood | E24: Eq
A25: Variability in caloric requirements not accounted for by allometric equation | B25: Error
B26: Central | C26: 1 | D26: Note 2
B27: Lower | C27: 0.3
B28: Upper | C28: 1.7
A29: Amount of food consumed per day, wet weight | B29: AmntFood | C29: = (AmntDry ÷ PropDry) ÷ (1000g/kg)
B30: Central | C30: =C26*(C$21/C$24)/1000 -> 0.03910037396 | D30: kgfood/day | E30: Eq
B31: Lower | C31: =C27*(C$21/C$24)/1000 -> 0.01173011219 | E31: Eq
B32: Upper | C32: 0.06647063574 | E32: Eq
A33: Estimate
A34: Dose | B34: Dose | C34: = AmntFood × Conc / BW
B35: Central | C35: =$C30 * C9/C$13 -> 4.398792071 | D35: mg/kg bw/day | E35: Eq
B36: Lower | C36: =$C31 * C10/C$13 -> 0.4398792071 | E36: Eq
B37: Upper | C37: =$C32 * C11/C$13 -> 22.43383956 | E37: Eq

Sheet F07c
A1: Consumption of Small Insects by a Bird, small after Acute exposure.
A2: Short Title | B2: Small Insects | E2: FdKcalV6
A3: Receptor | B3: Bird, small
A4: Duration | B4: Acute | E4: Scenario parameter
A5: Material consumed | B5: Small Insects
A6: Parameter/Assumption | B6: Code / Range | C6: Equation/ Value | D6: Units | E6: Reference/Designation
A7: Commodity
A8: Concentration on consumed commodity | B8: Conc
B9: Central | C9: =B05b!Acute_C -> 45 | D9: mg/kg food wet weight | E9: ='B05b'!Acute_C
B10: Lower | C10: =B05b!Acute_L -> 15 | E10: ='B05b'!Acute_L
B11: Upper | C11: =B05b!Acute_U -> 135 | E11: ='B05b'!Acute_U
A12: Receptor
A13: Body weight | B13: BW | C13: =A02b!$C$31 -> 0.01 | D13: kg | E13: Default
A14: Allometric coefficients for caloric requirement per day in kilocalories and BW in grams
B15: alpha | C15: =A02b!$C$32 -> 3.12 | E15: U.S. EPA/ORD 1993
B16: beta | C16: =A02b!$C$33 -> 0.605 | E16: U.S. EPA/ORD 1993
A17: Caloric requirement per day | B17: KR | C17: = alpha x (BW x 1kg/1000g)beta
C18: =C15*((C13*1000)^C16) -> 12.56477147 | D18: kcal/day | E18: Eq
A19: Caloric content of commodity (dry weight) | B19: KCD | C19: 4.3 | D19: kcal/gdw [Note 1] | E19: WkMk Documentation
A20: Food consumed per day (dry weight) | B20: AmntDry | C20: = KR ÷ KCD
C21: =C18/C19 -> 2.922039877 | D21: gdry/day | E21: Eq
A22: Water content of vegetation as a proportion | B22: PropWater | C22: 0.7 | D22: gwater/gfood | E22: WkMk Documentation
A23: Dry weight content of vegetation as a proportion | B23: PropDry | C23: = 1-PropWater
C24: =1-C22 -> 0.3 | D24: gdry/gfood | E24: Eq
A25: Variability in caloric requirements not accounted for by allometric equation | B25: Error
B26: Central | C26: 1 | D26: Note 2
B27: Lower | C27: 0.3
B28: Upper | C28: 1.7
A29: Amount of food consumed per day, wet weight | B29: AmntFood | C29: = (AmntDry ÷ PropDry) ÷ (1000g/kg)
B30: Central | C30: =C26*(C$21/C$24)/1000 -> 0.009740132923 | D30: kgfood/day | E30: Eq
B31: Lower | C31: =C27*(C$21/C$24)/1000 -> 0.002922039877 | E31: Eq
B32: Upper | C32: 0.01655822597 | E32: Eq
A33: Estimate
A34: Dose | B34: Dose | C34: = AmntFood × Conc / BW
B35: Central | C35: =$C30 * C9/C$13 -> 43.83059815 | D35: mg/kg bw/day | E35: Eq
B36: Lower | C36: =$C31 * C10/C$13 -> 4.383059815 | E36: Eq
B37: Upper | C37: =$C32 * C11/C$13 -> 223.5360506 | E37: Eq

Sheet F08a
A1: Consumption of Small Mammal by Mammal, carnivorous, acute exposure scenario
A2: Short Title | B2: Consumption of Abrev(Prey) | E2: SmMKcalInd_Ac
A3: Predator | B3: Mammal, carnivorous
A4: Duration | B4: Acute
A5: Prey | B5: Mammal, small
A6: Parameter/Assumption | B6: Code / Range | C6: Equation/ Value | D6: Units | E6: Reference/Designation
A7: Application rate, lb/acre | B7: ApRlb/ac | C7: ='A01'!ApRt_C -> 1 | D7: lb/acre | E7: Worksheet A01
A8: Conversion Factor for lbs/acre to mg/cm2 | B8: CnvF | C8: 0.01121 | D8: mg/cm2/lb/acre
A9: Application rate, mg/cm2 | B9: ApRmgcm | C9: ApRlb/a × CnvF
C10: =C7*C$8 -> 0.01121 | D10: lb/acre | E10: Eq
A11: Prey
A12: Body weight | B12: BWPrey | C12: =A02b!$C$71 -> 0.02 | D12: kg | E12: Default
A13: Allometric coefficients for surface area
B14: alpha | C14: =A02b!$C$77 -> 0.11 | E14: U.S. EPA/ORD 1993
B15: beta | C15: =A02b!$C$78 -> 0.65 | E15: U.S. EPA/ORD 1993
A16: Surface Area of Prey Species (m2) | B16: SAPreyM | C16: alpha x Bwbeta
C17: =C14 * C12^C15 -> 0.008650917739 | D17: meters
A18: Surface Area of Prey Species (cm2) | B18: SAPrey | C18: SAPreyM x 10,000 cm/m2
C19: =C17*10000 -> 86.50917739 | D19: cm2 | E19: Eq
A20: Proportion of body surface sprayed | B20: PrpSA | C20: 0.5 | D20: unitless | E20: Scenario parameter
A21: Amount Deposited on Skin | B21: AmntPrey | C21: ApRmgcm × SA × PrpSA
B22: Central | C22: =C$10*C$19*C$20 -> 0.4848839392 | D22: mg | E22: Eq
A23: Toxic Equivalency Factor for formulation: (See risk assessment if this has a value other than 1.) | B23: TEF
B24: Central | C24: ='A01'!C$35 -> 1 | D24: unitless | E24: Worksheet A01
B25: Lower | C25: ='A01'!C$36 -> 1 | E25: Worksheet A01
B26: Upper | C26: ='A01'!C$37 -> 1 | E26: Worksheet A01
A27: Concentration on prey item after direct spray | B27: DosePrey | C27: Amnt x TEF ÷ BW
B28: Central | C28: =C$22*C24/C$12 -> 24.24419696 | D28: mg/kg bw | E28: Eq
B29: Lower | C29: =C$22*C25/C$12 -> 24.24419696 | E29: Eq
B30: Upper | C30: =C$22*C26/C$12 -> 24.24419696 | E30: Eq
A31: Predator
A32: Body weight | B32: BW | C32: =A02b!$C$47 -> 5 | D32: kg | E32: U.S. EPA/ORD 1993
A33: Allometric coefficients for caloric requirement per day in kilocalories and BW in grams
B34: alpha | C34: =A02b!$C$48 -> 0.6167 | E34: U.S. EPA/ORD 1993
B35: beta | C35: =A02b!$C$49 -> 0.862 | E35: U.S. EPA/ORD 1993
A36: Caloric requirement per day | B36: KR | C36: =C34*((C32*1000)^C35) -> 951.8885266 | D36: kcal/day | E36: Eq
A37: Caloric content of prey (wet weight) | B37: KCW | C37: =A02b!$C$72 -> 1.7 | D37: kcal/g | E37: U.S. EPA/ORD 1993
A38: Amount of food consumed per day, wet weight | B38: Amnt | C38: (KR ÷ KCW)/1000 g/kg
C39: =(C36/C37)/1000 -> 0.5599344274 | D39: kg | E39: Eq
A40: Dose | B40: Dose | C40: Amnt × DosePrey / BW
B41: Central | C41: =C$39 * C28/C$32 -> 2.715032109 | D41: mg/kg bw | E41: Eq
B42: Lower | C42: =C$39 * C29/C$32 -> 2.715032109 | E42: Eq
B43: Upper | C43: =C$39 * C30/C$32 -> 2.715032109 | E43: Eq

Sheet F08b
A1: Consumption of Small Mammal by Bird, carnivorous, acute exposure scenario
A2: Short Title | B2: Consumption of Abrev(Prey) | E2: SmMKcalInd_Ac
A3: Predator | B3: Bird, carnivorous
A4: Duration | B4: Acute
A5: Prey | B5: Mammal, small
A6: Parameter/Assumption | B6: Code / Range | C6: Equation/ Value | D6: Units | E6: Reference/Designation
A7: Application rate, lb/acre | B7: ApRlb/ac | C7: ='A01'!ApRt_C -> 1 | D7: lb/acre | E7: Worksheet A01
A8: Conversion Factor for lbs/acre to mg/cm2 | B8: CnvF | C8: 0.01121 | D8: mg/cm2/lb/acre
A9: Application rate, mg/cm2 | B9: ApRmgcm | C9: ApRlb/a × CnvF
C10: =C7*C$8 -> 0.01121 | D10: lb/acre | E10: Eq
A11: Prey
A12: Body weight | B12: BWPrey | C12: =A02b!$C$71 -> 0.02 | D12: kg | E12: Default
A13: Allometric coefficients for surface area
B14: alpha | C14: =A02b!$C$77 -> 0.11 | E14: U.S. EPA/ORD 1993
B15: beta | C15: =A02b!$C$78 -> 0.65 | E15: U.S. EPA/ORD 1993
A16: Surface Area of Prey Species (m2) | B16: SAPreyM | C16: alpha x Bwbeta
C17: =C14 * C12^C15 -> 0.008650917739 | D17: meters
A18: Surface Area of Prey Species (cm2) | B18: SAPrey | C18: SAPreyM x 10,000 cm/m2
C19: =C17*10000 -> 86.50917739 | D19: cm2 | E19: Eq
A20: Proportion of body surface sprayed | B20: PrpSA | C20: 0.5 | D20: unitless | E20: Scenario parameter
A21: Amount Deposited on Skin | B21: AmntPrey | C21: ApRmgcm × SA × PrpSA
B22: Central | C22: =C$10*C$19*C$20 -> 0.4848839392 | D22: mg | E22: Eq
A23: Toxic Equivalency Factor for formulation: (See risk assessment if this has a value other than 1.) | B23: TEF
B24: Central | C24: ='A01'!C$35 -> 1 | D24: unitless | E24: Worksheet A01
B25: Lower | C25: ='A01'!C$36 -> 1 | E25: Worksheet A01
B26: Upper | C26: ='A01'!C$37 -> 1 | E26: Worksheet A01
A27: Concentration on prey item after direct spray | B27: DosePrey | C27: Amnt x TEF ÷ BW
B28: Central | C28: =C$22*C24/C$12 -> 24.24419696 | D28: mg/kg bw | E28: Eq
B29: Lower | C29: =C$22*C25/C$12 -> 24.24419696 | E29: Eq
B30: Upper | C30: =C$22*C26/C$12 -> 24.24419696 | E30: Eq
A31: Predator
A32: Body weight | B32: BW | C32: =A02b!$C$10 -> 0.64 | D32: kg | E32: Dunning 1993
A33: Allometric coefficients for caloric requirement per day in kilocalories and BW in grams
B34: alpha | C34: =A02b!$C$11 -> 1.146 | E34: U.S. EPA/ORD 1993
B35: beta | C35: =A02b!$C$12 -> 0.749 | E35: U.S. EPA/ORD 1993
A36: Caloric requirement per day | B36: KR | C36: =C34*((C32*1000)^C35) -> 144.8816616 | D36: kcal/day | E36: Eq
A37: Caloric content of prey (wet weight) | B37: KCW | C37: =A02b!$C$72 -> 1.7 | D37: kcal/g | E37: U.S. EPA/ORD 1993
A38: Amount of food consumed per day, wet weight | B38: Amnt | C38: (KR ÷ KCW)/1000 g/kg
C39: =(C36/C37)/1000 -> 0.08522450683 | D39: kg | E39: Eq
A40: Dose | B40: Dose | C40: Amnt × DosePrey / BW
B41: Central | C41: =C$39 * C28/C$32 -> 3.228437078 | D41: mg/kg bw | E41: Eq
B42: Lower | C42: =C$39 * C29/C$32 -> 3.228437078 | E42: Eq
B43: Upper | C43: =C$39 * C30/C$32 -> 3.228437078 | E43: Eq

Sheet F09a
A1: Acute scenario for the consumption of Contaminated Fish (Peak) by Mammal, large carnivorous
A2: Short Title | B2: Fish consumption, accidental spill | E2: FishKcalV6
A3: Predator | B3: Mammal, large carnivorous
A4: Food Item (Prey) | B4: Fish
A5: Duration | B5: Acute | E5: Scenario parameter
A6: Parameter/Assumption | B6: Code / Range | C6: Equation/ Value | D6: Units | E6: Reference/Designation
A7: Water
A8: Concentration in water | B8: ConcWat
B9: Central | C9: =B04a!Acute_C -> 0.011 | D9: mg/L | E9: ='B04a'!Acute_C
B10: Lower | C10: =B04a!Acute_L -> 0.001 | E10: ='B04a'!Acute_L
B11: Upper | C11: =B04a!Acute_U -> 0.18 | E11: ='B04a'!Acute_U
A12: Fish
A13: Bioconcentration factor | B13: BCF
B14: Central | C14: ='B01'!$C$6 -> 1 | D14: L/kg | E14: Section 3.2.3.5.
B15: Lower | C15: ='B01'!$C$6 -> 1 | E15: Section 3.2.3.5.
B16: Upper | C16: ='B01'!$C$6 -> 1 | E16: Section 3.2.3.5.
A17: Concentration in fish | B17: ConcFish | C17: ConcWat × BCF
B18: Central | C18: =C9*C14 -> 0.011 | D18: mg/kg | E18: Eq
B19: Lower | C19: =C10*C15 -> 0.001 | E19: Eq
B20: Upper | C20: =C11*C16 -> 0.18 | E20: Eq
A21: Receptor
A22: Body weight | B22: BW | C22: =A02b!$C$52 -> 70 | D22: kg | E22: Reid 2006
A23: Allometric coefficients for caloric requirement per day in kilocalories and BW in grams
B24: alpha | C24: =A02b!$C$53 -> 0.6167 | E24: U.S. EPA/ORD 1993
B25: beta | C25: =A02b!$C$54 -> 0.862 | E25: U.S. EPA/ORD 1993
A26: Caloric requirement per day | B26: KR | C26: =C24*(C22*1000)^C25 -> 9258.666883 | D26: kcal/day | E26: Eq
A27: Caloric content of commodity (dry weight) | B27: KCD | C27: 4.47 | D27: kcal/gdw [Note 1] | E27: WkMk Documentation
A28: Food consumed per day (dry weight) | B28: AmntDry | C28: = KR ÷ KCD
C29: =C26/C27 -> 2071.29013 | D29: gdry/day | E29: Eq
A30: Water content of vegetation as a proportion | B30: PropWater | C30: 0.7 | D30: gwater/gfood | E30: WkMk Documentation
A31: Dry weight content of vegetation as a proportion | B31: PropDry | C31: = 1-PropWater
C32: =1-C30 -> 0.3 | D32: gdry/gfood | E32: Eq
A33: Amount of fish consumed per day, wet weight | B33: AmntFish | C33: = (AmntDry ÷ PropDry) ÷ (1000g/kg)
B34: Central | C34: =(C29/C32)/1000 -> 6.904300435 | D34: kgfood/day | E34: Eq
B35: Lower | C35: =C34*0.3 -> 2.07129013 | D35: Note 1 | E35: Eq
B36: Upper | C36: =C34*1.7 -> 11.73731074 | D36: Note 1 | E36: Eq
A37: Proportion of diet that is contaminated | B37: Prop
B38: Central | C38: 0.3 | D38: Unitless | E38: Scenario parameter
B39: Lower | C39: 0.1 | E39: Scenario parameter
B40: Upper | C40: 1 | E40: Scenario parameter
A41: Dose
A42: Toxic Equivalency Factor for formulation: (See risk assessment if this has a value other than 1.) | B42: TEF
B43: Central | C43: ='A01'!C$35 -> 1 | D43: Unitless | E43: Worksheet A01
B44: Lower | C44: ='A01'!C$36 -> 1 | D44: Note 2 | E44: Worksheet A01
B45: Upper | C45: ='A01'!C$37 -> 1 | D45: Note 2 | E45: Worksheet A01
A46: Dose | B46: Dose | C46: = ConcFish × AmntFish × Prop ÷ BW
B47: Central | C47: =C18*C34*C38/C$22 -> 0.0003254884491 | D47: mg/kg | E47: Eq
B48: Lower | C48: =C19*C35*C39/C$22 -> 2.958985901e-06 | D48: mg/kg | E48: Eq
B49: Upper | C49: 0.03018165619 | D49: mg/kg | E49: Eq
E50: FishKcalV6

Sheet F09b
A1: Acute scenario for the consumption of Contaminated Fish (Peak) by Mammal, carnivorous
A2: Short Title | B2: Fish consumption, accidental spill | E2: FishKcalV6
A3: Predator | B3: Mammal, carnivorous
A4: Food Item (Prey) | B4: Fish
A5: Duration | B5: Acute | E5: Scenario parameter
A6: Parameter/Assumption | B6: Code / Range | C6: Equation/ Value | D6: Units | E6: Reference/Designation
A7: Water
A8: Concentration in water | B8: ConcWat
B9: Central | C9: =B04a!Acute_C -> 0.011 | D9: mg/L | E9: ='B04a'!Acute_C
B10: Lower | C10: =B04a!Acute_L -> 0.001 | E10: ='B04a'!Acute_L
B11: Upper | C11: =B04a!Acute_U -> 0.18 | E11: ='B04a'!Acute_U
A12: Fish
A13: Bioconcentration factor | B13: BCF
B14: Central | C14: ='B01'!$C$6 -> 1 | D14: L/kg | E14: Section 3.2.3.5.
B15: Lower | C15: ='B01'!$C$6 -> 1 | E15: Section 3.2.3.5.
B16: Upper | C16: ='B01'!$C$6 -> 1 | E16: Section 3.2.3.5.
A17: Concentration in fish | B17: ConcFish | C17: ConcWat × BCF
B18: Central | C18: =C9*C14 -> 0.011 | D18: mg/kg | E18: Eq
B19: Lower | C19: =C10*C15 -> 0.001 | E19: Eq
B20: Upper | C20: =C11*C16 -> 0.18 | E20: Eq
A21: Receptor
A22: Body weight | B22: BW | C22: =A02b!$C$47 -> 5 | D22: kg | E22: U.S. EPA/ORD 1993
A23: Allometric coefficients for caloric requirement per day in kilocalories and BW in grams
B24: alpha | C24: =A02b!$C$48 -> 0.6167 | E24: U.S. EPA/ORD 1993
B25: beta | C25: =A02b!$C$49 -> 0.862 | E25: U.S. EPA/ORD 1993
A26: Caloric requirement per day | B26: KR | C26: =C24*(C22*1000)^C25 -> 951.8885266 | D26: kcal/day | E26: Eq
A27: Caloric content of commodity (dry weight) | B27: KCD | C27: 4.47 | D27: kcal/gdw [Note 1] | E27: WkMk Documentation
A28: Food consumed per day (dry weight) | B28: AmntDry | C28: = KR ÷ KCD
C29: =C26/C27 -> 212.9504534 | D29: gdry/day | E29: Eq
A30: Water content of vegetation as a proportion | B30: PropWater | C30: 0.7 | D30: gwater/gfood | E30: WkMk Documentation
A31: Dry weight content of vegetation as a proportion | B31: PropDry | C31: = 1-PropWater
C32: =1-C30 -> 0.3 | D32: gdry/gfood | E32: Eq
A33: Amount of fish consumed per day, wet weight | B33: AmntFish | C33: = (AmntDry ÷ PropDry) ÷ (1000g/kg)
B34: Central | C34: =(C29/C32)/1000 -> 0.7098348446 | D34: kgfood/day | E34: Eq
B35: Lower | C35: =C34*0.3 -> 0.2129504534 | D35: Note 1 | E35: Eq
B36: Upper | C36: =C34*1.7 -> 1.206719236 | D36: Note 1 | E36: Eq
A37: Proportion of diet that is contaminated | B37: Prop
B38: Central | C38: 0.3 | D38: Unitless | E38: Scenario parameter
B39: Lower | C39: 0.1 | E39: Scenario parameter
B40: Upper | C40: 1 | E40: Scenario parameter
A41: Dose
A42: Toxic Equivalency Factor for formulation: (See risk assessment if this has a value other than 1.) | B42: TEF
B43: Central | C43: ='A01'!C$35 -> 1 | D43: Unitless | E43: Worksheet A01
B44: Lower | C44: ='A01'!C$36 -> 1 | D44: Note 2 | E44: Worksheet A01
B45: Upper | C45: ='A01'!C$37 -> 1 | D45: Note 2 | E45: Worksheet A01
A46: Dose | B46: Dose | C46: = ConcFish × AmntFish × Prop ÷ BW
B47: Central | C47: =C18*C34*C38/C$22 -> 0.0004684909974 | D47: mg/kg | E47: Eq
B48: Lower | C48: =C19*C35*C39/C$22 -> 4.259009068e-06 | D48: mg/kg | E48: Eq
B49: Upper | C49: 0.04344189249 | D49: mg/kg | E49: Eq
E50: FishKcalV6

Sheet F09c
A1: Acute scenario for the consumption of Contaminated Fish (Peak) by Bird, piscivorous
A2: Short Title | B2: Fish consumption, accidental spill | E2: FishKcalV6
A3: Predator | B3: Bird, piscivorous
A4: Food Item (Prey) | B4: Fish
A5: Duration | B5: Acute | E5: Scenario parameter
A6: Parameter/Assumption | B6: Code / Range | C6: Equation/ Value | D6: Units | E6: Reference/Designation
A7: Water
A8: Concentration in water | B8: ConcWat
B9: Central | C9: =B04a!Acute_C -> 0.011 | D9: mg/L | E9: ='B04a'!Acute_C
B10: Lower | C10: =B04a!Acute_L -> 0.001 | E10: ='B04a'!Acute_L
B11: Upper | C11: =B04a!Acute_U -> 0.18 | E11: ='B04a'!Acute_U
A12: Fish
A13: Bioconcentration factor | B13: BCF
B14: Central | C14: ='B01'!$C$6 -> 1 | D14: L/kg | E14: Section 3.2.3.5.
B15: Lower | C15: ='B01'!$C$6 -> 1 | E15: Section 3.2.3.5.
B16: Upper | C16: ='B01'!$C$6 -> 1 | E16: Section 3.2.3.5.
A17: Concentration in fish | B17: ConcFish | C17: ConcWat × BCF
B18: Central | C18: =C9*C14 -> 0.011 | D18: mg/kg | E18: Eq
B19: Lower | C19: =C10*C15 -> 0.001 | E19: Eq
B20: Upper | C20: =C11*C16 -> 0.18 | E20: Eq
A21: Receptor
A22: Body weight | B22: BW | C22: =A02b!$C$24 -> 2.4 | D22: kg | E22: Sibley 2000
A23: Allometric coefficients for caloric requirement per day in kilocalories and BW in grams
B24: alpha | C24: =A02b!$C$27 -> 1.916 | E24: U.S. EPA/ORD 1993
B25: beta | C25: =A02b!$C$28 -> 0.704 | E25: U.S. EPA/ORD 1993
A26: Caloric requirement per day | B26: KR | C26: =C24*(C22*1000)^C25 -> 459.2659192 | D26: kcal/day | E26: Eq
A27: Caloric content of commodity (dry weight) | B27: KCD | C27: 3.87 | D27: kcal/gdw [Note 1] | E27: WkMk Documentation
A28: Food consumed per day (dry weight) | B28: AmntDry | C28: = KR ÷ KCD
C29: =C26/C27 -> 118.6733641 | D29: gdry/day | E29: Eq
A30: Water content of vegetation as a proportion | B30: PropWater | C30: 0.7 | D30: gwater/gfood | E30: WkMk Documentation
A31: Dry weight content of vegetation as a proportion | B31: PropDry | C31: = 1-PropWater
C32: =1-C30 -> 0.3 | D32: gdry/gfood | E32: Eq
A33: Amount of fish consumed per day, wet weight | B33: AmntFish | C33: = (AmntDry ÷ PropDry) ÷ (1000g/kg)
B34: Central | C34: =(C29/C32)/1000 -> 0.3955778805 | D34: kgfood/day | E34: Eq
B35: Lower | C35: =C34*0.3 -> 0.1186733641 | D35: Note 1 | E35: Eq
B36: Upper | C36: =C34*1.7 -> 0.6724823968 | D36: Note 1 | E36: Eq
A37: Proportion of diet that is contaminated | B37: Prop
B38: Central | C38: 0.3 | D38: Unitless | E38: Scenario parameter
B39: Lower | C39: 0.1 | E39: Scenario parameter
B40: Upper | C40: 1 | E40: Scenario parameter
A41: Dose
A42: Toxic Equivalency Factor for formulation: (See risk assessment if this has a value other than 1.) | B42: TEF
B43: Central | C43: ='A01'!C$35 -> 1 | D43: Unitless | E43: Worksheet A01
B44: Lower | C44: ='A01'!C$36 -> 1 | D44: Note 2 | E44: Worksheet A01
B45: Upper | C45: ='A01'!C$37 -> 1 | D45: Note 2 | E45: Worksheet A01
A46: Dose | B46: Dose | C46: = ConcFish × AmntFish × Prop ÷ BW
B47: Central | C47: =C18*C34*C38/C$22 -> 0.0005439195857 | D47: mg/kg | E47: Eq
B48: Lower | C48: =C19*C35*C39/C$22 -> 4.944723506e-06 | D48: mg/kg | E48: Eq
B49: Upper | C49: 0.05043617976 | D49: mg/kg | E49: Eq
E50: FishKcalV6

Sheet F10a
A1: Consumption of Fruit by a Mammal, small after Chronic exposure.
A2: Short Title | B2: Fruit Chronic | E2: FdKcalV6
A3: Receptor | B3: Mammal, small
A4: Duration | B4: Chronic | E4: Scenario parameter
A5: Material consumed | B5: Fruit
A6: Parameter/Assumption | B6: Code / Range | C6: Equation/ Value | D6: Units | E6: Reference/Designation
A7: Commodity
A8: Concentration on consumed commodity | B8: Conc
B9: Central | C9: =B05a!Chronic_C -> 0.8973083336 | D9: mg/kg food wet weight | E9: ='B05a'!Chronic_C
B10: Lower | C10: =B05a!Chronic_L -> 0.3077655495 | E10: ='B05a'!Chronic_L
B11: Upper | C11: =B05a!Chronic_U -> 5.163211312 | E11: ='B05a'!Chronic_U
A12: Receptor
A13: Body weight | B13: BW | C13: =A02b!$C$71 -> 0.02 | D13: kg | E13: Default
A14: Allometric coefficients for caloric requirement per day in kilocalories and BW in grams
B15: alpha | C15: =A02b!$C$75 -> 2.514 | E15: U.S. EPA/ORD 1993
B16: beta | C16: =A02b!$C$76 -> 0.507 | E16: U.S. EPA/ORD 1993
A17: Caloric requirement per day | B17: KR | C17: = alpha x (BW x 1kg/1000g)beta
C18: =C15*((C13*1000)^C16) -> 11.48120526 | D18: kcal/day | E18: Eq
A19: Caloric content of commodity (dry weight) | B19: KCD | C19: 1.1 | D19: kcal/gdw [Note 1] | E19: WkMk Documentation
A20: Food consumed per day (dry weight) | B20: AmntDry | C20: = KR ÷ KCD
C21: =C18/C19 -> 10.43745932 | D21: gdry/day | E21: Eq
A22: Water content of vegetation as a proportion | B22: PropWater | C22: 0.77 | D22: gwater/gfood | E22: WkMk Documentation
A23: Dry weight content of vegetation as a proportion | B23: PropDry | C23: = 1-PropWater
C24: =1-C22 -> 0.23 | D24: gdry/gfood | E24: Eq
A25: Variability in caloric requirements not accounted for by allometric equation | B25: Error
B26: Central | C26: 1 | D26: Note 2
B27: Lower | C27: 0.3
B28: Upper | C28: 1.7
A29: Amount of food consumed per day, wet weight | B29: AmntFood | C29: = (AmntDry ÷ PropDry) ÷ (1000g/kg)
B30: Central | C30: =C26*(C$21/C$24)/1000 -> 0.04538025793 | D30: kgfood/day | E30: Eq
B31: Lower | C31: =C27*(C$21/C$24)/1000 -> 0.01361407738 | E31: Eq
B32: Upper | C32: 0.07714643848 | E32: Eq
A33: Estimate
A34: Dose | B34: Dose | C34: = AmntFood × Conc / BW
B35: Central | C35: =$C30 * C9/C$13 -> 2.036004181 | D35: mg/kg bw/day | E35: Eq
B36: Lower | C36: =$C31 * C10/C$13 -> 0.2094972003 | E36: Eq
B37: Upper | C37: =$C32 * C11/C$13 -> 19.91616819 | E37: Eq

Sheet F10b
A1: Consumption of Fruit by a Mammal, 400 g after Chronic exposure.
A2: Short Title | B2: Fruit Chronic | E2: FdKcalV6
A3: Receptor | B3: Mammal, 400 g
A4: Duration | B4: Chronic | E4: Scenario parameter
A5: Material consumed | B5: Fruit
A6: Parameter/Assumption | B6: Code / Range | C6: Equation/ Value | D6: Units | E6: Reference/Designation
A7: Commodity
A8: Concentration on consumed commodity | B8: Conc
B9: Central | C9: =B05a!Chronic_C -> 0.8973083336 | D9: mg/kg food wet weight | E9: ='B05a'!Chronic_C
B10: Lower | C10: =B05a!Chronic_L -> 0.3077655495 | E10: ='B05a'!Chronic_L
B11: Upper | C11: =B05a!Chronic_U -> 5.163211312 | E11: ='B05a'!Chronic_U
A12: Receptor
A13: Body weight | B13: BW | C13: =A02b!$C$40 -> 0.4 | D13: kg | E13: Default
A14: Allometric coefficients for caloric requirement per day in kilocalories and BW in grams
B15: alpha | C15: =A02b!$C$43 -> 2.514 | E15: U.S. EPA/ORD 1993
B16: beta | C16: =A02b!$C$44 -> 0.507 | E16: U.S. EPA/ORD 1993
A17: Caloric requirement per day | B17: KR | C17: = alpha x (BW x 1kg/1000g)beta
C18: =C15*((C13*1000)^C16) -> 52.43360149 | D18: kcal/day | E18: Eq
A19: Caloric content of commodity (dry weight) | B19: KCD | C19: 1.1 | D19: kcal/gdw [Note 1] | E19: WkMk Documentation
A20: Food consumed per day (dry weight) | B20: AmntDry | C20: = KR ÷ KCD
C21: =C18/C19 -> 47.66691044 | D21: gdry/day | E21: Eq
A22: Water content of vegetation as a proportion | B22: PropWater | C22: 0.77 | D22: gwater/gfood | E22: WkMk Documentation
A23: Dry weight content of vegetation as a proportion | B23: PropDry | C23: = 1-PropWater
C24: =1-C22 -> 0.23 | D24: gdry/gfood | E24: Eq
A25: Variability in caloric requirements not accounted for by allometric equation | B25: Error
B26: Central | C26: 1 | D26: Note 2
B27: Lower | C27: 0.3
B28: Upper | C28: 1.7
A29: Amount of food consumed per day, wet weight | B29: AmntFood | C29: = (AmntDry ÷ PropDry) ÷ (1000g/kg)
B30: Central | C30: =C26*(C$21/C$24)/1000 -> 0.2072474367 | D30: kgfood/day | E30: Eq
B31: Lower | C31: =C27*(C$21/C$24)/1000 -> 0.06217423101 | E31: Eq
B32: Upper | C32: 0.3523206424 | E32: Eq
A33: Estimate
A34: Dose | B34: Dose | C34: = AmntFood × Conc / BW
B35: Central | C35: =$C30 * C9/C$13 -> 0.4649121302 | D35: mg/kg bw/day | E35: Eq
B36: Lower | C36: =$C31 * C10/C$13 -> 0.04783771593 | E36: Eq
B37: Upper | C37: =$C32 * C11/C$13 -> 4.547764816 | E37: Eq

Sheet F10c
A1: Consumption of Fruit by a Mammal, large after Chronic exposure.
A2: Short Title | B2: Fruit Chronic | E2: FdKcalV6
A3: Receptor | B3: Mammal, large
A4: Duration | B4: Chronic | E4: Scenario parameter
A5: Material consumed | B5: Fruit
A6: Parameter/Assumption | B6: Code / Range | C6: Equation/ Value | D6: Units | E6: Reference/Designation
A7: Commodity
A8: Concentration on consumed commodity | B8: Conc
B9: Central | C9: =B05a!Chronic_C -> 0.8973083336 | D9: mg/kg food wet weight | E9: ='B05a'!Chronic_C
B10: Lower | C10: =B05a!Chronic_L -> 0.3077655495 | E10: ='B05a'!Chronic_L
B11: Upper | C11: =B05a!Chronic_U -> 5.163211312 | E11: ='B05a'!Chronic_U
A12: Receptor
A13: Body weight | B13: BW | C13: =A02b!$C$61 -> 70 | D13: kg | E13: Default
A14: Allometric coefficients for caloric requirement per day in kilocalories and BW in grams
B15: alpha | C15: =A02b!$C$62 -> 1.518 | E15: U.S. EPA/ORD 1993
B16: beta | C16: =A02b!$C$63 -> 0.73 | E16: U.S. EPA/ORD 1993
A17: Caloric requirement per day | B17: KR | C17: = alpha x (BW x 1kg/1000g)beta
C18: =C15*((C13*1000)^C16) -> 5226.28803 | D18: kcal/day | E18: Eq
A19: Caloric content of commodity (dry weight) | B19: KCD | C19: 1.1 | D19: kcal/gdw [Note 1] | E19: WkMk Documentation
A20: Food consumed per day (dry weight) | B20: AmntDry | C20: = KR ÷ KCD
C21: =C18/C19 -> 4751.170936 | D21: gdry/day | E21: Eq
A22: Water content of vegetation as a proportion | B22: PropWater | C22: 0.77 | D22: gwater/gfood | E22: WkMk Documentation
A23: Dry weight content of vegetation as a proportion | B23: PropDry | C23: = 1-PropWater
C24: =1-C22 -> 0.23 | D24: gdry/gfood | E24: Eq
A25: Variability in caloric requirements not accounted for by allometric equation | B25: Error
B26: Central | C26: 1 | D26: Note 2
B27: Lower | C27: 0.3
B28: Upper | C28: 1.7
A29: Amount of food consumed per day, wet weight | B29: AmntFood | C29: = (AmntDry ÷ PropDry) ÷ (1000g/kg)
B30: Central | C30: =C26*(C$21/C$24)/1000 -> 20.65726494 | D30: kgfood/day | E30: Eq
B31: Lower | C31: =C27*(C$21/C$24)/1000 -> 6.197179482 | E31: Eq
B32: Upper | C32: 35.1173504 | E32: Eq
A33: Estimate
A34: Dose | B34: Dose | C34: = AmntFood × Conc / BW
B35: Central | C35: =$C30 * C9/C$13 -> 0.2647990854 | D35: mg/kg bw/day | E35: Eq
B36: Lower | C36: =$C31 * C10/C$13 -> 0.02724683355 | E36: Eq
B37: Upper | C37: =$C32 * C11/C$13 -> 2.590261441 | E37: Eq

Sheet F10d
A1: Consumption of Fruit by a Bird, small after Chronic exposure.
A2: Short Title | B2: Fruit Chronic | E2: FdKcalV6
A3: Receptor | B3: Bird, small
A4: Duration | B4: Chronic | E4: Scenario parameter
A5: Material consumed | B5: Fruit
A6: Parameter/Assumption | B6: Code / Range | C6: Equation/ Value | D6: Units | E6: Reference/Designation
A7: Commodity
A8: Concentration on consumed commodity | B8: Conc
B9: Central | C9: =B05a!Chronic_C -> 0.8973083336 | D9: mg/kg food wet weight | E9: ='B05a'!Chronic_C
B10: Lower | C10: =B05a!Chronic_L -> 0.3077655495 | E10: ='B05a'!Chronic_L
B11: Upper | C11: =B05a!Chronic_U -> 5.163211312 | E11: ='B05a'!Chronic_U
A12: Receptor
A13: Body weight | B13: BW | C13: =A02b!$C$31 -> 0.01 | D13: kg | E13: Default
A14: Allometric coefficients for caloric requirement per day in kilocalories and BW in grams
B15: alpha | C15: =A02b!$C$32 -> 3.12 | E15: U.S. EPA/ORD 1993
B16: beta | C16: =A02b!$C$33 -> 0.605 | E16: U.S. EPA/ORD 1993
A17: Caloric requirement per day | B17: KR | C17: = alpha x (BW x 1kg/1000g)beta
C18: =C15*((C13*1000)^C16) -> 12.56477147 | D18: kcal/day | E18: Eq
A19: Caloric content of commodity (dry weight) | B19: KCD | C19: 1.1 | D19: kcal/gdw [Note 1] | E19: WkMk Documentation
A20: Food consumed per day (dry weight) | B20: AmntDry | C20: = KR ÷ KCD
C21: =C18/C19 -> 11.42251952 | D21: gdry/day | E21: Eq
A22: Water content of vegetation as a proportion | B22: PropWater | C22: 0.77 | D22: gwater/gfood | E22: WkMk Documentation
A23: Dry weight content of vegetation as a proportion | B23: PropDry | C23: = 1-PropWater
C24: =1-C22 -> 0.23 | D24: gdry/gfood | E24: Eq
A25: Variability in caloric requirements not accounted for by allometric equation | B25: Error
B26: Central | C26: 1 | D26: Note 2
B27: Lower | C27: 0.3
B28: Upper | C28: 1.7
A29: Amount of food consumed per day, wet weight | B29: AmntFood | C29: = (AmntDry ÷ PropDry) ÷ (1000g/kg)
B30: Central | C30: =C26*(C$21/C$24)/1000 -> 0.04966312834 | D30: kgfood/day | E30: Eq
B31: Lower | C31: =C27*(C$21/C$24)/1000 -> 0.0148989385 | E31: Eq
B32: Upper | C32: 0.08442731818 | E32: Eq
A33: Estimate
A34: Dose | B34: Dose | C34: = AmntFood × Conc / BW
B35: Central | C35: =$C30 * C9/C$13 -> 4.456313894 | D35: mg/kg bw/day | E35: Eq
B36: Lower | C36: =$C31 * C10/C$13 -> 0.4585379996 | E36: Eq
B37: Upper | C37: =$C32 * C11/C$13 -> 43.59160843 | E37: Eq

Sheet F10e
A1: Consumption of Fruit by a Bird, large after Chronic exposure.
A2: Short Title | B2: Fruit Chronic | E2: FdKcalV6
A3: Receptor | B3: Bird, large
A4: Duration | B4: Chronic | E4: Scenario parameter
A5: Material consumed | B5: Fruit
A6: Parameter/Assumption | B6: Code / Range | C6: Equation/ Value | D6: Units | E6: Reference/Designation
A7: Commodity
A8: Concentration on consumed commodity | B8: Conc
B9: Central | C9: =B05a!Chronic_C -> 0.8973083336 | D9: mg/kg food wet weight | E9: ='B05a'!Chronic_C
B10: Lower | C10: =B05a!Chronic_L -> 0.3077655495 | E10: ='B05a'!Chronic_L
B11: Upper | C11: =B05a!Chronic_U -> 5.163211312 | E11: ='B05a'!Chronic_U
A12: Receptor
A13: Body weight | B13: BW | C13: =A02b!$C$15 -> 4 | D13: kg | E13: Default
A14: Allometric coefficients for caloric requirement per day in kilocalories and BW in grams
B15: alpha | C15: =A02b!$C$16 -> 1.146 | E15: U.S. EPA/ORD 1993
B16: beta | C16: =A02b!$C$17 -> 0.749 | E16: U.S. EPA/ORD 1993
A17: Caloric requirement per day | B17: KR | C17: = alpha x (BW x 1kg/1000g)beta
C18: =C15*((C13*1000)^C16) -> 571.6465031 | D18: kcal/day | E18: Eq
A19: Caloric content of commodity (dry weight) | B19: KCD | C19: 1.1 | D19: kcal/gdw [Note 1] | E19: WkMk Documentation
A20: Food consumed per day (dry weight) | B20: AmntDry | C20: = KR ÷ KCD
C21: =C18/C19 -> 519.6786392 | D21: gdry/day | E21: Eq
A22: Water content of vegetation as a proportion | B22: PropWater | C22: 0.77 | D22: gwater/gfood | E22: WkMk Documentation
A23: Dry weight content of vegetation as a proportion | B23: PropDry | C23: = 1-PropWater
C24: =1-C22 -> 0.23 | D24: gdry/gfood | E24: Eq
A25: Variability in caloric requirements not accounted for by allometric equation | B25: Error
B26: Central | C26: 1 | D26: Note 2
B27: Lower | C27: 0.3
B28: Upper | C28: 1.7
A29: Amount of food consumed per day, wet weight | B29: AmntFood | C29: = (AmntDry ÷ PropDry) ÷ (1000g/kg)
B30: Central | C30: =C26*(C$21/C$24)/1000 -> 2.259472344 | D30: kgfood/day | E30: Eq
B31: Lower | C31: =C27*(C$21/C$24)/1000 -> 0.6778417033 | E31: Eq
B32: Upper | C32: 3.841102985 | E32: Eq
A33: Estimate
A34: Dose | B34: Dose | C34: = AmntFood × Conc / BW
B35: Central | C35: =$C30 * C9/C$13 -> 0.506860841 | D35: mg/kg bw/day | E35: Eq
B36: Lower | C36: =$C31 * C10/C$13 -> 0.05215408107 | E36: Eq
B37: Upper | C37: =$C32 * C11/C$13 -> 4.958106596 | E37: Eq

Sheet F11a
A1: Consumption of Short grass by a Mammal, small after Chronic exposure.
A2: Short Title | B2: Grass Chronic | E2: FdKcalV6
A3: Receptor | B3: Mammal, small
A4: Duration | B4: Chronic | E4: Scenario parameter
A5: Material consumed | B5: Short grass
A6: Parameter/Assumption | B6: Code / Range | C6: Equation/ Value | D6: Units | E6: Reference/Designation
A7: Commodity
A8: Concentration on consumed commodity | B8: Conc
B9: Central | C9: =B05c!Chronic_C -> 10.89588691 | D9: mg/kg food wet weight | E9: ='B05c'!Chronic_C
B10: Lower | C10: =B05c!Chronic_L -> 2.885302027 | E10: ='B05c'!Chronic_L
B11: Upper | C11: =B05c!Chronic_U -> 82.611381 | E11: ='B05c'!Chronic_U
A12: Receptor
A13: Body weight | B13: BW | C13: =A02b!$C$71 -> 0.02 | D13: kg | E13: Default
A14: Allometric coefficients for caloric requirement per day in kilocalories and BW in grams
B15: alpha | C15: =A02b!$C$75 -> 2.514 | E15: U.S. EPA/ORD 1993
B16: beta | C16: =A02b!$C$76 -> 0.507 | E16: U.S. EPA/ORD 1993
A17: Caloric requirement per day | B17: KR | C17: = alpha x (BW x 1kg/1000g)beta
C18: =C15*((C13*1000)^C16) -> 11.48120526 | D18: kcal/day | E18: Eq
A19: Caloric content of commodity (dry weight) | B19: KCD | C19: 2.26 | D19: kcal/gdw [Note 1] | E19: WkMk Documentation
A20: Food consumed per day (dry weight) | B20: AmntDry | C20: = KR ÷ KCD
C21: =C18/C19 -> 5.080179317 | D21: gdry/day | E21: Eq
A22: Water content of vegetation as a proportion | B22: PropWater | C22: 0.85 | D22: gwater/gfood | E22: WkMk Documentation
A23: Dry weight content of vegetation as a proportion | B23: PropDry | C23: = 1-PropWater
C24: =1-C22 -> 0.15 | D24: gdry/gfood | E24: Eq
A25: Variability in caloric requirements not accounted for by allometric equation | B25: Error
B26: Central | C26: 1 | D26: Note 2
B27: Lower | C27: 0.3
B28: Upper | C28: 1.7
A29: Amount of food consumed per day, wet weight | B29: AmntFood | C29: = (AmntDry ÷ PropDry) ÷ (1000g/kg)
B30: Central | C30: =C26*(C$21/C$24)/1000 -> 0.03386786211 | D30: kgfood/day | E30: Eq
B31: Lower | C31: =C27*(C$21/C$24)/1000 -> 0.01016035863 | E31: Eq
B32: Upper | C32: 0.05757536559 | E32: Eq
A33: Estimate
A34: Dose | B34: Dose | C34: = AmntFood × Conc / BW
B35: Central | C35: =$C30 * C9/C$13 -> 18.45101977 | D35: mg/kg bw/day | E35: Eq
B36: Lower | C36: =$C31 * C10/C$13 -> 1.465785168 | E36: Eq
B37: Upper | C37: =$C32 * C11/C$13 -> 237.8190232 | E37: Eq

Sheet F11b
A1: Consumption of Short grass by a Mammal, 400 g after Chronic exposure.
A2: Short Title | B2: Grass Chronic | E2: FdKcalV6
A3: Receptor | B3: Mammal, 400 g
A4: Duration | B4: Chronic | E4: Scenario parameter
A5: Material consumed | B5: Short grass
A6: Parameter/Assumption | B6: Code / Range | C6: Equation/ Value | D6: Units | E6: Reference/Designation
A7: Commodity
A8: Concentration on consumed commodity | B8: Conc
B9: Central | C9: =B05c!Chronic_C -> 10.89588691 | D9: mg/kg food wet weight | E9: ='B05c'!Chronic_C
B10: Lower | C10: =B05c!Chronic_L -> 2.885302027 | E10: ='B05c'!Chronic_L
B11: Upper | C11: =B05c!Chronic_U -> 82.611381 | E11: ='B05c'!Chronic_U
A12: Receptor
A13: Body weight | B13: BW | C13: =A02b!$C$40 -> 0.4 | D13: kg | E13: Default
A14: Allometric coefficients for caloric requirement per day in kilocalories and BW in grams
B15: alpha | C15: =A02b!$C$43 -> 2.514 | E15: U.S. EPA/ORD 1993
B16: beta | C16: =A02b!$C$44 -> 0.507 | E16: U.S. EPA/ORD 1993
A17: Caloric requirement per day | B17: KR | C17: = alpha x (BW x 1kg/1000g)beta
C18: =C15*((C13*1000)^C16) -> 52.43360149 | D18: kcal/day | E18: Eq
A19: Caloric content of commodity (dry weight) | B19: KCD | C19: 2.26 | D19: kcal/gdw [Note 1] | E19: WkMk Documentation
A20: Food consumed per day (dry weight) | B20: AmntDry | C20: = KR ÷ KCD
C21: =C18/C19 -> 23.20070862 | D21: gdry/day | E21: Eq
A22: Water content of vegetation as a proportion | B22: PropWater | C22: 0.85 | D22: gwater/gfood | E22: WkMk Documentation
A23: Dry weight content of vegetation as a proportion | B23: PropDry | C23: = 1-PropWater
C24: =1-C22 -> 0.15 | D24: gdry/gfood | E24: Eq
A25: Variability in caloric requirements not accounted for by allometric equation | B25: Error
B26: Central | C26: 1 | D26: Note 2
B27: Lower | C27: 0.3
B28: Upper | C28: 1.7
A29: Amount of food consumed per day, wet weight | B29: AmntFood | C29: = (AmntDry ÷ PropDry) ÷ (1000g/kg)
B30: Central | C30: =C26*(C$21/C$24)/1000 -> 0.1546713908 | D30: kgfood/day | E30: Eq
B31: Lower | C31: =C27*(C$21/C$24)/1000 -> 0.04640141724 | E31: Eq
B32: Upper | C32: 0.2629413644 | E32: Eq
A33: Estimate
A34: Dose | B34: Dose | C34: = AmntFood × Conc / BW
B35: Central | C35: =$C30 * C9/C$13 -> 4.213204956 | D35: mg/kg bw/day | E35: Eq
B36: Lower | C36: =$C31 * C10/C$13 -> 0.334705258 | E36: Eq
B37: Upper | C37: =$C32 * C11/C$13 -> 54.30487308 | E37: Eq

Sheet F11c
A1: Consumption of Short grass by a Mammal, large after Chronic exposure.
A2: Short Title | B2: Grass Chronic | E2: FdKcalV6
A3: Receptor | B3: Mammal, large
A4: Duration | B4: Chronic | E4: Scenario parameter
A5: Material consumed | B5: Short grass
A6: Parameter/Assumption | B6: Code / Range | C6: Equation/ Value | D6: Units | E6: Reference/Designation
A7: Commodity
A8: Concentration on consumed commodity | B8: Conc
B9: Central | C9: =B05c!Chronic_C -> 10.89588691 | D9: mg/kg food wet weight | E9: ='B05c'!Chronic_C
B10: Lower | C10: =B05c!Chronic_L -> 2.885302027 | E10: ='B05c'!Chronic_L
B11: Upper | C11: =B05c!Chronic_U -> 82.611381 | E11: ='B05c'!Chronic_U
A12: Receptor
A13: Body weight | B13: BW | C13: =A02b!$C$61 -> 70 | D13: kg | E13: Default
A14: Allometric coefficients for caloric requirement per day in kilocalories and BW in grams
B15: alpha | C15: =A02b!$C$62 -> 1.518 | E15: U.S. EPA/ORD 1993
B16: beta | C16: =A02b!$C$63 -> 0.73 | E16: U.S. EPA/ORD 1993
A17: Caloric requirement per day | B17: KR | C17: = alpha x (BW x 1kg/1000g)beta
C18: =C15*((C13*1000)^C16) -> 5226.28803 | D18: kcal/day | E18: Eq
A19: Caloric content of commodity (dry weight) | B19: KCD | C19: 2.26 | D19: kcal/gdw [Note 1] | E19: WkMk Documentation
A20: Food consumed per day (dry weight) | B20: AmntDry | C20: = KR ÷ KCD
C21: =C18/C19 -> 2312.516827 | D21: gdry/day | E21: Eq
A22: Water content of vegetation as a proportion | B22: PropWater | C22: 0.85 | D22: gwater/gfood | E22: WkMk Documentation
A23: Dry weight content of vegetation as a proportion | B23: PropDry | C23: = 1-PropWater
C24: =1-C22 -> 0.15 | D24: gdry/gfood | E24: Eq
A25: Variability in caloric requirements not accounted for by allometric equation | B25: Error
B26: Central | C26: 1 | D26: Note 2
B27: Lower | C27: 0.3
B28: Upper | C28: 1.7
A29: Amount of food consumed per day, wet weight | B29: AmntFood | C29: = (AmntDry ÷ PropDry) ÷ (1000g/kg)
B30: Central | C30: =C26*(C$21/C$24)/1000 -> 15.41677885 | D30: kgfood/day | E30: Eq
B31: Lower | C31: =C27*(C$21/C$24)/1000 -> 4.625033655 | E31: Eq
B32: Upper | C32: 26.20852404 | E32: Eq
A33: Estimate
A34: Dose | B34: Dose | C34: = AmntFood × Conc / BW
B35: Central | C35: =$C30 * C9/C$13 -> 2.39970684 | D35: mg/kg bw/day | E35: Eq
B36: Lower | C36: =$C31 * C10/C$13 -> 0.190637414 | E36: Eq
B37: Upper | C37: =$C32 * C11/C$13 -> 30.9303195 | E37: Eq

Sheet F11d
A1: Consumption of Short grass by a Bird, small after Chronic exposure.
A2: Short Title | B2: Grass Chronic | E2: FdKcalV6
A3: Receptor | B3: Bird, small
A4: Duration | B4: Chronic | E4: Scenario parameter
A5: Material consumed | B5: Short grass
A6: Parameter/Assumption | B6: Code / Range | C6: Equation/ Value | D6: Units | E6: Reference/Designation
A7: Commodity
A8: Concentration on consumed commodity | B8: Conc
B9: Central | C9: =B05c!Chronic_C -> 10.89588691 | D9: mg/kg food wet weight | E9: ='B05c'!Chronic_C
B10: Lower | C10: =B05c!Chronic_L -> 2.885302027 | E10: ='B05c'!Chronic_L
B11: Upper | C11: =B05c!Chronic_U -> 82.611381 | E11: ='B05c'!Chronic_U
A12: Receptor
A13: Body weight | B13: BW | C13: =A02b!$C$31 -> 0.01 | D13: kg | E13: Default
A14: Allometric coefficients for caloric requirement per day in kilocalories and BW in grams
B15: alpha | C15: =A02b!$C$32 -> 3.12 | E15: U.S. EPA/ORD 1993
B16: beta | C16: =A02b!$C$33 -> 0.605 | E16: U.S. EPA/ORD 1993
A17: Caloric requirement per day | B17: KR | C17: = alpha x (BW x 1kg/1000g)beta
C18: =C15*((C13*1000)^C16) -> 12.56477147 | D18: kcal/day | E18: Eq
A19: Caloric content of commodity (dry weight) | B19: KCD | C19: 2 | D19: kcal/gdw [Note 1] | E19: WkMk Documentation
A20: Food consumed per day (dry weight) | B20: AmntDry | C20: = KR ÷ KCD
C21: =C18/C19 -> 6.282385735 | D21: gdry/day | E21: Eq
A22: Water content of vegetation as a proportion | B22: PropWater | C22: 0.85 | D22: gwater/gfood | E22: WkMk Documentation
A23: Dry weight content of vegetation as a proportion | B23: PropDry | C23: = 1-PropWater
C24: =1-C22 -> 0.15 | D24: gdry/gfood | E24: Eq
A25: Variability in caloric requirements not accounted for by allometric equation | B25: Error
B26: Central | C26: 1 | D26: Note 2
B27: Lower | C27: 0.3
B28: Upper | C28: 1.7
A29: Amount of food consumed per day, wet weight | B29: AmntFood | C29: = (AmntDry ÷ PropDry) ÷ (1000g/kg)
B30: Central | C30: =C26*(C$21/C$24)/1000 -> 0.04188257157 | D30: kgfood/day | E30: Eq
B31: Lower | C31: =C27*(C$21/C$24)/1000 -> 0.01256477147 | E31: Eq
B32: Upper | C32: 0.07120037167 | E32: Eq
A33: Estimate
A34: Dose | B34: Dose | C34: = AmntFood × Conc / BW
B35: Central | C35: =$C30 * C9/C$13 -> 45.63477633 | D35: mg/kg bw/day | E35: Eq
B36: Lower | C36: =$C31 * C10/C$13 -> 3.625316059 | E36: Eq
B37: Upper | C37: =$C32 * C11/C$13 -> 588.1961031 | E37: Eq

Sheet F11e
A1: Consumption of Short grass by a Bird, large after Chronic exposure.
A2: Short Title | B2: Grass Chronic | E2: FdKcalV6
A3: Receptor | B3: Bird, large
A4: Duration | B4: Chronic | E4: Scenario parameter
A5: Material consumed | B5: Short grass
A6: Parameter/Assumption | B6: Code / Range | C6: Equation/ Value | D6: Units | E6: Reference/Designation
A7: Commodity
A8: Concentration on consumed commodity | B8: Conc
B9: Central | C9: =B05c!Chronic_C -> 10.89588691 | D9: mg/kg food wet weight | E9: ='B05c'!Chronic_C
B10: Lower | C10: =B05c!Chronic_L -> 2.885302027 | E10: ='B05c'!Chronic_L
B11: Upper | C11: =B05c!Chronic_U -> 82.611381 | E11: ='B05c'!Chronic_U
A12: Receptor
A13: Body weight | B13: BW | C13: =A02b!$C$15 -> 4 | D13: kg | E13: Default
A14: Allometric coefficients for caloric requirement per day in kilocalories and BW in grams
B15: alpha | C15: =A02b!$C$16 -> 1.146 | E15: U.S. EPA/ORD 1993
B16: beta | C16: =A02b!$C$17 -> 0.749 | E16: U.S. EPA/ORD 1993
A17: Caloric requirement per day | B17: KR | C17: = alpha x (BW x 1kg/1000g)beta
C18: =C15*((C13*1000)^C16) -> 571.6465031 | D18: kcal/day | E18: Eq
A19: Caloric content of commodity (dry weight) | B19: KCD | C19: 2 | D19: kcal/gdw [Note 1] | E19: WkMk Documentation
A20: Food consumed per day (dry weight) | B20: AmntDry | C20: = KR ÷ KCD
C21: =C18/C19 -> 285.8232515 | D21: gdry/day | E21: Eq
A22: Water content of vegetation as a proportion | B22: PropWater | C22: 0.85 | D22: gwater/gfood | E22: WkMk Documentation
A23: Dry weight content of vegetation as a proportion | B23: PropDry | C23: = 1-PropWater
C24: =1-C22 -> 0.15 | D24: gdry/gfood | E24: Eq
A25: Variability in caloric requirements not accounted for by allometric equation | B25: Error
B26: Central | C26: 1 | D26: Note 2
B27: Lower | C27: 0.3
B28: Upper | C28: 1.7
A29: Amount of food consumed per day, wet weight | B29: AmntFood | C29: = (AmntDry ÷ PropDry) ÷ (1000g/kg)
B30: Central | C30: =C26*(C$21/C$24)/1000 -> 1.905488344 | D30: kgfood/day | E30: Eq
B31: Lower | C31: =C27*(C$21/C$24)/1000 -> 0.5716465031 | E31: Eq
B32: Upper | C32: 3.239330184 | E32: Eq
A33: Estimate
A34: Dose | B34: Dose | C34: = AmntFood × Conc / BW
B35: Central | C35: =$C30 * C9/C$13 -> 5.190496374 | D35: mg/kg bw/day | E35: Eq
B36: Lower | C36: =$C31 * C10/C$13 -> 0.4123432035 | E36: Eq
B37: Upper | C37: =$C32 * C11/C$13 -> 66.90138501 | E37: Eq

Sheet F12a
A1: Consumption of contaminated water by Mammal, small, Longer-term Concentrations
A2: Short Title | B2: Longer-term Concentrations | E2: WatAlloV6
A3: Receptor | B3: Mammal, small
A4: Duration | B4: Chronic | E4: Scenario parameter
A5: Parameter/Assumption | B5: Code / Range | C5: Equation/ Value | D5: Units | E5: Reference/Designation
A6: Concentration in water | B6: ConcWat
B7: Central | C7: =B04a!Chronic_C -> 0.00085 | D7: mg/L | E7: ='B04a'!Chronic_C
B8: Lower | C8: =B04a!Chronic_L -> 9e-05 | E8: ='B04a'!Chronic_L
B9: Upper | C9: =B04a!Chronic_U -> 0.01 | E9: ='B04a'!Chronic_U
A10: Receptor
A11: Body weight | B11: BW | C11: =A02b!$C$71 -> 0.02 | D11: kg | E11: Default
A12: Allometric coefficients forwater consumption per day in liters and BW in kilograms
B13: alpha | C13: =A02b!$C$79 -> 0.099 | E13: U.S. EPA/ORD 1993
B14: beta | C14: =A02b!$C$80 -> 0.9 | E14: U.S. EPA/ORD 1993
A15: Amount of water consumed per day | C15: Amnt = alpha BW beta
B16: Amnt | C16: =C13*(C11^C14) -> 0.002927940121 | D16: liters | E16: Eq
A17: Absorbed Dose | B17: Dose | C17: ConcWat × Amnt ÷ BW
B18: Central | C18: =C7*C$16/C$11 -> 0.0001244374551 | D18: mg/kg | E18: Eq
B19: Lower | C19: =C8*C$16/C$11 -> 1.317573054e-05 | D19: mg/kg | E19: Eq
B20: Upper | C20: =C9*C$16/C$11 -> 0.00146397006 | D20: mg/kg | E20: Eq

Sheet F12b
A1: Consumption of contaminated water by Mammal, 400 g, Longer-term Concentrations
A2: Short Title | B2: Longer-term Concentrations | E2: WatAlloV6
A3: Receptor | B3: Mammal, 400 g
A4: Duration | B4: Chronic | E4: Scenario parameter
A5: Parameter/Assumption | B5: Code / Range | C5: Equation/ Value | D5: Units | E5: Reference/Designation
A6: Concentration in water | B6: ConcWat
B7: Central | C7: =B04a!Chronic_C -> 0.00085 | D7: mg/L | E7: ='B04a'!Chronic_C
B8: Lower | C8: =B04a!Chronic_L -> 9e-05 | E8: ='B04a'!Chronic_L
B9: Upper | C9: =B04a!Chronic_U -> 0.01 | E9: ='B04a'!Chronic_U
A10: Receptor
A11: Body weight | B11: BW | C11: =A02b!$C$40 -> 0.4 | D11: kg | E11: Default
A12: Allometric coefficients forwater consumption per day in liters and BW in kilograms
B13: alpha | C13: =A02b!$C$45 -> 0.099 | E13: U.S. EPA/ORD 1993
B14: beta | C14: =A02b!$C$46 -> 0.9 | E14: U.S. EPA/ORD 1993
A15: Amount of water consumed per day | C15: Amnt = alpha BW beta
B16: Amnt | C16: =C13*(C11^C14) -> 0.04339994576 | D16: liters | E16: Eq
A17: Absorbed Dose | B17: Dose | C17: ConcWat × Amnt ÷ BW
B18: Central | C18: =C7*C$16/C$11 -> 9.222488475e-05 | D18: mg/kg | E18: Eq
B19: Lower | C19: =C8*C$16/C$11 -> 9.764987797e-06 | D19: mg/kg | E19: Eq
B20: Upper | C20: =C9*C$16/C$11 -> 0.001084998644 | D20: mg/kg | E20: Eq

Sheet F12c
A1: Consumption of contaminated water by Mammal, carnivorous, Longer-term Concentrations
A2: Short Title | B2: Longer-term Concentrations | E2: WatAlloV6
A3: Receptor | B3: Mammal, carnivorous
A4: Duration | B4: Chronic | E4: Scenario parameter
A5: Parameter/Assumption | B5: Code / Range | C5: Equation/ Value | D5: Units | E5: Reference/Designation
A6: Concentration in water | B6: ConcWat
B7: Central | C7: =B04a!Chronic_C -> 0.00085 | D7: mg/L | E7: ='B04a'!Chronic_C
B8: Lower | C8: =B04a!Chronic_L -> 9e-05 | E8: ='B04a'!Chronic_L
B9: Upper | C9: =B04a!Chronic_U -> 0.01 | E9: ='B04a'!Chronic_U
A10: Receptor
A11: Body weight | B11: BW | C11: =A02b!$C$47 -> 5 | D11: kg | E11: U.S. EPA/ORD 1993
A12: Allometric coefficients forwater consumption per day in liters and BW in kilograms
B13: alpha | C13: =A02b!$C$50 -> 0.099 | E13: U.S. EPA/ORD 1993
B14: beta | C14: =A02b!$C$51 -> 0.9 | E14: U.S. EPA/ORD 1993
A15: Amount of water consumed per day | C15: Amnt = alpha BW beta
B16: Amnt | C16: =C13*(C11^C14) -> 0.4214132616 | D16: liters | E16: Eq
A17: Absorbed Dose | B17: Dose | C17: ConcWat × Amnt ÷ BW
B18: Central | C18: =C7*C$16/C$11 -> 7.164025448e-05 | D18: mg/kg | E18: Eq
B19: Lower | C19: =C8*C$16/C$11 -> 7.58543871e-06 | D19: mg/kg | E19: Eq
B20: Upper | C20: =C9*C$16/C$11 -> 0.0008428265233 | D20: mg/kg | E20: Eq

Sheet F12d
A1: Consumption of contaminated water by Mammal, large, Longer-term Concentrations
A2: Short Title | B2: Longer-term Concentrations | E2: WatAlloV6
A3: Receptor | B3: Mammal, large
A4: Duration | B4: Chronic | E4: Scenario parameter
A5: Parameter/Assumption | B5: Code / Range | C5: Equation/ Value | D5: Units | E5: Reference/Designation
A6: Concentration in water | B6: ConcWat
B7: Central | C7: =B04a!Chronic_C -> 0.00085 | D7: mg/L | E7: ='B04a'!Chronic_C
B8: Lower | C8: =B04a!Chronic_L -> 9e-05 | E8: ='B04a'!Chronic_L
B9: Upper | C9: =B04a!Chronic_U -> 0.01 | E9: ='B04a'!Chronic_U
A10: Receptor
A11: Body weight | B11: BW | C11: =A02b!$C$61 -> 70 | D11: kg | E11: Default
A12: Allometric coefficients forwater consumption per day in liters and BW in kilograms
B13: alpha | C13: =A02b!$C$64 -> 0.099 | E13: U.S. EPA/ORD 1993
B14: beta | C14: =A02b!$C$65 -> 0.9 | E14: U.S. EPA/ORD 1993
A15: Amount of water consumed per day | C15: Amnt = alpha BW beta
B16: Amnt | C16: =C13*(C11^C14) -> 4.531306412 | D16: liters | E16: Eq
A17: Absorbed Dose | B17: Dose | C17: ConcWat × Amnt ÷ BW
B18: Central | C18: =C7*C$16/C$11 -> 5.502300643e-05 | D18: mg/kg | E18: Eq
B19: Lower | C19: =C8*C$16/C$11 -> 5.825965386e-06 | D19: mg/kg | E19: Eq
B20: Upper | C20: =C9*C$16/C$11 -> 0.0006473294874 | D20: mg/kg | E20: Eq

Sheet F12e
A1: Consumption of contaminated water by Bird, small, Longer-term Concentrations
A2: Short Title | B2: Longer-term Concentrations | E2: WatAlloV6
A3: Receptor | B3: Bird, small
A4: Duration | B4: Chronic | E4: Scenario parameter
A5: Parameter/Assumption | B5: Code / Range | C5: Equation/ Value | D5: Units | E5: Reference/Designation
A6: Concentration in water | B6: ConcWat
B7: Central | C7: =B04a!Chronic_C -> 0.00085 | D7: mg/L | E7: ='B04a'!Chronic_C
B8: Lower | C8: =B04a!Chronic_L -> 9e-05 | E8: ='B04a'!Chronic_L
B9: Upper | C9: =B04a!Chronic_U -> 0.01 | E9: ='B04a'!Chronic_U
A10: Receptor
A11: Body weight | B11: BW | C11: =A02b!$C$31 -> 0.01 | D11: kg | E11: Default
A12: Allometric coefficients forwater consumption per day in liters and BW in kilograms
B13: alpha | C13: =A02b!$C$34 -> 0.059 | E13: U.S. EPA/ORD 1993
B14: beta | C14: =A02b!$C$35 -> 0.67 | E14: U.S. EPA/ORD 1993
A15: Amount of water consumed per day | C15: Amnt = alpha BW beta
B16: Amnt | C16: =C13*(C11^C14) -> 0.002696820319 | D16: liters | E16: Eq
A17: Absorbed Dose | B17: Dose | C17: ConcWat × Amnt ÷ BW
B18: Central | C18: =C7*C$16/C$11 -> 0.0002292297271 | D18: mg/kg | E18: Eq
B19: Lower | C19: =C8*C$16/C$11 -> 2.427138287e-05 | D19: mg/kg | E19: Eq
B20: Upper | C20: =C9*C$16/C$11 -> 0.002696820319 | D20: mg/kg | E20: Eq

Sheet F12f
A1: Consumption of contaminated water by Bird, large, Longer-term Concentrations
A2: Short Title | B2: Longer-term Concentrations | E2: WatAlloV6
A3: Receptor | B3: Bird, large
A4: Duration | B4: Chronic | E4: Scenario parameter
A5: Parameter/Assumption | B5: Code / Range | C5: Equation/ Value | D5: Units | E5: Reference/Designation
A6: Concentration in water | B6: ConcWat
B7: Central | C7: =B04a!Chronic_C -> 0.00085 | D7: mg/L | E7: ='B04a'!Chronic_C
B8: Lower | C8: =B04a!Chronic_L -> 9e-05 | E8: ='B04a'!Chronic_L
B9: Upper | C9: =B04a!Chronic_U -> 0.01 | E9: ='B04a'!Chronic_U
A10: Receptor
A11: Body weight | B11: BW | C11: =A02b!$C$15 -> 4 | D11: kg | E11: Default
A12: Allometric coefficients forwater consumption per day in liters and BW in kilograms
B13: alpha | C13: =A02b!$C$18 -> 0.059 | E13: U.S. EPA/ORD 1993
B14: beta | C14: =A02b!$C$19 -> 0.67 | E14: U.S. EPA/ORD 1993
A15: Amount of water consumed per day | C15: Amnt = alpha BW beta
B16: Amnt | C16: =C13*(C11^C14) -> 0.1493592781 | D16: liters | E16: Eq
A17: Absorbed Dose | B17: Dose | C17: ConcWat × Amnt ÷ BW
B18: Central | C18: =C7*C$16/C$11 -> 3.173884659e-05 | D18: mg/kg | E18: Eq
B19: Lower | C19: =C8*C$16/C$11 -> 3.360583757e-06 | D19: mg/kg | E19: Eq
B20: Upper | C20: =C9*C$16/C$11 -> 0.0003733981952 | D20: mg/kg | E20: Eq

Sheet F13a
A1: Chronic scenario for the consumption of Contaminated Fish (Longer-term) by Mammal, large carnivorous
A2: Short Title | B2: Fish consumption, accidental spill | E2: FishKcalV6
A3: Predator | B3: Mammal, large carnivorous
A4: Food Item (Prey) | B4: Fish
A5: Duration | B5: Chronic | E5: Scenario parameter
A6: Parameter/Assumption | B6: Code / Range | C6: Equation/ Value | D6: Units | E6: Reference/Designation
A7: Water
A8: Concentration in water | B8: ConcWat
B9: Central | C9: =B04a!Chronic_C -> 0.00085 | D9: mg/L | E9: ='B04a'!Chronic_C
B10: Lower | C10: =B04a!Chronic_L -> 9e-05 | E10: ='B04a'!Chronic_L
B11: Upper | C11: =B04a!Chronic_U -> 0.01 | E11: ='B04a'!Chronic_U
A12: Fish
A13: Bioconcentration factor | B13: BCF
B14: Central | C14: ='B01'!$C$6 -> 1 | D14: L/kg | E14: Section 3.2.3.5.
B15: Lower | C15: ='B01'!$C$6 -> 1 | E15: Section 3.2.3.5.
B16: Upper | C16: ='B01'!$C$6 -> 1 | E16: Section 3.2.3.5.
A17: Concentration in fish | B17: ConcFish | C17: ConcWat × BCF
B18: Central | C18: =C9*C14 -> 0.00085 | D18: mg/kg | E18: Eq
B19: Lower | C19: =C10*C15 -> 9e-05 | E19: Eq
B20: Upper | C20: =C11*C16 -> 0.01 | E20: Eq
A21: Receptor
A22: Body weight | B22: BW | C22: =A02b!$C$52 -> 70 | D22: kg | E22: Reid 2006
A23: Allometric coefficients for caloric requirement per day in kilocalories and BW in grams
B24: alpha | C24: =A02b!$C$53 -> 0.6167 | E24: U.S. EPA/ORD 1993
B25: beta | C25: =A02b!$C$54 -> 0.862 | E25: U.S. EPA/ORD 1993
A26: Caloric requirement per day | B26: KR | C26: =C24*(C22*1000)^C25 -> 9258.666883 | D26: kcal/day | E26: Eq
A27: Caloric content of commodity (dry weight) | B27: KCD | C27: 4.47 | D27: kcal/gdw [Note 1] | E27: WkMk Documentation
A28: Food consumed per day (dry weight) | B28: AmntDry | C28: = KR ÷ KCD
C29: =C26/C27 -> 2071.29013 | D29: gdry/day | E29: Eq
A30: Water content of vegetation as a proportion | B30: PropWater | C30: 0.7 | D30: gwater/gfood | E30: WkMk Documentation
A31: Dry weight content of vegetation as a proportion | B31: PropDry | C31: = 1-PropWater
C32: =1-C30 -> 0.3 | D32: gdry/gfood | E32: Eq
A33: Amount of fish consumed per day, wet weight | B33: AmntFish | C33: = (AmntDry ÷ PropDry) ÷ (1000g/kg)
B34: Central | C34: =(C29/C32)/1000 -> 6.904300435 | D34: kgfood/day | E34: Eq
B35: Lower | C35: =C34*0.3 -> 2.07129013 | D35: Note 1 | E35: Eq
B36: Upper | C36: =C34*1.7 -> 11.73731074 | D36: Note 1 | E36: Eq
A37: Proportion of diet that is contaminated | B37: Prop
B38: Central | C38: 0.3 | D38: Unitless | E38: Scenario parameter
B39: Lower | C39: 0.1 | E39: Scenario parameter
B40: Upper | C40: 1 | E40: Scenario parameter
A41: Dose
A42: Toxic Equivalency Factor for formulation: (See risk assessment if this has a value other than 1.) | B42: TEF
B43: Central | C43: ='A01'!C$35 -> 1 | D43: Unitless | E43: Worksheet A01
B44: Lower | C44: ='A01'!C$36 -> 1 | D44: Note 2 | E44: Worksheet A01
B45: Upper | C45: ='A01'!C$37 -> 1 | D45: Note 2 | E45: Worksheet A01
A46: Dose | B46: Dose | C46: = ConcFish × AmntFish × Prop ÷ BW
B47: Central | C47: =C18*C34*C38/C$22 -> 2.515138015e-05 | D47: mg/kg | E47: Eq
B48: Lower | C48: =C19*C35*C39/C$22 -> 2.663087311e-07 | D48: mg/kg | E48: Eq
B49: Upper | C49: 0.001676758677 | D49: mg/kg | E49: Eq
E50: FishKcalV6

Sheet F13b
A1: Chronic scenario for the consumption of Contaminated Fish (Longer-term) by Mammal, carnivorous
A2: Short Title | B2: Fish consumption, accidental spill | E2: FishKcalV6
A3: Predator | B3: Mammal, carnivorous
A4: Food Item (Prey) | B4: Fish
A5: Duration | B5: Chronic | E5: Scenario parameter
A6: Parameter/Assumption | B6: Code / Range | C6: Equation/ Value | D6: Units | E6: Reference/Designation
A7: Water
A8: Concentration in water | B8: ConcWat
B9: Central | C9: =B04a!Chronic_C -> 0.00085 | D9: mg/L | E9: ='B04a'!Chronic_C
B10: Lower | C10: =B04a!Chronic_L -> 9e-05 | E10: ='B04a'!Chronic_L
B11: Upper | C11: =B04a!Chronic_U -> 0.01 | E11: ='B04a'!Chronic_U
A12: Fish
A13: Bioconcentration factor | B13: BCF
B14: Central | C14: ='B01'!$C$6 -> 1 | D14: L/kg | E14: Section 3.2.3.5.
B15: Lower | C15: ='B01'!$C$6 -> 1 | E15: Section 3.2.3.5.
B16: Upper | C16: ='B01'!$C$6 -> 1 | E16: Section 3.2.3.5.
A17: Concentration in fish | B17: ConcFish | C17: ConcWat × BCF
B18: Central | C18: =C9*C14 -> 0.00085 | D18: mg/kg | E18: Eq
B19: Lower | C19: =C10*C15 -> 9e-05 | E19: Eq
B20: Upper | C20: =C11*C16 -> 0.01 | E20: Eq
A21: Receptor
A22: Body weight | B22: BW | C22: =A02b!$C$47 -> 5 | D22: kg | E22: U.S. EPA/ORD 1993
A23: Allometric coefficients for caloric requirement per day in kilocalories and BW in grams
B24: alpha | C24: =A02b!$C$48 -> 0.6167 | E24: U.S. EPA/ORD 1993
B25: beta | C25: =A02b!$C$49 -> 0.862 | E25: U.S. EPA/ORD 1993
A26: Caloric requirement per day | B26: KR | C26: =C24*(C22*1000)^C25 -> 951.8885266 | D26: kcal/day | E26: Eq
A27: Caloric content of commodity (dry weight) | B27: KCD | C27: 4.47 | D27: kcal/gdw [Note 1] | E27: WkMk Documentation
A28: Food consumed per day (dry weight) | B28: AmntDry | C28: = KR ÷ KCD
C29: =C26/C27 -> 212.9504534 | D29: gdry/day | E29: Eq
A30: Water content of vegetation as a proportion | B30: PropWater | C30: 0.7 | D30: gwater/gfood | E30: WkMk Documentation
A31: Dry weight content of vegetation as a proportion | B31: PropDry | C31: = 1-PropWater
C32: =1-C30 -> 0.3 | D32: gdry/gfood | E32: Eq
A33: Amount of fish consumed per day, wet weight | B33: AmntFish | C33: = (AmntDry ÷ PropDry) ÷ (1000g/kg)
B34: Central | C34: =(C29/C32)/1000 -> 0.7098348446 | D34: kgfood/day | E34: Eq
B35: Lower | C35: =C34*0.3 -> 0.2129504534 | D35: Note 1 | E35: Eq
B36: Upper | C36: =C34*1.7 -> 1.206719236 | D36: Note 1 | E36: Eq
A37: Proportion of diet that is contaminated | B37: Prop
B38: Central | C38: 0.3 | D38: Unitless | E38: Scenario parameter
B39: Lower | C39: 0.1 | E39: Scenario parameter
B40: Upper | C40: 1 | E40: Scenario parameter
A41: Dose
A42: Toxic Equivalency Factor for formulation: (See risk assessment if this has a value other than 1.) | B42: TEF
B43: Central | C43: ='A01'!C$35 -> 1 | D43: Unitless | E43: Worksheet A01
B44: Lower | C44: ='A01'!C$36 -> 1 | D44: Note 2 | E44: Worksheet A01
B45: Upper | C45: ='A01'!C$37 -> 1 | D45: Note 2 | E45: Worksheet A01
A46: Dose | B46: Dose | C46: = ConcFish × AmntFish × Prop ÷ BW
B47: Central | C47: =C18*C34*C38/C$22 -> 3.620157707e-05 | D47: mg/kg | E47: Eq
B48: Lower | C48: =C19*C35*C39/C$22 -> 3.833108161e-07 | D48: mg/kg | E48: Eq
B49: Upper | C49: 0.002413438472 | D49: mg/kg | E49: Eq
E50: FishKcalV6

Sheet F13c
A1: Chronic scenario for the consumption of Contaminated Fish (Longer-term) by Bird, piscivorous
A2: Short Title | B2: Fish consumption, accidental spill | E2: FishKcalV6
A3: Predator | B3: Bird, piscivorous
A4: Food Item (Prey) | B4: Fish
A5: Duration | B5: Chronic | E5: Scenario parameter
A6: Parameter/Assumption | B6: Code / Range | C6: Equation/ Value | D6: Units | E6: Reference/Designation
A7: Water
A8: Concentration in water | B8: ConcWat
B9: Central | C9: =B04a!Chronic_C -> 0.00085 | D9: mg/L | E9: ='B04a'!Chronic_C
B10: Lower | C10: =B04a!Chronic_L -> 9e-05 | E10: ='B04a'!Chronic_L
B11: Upper | C11: =B04a!Chronic_U -> 0.01 | E11: ='B04a'!Chronic_U
A12: Fish
A13: Bioconcentration factor | B13: BCF
B14: Central | C14: ='B01'!$C$6 -> 1 | D14: L/kg | E14: Section 3.2.3.5.
B15: Lower | C15: ='B01'!$C$6 -> 1 | E15: Section 3.2.3.5.
B16: Upper | C16: ='B01'!$C$6 -> 1 | E16: Section 3.2.3.5.
A17: Concentration in fish | B17: ConcFish | C17: ConcWat × BCF
B18: Central | C18: =C9*C14 -> 0.00085 | D18: mg/kg | E18: Eq
B19: Lower | C19: =C10*C15 -> 9e-05 | E19: Eq
B20: Upper | C20: =C11*C16 -> 0.01 | E20: Eq
A21: Receptor
A22: Body weight | B22: BW | C22: =A02b!$C$24 -> 2.4 | D22: kg | E22: Sibley 2000
A23: Allometric coefficients for caloric requirement per day in kilocalories and BW in grams
B24: alpha | C24: =A02b!$C$27 -> 1.916 | E24: U.S. EPA/ORD 1993
B25: beta | C25: =A02b!$C$28 -> 0.704 | E25: U.S. EPA/ORD 1993
A26: Caloric requirement per day | B26: KR | C26: =C24*(C22*1000)^C25 -> 459.2659192 | D26: kcal/day | E26: Eq
A27: Caloric content of commodity (dry weight) | B27: KCD | C27: 3.87 | D27: kcal/gdw [Note 1] | E27: WkMk Documentation
A28: Food consumed per day (dry weight) | B28: AmntDry | C28: = KR ÷ KCD
C29: =C26/C27 -> 118.6733641 | D29: gdry/day | E29: Eq
A30: Water content of vegetation as a proportion | B30: PropWater | C30: 0.7 | D30: gwater/gfood | E30: WkMk Documentation
A31: Dry weight content of vegetation as a proportion | B31: PropDry | C31: = 1-PropWater
C32: =1-C30 -> 0.3 | D32: gdry/gfood | E32: Eq
A33: Amount of fish consumed per day, wet weight | B33: AmntFish | C33: = (AmntDry ÷ PropDry) ÷ (1000g/kg)
B34: Central | C34: =(C29/C32)/1000 -> 0.3955778805 | D34: kgfood/day | E34: Eq
B35: Lower | C35: =C34*0.3 -> 0.1186733641 | D35: Note 1 | E35: Eq
B36: Upper | C36: =C34*1.7 -> 0.6724823968 | D36: Note 1 | E36: Eq
A37: Proportion of diet that is contaminated | B37: Prop
B38: Central | C38: 0.3 | D38: Unitless | E38: Scenario parameter
B39: Lower | C39: 0.1 | E39: Scenario parameter
B40: Upper | C40: 1 | E40: Scenario parameter
A41: Dose
A42: Toxic Equivalency Factor for formulation: (See risk assessment if this has a value other than 1.) | B42: TEF
B43: Central | C43: ='A01'!C$35 -> 1 | D43: Unitless | E43: Worksheet A01
B44: Lower | C44: ='A01'!C$36 -> 1 | D44: Note 2 | E44: Worksheet A01
B45: Upper | C45: ='A01'!C$37 -> 1 | D45: Note 2 | E45: Worksheet A01
A46: Dose | B46: Dose | C46: = ConcFish × AmntFish × Prop ÷ BW
B47: Central | C47: =C18*C34*C38/C$22 -> 4.20301498e-05 | D47: mg/kg | E47: Eq
B48: Lower | C48: =C19*C35*C39/C$22 -> 4.450251155e-07 | D48: mg/kg | E48: Eq
B49: Upper | C49: 0.002802009987 | D49: mg/kg | E49: Eq
E50: FishKcalV6

Sheet G01
A1: Summary of Exposure Assessments for the Terrestrial Animals | F1: G01V6
A2: Application Rate: | B2: ='A01'!ApRt_C -> 1 | C2: lb a.e./acre | F2: G01V6
A3: Scenario | B3: Receptor | C3: mg/kg/day or mg/kg/event | F3: Detail Worksheet
C4: Central | D4: Lower | E4: Upper
A5: Accidental Acute Exposures
A6: Direct Spray | J6: Spray: Partial Abs
A7: first-order absorption | B7: Small mammal (20g) | C7: =F01a!Dose_C -> 0.02907558751 | D7: =F01a!Dose_L -> 0.01744953923 | E7: =F01a!Dose_U -> 0.04127693369 | F7: F01a | J7: Spray: 100% Abs
A8: 100% absorption | B8: Small mammal (20g) | C8: =F01b!Dose_C -> 24.24419696 | D8: =F01b!Dose_L -> 24.24419696 | E8: =F01b!Dose_U -> 24.24419696 | F8: F01b
A9: Contaminated Water | J9: Spill: Sm Mam
A10: Spill | B10: Small mammal (20g) | C10: =F02a!Dose_C -> 0.2216450671 | D10: =F02a!Dose_L -> 0.01329870403 | E10: =F02a!Dose_U -> 2.659740805 | F10: F02a | J10: Spill: Med Mam
A11: Spill | B11: Larger Mammal (400g) | C11: =F02b!Dose_C -> 0.1642687947 | D11: =F02b!Dose_L -> 0.009856127683 | E11: =F02b!Dose_U -> 1.971225537 | F11: F02b | J11: Spill: Canid
A12: Spill | B12: Canid (5 kg) | C12: =F02c!Dose_C -> 0.1276039356 | D12: =F02c!Dose_L -> 0.007656236138 | E12: =F02c!Dose_U -> 1.531247228 | F12: F02c | J12: Spill: Lrg Mam
A13: Spill | B13: Large Mammal (70g) | C13: =F02d!Dose_C -> 0.09800568439 | D13: =F02d!Dose_L -> 0.005880341063 | E13: =F02d!Dose_U -> 1.176068213 | F13: F02d | J13: Spill: Sm Brd
A14: Spill | B14: Small bird (10g) | C14: =F02e!Dose_C -> 0.4082985963 | D14: =F02e!Dose_L -> 0.02449791578 | E14: =F02e!Dose_U -> 4.899583155 | F14: F02e | J14: Spill: Lrg Brd
A15: Spill | B15: Large Bird (4 kg) | C15: =F02f!Dose_C -> 0.05653248676 | D15: =F02f!Dose_L -> 0.003391949205 | E15: =F02f!Dose_U -> 0.6783898411 | F15: F02f
A16: Consumption of contaminated Fish | J16: Fish: Bear
A17: Spill | B17: Large Mammalian Carnivore (70 kg) | C17: =F03a!Dose_C -> 0.04479904653 | D17: =F03a!Dose_L -> 0.0002687942792 | E17: =F03a!Dose_U -> 3.046335164 | F17: F03a | J17: Fish: Fox
A18: Spill | B18: Canid (5 kg) | C18: =F03b!Dose_C -> 0.06448139728 | D18: =F03b!Dose_L -> 0.0003868883837 | E18: =F03b!Dose_U -> 4.384735015 | F18: F03b | J18: Fish: Bird
A19: Spill | B19: Fish-eating bird (2.4 kg) | C19: =F03c!Dose_C -> 0.07486311388 | D19: =F03c!Dose_L -> 0.0004491786833 | E19: =F03c!Dose_U -> 5.090691744 | F19: F03c
A20: Non-Accidental Acute Exposures
A21: Contaminated Fruit (Lowest Residue Rate)
B22: Small mammal (20g) | C22: =F04a!Dose_C -> 15.88309028 | D22: =F04a!Dose_L -> 2.178252381 | E22: =F04a!Dose_U -> 57.85982886 | F22: F04a | J22: Grass: Sm Mam
B23: Larger Mammal (400g) | C23: =F04b!Dose_C -> 3.626830142 | D23: =F04b!Dose_L -> 0.4973938481 | E23: =F04b!Dose_U -> 13.21202409 | F23: F04b | J23: Grass: Med Mam
B24: Large Mammal (70g) | C24: =F04c!Dose_C -> 2.065726494 | D24: =F04c!Dose_L -> 0.2832996335 | E24: =F04c!Dose_U -> 7.525146514 | F24: F04c | J24: Grass: Lrg Mam
B25: Small bird (10g) | C25: =F04d!Dose_C -> 34.76418984 | D25: =F04d!Dose_L -> 4.767660321 | E25: =F04d!Dose_U -> 126.6409773 | F25: F04d | J25: Grass: Sm Brd
B26: Large Bird (4 kg) | C26: =F04e!Dose_C -> 3.954076602 | D26: =F04e!Dose_L -> 0.5422733626 | E26: =F04e!Dose_U -> 14.40413619 | F26: F04e | J26: Grass: Lrg Brd
A27: Contaminated Vegetation (Short Grass - Highest Residue Rate)
B28: Small mammal (20g) | C28: =F05a!Dose_C -> 143.938414 | D28: =F05a!Dose_L -> 15.24053795 | E28: =F05a!Dose_U -> 690.9043871 | F28: F05a | J28: Veg: Sm Mam
B29: Larger Mammal (400g) | C29: =F05b!Dose_C -> 32.86767055 | D29: =F05b!Dose_L -> 3.480106293 | E29: =F05b!Dose_U -> 157.7648186 | F29: F05b | J29: Veg: Med Mam
B30: Large Mammal | C30: =F05c!Dose_C -> 18.72037432 | D30: =F05c!Dose_L -> 1.982157281 | E30: =F05c!Dose_U -> 89.85779672 | F30: F05c | J30: Veg: Lrg Mam
B31: Small bird (10g) | C31: =F05d!Dose_C -> 356.0018583 | D31: =F05d!Dose_L -> 37.69431441 | E31: =F05d!Dose_U -> 1708.80892 | F31: F05d | J31: Veg: Sm Brd
B32: Large Bird (4 kg) | C32: =F05e!Dose_C -> 40.4916273 | D32: =F05e!Dose_L -> 4.287348773 | E32: =F05e!Dose_U -> 194.359811 | F32: F05e | J32: Veg: Lrg Brd
A33: Contaminated Water
B34: Small mammal (20g) | C34: =F06a!Dose_C -> 0.001610367066 | D34: =F06a!Dose_L -> 0.000146397006 | E34: =F06a!Dose_U -> 0.02635146108 | F34: F06a | J34: Water: Sm Mam
B35: Larger Mammal (400g) | C35: =F06b!Dose_C -> 0.001193498509 | D35: =F06b!Dose_L -> 0.0001084998644 | E35: =F06b!Dose_U -> 0.01952997559 | F35: F06b | J35: Water: Med Mam
B36: Canid (5 kg) | C36: =F06c!Dose_C -> 0.0009271091756 | D36: =F06c!Dose_L -> 8.428265233e-05 | E36: =F06c!Dose_U -> 0.01517087742 | F36: F06c | J36: Water: Canid
B37: Large Mammal (70g) | C37: =F06d!Dose_C -> 0.0007120624361 | D37: =F06d!Dose_L -> 6.473294874e-05 | E37: =F06d!Dose_U -> 0.01165193077 | F37: F06d | J37: Water: Lrg Mam
B38: Small bird (10g) | C38: =F06e!Dose_C -> 0.002966502351 | D38: =F06e!Dose_L -> 0.0002696820319 | E38: =F06e!Dose_U -> 0.04854276574 | F38: F06e | J38: Water: Sm Brd
B39: Large Bird (4 kg) | C39: =F06f!Dose_C -> 0.0004107380147 | D39: =F06f!Dose_L -> 3.733981952e-05 | E39: =F06f!Dose_U -> 0.006721167514 | F39: F06f | J39: Water: Lrg Brd
A40: Contaminated Insects
B41: Small mammal (20g) | C41: =F07a!Dose_C -> 19.26376721 | D41: =F07a!Dose_L -> 1.926376721 | E41: =F07a!Dose_U -> 98.24521276 | F41: F07a | J41: Insects: Sm Mam
B42: Larger Mammal (400g) | C42: =F07b!Dose_C -> 4.398792071 | D42: =F07b!Dose_L -> 0.4398792071 | E42: =F07b!Dose_U -> 22.43383956 | F42: F07b | J42: Insects: Med Mam
B43: Small bird (10g) | C43: =F07c!Dose_C -> 43.83059815 | D43: =F07c!Dose_L -> 4.383059815 | E43: =F07c!Dose_U -> 223.5360506 | F43: F07c | J43: Insects: Sm Brd
A44: Consumption of small mammal (after direct spray) by predator
B45: Canid (5 kg) | C45: =F08a!Dose_C -> 2.715032109 | D45: =F08a!Dose_L -> 2.715032109 | E45: =F08a!Dose_U -> 2.715032109 | F45: F08a | J45: Canid Eats Sm Mam
B46: Carnivorous bird (640 g) | C46: =F08b!Dose_C -> 3.228437078 | D46: =F08b!Dose_L -> 3.228437078 | E46: =F08b!Dose_U -> 3.228437078 | F46: F08b | J46: Bird Eats Sm Mam
A47: Consumption of contaminated Fish
B48: Large Mammalian Carnivore (70 kg) | C48: =F09a!Dose_C -> 0.0003254884491 | D48: =F09a!Dose_L -> 2.958985901e-06 | E48: =F09a!Dose_U -> 0.03018165619 | F48: F09a | J48: Fish: Lrg Mam
B49: Canid (5 kg) | C49: =F09b!Dose_C -> 0.0004684909974 | D49: =F09b!Dose_L -> 4.259009068e-06 | E49: =F09b!Dose_U -> 0.04344189249 | F49: F09b | J49: Fish: Canid
B50: Fish-eating bird (2.4 kg) | C50: =F09c!Dose_C -> 0.0005439195857 | D50: =F09c!Dose_L -> 4.944723506e-06 | E50: =F09c!Dose_U -> 0.05043617976 | F50: F09c | J50: Fish: Brd
A51: Chronic/Longer Term Exposures
A52: Contaminated Fruit (Lowest Residue Rate)
B53: Small mammal (20g) | C53: =F10a!Dose_C -> 2.036004181 | D53: =F10a!Dose_L -> 0.2094972003 | E53: =F10a!Dose_U -> 19.91616819 | F53: F10a | I53: Grass: Sm Mam
B54: Larger Mammal (400g) | C54: =F10b!Dose_C -> 0.4649121302 | D54: =F10b!Dose_L -> 0.04783771593 | E54: =F10b!Dose_U -> 4.547764816 | F54: F10b | I54: Grass: Med Mam
B55: Large Mammal (70g) | C55: =F10c!Dose_C -> 0.2647990854 | D55: =F10c!Dose_L -> 0.02724683355 | E55: =F10c!Dose_U -> 2.590261441 | F55: F10c | I55: Grass: Lrg Mam
B56: Small bird (10g) | C56: =F10d!Dose_C -> 4.456313894 | D56: =F10d!Dose_L -> 0.4585379996 | E56: =F10d!Dose_U -> 43.59160843 | F56: F10d | I56: Grass: Sm Brd
B57: Large Bird (4 kg) | C57: =F10e!Dose_C -> 0.506860841 | D57: =F10e!Dose_L -> 0.05215408107 | E57: =F10e!Dose_U -> 4.958106596 | F57: F10e | I57: Grass: Lrg Brd
A58: Contaminated Vegetation (Short Grass - Highest Residue Rate)
B59: Small mammal (20g) | C59: =F11a!Dose_C -> 18.45101977 | D59: =F11a!Dose_L -> 1.465785168 | E59: =F11a!Dose_U -> 237.8190232 | F59: F11a | I59: Veg: Sm Mam
B60: Larger Mammal (400g) | C60: =F11b!Dose_C -> 4.213204956 | D60: =F11b!Dose_L -> 0.334705258 | E60: =F11b!Dose_U -> 54.30487308 | F60: F11b | I60: Veg: Med Mam
B61: Large Mammal (70g) | C61: =F11c!Dose_C -> 2.39970684 | D61: =F11c!Dose_L -> 0.190637414 | E61: =F11c!Dose_U -> 30.9303195 | F61: F11c | I61: Veg: Lrg Mam
B62: Small bird (10g) | C62: =F11d!Dose_C -> 45.63477633 | D62: =F11d!Dose_L -> 3.625316059 | E62: =F11d!Dose_U -> 588.1961031 | F62: F11d | I62: Veg: Sm Brd
B63: Large Bird (4 kg) | C63: =F11e!Dose_C -> 5.190496374 | D63: =F11e!Dose_L -> 0.4123432035 | E63: =F11e!Dose_U -> 66.90138501 | F63: F11e | I63: Veg: Lrg Brd
A64: Contaminated Water
B65: Small mammal (20g) | C65: =F12a!Dose_C -> 0.0001244374551 | D65: =F12a!Dose_L -> 1.317573054e-05 | E65: =F12a!Dose_U -> 0.00146397006 | F65: F12a | I65: Water: Sm Mam
B66: Larger Mammal (400g) | C66: =F12b!Dose_C -> 9.222488475e-05 | D66: =F12b!Dose_L -> 9.764987797e-06 | E66: =F12b!Dose_U -> 0.001084998644 | F66: F12b | I66: Water: Med Mam
B67: Canid (5 kg) | C67: =F12c!Dose_C -> 7.164025448e-05 | D67: =F12c!Dose_L -> 7.58543871e-06 | E67: =F12c!Dose_U -> 0.0008428265233 | F67: F12c | I67: Water: Canid
B68: Large Mammal (70g) | C68: =F12d!Dose_C -> 5.502300643e-05 | D68: =F12d!Dose_L -> 5.825965386e-06 | E68: =F12d!Dose_U -> 0.0006473294874 | F68: F12d | I68: Water: Lrg Mam
B69: Small bird (10g) | C69: =F12e!Dose_C -> 0.0002292297271 | D69: =F12e!Dose_L -> 2.427138287e-05 | E69: =F12e!Dose_U -> 0.002696820319 | F69: F12e | I69: Water: Sm Brd
B70: Large Bird (4 kg) | C70: =F12f!Dose_C -> 3.173884659e-05 | D70: =F12f!Dose_L -> 3.360583757e-06 | E70: =F12f!Dose_U -> 0.0003733981952 | F70: F12f | I70: Water: Lrg Brd
A71: Consumption of contaminated Fish
B72: Large Mammalian Carnivore (70 kg) | C72: =F13a!Dose_C -> 2.515138015e-05 | D72: =F13a!Dose_L -> 2.663087311e-07 | E72: =F13a!Dose_U -> 0.001676758677 | F72: F13a | I72: Fish: Lrg Mam
B73: Canid (5 kg) | C73: =F13b!Dose_C -> 3.620157707e-05 | D73: =F13b!Dose_L -> 3.833108161e-07 | E73: =F13b!Dose_U -> 0.002413438472 | F73: F13b | I73: Fish: Canid
B74: Fish-eating bird (2.4 kg) | C74: =F13c!Dose_C -> 4.20301498e-05 | D74: =F13c!Dose_L -> 4.450251155e-07 | E74: =F13c!Dose_U -> 0.002802009987 | F74: F13c | I74: Fish: Brd

Sheet G02
A1: Summary of Hazard Quotients (Toxicity) for the Terrestrial Animals | F1: G01V6
A2: Application Rate: | B2: ='A01'!ApRt_C -> 1 | C2: lb a.e./acre | F2: G01V6
A3: Scenario | B3: Receptor | C3: Hazard Quotients | F3: Toxicity Value
C4: Central | D4: Lower | E4: Upper
A5: Accidental Acute Exposures
A6: Direct Spray | J6: Spray: Partial Abs
A7: first-order absorption | B7: Small mammal (20g) | C7: =F01a!$C$40/$F$7 -> 0.0001453779376 | D7: =F01a!$C$41/$F$7 -> 8.724769613e-05 | E7: =F01a!$C$42/$F$7 -> 0.0002063846684 | F7: ='B02'!$E$20 -> 200 | G7: NOAEL | J7: Spray: 100% Abs
A8: 100% absorption | B8: Small mammal (20g) | C8: =F01b!$C$26/$F$8 -> 0.1212209848 | D8: =F01b!$C$27/$F$8 -> 0.1212209848 | E8: =F01b!$C$28/$F$8 -> 0.1212209848 | F8: ='B02'!$E$20 -> 200 | G8: NOAEL
A9: Contaminated Water | J9: Spill: Sm Mam
A10: Spill | B10: Small mammal (20g) | C10: =F02a!$C$18/$F$10 -> 0.001108225336 | D10: =F02a!$C$19/$F$10 -> 6.649352014e-05 | E10: =F02a!$C$20/$F$10 -> 0.01329870403 | F10: ='B02'!$E$20 -> 200 | G10: NOAEL | J10: Spill: Med Mam
A11: Spill | B11: Larger Mammal (400g) | C11: =F02b!$C$18/$F$11 -> 0.0008213439736 | D11: =F02b!$C$19/$F$11 -> 4.928063842e-05 | E11: =F02b!$C$20/$F$11 -> 0.009856127683 | F11: ='B02'!$E$20 -> 200 | G11: NOAEL | J11: Spill: Canid
A12: Spill | B12: Canid (5 kg) | C12: =F02c!$C$18/$F$12 -> 0.0006380196781 | D12: =F02c!$C$19/$F$12 -> 3.828118069e-05 | E12: =F02c!$C$20/$F$12 -> 0.007656236138 | F12: ='B02'!$E$20 -> 200 | G12: NOAEL | J12: Spill: Lrg Mam
A13: Spill | B13: Large Mammal (70g) | C13: =F02d!$C$18/$F$13 -> 0.0004900284219 | D13: =F02d!$C$19/$F$13 -> 2.940170532e-05 | E13: =F02d!$C$20/$F$13 -> 0.005880341063 | F13: ='B02'!$E$20 -> 200 | G13: NOAEL | J13: Spill: Sm Brd
A14: Spill | B14: Small bird (10g) | C14: =F02e!$C$18/$F$14 -> 0.0002551866227 | D14: =F02e!$C$19/$F$14 -> 1.531119736e-05 | E14: =F02e!$C$20/$F$14 -> 0.003062239472 | F14: ='B02'!$E$22 -> 1600 | G14: NOAEL | J14: Spill: Lrg Brd
A15: Spill | B15: Large Bird (4 kg) | C15: =F02f!$C$18/$F$15 -> 3.533280422e-05 | D15: =F02f!$C$19/$F$15 -> 2.119968253e-06 | E15: =F02f!$C$20/$F$15 -> 0.0004239936507 | F15: ='B02'!$E$22 -> 1600 | G15: NOAEL
A16: Consumption of contaminated Fish | J16: Fish: Bear
A17: Spill | B17: Large Mammalian Carnivore (70 kg) | C17: =F03a!$C$47/$F$17 -> 0.0002239952327 | D17: =F03a!$C$48/$F$17 -> 1.343971396e-06 | E17: =F03a!$C$49/$F$17 -> 0.01523167582 | F17: ='B02'!$E$20 -> 200 | G17: NOAEL | J17: Fish: Fox
A18: Spill | B18: Canid (5 kg) | C18: =F03b!$C$47/$F$18 -> 0.0003224069864 | D18: =F03b!$C$48/$F$18 -> 1.934441918e-06 | E18: =F03b!$C$49/$F$18 -> 0.02192367508 | F18: ='B02'!$E$20 -> 200 | G18: NOAEL | J18: Fish: Bird
A19: Spill | B19: Fish-eating bird (2.4 kg) | C19: =F03c!$C$47/$F$19 -> 4.678944618e-05 | D19: =F03c!$C$48/$F$19 -> 2.807366771e-07 | E19: =F03c!$C$49/$F$19 -> 0.00318168234 | F19: ='B02'!$E$22 -> 1600 | G19: NOAEL
A20: Non-Accidental Acute Exposures
A21: Contaminated Fruit (Lowest Residue Rate)
B22: Small mammal (20g) | C22: =F04a!$C$35/$F$22 -> 0.07941545138 | D22: =F04a!$C$36/$F$22 -> 0.0108912619 | E22: =F04a!$C$37/$F$22 -> 0.2892991443 | F22: ='B02'!$E$20 -> 200 | G22: NOAEL | J22: Grass: Sm Mam
B23: Larger Mammal (400g) | C23: =F04b!$C$35/$F$23 -> 0.01813415071 | D23: =F04b!$C$36/$F$23 -> 0.00248696924 | E23: =F04b!$C$37/$F$23 -> 0.06606012045 | F23: ='B02'!$E$20 -> 200 | G23: NOAEL | J23: Grass: Med Mam
B24: Large Mammal (70g) | C24: =F04c!$C$35/$F$24 -> 0.01032863247 | D24: =F04c!$C$36/$F$24 -> 0.001416498167 | E24: =F04c!$C$37/$F$24 -> 0.03762573257 | F24: ='B02'!$E$20 -> 200 | G24: NOAEL | J24: Grass: Lrg Mam
B25: Small bird (10g) | C25: =F04d!$C$35/$F$25 -> 0.02172761865 | D25: =F04d!$C$36/$F$25 -> 0.002979787701 | E25: =F04d!$C$37/$F$25 -> 0.0791506108 | F25: ='B02'!$E$22 -> 1600 | G25: NOAEL | J25: Grass: Sm Brd
B26: Large Bird (4 kg) | C26: =F04e!$C$35/$F$26 -> 0.002471297876 | D26: =F04e!$C$36/$F$26 -> 0.0003389208516 | E26: =F04e!$C$37/$F$26 -> 0.009002585121 | F26: ='B02'!$E$22 -> 1600 | G26: NOAEL | J26: Grass: Lrg Brd
A27: Contaminated Vegetation (Short Grass - Highest Residue Rate)
B28: Small mammal (20g) | C28: =F05a!$C$35/$F$28 -> 0.7196920699 | D28: =F05a!$C$36/$F$28 -> 0.07620268975 | E28: =F05a!$C$37/$F$28 -> 3.454521936 | F28: ='B02'!$E$20 -> 200 | G28: NOAEL | J28: Veg: Sm Mam
B29: Larger Mammal (400g) | C29: =F05b!$C$35/$F$29 -> 0.1643383527 | D29: =F05b!$C$36/$F$29 -> 0.01740053147 | E29: =F05b!$C$37/$F$29 -> 0.7888240932 | F29: ='B02'!$E$20 -> 200 | G29: NOAEL | J29: Veg: Med Mam
B30: Large Mammal | C30: =F05c!$C$35/$F$30 -> 0.09360187158 | D30: =F05c!$C$36/$F$30 -> 0.009910786403 | E30: =F05c!$C$37/$F$30 -> 0.4492889836 | F30: ='B02'!$E$20 -> 200 | G30: NOAEL | J30: Veg: Lrg Mam
B31: Small bird (10g) | C31: =F05d!$C$35/$F$31 -> 0.2225011615 | D31: =F05d!$C$36/$F$31 -> 0.02355894651 | E31: =F05d!$C$37/$F$31 -> 1.068005575 | F31: ='B02'!$E$22 -> 1600 | G31: NOAEL | J31: Veg: Sm Brd
B32: Large Bird (4 kg) | C32: =F05e!$C$35/$F$32 -> 0.02530726706 | D32: =F05e!$C$36/$F$32 -> 0.002679592983 | E32: =F05e!$C$37/$F$32 -> 0.1214748819 | F32: ='B02'!$E$22 -> 1600 | G32: NOAEL | J32: Veg: Lrg Brd
A33: Contaminated Water
B34: Small mammal (20g) | C34: =F06a!$C$18/$F$34 -> 8.051835331e-06 | D34: =F06a!$C$19/$F$34 -> 7.319850301e-07 | E34: =F06a!$C$20/$F$34 -> 0.0001317573054 | F34: ='B02'!$E$20 -> 200 | G34: NOAEL | J34: Water: Sm Mam
B35: Larger Mammal (400g) | C35: =F06b!$C$18/$F$35 -> 5.967492543e-06 | D35: =F06b!$C$19/$F$35 -> 5.424993221e-07 | E35: =F06b!$C$20/$F$35 -> 9.764987797e-05 | F35: ='B02'!$E$20 -> 200 | G35: NOAEL | J35: Water: Med Mam
B36: Canid (5 kg) | C36: =F06c!$C$18/$F$36 -> 4.635545878e-06 | D36: =F06c!$C$19/$F$36 -> 4.214132616e-07 | E36: =F06c!$C$20/$F$36 -> 7.58543871e-05 | F36: ='B02'!$E$20 -> 200 | G36: NOAEL | J36: Water: Canid
B37: Large Mammal (70g) | C37: =F06d!$C$18/$F$37 -> 3.560312181e-06 | D37: =F06d!$C$19/$F$37 -> 3.236647437e-07 | E37: =F06d!$C$20/$F$37 -> 5.825965386e-05 | F37: ='B02'!$E$20 -> 200 | G37: NOAEL | J37: Water: Lrg Mam
B38: Small bird (10g) | C38: =F06e!$C$18/$F$38 -> 1.854063969e-06 | D38: =F06e!$C$19/$F$38 -> 1.685512699e-07 | E38: =F06e!$C$20/$F$38 -> 3.033922859e-05 | F38: ='B02'!$E$22 -> 1600 | G38: NOAEL | J38: Water: Sm Brd
B39: Large Bird (4 kg) | C39: =F06f!$C$18/$F$39 -> 2.567112592e-07 | D39: =F06f!$C$19/$F$39 -> 2.33373872e-08 | E39: =F06f!$C$20/$F$39 -> 4.200729696e-06 | F39: ='B02'!$E$22 -> 1600 | G39: NOAEL | J39: Water: Lrg Brd
A40: Contaminated Insects
B41: Small mammal (20g) | C41: =F07a!$C$35/$F$41 -> 0.09631883604 | D41: =F07a!$C$36/$F$41 -> 0.009631883604 | E41: =F07a!$C$37/$F$41 -> 0.4912260638 | F41: ='B02'!$E$20 -> 200 | G41: NOAEL | J41: Insects: Sm Mam
B42: Larger Mammal (400g) | C42: =F07b!$C$35/$F$42 -> 0.02199396035 | D42: =F07b!$C$36/$F$42 -> 0.002199396035 | E42: =F07b!$C$37/$F$42 -> 0.1121691978 | F42: ='B02'!$E$20 -> 200 | G42: NOAEL | J42: Insects: Med Mam
B43: Small bird (10g) | C43: =F07c!$C$35/$F$43 -> 0.02739412385 | D43: =F07c!$C$36/$F$43 -> 0.002739412385 | E43: =F07c!$C$37/$F$43 -> 0.1397100316 | F43: ='B02'!$E$22 -> 1600 | G43: NOAEL | J43: Insects: Sm Brd
A44: Consumption of small mammal (after direct spray) by predator
B45: Canid (5 kg) | C45: =F08a!$C$41/$F$45 -> 0.01357516054 | D45: =F08a!$C$42/$F$45 -> 0.01357516054 | E45: =F08a!$C$43/$F$45 -> 0.01357516054 | F45: ='B02'!$E$20 -> 200 | G45: NOAEL | J45: Canid Eats Sm Mam
B46: Carnivorous bird (640 g) | C46: =F08b!$C$41/$F$46 -> 0.002017773173 | D46: =F08b!$C$42/$F$46 -> 0.002017773173 | E46: =F08b!$C$43/$F$46 -> 0.002017773173 | F46: ='B02'!$E$22 -> 1600 | G46: NOAEL | J46: Bird Eats Sm Mam
A47: Consumption of contaminated Fish
B48: Large Mammalian Carnivore (70 kg) | C48: =F09a!$C$47/$F$48 -> 1.627442245e-06 | D48: =F09a!$C$48/$F$48 -> 1.47949295e-08 | E48: =F09a!$C$49/$F$48 -> 0.0001509082809 | F48: ='B02'!$E$20 -> 200 | G48: NOAEL | J48: Fish: Lrg Mam
B49: Canid (5 kg) | C49: =F09b!$C$47/$F$49 -> 2.342454987e-06 | D49: =F09b!$C$48/$F$49 -> 2.129504534e-08 | E49: =F09b!$C$49/$F$49 -> 0.0002172094624 | F49: ='B02'!$E$20 -> 200 | G49: NOAEL | J49: Fish: Canid
B50: Fish-eating bird (2.4 kg) | C50: =F09c!$C$47/$F$50 -> 3.39949741e-07 | D50: =F09c!$C$48/$F$50 -> 3.090452191e-09 | E50: =F09c!$C$49/$F$50 -> 3.152261235e-05 | F50: ='B02'!$E$22 -> 1600 | G50: NOAEL | J50: Fish: Brd
A51: Chronic/Longer Term Exposures
A52: Contaminated Fruit (Lowest Residue Rate)
B53: Small mammal (20g) | C53: =F10a!$C$35/$F$53 -> 0.1018002091 | D53: =F10a!$C$36/$F$53 -> 0.01047486001 | E53: =F10a!$C$37/$F$53 -> 0.9958084097 | F53: ='B02'!$E$21 -> 20 | G53: NOAEL | I53: Grass: Sm Mam
B54: Larger Mammal (400g) | C54: =F10b!$C$35/$F$54 -> 0.02324560651 | D54: =F10b!$C$36/$F$54 -> 0.002391885797 | E54: =F10b!$C$37/$F$54 -> 0.2273882408 | F54: ='B02'!$E$21 -> 20 | G54: NOAEL | I54: Grass: Med Mam
B55: Large Mammal (70g) | C55: =F10c!$C$35/$F$55 -> 0.01323995427 | D55: =F10c!$C$36/$F$55 -> 0.001362341678 | E55: =F10c!$C$37/$F$55 -> 0.129513072 | F55: ='B02'!$E$21 -> 20 | G55: NOAEL | I55: Grass: Lrg Mam
B56: Small bird (10g) | C56: =F10d!$C$35/$F$56 -> 0.06855867529 | D56: =F10d!$C$36/$F$56 -> 0.007054430762 | E56: =F10d!$C$37/$F$56 -> 0.6706401297 | F56: ='B02'!$E$23 -> 65 | G56: NOAEL | I56: Grass: Sm Brd
B57: Large Bird (4 kg) | C57: =F10e!$C$35/$F$57 -> 0.007797859092 | D57: =F10e!$C$36/$F$57 -> 0.000802370478 | E57: =F10e!$C$37/$F$57 -> 0.07627856302 | F57: ='B02'!$E$23 -> 65 | G57: NOAEL | I57: Grass: Lrg Brd
A58: Contaminated Vegetation (Short Grass - Highest Residue Rate)
B59: Small mammal (20g) | C59: =F11a!$C$35/$F$59 -> 0.9225509885 | D59: =F11a!$C$36/$F$59 -> 0.07328925839 | E59: =F11a!$C$37/$F$59 -> 11.89095116 | F59: ='B02'!$E$21 -> 20 | G59: NOAEL | I59: Veg: Sm Mam
B60: Larger Mammal (400g) | C60: =F11b!$C$35/$F$60 -> 0.2106602478 | D60: =F11b!$C$36/$F$60 -> 0.0167352629 | E60: =F11b!$C$37/$F$60 -> 2.715243654 | F60: ='B02'!$E$21 -> 20 | G60: NOAEL | I60: Veg: Med Mam
B61: Large Mammal (70g) | C61: =F11c!$C$35/$F$61 -> 0.119985342 | D61: =F11c!$C$36/$F$61 -> 0.009531870698 | E61: =F11c!$C$37/$F$61 -> 1.546515975 | F61: ='B02'!$E$21 -> 20 | G61: NOAEL | I61: Veg: Lrg Mam
B62: Small bird (10g) | C62: =F11d!$C$35/$F$62 -> 0.7020734819 | D62: =F11d!$C$36/$F$62 -> 0.05577409321 | E62: =F11d!$C$37/$F$62 -> 9.049170817 | F62: ='B02'!$E$23 -> 65 | G62: NOAEL | I62: Veg: Sm Brd
B63: Large Bird (4 kg) | C63: =F11e!$C$35/$F$63 -> 0.07985379037 | D63: =F11e!$C$36/$F$63 -> 0.006343741592 | E63: =F11e!$C$37/$F$63 -> 1.029252077 | F63: ='B02'!$E$23 -> 65 | G63: NOAEL | I63: Veg: Lrg Brd
A64: Contaminated Water
B65: Small mammal (20g) | C65: =F12a!$C$18/$F$65 -> 6.221872756e-06 | D65: =F12a!$C$19/$F$65 -> 6.587865271e-07 | E65: =F12a!$C$20/$F$65 -> 7.319850301e-05 | F65: ='B02'!$E$21 -> 20 | G65: NOAEL | I65: Water: Sm Mam
B66: Larger Mammal (400g) | C66: =F12b!$C$18/$F$66 -> 4.611244238e-06 | D66: =F12b!$C$19/$F$66 -> 4.882493899e-07 | E66: =F12b!$C$20/$F$66 -> 5.424993221e-05 | F66: ='B02'!$E$21 -> 20 | G66: NOAEL | I66: Water: Med Mam
B67: Canid (5 kg) | C67: =F12c!$C$18/$F$67 -> 3.582012724e-06 | D67: =F12c!$C$19/$F$67 -> 3.792719355e-07 | E67: =F12c!$C$20/$F$67 -> 4.214132616e-05 | F67: ='B02'!$E$21 -> 20 | G67: NOAEL | I67: Water: Canid
B68: Large Mammal (70g) | C68: =F12d!$C$18/$F$68 -> 2.751150321e-06 | D68: =F12d!$C$19/$F$68 -> 2.912982693e-07 | E68: =F12d!$C$20/$F$68 -> 3.236647437e-05 | F68: ='B02'!$E$21 -> 20 | G68: NOAEL | I68: Water: Lrg Mam
B69: Small bird (10g) | C69: =F12e!$C$18/$F$69 -> 3.526611186e-06 | D69: =F12e!$C$19/$F$69 -> 3.734058903e-07 | E69: =F12e!$C$20/$F$69 -> 4.148954337e-05 | F69: ='B02'!$E$23 -> 65 | G69: NOAEL | I69: Water: Sm Brd
B70: Large Bird (4 kg) | C70: =F12f!$C$18/$F$70 -> 4.882899476e-07 | D70: =F12f!$C$19/$F$70 -> 5.170128857e-08 | E70: =F12f!$C$20/$F$70 -> 5.744587619e-06 | F70: ='B02'!$E$23 -> 65 | G70: NOAEL | I70: Water: Lrg Brd
A71: Consumption of contaminated Fish
B72: Large Mammalian Carnivore (70 kg) | C72: =F13a!$C$47/$F$72 -> 1.257569008e-06 | D72: =F13a!$C$48/$F$72 -> 1.331543655e-08 | E72: =F13a!$C$49/$F$72 -> 8.383793385e-05 | F72: ='B02'!$E$21 -> 20 | G72: NOAEL | I72: Fish: Lrg Mam
B73: Canid (5 kg) | C73: =F13b!$C$47/$F$73 -> 1.810078854e-06 | D73: =F13b!$C$48/$F$73 -> 1.91655408e-08 | E73: =F13b!$C$49/$F$73 -> 0.0001206719236 | F73: ='B02'!$E$21 -> 20 | G73: NOAEL | I73: Fish: Canid
B74: Fish-eating bird (2.4 kg) | C74: =F13c!$C$47/$F$74 -> 6.466176892e-07 | D74: =F13c!$C$48/$F$74 -> 6.846540239e-09 | E74: =F13c!$C$49/$F$74 -> 4.310784595e-05 | F74: ='B02'!$E$23 -> 65 | G74: NOAEL | I74: Fish: Brd

Sheet G03
A1: Worksheet G03: Summary of Hazard Quotients for Aquatic Species
A2: Application Rate: | B2: 1 | C2: lb a.e./acre | F2: AqToxSumV6
A3: Exposures | C3: Concentrations (mg/L)
B4: Scenario | C4: Central | D4: Lower | E4: Upper | F4: Worksheet
B5: Accidental Spill | C5: =B04b!Acute_C -> 1.514 | D5: =B04b!Acute_L -> 0.09084 | E5: =B04b!Acute_U -> 18.168 | F5: B04b
B6: Peak EEC | C6: =B04a!Acute_C -> 0.011 | D6: =B04a!Acute_L -> 0.001 | E6: =B04a!Acute_U -> 0.18 | F6: B04a
B7: Chronic | C7: =B04a!Chronic_C -> 0.00085 | D7: =B04a!Chronic_L -> 9e-05 | E7: =B04a!Chronic_U -> 0.01 | F7: B04a
A8: Receptor | B8: Type | C8: Hazard Quotients | F8: Toxicity Value | G8: Toxicity Endpoint
C9: Central | D9: Lower | E9: Upper
A10: Accidental Acute Exposures
A11: Fish | B11: Sensitive | C11: =C$5/$F11 -> 7.968421053 | D11: 0.4781052632 | E11: 95.62105263 | F11: ='B02'!$E$6 -> 0.19 | G11: NOEAC* | J11: Fish Sn
B12: Tolerant | C12: 0.2102777778 | D12: 0.01261666667 | E12: 2.523333333 | F12: ='B02'!$E$7 -> 7.2 | G12: NOAEC | J12: Fish Tl
A13: Amphibian | B13: Sensitive | C13: No toxicity data. | F13: N/A | J13: Amph Sn
B14: Tolerant | C14: No toxicity data. | F14: N/A | J14: Amph To
A15: Invertebrate | B15: Sensitive | C15: 0.7041860465 | D15: 0.04225116279 | E15: 8.450232558 | F15: ='B02'!$E$10 -> 2.15 | G15: NOAEC | J15: Invt Sn
B16: Tolerant | C16: 0.007074766355 | D16: 0.0004244859813 | E16: 0.08489719626 | F16: ='B02'!$E$11 -> 214 | G16: NOAEC | J16: Invt Tl
A17: Macrophyte | B17: Sensitive | C17: No toxicity data. | F17: N/A | J17: Plant Sn
B18: Tolerant | C18: 0.1240983607 | D18: 0.007445901639 | E18: 1.489180328 | F18: ='B02'!$E$15 -> 12.2 | G18: NOAEC | J18: Plant Tl
A19: Algae | B19: Sensitive | C19: 65.82608696 | D19: 3.949565217 | E19: 789.9130435 | F19: ='B02'!$E$13 -> 0.023 | G19: NOAEC* | J19: Algae Sn
B20: Tolerant | C20: 0.01610638298 | D20: 0.0009663829787 | E20: 0.1932765957 | F20: ='B02'!$E$14 -> 94 | G20: NOAEC | J20: Algae Tl
A21: Non-Accidental Acute Exposures
A22: Fish | B22: Sensitive | C22: =C$6/$F22 -> 0.05789473684 | D22: 0.005263157895 | E22: 0.9473684211 | F22: ='B02'!$E$6 -> 0.19 | G22: NOEAC*
B23: Tolerant | C23: 0.001527777778 | D23: 0.0001388888889 | E23: 0.025 | F23: ='B02'!$E$7 -> 7.2 | G23: NOAEC
A24: Amphibian | B24: Sensitive | C24: No toxicity data. | F24: N/A
B25: Tolerant | C25: No toxicity data. | F25: N/A
A26: Invertebrate | B26: Sensitive | C26: 0.00511627907 | D26: 0.0004651162791 | E26: 0.08372093023 | F26: ='B02'!$E$10 -> 2.15 | G26: NOAEC
B27: Tolerant | C27: 5.140186916e-05 | D27: 4.672897196e-06 | E27: 0.0008411214953 | F27: ='B02'!$E$11 -> 214 | G27: NOAEC
A28: Macrophyte | B28: Sensitive | C28: No toxicity data. | F28: N/A
B29: Tolerant | C29: 0.0009016393443 | D29: 8.196721311e-05 | E29: 0.01475409836 | F29: ='B02'!$E$15 -> 12.2 | G29: NOAEC
A30: Algae | B30: Sensitive | C30: 0.4782608696 | D30: 0.04347826087 | E30: 7.826086957 | F30: ='B02'!$E$13 -> 0.023 | G30: NOAEC*
B31: Tolerant | C31: 0.0001170212766 | D31: 1.063829787e-05 | E31: 0.001914893617 | F31: ='B02'!$E$14 -> 94 | G31: NOAEC
A32: Chronic/Longer Term Exposures
A33: Fish | B33: Sensitive | C33: =C$7/$F33 -> 0.2428571429 | D33: 0.02571428571 | E33: 2.857142857 | F33: ='B02'!$E$8 -> 0.0035 | G33: NOAEC*
B34: Tolerant | C34: 0.0001180555556 | D34: 1.25e-05 | E34: 0.001388888889 | F34: ='B02'!$E$9 -> 7.2 | G34: NOAEC
A35: Amphibian | B35: Sensitive | C35: No toxicity data. | F35: N/A
B36: Tolerant | C36: No toxicity data. | F36: N/A
A37: Invertebrate | B37: Sensitive | C37: No toxicity data. | F37: N/A
B38: Tolerant | C38: 0.000125 | D38: 1.323529412e-05 | E38: 0.001470588235 | F38: ='B02'!$E$12 -> 6.8 | G38: NOAEC
A39: Macrophyte | B39: Sensitive | C39: No toxicity data. | F39: N/A
B40: Tolerant | C40: 6.967213115e-05 | D40: 7.37704918e-06 | E40: 0.0008196721311 | F40: ='B02'!$E$15 -> 12.2 | G40: NOAEC
A41: Algae | B41: Sensitive | C41: 0.03695652174 | D41: 0.003913043478 | E41: 0.4347826087 | F41: ='B02'!$E$13 -> 0.023 | G41: NOAEC*
B42: Tolerant | C42: 9.042553191e-06 | D42: 9.574468085e-07 | E42: 0.0001063829787 | F42: ='B02'!$E$14 -> 94 | G42: NOAEC

Sheet G04
A1: Summary of Exposure Assessment and Risk Characterization for Terrestrial Plants from Runoff
A2: Short Title | B2: Runoff to terrestrial plants
A3: Receptor | B3: Terrestrial vegetation
A4: Duration | B4: Acute
A5: User-Specified Gleams-Driver File | B5: None
A6: Parameter/Assumption | B6: Code / Range | C6: Value | D6: Units | E6: Reference
A7: Worksheet Application Rate | B7: ApRtWB | C7: ='A01'!ApRt_C -> 1 | D7: lb/acre | E7: Worksheeet A01
A8: Offsite Application Rates Inputs
A9: Run ID: | B9: Risk Assessment
A10: Application Rate Used in Run: | B10: ApRtRun | C10: 1 | D10: lb/acre
A11: Functional Off-site Application Rate | B11: ApRtOffsite
B12: Central | C12: 0.0026 | D12: lb/acre
B13: Lower | C13: 5.1e-07
B14: Upper | C14: 0.15
A15: Calculated Values
A16: Normalized Off-site Functional Application Rate | B16: NormApRtOffsite | C16: ApRtOffsite / ApRtRun
B17: Central | C17: =C12/C$10 -> 0.0026 | D17: Unitless | E17: Eq
B18: Lower | C18: =C13/C$10 -> 5.1e-07 | E18: Eq
B19: Upper | C19: =C14/C$10 -> 0.15 | E19: Eq
A20: Off-site Application Rate at Workbook Application Rate | B20: ApRtWB | C20: ApRtWB x NormApRtOffsite
B21: Central | C21: =C17*C$7 -> 0.0026 | D21: lb/acre | E21: Eq
B22: Lower | C22: =C18*C$7 -> 5.1e-07 | E22: Eq
B23: Upper | C23: =C19*C$7 -> 0.15 | E23: Eq
A24: Toxicity Values (seedling emergence) in units of lbs/acre
C25: Sensitive | D25: Tolerant
B26: Endpoint | C26: NOAEL* | D26: NOAEL
C27: ='B02'!$E$16 -> 0.00021 | D27: ='B02'!$E$17 -> 0.43 | E27: Table 28
A28: Hazard Quotients
B29: Central | C29: =IF(ISNUMBER(C$27), $C21/C$27, "N/A") -> 12.38095238 | D29: 0.006046511628
B30: Lower | C30: 0.002428571429 | D30: 1.186046512e-06
B31: Upper | C31: 714.2857143 | D31: 0.3488372093

Sheet G05
A1: Summary of Exposure Assessment and Risk Characterization for Sensitive and Tolerant Terrestrial Plants from Drift After Aerial Broadcast Foliar Application.
A2: Short Title | B2: Drift to terrestrial plants | E2: PlntDrift3Apps
A3: Receptor | B3: Terrestrial vegetation
A4: Duration | B4: Acute
A5: Parameter/ Assumption | B5: Code / Range | C5: Equation/ Value | D5: Units | E5: Reference/ Designation
A6: Application Rate | B6: ApRt | C6: ='A01'!ApRt_C -> 1 | D6: lb/acre | E6: Worksheet A01
A7: Toxicity Values(Post-emergence in lb/ac)
A8: Sensitive species | B8: NOAEL | C8: ='B02'!$E$18 -> 2.6e-05 | D8: lb/acre | E8: Table 28
A9: Tolerant species | B9: NOAEL | C9: ='B02'!$E$19 -> 0.05 | D9: lb/acre | E9: Table 28
A10: Proportion of Drift at distances downwind in feet [0 feet = direct spray] | B10: Prop
C11: Aerial | D11: High Boom Ground Broadcast | E11: Low Boom Ground Broadcast | F11: Backpack
A12: 0 | C12: 1 | D12: 1 | E12: 1 | F12: 1 | G12: unitless
A13: 25 | C13: 0.223 | D13: 0.104 | E13: 0.035 | F13: 0.00832
A14: 50 | C14: 0.171 | D14: 0.05 | E14: 0.0177 | F14: 0.00433
A15: 100 | C15: 0.0979 | D15: 0.0248 | E15: 0.00948 | F15: 0.00241
A16: 300 | C16: 0.0312 | D16: 0.00753 | E16: 0.0035 | F16: 0.000941
A17: 500 | C17: 0.0192 | D17: 0.00391 | E17: 0.00209 | F17: 0.000579
A18: 900 | C18: 0.0124 | D18: 0.00166 | E18: 0.00109 | F18: 0.000312
A19: Estimates of functional offsite application rate | B19: OffsiteApRt | C19: =ApRt x Prop
C20: Aerial | D20: High Boom Ground Broadcast | E20: Low Boom Ground Broadcast | F20: Backpack
A21: =A12 -> 0 | C21: =$C$6*C12 -> 1 | D21: 1 | E21: 1 | F21: 1 | G21: Eq
A22: 25 | C22: 0.223 | D22: 0.104 | E22: 0.035 | F22: 0.00832 | G22: Eq
A23: 50 | C23: 0.171 | D23: 0.05 | E23: 0.0177 | F23: 0.00433 | G23: Eq
A24: 100 | C24: 0.0979 | D24: 0.0248 | E24: 0.00948 | F24: 0.00241 | G24: Eq
A25: 300 | C25: 0.0312 | D25: 0.00753 | E25: 0.0035 | F25: 0.000941 | G25: Eq
A26: 500 | C26: 0.0192 | D26: 0.00391 | E26: 0.00209 | F26: 0.000579 | G26: Eq
A27: 900 | C27: 0.0124 | D27: 0.00166 | E27: 0.00109 | F27: 0.000312 | G27: Eq
A29: Hazard Quotients (Sensitive Species) | B29: HQSens | C29: = OffsiteApRt / ToxValSens
C30: Aerial | D30: High Boom Ground Broadcast | E30: Low Boom Ground Broadcast | F30: Backpack
A31: =A12 -> 0 | C31: =IF( ISNUMBER($C$8), C21/$C$8, "N/A") -> 38461.53846 | D31: =IF( ISNUMBER($C$8), D21/$C$8, "N/A") -> 38461.53846 | E31: =IF( ISNUMBER($C$8), E21/$C$8, "N/A") -> 38461.53846 | F31: =IF( ISNUMBER($C$8), F21/$C$8, "N/A") -> 38461.53846
A32: 25 | C32: =IF( ISNUMBER($C$8), C22/$C$8, "N/A") -> 8576.923077 | D32: 4000 | E32: 1346.153846 | F32: 320
A33: 50 | C33: 6576.923077 | D33: 1923.076923 | E33: 680.7692308 | F33: 166.5384615
A34: 100 | C34: 3765.384615 | D34: 953.8461538 | E34: 364.6153846 | F34: 92.69230769
A35: 300 | C35: 1200 | D35: 289.6153846 | E35: 134.6153846 | F35: 36.19230769
A36: 500 | C36: 738.4615385 | D36: 150.3846154 | E36: 80.38461538 | F36: 22.26923077
A37: 900 | C37: 476.9230769 | D37: 63.84615385 | E37: 41.92307692 | F37: 12
A38: Hazard Quotients (Tolerant Species) | B38: HQTol | C38: = OffsiteApRt / ToxValTol
A39: =A12 -> 0 | C39: =IF(ISNUMBER($C$9),C21/$C$9,"N/A") -> 20 | D39: =IF(ISNUMBER($C$9),D21/$C$9,"N/A") -> 20 | E39: =IF(ISNUMBER($C$9),E21/$C$9,"N/A") -> 20 | F39: =IF(ISNUMBER($C$9),F21/$C$9,"N/A") -> 20
A40: 25 | C40: =IF(ISNUMBER($C$9),C22/$C$9,"N/A") -> 4.46 | D40: 2.08 | E40: 0.7 | F40: 0.1664
A41: 50 | C41: 3.42 | D41: 1 | E41: 0.354 | F41: 0.0866
A42: 100 | C42: 1.958 | D42: 0.496 | E42: 0.1896 | F42: 0.0482
A43: 300 | C43: 0.624 | D43: 0.1506 | E43: 0.07 | F43: 0.01882
A44: 500 | C44: 0.384 | D44: 0.0782 | E44: 0.0418 | F44: 0.01158
A45: 900 | C45: 0.248 | D45: 0.0332 | E45: 0.0218 | F45: 0.00624

Sheet G06a
A1: Potential exposure of non-target plants through the use of contaminated irrigation water based on estimates concentrations in ambient water.
A2: Short Title | B2: Irrigation Water | E2: PlntWatIrrg
A3: Receptor | B3: Non-target plants
A4: Duration | B4: Peak
A5: Parameter/Assumption | B5: Code / Range | C5: Equation/ Value | D5: Units | E5: Reference/Designation
A6: Application Rate | B6: ApRt | C6: ='A01'!ApRt_C -> 1 | D6: lb/acre | E6: Worksheet A01
A7: Toxicity Values (Post-emergence in lb/ac)
A8: Sensitive species | B8: NOAEL | C8: ='B02'!$E$18 -> 2.6e-05 | D8: lb/acre | E8: Table 28
A9: Tolerant species | B9: NOAEL | C9: ='B02'!$E$19 -> 0.05 | D9: lb/acre | E9: Table 28
A10: Water contamination rate | B10: WCR
B11: Central | C11: =B04Rt!$C$4 -> 0.011 | D11: mg/L per lb/acre | E11: Table 14
B12: Lower | C12: =B04Rt!$C$5 -> 0.001 | E12: Table 14
B13: Upper | C13: =B04Rt!$C$6 -> 0.18 | E13: Table 14
A14: Toxic Equivalency Factor for formulation: (See risk assessment if this has a value other than 1.) | B14: TEF
B15: Central | C15: ='A01'!C$35 -> 1 | D15: unitless | E15: Worksheet A01
B16: Lower | C16: ='A01'!C$36 -> 1 | E16: Worksheet A01
B17: Upper | C17: ='A01'!C$37 -> 1 | E17: Worksheet A01
A18: Concentration in irrigation water | B18: ConcWat | C18: ApRt × WCR × TEF
B19: Central | C19: =C$6*C11*C15 -> 0.011 | D19: mg/L | E19: Eq
B20: Lower | C20: =C$6*C12*C16 -> 0.001 | E20: Eq
B21: Upper | C21: =C$6*C13*C17 -> 0.18 | E21: Eq
A22: Amount of irrigation water applied | B22: IrrigAmnt
B23: Central | C23: 1 | D23: inches | E23: Scenario parameter
B24: Lower | C24: 0.25 | E24: Scenario parameter
B25: Upper | C25: 2 | E25: Scenario parameter
A26: Gallons per Acre-Foot | B26: GalPerAc-Ft | C26: =A02d!$C$4 -> 325900 | D26: gal/acre-foot | E26: Budavari 1989
A27: Liters per Gallon | B27: LtPerGal | C27: =A02d!$C$5 -> 3.785 | D27: liters/gal | E27: Budavari 1989
A28: Liters of water applied per acre per inch of irrigation water (rounded to nearest liter) | B28: LpApI | C28: GalPerAc-Ft × LtPerGal ∕ 12
C29: =ROUND(C26*C27/12, 0) -> 102794 | D29: Lit/acre-inch | E29: Eq
A30: Liters of water applied per acre | B30: LPA | C30: IrrigAmnt × LpApl
B31: Central | C31: =C23*C$29 -> 102794 | D31: liters | E31: Eq
B32: Lower | C32: =C24*C$29 -> 25698.5 | E32: Eq
B33: Upper | C33: =C25*C$29 -> 205588 | E33: Eq
A34: Application Rate (mg/acre) | B34: ApRmg/a | C34: ConcWat × LPA
B35: Central | C35: =C19*C31 -> 1130.734 | D35: mg/acre | E35: Eq
B36: Lower | C36: =C20*C32 -> 25.6985 | E36: Eq
B37: Upper | C37: =C21*C33 -> 37005.84 | E37: Eq
A38: Conversion factor for mg to lb | B38: Conv | C38: =A02d!$C$9 -> 2.204e-06 | E38: Budavari 1989
A39: Functional application rate (lb/acre) | B39: FncApR | C39: ApRmg/a × Conv
B40: Central | C40: =C35*C$38 -> 0.002492137736 | D40: lb/acre | E40: Eq
B41: Lower | C41: =C36*C$38 -> 5.6639494e-05 | E41: Eq
B42: Upper | C42: =C37*C$38 -> 0.08156087136 | E42: Eq
A43: Hazard Quotients (Sensitive Species) | B43: HISens | C43: = FncApRt / ToxValSens
B44: Central | C44: =IF(ISNUMBER($C$8), C40/$C$8, "N/A") -> 95.85145138
B45: Lower | C45: =IF(ISNUMBER($C$8), C41/$C$8, "N/A") -> 2.178442077
B46: Upper | C46: 3136.956591
A47: Hazard Quotients (Tolerant Species) | B47: HITol | C47: = FncApRt / ToxValTol
B48: Central | C48: =IF( ISNUMBER($C$9), C40/$C$9, "N/A") -> 0.04984275472
B49: Lower | C49: =IF( ISNUMBER($C$9), C41/$C$9, "N/A") -> 0.00113278988
B50: Upper | C50: 1.631217427

Sheet G06b
A1: Summary of Exposure Assessment and Risk Characterization for Sensitive and Tolerant Terrestrial Plants from Wind Erosion at the Specified Application Rate.
A2: Short Title | B2: Wind erosion, terrestrial plants | E2: PlntWind2
A3: Receptor | B3: Terrestrial vegetation
A4: Duration | B4: Acute
A5: Parameter/Assumption | B5: Code / Range | C5: Equation/ Value | D5: Units | E5: Reference/ Designation
A6: Application Rate | B6: ApRt | C6: ='A01'!ApRt_C -> 1 | D6: lb/acre | E6: Worksheet A01
A7: Toxicity Values (Post-emergence in lb/ac)
A8: Sensitive species | B8: NOAEL | C8: ='B02'!$E$18 -> 2.6e-05 | D8: lb/acre | E8: Table 28
A9: Tolerant species | B9: NOAEL | C9: ='B02'!$E$19 -> 0.05 | D9: lb/acre | E9: Table 28
A10: Soil losses due to wind ersion | B10: Loss_TonHa
B11: Central | C11: 5 | D11: Tons per hectare per year | E11: Scenario parameter
B12: Lower | C12: 1 | E12: Scenario parameter
B13: Upper | C13: 10 | E13: Scenario parameter
A14: Conversion for tons/ha to grams per cm2 | B14: Conv1 | C14: 0.01
A15: Soil losses in grams/square centimeter | B15: Loss_GrCm
B16: Central | C16: =Trigger*C$14 -> 0.05 | D16: g/cm2 per year | E16: Eq
B17: Lower | C17: =C12*C$14 -> 0.01 | E17: Eq
B18: Upper | C18: =C13*C$14 -> 0.1 | E18: Eq
A19: Soil Density | B19: Dens | C19: 2 | D19: g/cm2
A20: Soil losses in cm/day | B20: Loss_CmDay | C20: = Loss_GrCm /(Dens * 365)
B21: Central | C21: =C16/(C$19* 365) -> 6.849315068e-05 | D21: cm per day | E21: Eq
B22: Lower | C22: =C17/(C$19* 365) -> 1.369863014e-05 | E22: Eq
B23: Upper | C23: =C18/(C$19* 365) -> 0.0001369863014 | E23: Eq
A24: Depth of incorporation | B24: Depth | C24: 1 | D24: cm | E24: Scenario parameter
A25: Proportion of contaminated soil lost per day | B25: PropLost
B26: Central | C26: =C21/C$24 -> 6.849315068e-05 | D26: unitless
B27: Lower | C27: =C22/C$24 -> 1.369863014e-05
B28: Upper | C28: =C23/C$24 -> 0.0001369863014
A29: Estimates of functional offsite application rate | B29: OfsiteApRt | C29: =ApRt x PropLost
B30: Central | C30: =C$6*C26 -> 6.849315068e-05 | D30: lb/acre | E30: Eq
B31: Lower | C31: =C$6*C27 -> 1.369863014e-05 | E31: Eq
B32: Upper | C32: =C$6*C28 -> 0.0001369863014 | E32: Eq
A33: Hazard Quotients (Sensitive Species) | B33: HISens | C33: = OffsiteApRt / ToxValSens
B34: Central | C34: =IF(ISNUMBER($C$8), C30/$C$8, "N/A") -> 2.634351949
